{"text_format":"3","workbook":"xlsx","n_sheets":7,"sheets":["Instruções","DASHBOARDs","RECEITAS","DESPESAS","CADASTROS","CONSOLIDADO","CALCULOS"],"not_rendered":{"charts":6,"images":10,"macros":1,"defined_names":8,"pivot_tables":6},"read":"whole","date_system":"1900"}

{"sheet":"Instruções","index":0,"n_rows":78,"n_cols":4,"rows_kept":78}
["http://authenticator.sapphirebusinesstech.com:8080/access/v1/validate"]
[]
[{"$nulls":3},"Any use for this file other than sample using and technical analysis without authorization is stricly prohibited and protected by copyright"]
[{"$nulls":3},"Qualquer uso desse arquivo sem autorização outro que uso de exemplo e análise técnica é extritamente proibida e protegida por direitos autorais."]
[{"$f":"IF(A7>7,0,1)","v":1},null,null,"Cualquier uso de este archivo sin autorización que no sea para fines de ejemplo o análisis técnico está estrictamente prohibido y está protegido por derechos de autor."]
[]
[{"$f":"IF(A12=\"\",0,TODAY()-A12)","v":0}]
[]
[]
[null,null,"GESTÃO DE EVENTOS"]
[null,null,"Manual de utilização — leia antes de começar a preencher"]
[]
[]
[null,null,"ORDEM DE PREENCHIMENTO","O QUE FAZER"]
[null,null,"1º — CADASTROS","Cadastre primeiro os nomes de receita, nomes de despesa e os eventos. Nada funciona antes disso."]
[null,null,"2º — RECEITAS","Lance cada entrada de dinheiro, uma linha por transação."]
[null,null,"3º — DESPESAS","Lance cada saída de dinheiro, uma linha por transação."]
[null,null,"4º — CONSOLIDADO","Automático. Junta receitas e despesas numa única base. Não digite nada aqui."]
[null,null,"5º — CÁLCULOS","Automático. Prepara os números que alimentam os gráficos. Não digite nada aqui."]
[null,null,"6º — DASHBOARDs","Automático. Onde você lê o resultado do negócio. Apenas consulte e filtre."]
[]
[]
[null,null,"1º PASSO — ABA \"CADASTROS\""]
[null,null,"É a base de tudo. As listas suspensas das abas RECEITAS e DESPESAS puxam os dados daqui."]
[]
[null,null,"CAMPO","COMO PREENCHER"]
[null,null,"NOME DA RECEITA","Digite a origem do dinheiro que entra (ex.: Bilheteria, Patrocínio, Bar). Nome único, sem repetir."]
[null,null,"GRUPO RECEITA","Categoria da receita (ex.: Presença do público, Receita externa, Receita de consumo). Serve para agrupar nos gráficos."]
[null,null,"NOME DE DESPESA","Digite o motivo do gasto (ex.: Aluguel, Equipamento, Luz, Artista). Nome único, sem repetir."]
[null,null,"GRUPO DESPESA","Categoria do gasto (ex.: Local evento, Estrutura, Contas de uso, Atrações). Serve para agrupar nos gráficos."]
[null,null,"EVENTOs","Nome de cada evento que você realiza. Mantenha sempre o item \"GERAL\" para lançamentos que não pertencem a um evento específico."]
[]
[null,null,"ATENÇÃO:","Para incluir novos itens, digite na primeira linha vazia logo abaixo da tabela — ela se expande sozinha e as listas suspensas passam a mostrar o item novo."]
[null,null,"ATENÇÃO:","Não renomeie um item já usado em lançamentos antigos — isso quebra a busca do grupo e gera erro nas abas RECEITAS e DESPESAS."]
[]
[]
[null,null,"2º PASSO — ABA \"RECEITAS\""]
[null,null,"Registre aqui todo dinheiro que ENTRA. Uma linha por transação, começando na linha 8."]
[]
[null,null,"CAMPO","COMO PREENCHER"]
[null,null,"Data da Receita","Data em que o dinheiro entrou. Digite como data (dd/mm/aaaa) — é ela que define o mês e o ano nos gráficos."]
[null,null,"R$ Total","Valor recebido, sempre positivo. Digite apenas o número — a formatação em Real já está aplicada."]
[null,null,"Nome da Receita","Escolha na lista suspensa. As opções vêm da aba CADASTROS — não digite nomes livres."]
[null,null,"Grupo da Receita","PREENCHIMENTO AUTOMÁTICO. Fórmula busca o grupo em CADASTROS assim que você escolhe o nome. Não digite por cima."]
[null,null,"Evento ref.","Escolha na lista o evento a que a receita pertence. Se não for de um evento específico, selecione \"GERAL\"."]
[null,null,"Status transação","\"Confirmado\" para dinheiro que já entrou; \"Pendente\" para o que ainda vai entrar. Permite separar caixa realizado de previsto."]
[]
[]
[null,null,"3º PASSO — ABA \"DESPESAS\""]
[null,null,"Mesma lógica da aba RECEITAS, porém para todo dinheiro que SAI."]
[]
[null,null,"CAMPO","COMO PREENCHER"]
[null,null,"Data da Despesa","Data em que o gasto ocorreu ou foi pago. Digite como data (dd/mm/aaaa)."]
[null,null,"R$ Total","Valor gasto, sempre POSITIVO. Não use sinal de menos — o modelo já trata a despesa como saída."]
[null,null,"Nome da Despesa","Escolha na lista suspensa, alimentada pela aba CADASTROS."]
[null,null,"Grupo da Despesa","PREENCHIMENTO AUTOMÁTICO por fórmula. Não digite por cima."]
[null,null,"Evento ref.","Evento ao qual o gasto se refere. Use \"GERAL\" para custos fixos da empresa."]
[null,null,"Status transação","\"Confirmado\" para o que já foi pago; \"Pendente\" para contas a pagar."]
[]
[]
[null,null,"ABAS AUTOMÁTICAS — NÃO DIGITE NADA NELAS"]
[]
[null,null,"ABA","O QUE ELA FAZ"]
[null,null,"CONSOLIDADO","Empilha RECEITAS e DESPESAS numa base única, marca a fonte (Receita/Despesa) e separa os valores em duas colunas. Acrescenta Mês, Nome Mês e Ano para permitir a análise temporal. As colunas \"reserva 1\" a \"reserva 5\" ficam livres para futuras necessidades — deixe-as intactas."]
[null,null,"CÁLCULOS","Camada intermediária: agrega os números do CONSOLIDADO (por mês, grupo, evento e status) e entrega prontos para os gráficos. Alterar algo aqui quebra os DASHBOARDs."]
[null,null,"DASHBOARDs","Painel visual de resultados: receitas x despesas, saldo, desempenho por evento e por grupo. Use apenas para consultar e filtrar."]
[]
[]
[null,null,"REGRAS GERAIS — LEIA COM ATENÇÃO"]
[]
[null,null,1,"Cadastre antes de lançar. Um nome que não existe em CADASTROS não aparece na lista suspensa e não traz o grupo."]
[null,null,2,"Uma linha por transação. Não agrupe vários pagamentos numa única linha — isso impede a análise por data e por evento."]
[null,null,3,"Nunca deixe linhas em branco no meio das tabelas. Lance sempre na primeira linha vazia logo abaixo do último registro."]
[null,null,4,"Nunca apague, mova ou renomeie colunas das tabelas. As fórmulas do CONSOLIDADO e dos CÁLCULOS dependem dos nomes exatos dos cabeçalhos."]
[null,null,5,"Valores sempre positivos, tanto em receitas quanto em despesas. O modelo já sabe qual é entrada e qual é saída."]
[null,null,6,"Datas devem ser datas de verdade. Texto no formato de data não é reconhecido e some dos gráficos."]
[null,null,7,"Este arquivo é .xlsm e contém macros. Ao abrir, clique em \"Habilitar conteúdo\" para que tudo funcione."]
[null,null,8,"Texto em azul indica célula com fórmula automática — não digite por cima em nenhuma aba."]

{"sheet":"DASHBOARDs","index":1,"n_rows":0,"n_cols":0,"rows_kept":0}

{"sheet":"RECEITAS","index":2,"n_rows":400,"n_cols":8,"rows_kept":400}
[]
[]
[]
[]
[]
[]
[null,null,"Data da Receita","R$ Total","Nome da Receita","Grupo da Receita","Evento ref.","Status transação"]
[null,null,"2025-12-14",{"v":1944,"d":"R$ 1,944.00"},"Patrocinio",{"$f":"IF(tb_listareceita[[#This Row],[Nome da Receita]]=\"\",\"\",VLOOKUP(tb_listareceita[[#This Row],[Nome da Receita]],TB_Receita[[NOME DA RECEITA]:[GRUPO RECEITA]],2,0))","v":"Receita externa"},"EVENTO 1","Confirmado"]
[null,null,"2025-12-24",{"v":1089,"d":"R$ 1,089.00"},"Bar",{"$f":"IF(tb_listareceita[[#This Row],[Nome da Receita]]=\"\",\"\",VLOOKUP(tb_listareceita[[#This Row],[Nome da Receita]],TB_Receita[[NOME DA RECEITA]:[GRUPO RECEITA]],2,0))","v":"Receita de consumo"},"GERAL","Confirmado"]
[null,null,"2025-10-21",{"v":1452,"d":"R$ 1,452.00"},"Patrocinio",{"$f":"IF(tb_listareceita[[#This Row],[Nome da Receita]]=\"\",\"\",VLOOKUP(tb_listareceita[[#This Row],[Nome da Receita]],TB_Receita[[NOME DA RECEITA]:[GRUPO RECEITA]],2,0))","v":"Receita externa"},"EVENTO 5","Confirmado"]
[null,null,"2025-06-10",{"v":592,"d":"R$ 592.00"},"Bilheteria",{"$f":"IF(tb_listareceita[[#This Row],[Nome da Receita]]=\"\",\"\",VLOOKUP(tb_listareceita[[#This Row],[Nome da Receita]],TB_Receita[[NOME DA RECEITA]:[GRUPO RECEITA]],2,0))","v":"Presença do público"},"EVENTO 4","Cancelado"]
[null,null,"2025-03-20",{"v":1782,"d":"R$ 1,782.00"},"Patrocinio",{"$f":"IF(tb_listareceita[[#This Row],[Nome da Receita]]=\"\",\"\",VLOOKUP(tb_listareceita[[#This Row],[Nome da Receita]],TB_Receita[[NOME DA RECEITA]:[GRUPO RECEITA]],2,0))","v":"Receita externa"},"EVENTO 1","Agendado"]
[null,null,"2025-01-24",{"v":636,"d":"R$ 636.00"},"Bar",{"$f":"IF(tb_listareceita[[#This Row],[Nome da Receita]]=\"\",\"\",VLOOKUP(tb_listareceita[[#This Row],[Nome da Receita]],TB_Receita[[NOME DA RECEITA]:[GRUPO RECEITA]],2,0))","v":"Receita de consumo"},"GERAL","Confirmado"]
[null,null,"2025-02-04",{"v":1969,"d":"R$ 1,969.00"},"Patrocinio",{"$f":"IF(tb_listareceita[[#This Row],[Nome da Receita]]=\"\",\"\",VLOOKUP(tb_listareceita[[#This Row],[Nome da Receita]],TB_Receita[[NOME DA RECEITA]:[GRUPO RECEITA]],2,0))","v":"Receita externa"},"EVENTO 4","Confirmado"]
[null,null,"2025-12-12",{"v":687,"d":"R$ 687.00"},"Patrocinio",{"$f":"IF(tb_listareceita[[#This Row],[Nome da Receita]]=\"\",\"\",VLOOKUP(tb_listareceita[[#This Row],[Nome da Receita]],TB_Receita[[NOME DA RECEITA]:[GRUPO RECEITA]],2,0))","v":"Receita externa"},"EVENTO 3","Confirmado"]
[null,null,"2025-04-17",{"v":917,"d":"R$ 917.00"},"Bar",{"$f":"IF(tb_listareceita[[#This Row],[Nome da Receita]]=\"\",\"\",VLOOKUP(tb_listareceita[[#This Row],[Nome da Receita]],TB_Receita[[NOME DA RECEITA]:[GRUPO RECEITA]],2,0))","v":"Receita de consumo"},"EVENTO 5","Confirmado"]
[null,null,"2025-09-25",{"v":697,"d":"R$ 697.00"},"Bar",{"$f":"IF(tb_listareceita[[#This Row],[Nome da Receita]]=\"\",\"\",VLOOKUP(tb_listareceita[[#This Row],[Nome da Receita]],TB_Receita[[NOME DA RECEITA]:[GRUPO RECEITA]],2,0))","v":"Receita de consumo"},"GERAL","Confirmado"]
[null,null,"2025-09-23",{"v":1445,"d":"R$ 1,445.00"},"Patrocinio",{"$f":"IF(tb_listareceita[[#This Row],[Nome da Receita]]=\"\",\"\",VLOOKUP(tb_listareceita[[#This Row],[Nome da Receita]],TB_Receita[[NOME DA RECEITA]:[GRUPO RECEITA]],2,0))","v":"Receita externa"},"EVENTO 1","Confirmado"]
[null,null,"2025-10-14",{"v":490,"d":"R$ 490.00"},"Bar",{"$f":"IF(tb_listareceita[[#This Row],[Nome da Receita]]=\"\",\"\",VLOOKUP(tb_listareceita[[#This Row],[Nome da Receita]],TB_Receita[[NOME DA RECEITA]:[GRUPO RECEITA]],2,0))","v":"Receita de consumo"},"EVENTO 3","Confirmado"]
[null,null,"2025-12-27",{"v":1723,"d":"R$ 1,723.00"},"Bilheteria",{"$f":"IF(tb_listareceita[[#This Row],[Nome da Receita]]=\"\",\"\",VLOOKUP(tb_listareceita[[#This Row],[Nome da Receita]],TB_Receita[[NOME DA RECEITA]:[GRUPO RECEITA]],2,0))","v":"Presença do público"},"EVENTO 4","Confirmado"]
[null,null,"2025-09-17",{"v":615,"d":"R$ 615.00"},"Patrocinio",{"$f":"IF(tb_listareceita[[#This Row],[Nome da Receita]]=\"\",\"\",VLOOKUP(tb_listareceita[[#This Row],[Nome da Receita]],TB_Receita[[NOME DA RECEITA]:[GRUPO RECEITA]],2,0))","v":"Receita externa"},"EVENTO 5","Confirmado"]
[null,null,"2025-02-20",{"v":1667,"d":"R$ 1,667.00"},"Patrocinio",{"$f":"IF(tb_listareceita[[#This Row],[Nome da Receita]]=\"\",\"\",VLOOKUP(tb_listareceita[[#This Row],[Nome da Receita]],TB_Receita[[NOME DA RECEITA]:[GRUPO RECEITA]],2,0))","v":"Receita externa"},"EVENTO 2","Confirmado"]
[null,null,"2025-10-05",{"v":612,"d":"R$ 612.00"},"Bilheteria",{"$f":"IF(tb_listareceita[[#This Row],[Nome da Receita]]=\"\",\"\",VLOOKUP(tb_listareceita[[#This Row],[Nome da Receita]],TB_Receita[[NOME DA RECEITA]:[GRUPO RECEITA]],2,0))","v":"Presença do público"},"EVENTO 2","Confirmado"]
[null,null,"2025-04-18",{"v":967,"d":"R$ 967.00"},"Bilheteria",{"$f":"IF(tb_listareceita[[#This Row],[Nome da Receita]]=\"\",\"\",VLOOKUP(tb_listareceita[[#This Row],[Nome da Receita]],TB_Receita[[NOME DA RECEITA]:[GRUPO RECEITA]],2,0))","v":"Presença do público"},"EVENTO 4","Confirmado"]
[null,null,"2025-02-27",{"v":1925,"d":"R$ 1,925.00"},"Bar",{"$f":"IF(tb_listareceita[[#This Row],[Nome da Receita]]=\"\",\"\",VLOOKUP(tb_listareceita[[#This Row],[Nome da Receita]],TB_Receita[[NOME DA RECEITA]:[GRUPO RECEITA]],2,0))","v":"Receita de consumo"},"EVENTO 4","Confirmado"]
[null,null,"2025-03-25",{"v":512,"d":"R$ 512.00"},"Bar",{"$f":"IF(tb_listareceita[[#This Row],[Nome da Receita]]=\"\",\"\",VLOOKUP(tb_listareceita[[#This Row],[Nome da Receita]],TB_Receita[[NOME DA RECEITA]:[GRUPO RECEITA]],2,0))","v":"Receita de consumo"},"EVENTO 4","Agendado"]
[null,null,"2025-09-18",{"v":1125,"d":"R$ 1,125.00"},"Bar",{"$f":"IF(tb_listareceita[[#This Row],[Nome da Receita]]=\"\",\"\",VLOOKUP(tb_listareceita[[#This Row],[Nome da Receita]],TB_Receita[[NOME DA RECEITA]:[GRUPO RECEITA]],2,0))","v":"Receita de consumo"},"EVENTO 2","Confirmado"]
[null,null,"2025-05-19",{"v":1598,"d":"R$ 1,598.00"},"Bar",{"$f":"IF(tb_listareceita[[#This Row],[Nome da Receita]]=\"\",\"\",VLOOKUP(tb_listareceita[[#This Row],[Nome da Receita]],TB_Receita[[NOME DA RECEITA]:[GRUPO RECEITA]],2,0))","v":"Receita de consumo"},"EVENTO 1","Confirmado"]
[null,null,"2025-11-25",{"v":946,"d":"R$ 946.00"},"Bilheteria",{"$f":"IF(tb_listareceita[[#This Row],[Nome da Receita]]=\"\",\"\",VLOOKUP(tb_listareceita[[#This Row],[Nome da Receita]],TB_Receita[[NOME DA RECEITA]:[GRUPO RECEITA]],2,0))","v":"Presença do público"},"EVENTO 5","Confirmado"]
[null,null,"2025-10-26",{"v":778,"d":"R$ 778.00"},"Patrocinio",{"$f":"IF(tb_listareceita[[#This Row],[Nome da Receita]]=\"\",\"\",VLOOKUP(tb_listareceita[[#This Row],[Nome da Receita]],TB_Receita[[NOME DA RECEITA]:[GRUPO RECEITA]],2,0))","v":"Receita externa"},"EVENTO 5","Confirmado"]
[null,null,"2025-11-09",{"v":1471,"d":"R$ 1,471.00"},"Bar",{"$f":"IF(tb_listareceita[[#This Row],[Nome da Receita]]=\"\",\"\",VLOOKUP(tb_listareceita[[#This Row],[Nome da Receita]],TB_Receita[[NOME DA RECEITA]:[GRUPO RECEITA]],2,0))","v":"Receita de consumo"},"EVENTO 2","Confirmado"]
[null,null,"2025-11-05",{"v":1457,"d":"R$ 1,457.00"},"Bilheteria",{"$f":"IF(tb_listareceita[[#This Row],[Nome da Receita]]=\"\",\"\",VLOOKUP(tb_listareceita[[#This Row],[Nome da Receita]],TB_Receita[[NOME DA RECEITA]:[GRUPO RECEITA]],2,0))","v":"Presença do público"},"GERAL","Confirmado"]
[null,null,"2025-09-23",{"v":640,"d":"R$ 640.00"},"Bilheteria",{"$f":"IF(tb_listareceita[[#This Row],[Nome da Receita]]=\"\",\"\",VLOOKUP(tb_listareceita[[#This Row],[Nome da Receita]],TB_Receita[[NOME DA RECEITA]:[GRUPO RECEITA]],2,0))","v":"Presença do público"},"EVENTO 3","Confirmado"]
[null,null,"2025-10-22",{"v":653,"d":"R$ 653.00"},"Bilheteria",{"$f":"IF(tb_listareceita[[#This Row],[Nome da Receita]]=\"\",\"\",VLOOKUP(tb_listareceita[[#This Row],[Nome da Receita]],TB_Receita[[NOME DA RECEITA]:[GRUPO RECEITA]],2,0))","v":"Presença do público"},"EVENTO 3","Confirmado"]
[null,null,"2025-12-28",{"v":378,"d":"R$ 378.00"},"Patrocinio",{"$f":"IF(tb_listareceita[[#This Row],[Nome da Receita]]=\"\",\"\",VLOOKUP(tb_listareceita[[#This Row],[Nome da Receita]],TB_Receita[[NOME DA RECEITA]:[GRUPO RECEITA]],2,0))","v":"Receita externa"},"EVENTO 2","Confirmado"]
[null,null,"2025-12-27",{"v":1494,"d":"R$ 1,494.00"},"Bar",{"$f":"IF(tb_listareceita[[#This Row],[Nome da Receita]]=\"\",\"\",VLOOKUP(tb_listareceita[[#This Row],[Nome da Receita]],TB_Receita[[NOME DA RECEITA]:[GRUPO RECEITA]],2,0))","v":"Receita de consumo"},"GERAL","Confirmado"]
[null,null,"2025-04-16",{"v":1050,"d":"R$ 1,050.00"},"Bilheteria",{"$f":"IF(tb_listareceita[[#This Row],[Nome da Receita]]=\"\",\"\",VLOOKUP(tb_listareceita[[#This Row],[Nome da Receita]],TB_Receita[[NOME DA RECEITA]:[GRUPO RECEITA]],2,0))","v":"Presença do público"},"EVENTO 4","Confirmado"]
[null,null,"2025-04-14",{"v":658,"d":"R$ 658.00"},"Bilheteria",{"$f":"IF(tb_listareceita[[#This Row],[Nome da Receita]]=\"\",\"\",VLOOKUP(tb_listareceita[[#This Row],[Nome da Receita]],TB_Receita[[NOME DA RECEITA]:[GRUPO RECEITA]],2,0))","v":"Presença do público"},"EVENTO 5","Confirmado"]
[null,null,"2025-09-13",{"v":1549,"d":"R$ 1,549.00"},"Bar",{"$f":"IF(tb_listareceita[[#This Row],[Nome da Receita]]=\"\",\"\",VLOOKUP(tb_listareceita[[#This Row],[Nome da Receita]],TB_Receita[[NOME DA RECEITA]:[GRUPO RECEITA]],2,0))","v":"Receita de consumo"},"EVENTO 4","Confirmado"]
[null,null,"2025-02-20",{"v":1458,"d":"R$ 1,458.00"},"Patrocinio",{"$f":"IF(tb_listareceita[[#This Row],[Nome da Receita]]=\"\",\"\",VLOOKUP(tb_listareceita[[#This Row],[Nome da Receita]],TB_Receita[[NOME DA RECEITA]:[GRUPO RECEITA]],2,0))","v":"Receita externa"},"EVENTO 3","Confirmado"]
[null,null,"2025-07-04",{"v":1864,"d":"R$ 1,864.00"},"Patrocinio",{"$f":"IF(tb_listareceita[[#This Row],[Nome da Receita]]=\"\",\"\",VLOOKUP(tb_listareceita[[#This Row],[Nome da Receita]],TB_Receita[[NOME DA RECEITA]:[GRUPO RECEITA]],2,0))","v":"Receita externa"},"EVENTO 3","Confirmado"]
[null,null,"2025-10-14",{"v":1132,"d":"R$ 1,132.00"},"Patrocinio",{"$f":"IF(tb_listareceita[[#This Row],[Nome da Receita]]=\"\",\"\",VLOOKUP(tb_listareceita[[#This Row],[Nome da Receita]],TB_Receita[[NOME DA RECEITA]:[GRUPO RECEITA]],2,0))","v":"Receita externa"},"GERAL","Cancelado"]
[null,null,"2025-04-08",{"v":453,"d":"R$ 453.00"},"Bilheteria",{"$f":"IF(tb_listareceita[[#This Row],[Nome da Receita]]=\"\",\"\",VLOOKUP(tb_listareceita[[#This Row],[Nome da Receita]],TB_Receita[[NOME DA RECEITA]:[GRUPO RECEITA]],2,0))","v":"Presença do público"},"EVENTO 4","Confirmado"]
[null,null,"2025-10-13",{"v":1389,"d":"R$ 1,389.00"},"Bilheteria",{"$f":"IF(tb_listareceita[[#This Row],[Nome da Receita]]=\"\",\"\",VLOOKUP(tb_listareceita[[#This Row],[Nome da Receita]],TB_Receita[[NOME DA RECEITA]:[GRUPO RECEITA]],2,0))","v":"Presença do público"},"EVENTO 1","Confirmado"]
[null,null,"2025-03-19",{"v":953,"d":"R$ 953.00"},"Patrocinio",{"$f":"IF(tb_listareceita[[#This Row],[Nome da Receita]]=\"\",\"\",VLOOKUP(tb_listareceita[[#This Row],[Nome da Receita]],TB_Receita[[NOME DA RECEITA]:[GRUPO RECEITA]],2,0))","v":"Receita externa"},"EVENTO 2","Confirmado"]
[null,null,"2025-03-17",{"v":1008,"d":"R$ 1,008.00"},"Patrocinio",{"$f":"IF(tb_listareceita[[#This Row],[Nome da Receita]]=\"\",\"\",VLOOKUP(tb_listareceita[[#This Row],[Nome da Receita]],TB_Receita[[NOME DA RECEITA]:[GRUPO RECEITA]],2,0))","v":"Receita externa"},"EVENTO 3","Agendado"]
[null,null,"2025-06-16",{"v":1095,"d":"R$ 1,095.00"},"Patrocinio",{"$f":"IF(tb_listareceita[[#This Row],[Nome da Receita]]=\"\",\"\",VLOOKUP(tb_listareceita[[#This Row],[Nome da Receita]],TB_Receita[[NOME DA RECEITA]:[GRUPO RECEITA]],2,0))","v":"Receita externa"},"EVENTO 4","Confirmado"]
[null,null,"2025-02-09",{"v":974,"d":"R$ 974.00"},"Bar",{"$f":"IF(tb_listareceita[[#This Row],[Nome da Receita]]=\"\",\"\",VLOOKUP(tb_listareceita[[#This Row],[Nome da Receita]],TB_Receita[[NOME DA RECEITA]:[GRUPO RECEITA]],2,0))","v":"Receita de consumo"},"EVENTO 1","Confirmado"]
[null,null,"2025-07-27",{"v":1069,"d":"R$ 1,069.00"},"Bar",{"$f":"IF(tb_listareceita[[#This Row],[Nome da Receita]]=\"\",\"\",VLOOKUP(tb_listareceita[[#This Row],[Nome da Receita]],TB_Receita[[NOME DA RECEITA]:[GRUPO RECEITA]],2,0))","v":"Receita de consumo"},"EVENTO 4","Confirmado"]
[null,null,"2025-10-02",{"v":995,"d":"R$ 995.00"},"Patrocinio",{"$f":"IF(tb_listareceita[[#This Row],[Nome da Receita]]=\"\",\"\",VLOOKUP(tb_listareceita[[#This Row],[Nome da Receita]],TB_Receita[[NOME DA RECEITA]:[GRUPO RECEITA]],2,0))","v":"Receita externa"},"EVENTO 1","Agendado"]
[null,null,"2025-01-26",{"v":1294,"d":"R$ 1,294.00"},"Patrocinio",{"$f":"IF(tb_listareceita[[#This Row],[Nome da Receita]]=\"\",\"\",VLOOKUP(tb_listareceita[[#This Row],[Nome da Receita]],TB_Receita[[NOME DA RECEITA]:[GRUPO RECEITA]],2,0))","v":"Receita externa"},"EVENTO 4","Confirmado"]
[null,null,"2025-09-17",{"v":1263,"d":"R$ 1,263.00"},"Patrocinio",{"$f":"IF(tb_listareceita[[#This Row],[Nome da Receita]]=\"\",\"\",VLOOKUP(tb_listareceita[[#This Row],[Nome da Receita]],TB_Receita[[NOME DA RECEITA]:[GRUPO RECEITA]],2,0))","v":"Receita externa"},"EVENTO 5","Confirmado"]
[null,null,"2025-06-17",{"v":1490,"d":"R$ 1,490.00"},"Bar",{"$f":"IF(tb_listareceita[[#This Row],[Nome da Receita]]=\"\",\"\",VLOOKUP(tb_listareceita[[#This Row],[Nome da Receita]],TB_Receita[[NOME DA RECEITA]:[GRUPO RECEITA]],2,0))","v":"Receita de consumo"},"EVENTO 2","Confirmado"]
[null,null,"2025-09-03",{"v":750,"d":"R$ 750.00"},"Bar",{"$f":"IF(tb_listareceita[[#This Row],[Nome da Receita]]=\"\",\"\",VLOOKUP(tb_listareceita[[#This Row],[Nome da Receita]],TB_Receita[[NOME DA RECEITA]:[GRUPO RECEITA]],2,0))","v":"Receita de consumo"},"EVENTO 4","Confirmado"]
[null,null,"2025-07-10",{"v":1405,"d":"R$ 1,405.00"},"Bar",{"$f":"IF(tb_listareceita[[#This Row],[Nome da Receita]]=\"\",\"\",VLOOKUP(tb_listareceita[[#This Row],[Nome da Receita]],TB_Receita[[NOME DA RECEITA]:[GRUPO RECEITA]],2,0))","v":"Receita de consumo"},"EVENTO 4","Confirmado"]
[null,null,"2025-08-24",{"v":791,"d":"R$ 791.00"},"Patrocinio",{"$f":"IF(tb_listareceita[[#This Row],[Nome da Receita]]=\"\",\"\",VLOOKUP(tb_listareceita[[#This Row],[Nome da Receita]],TB_Receita[[NOME DA RECEITA]:[GRUPO RECEITA]],2,0))","v":"Receita externa"},"GERAL","Confirmado"]
[null,null,"2025-12-11",{"v":531,"d":"R$ 531.00"},"Bar",{"$f":"IF(tb_listareceita[[#This Row],[Nome da Receita]]=\"\",\"\",VLOOKUP(tb_listareceita[[#This Row],[Nome da Receita]],TB_Receita[[NOME DA RECEITA]:[GRUPO RECEITA]],2,0))","v":"Receita de consumo"},"GERAL","Confirmado"]
[null,null,"2025-04-14",{"v":1425,"d":"R$ 1,425.00"},"Bar",{"$f":"IF(tb_listareceita[[#This Row],[Nome da Receita]]=\"\",\"\",VLOOKUP(tb_listareceita[[#This Row],[Nome da Receita]],TB_Receita[[NOME DA RECEITA]:[GRUPO RECEITA]],2,0))","v":"Receita de consumo"},"EVENTO 2","Confirmado"]
[null,null,"2025-08-08",{"v":507,"d":"R$ 507.00"},"Bar",{"$f":"IF(tb_listareceita[[#This Row],[Nome da Receita]]=\"\",\"\",VLOOKUP(tb_listareceita[[#This Row],[Nome da Receita]],TB_Receita[[NOME DA RECEITA]:[GRUPO RECEITA]],2,0))","v":"Receita de consumo"},"EVENTO 3","Confirmado"]
[null,null,"2025-08-01",{"v":1455,"d":"R$ 1,455.00"},"Bar",{"$f":"IF(tb_listareceita[[#This Row],[Nome da Receita]]=\"\",\"\",VLOOKUP(tb_listareceita[[#This Row],[Nome da Receita]],TB_Receita[[NOME DA RECEITA]:[GRUPO RECEITA]],2,0))","v":"Receita de consumo"},"EVENTO 1","Confirmado"]
[null,null,"2025-04-27",{"v":1663,"d":"R$ 1,663.00"},"Bar",{"$f":"IF(tb_listareceita[[#This Row],[Nome da Receita]]=\"\",\"\",VLOOKUP(tb_listareceita[[#This Row],[Nome da Receita]],TB_Receita[[NOME DA RECEITA]:[GRUPO RECEITA]],2,0))","v":"Receita de consumo"},"EVENTO 1","Confirmado"]
[null,null,"2025-09-07",{"v":787,"d":"R$ 787.00"},"Patrocinio",{"$f":"IF(tb_listareceita[[#This Row],[Nome da Receita]]=\"\",\"\",VLOOKUP(tb_listareceita[[#This Row],[Nome da Receita]],TB_Receita[[NOME DA RECEITA]:[GRUPO RECEITA]],2,0))","v":"Receita externa"},"GERAL","Confirmado"]
[null,null,"2025-09-05",{"v":787,"d":"R$ 787.00"},"Bar",{"$f":"IF(tb_listareceita[[#This Row],[Nome da Receita]]=\"\",\"\",VLOOKUP(tb_listareceita[[#This Row],[Nome da Receita]],TB_Receita[[NOME DA RECEITA]:[GRUPO RECEITA]],2,0))","v":"Receita de consumo"},"EVENTO 5","Confirmado"]
[null,null,"2025-02-12",{"v":632,"d":"R$ 632.00"},"Bilheteria",{"$f":"IF(tb_listareceita[[#This Row],[Nome da Receita]]=\"\",\"\",VLOOKUP(tb_listareceita[[#This Row],[Nome da Receita]],TB_Receita[[NOME DA RECEITA]:[GRUPO RECEITA]],2,0))","v":"Presença do público"},"GERAL","Confirmado"]
[null,null,"2025-04-03",{"v":1198,"d":"R$ 1,198.00"},"Patrocinio",{"$f":"IF(tb_listareceita[[#This Row],[Nome da Receita]]=\"\",\"\",VLOOKUP(tb_listareceita[[#This Row],[Nome da Receita]],TB_Receita[[NOME DA RECEITA]:[GRUPO RECEITA]],2,0))","v":"Receita externa"},"EVENTO 3","Confirmado"]
[null,null,"2025-11-23",{"v":1488,"d":"R$ 1,488.00"},"Patrocinio",{"$f":"IF(tb_listareceita[[#This Row],[Nome da Receita]]=\"\",\"\",VLOOKUP(tb_listareceita[[#This Row],[Nome da Receita]],TB_Receita[[NOME DA RECEITA]:[GRUPO RECEITA]],2,0))","v":"Receita externa"},"GERAL","Confirmado"]
[null,null,"2025-07-18",{"v":1444,"d":"R$ 1,444.00"},"Bilheteria",{"$f":"IF(tb_listareceita[[#This Row],[Nome da Receita]]=\"\",\"\",VLOOKUP(tb_listareceita[[#This Row],[Nome da Receita]],TB_Receita[[NOME DA RECEITA]:[GRUPO RECEITA]],2,0))","v":"Presença do público"},"EVENTO 4","Confirmado"]
[null,null,"2025-12-18",{"v":1406,"d":"R$ 1,406.00"},"Patrocinio",{"$f":"IF(tb_listareceita[[#This Row],[Nome da Receita]]=\"\",\"\",VLOOKUP(tb_listareceita[[#This Row],[Nome da Receita]],TB_Receita[[NOME DA RECEITA]:[GRUPO RECEITA]],2,0))","v":"Receita externa"},"GERAL","Confirmado"]
[null,null,"2025-08-12",{"v":997,"d":"R$ 997.00"},"Patrocinio",{"$f":"IF(tb_listareceita[[#This Row],[Nome da Receita]]=\"\",\"\",VLOOKUP(tb_listareceita[[#This Row],[Nome da Receita]],TB_Receita[[NOME DA RECEITA]:[GRUPO RECEITA]],2,0))","v":"Receita externa"},"EVENTO 3","Confirmado"]
[null,null,"2025-04-16",{"v":1893,"d":"R$ 1,893.00"},"Bilheteria",{"$f":"IF(tb_listareceita[[#This Row],[Nome da Receita]]=\"\",\"\",VLOOKUP(tb_listareceita[[#This Row],[Nome da Receita]],TB_Receita[[NOME DA RECEITA]:[GRUPO RECEITA]],2,0))","v":"Presença do público"},"EVENTO 5","Confirmado"]
[null,null,"2025-06-03",{"v":1946,"d":"R$ 1,946.00"},"Patrocinio",{"$f":"IF(tb_listareceita[[#This Row],[Nome da Receita]]=\"\",\"\",VLOOKUP(tb_listareceita[[#This Row],[Nome da Receita]],TB_Receita[[NOME DA RECEITA]:[GRUPO RECEITA]],2,0))","v":"Receita externa"},"EVENTO 2","Confirmado"]
[null,null,"2025-05-04",{"v":515,"d":"R$ 515.00"},"Bilheteria",{"$f":"IF(tb_listareceita[[#This Row],[Nome da Receita]]=\"\",\"\",VLOOKUP(tb_listareceita[[#This Row],[Nome da Receita]],TB_Receita[[NOME DA RECEITA]:[GRUPO RECEITA]],2,0))","v":"Presença do público"},"EVENTO 3","Confirmado"]
[null,null,"2025-01-11",{"v":425,"d":"R$ 425.00"},"Patrocinio",{"$f":"IF(tb_listareceita[[#This Row],[Nome da Receita]]=\"\",\"\",VLOOKUP(tb_listareceita[[#This Row],[Nome da Receita]],TB_Receita[[NOME DA RECEITA]:[GRUPO RECEITA]],2,0))","v":"Receita externa"},"EVENTO 3","Confirmado"]
[null,null,"2025-01-18",{"v":1849,"d":"R$ 1,849.00"},"Bar",{"$f":"IF(tb_listareceita[[#This Row],[Nome da Receita]]=\"\",\"\",VLOOKUP(tb_listareceita[[#This Row],[Nome da Receita]],TB_Receita[[NOME DA RECEITA]:[GRUPO RECEITA]],2,0))","v":"Receita de consumo"},"EVENTO 4","Cancelado"]
[null,null,"2025-01-07",{"v":627,"d":"R$ 627.00"},"Bar",{"$f":"IF(tb_listareceita[[#This Row],[Nome da Receita]]=\"\",\"\",VLOOKUP(tb_listareceita[[#This Row],[Nome da Receita]],TB_Receita[[NOME DA RECEITA]:[GRUPO RECEITA]],2,0))","v":"Receita de consumo"},"EVENTO 2","Confirmado"]
[null,null,"2025-12-20",{"v":1577,"d":"R$ 1,577.00"},"Bar",{"$f":"IF(tb_listareceita[[#This Row],[Nome da Receita]]=\"\",\"\",VLOOKUP(tb_listareceita[[#This Row],[Nome da Receita]],TB_Receita[[NOME DA RECEITA]:[GRUPO RECEITA]],2,0))","v":"Receita de consumo"},"EVENTO 2","Confirmado"]
[null,null,"2025-03-21",{"v":328,"d":"R$ 328.00"},"Bar",{"$f":"IF(tb_listareceita[[#This Row],[Nome da Receita]]=\"\",\"\",VLOOKUP(tb_listareceita[[#This Row],[Nome da Receita]],TB_Receita[[NOME DA RECEITA]:[GRUPO RECEITA]],2,0))","v":"Receita de consumo"},"EVENTO 4","Confirmado"]
[null,null,"2025-10-02",{"v":1062,"d":"R$ 1,062.00"},"Patrocinio",{"$f":"IF(tb_listareceita[[#This Row],[Nome da Receita]]=\"\",\"\",VLOOKUP(tb_listareceita[[#This Row],[Nome da Receita]],TB_Receita[[NOME DA RECEITA]:[GRUPO RECEITA]],2,0))","v":"Receita externa"},"EVENTO 3","Agendado"]
[null,null,"2025-09-06",{"v":820,"d":"R$ 820.00"},"Patrocinio",{"$f":"IF(tb_listareceita[[#This Row],[Nome da Receita]]=\"\",\"\",VLOOKUP(tb_listareceita[[#This Row],[Nome da Receita]],TB_Receita[[NOME DA RECEITA]:[GRUPO RECEITA]],2,0))","v":"Receita externa"},"EVENTO 4","Confirmado"]
[null,null,"2025-09-17",{"v":411,"d":"R$ 411.00"},"Bar",{"$f":"IF(tb_listareceita[[#This Row],[Nome da Receita]]=\"\",\"\",VLOOKUP(tb_listareceita[[#This Row],[Nome da Receita]],TB_Receita[[NOME DA RECEITA]:[GRUPO RECEITA]],2,0))","v":"Receita de consumo"},"EVENTO 2","Confirmado"]
[null,null,"2025-10-26",{"v":666,"d":"R$ 666.00"},"Bilheteria",{"$f":"IF(tb_listareceita[[#This Row],[Nome da Receita]]=\"\",\"\",VLOOKUP(tb_listareceita[[#This Row],[Nome da Receita]],TB_Receita[[NOME DA RECEITA]:[GRUPO RECEITA]],2,0))","v":"Presença do público"},"EVENTO 2","Confirmado"]
[null,null,"2025-09-15",{"v":1017,"d":"R$ 1,017.00"},"Patrocinio",{"$f":"IF(tb_listareceita[[#This Row],[Nome da Receita]]=\"\",\"\",VLOOKUP(tb_listareceita[[#This Row],[Nome da Receita]],TB_Receita[[NOME DA RECEITA]:[GRUPO RECEITA]],2,0))","v":"Receita externa"},"EVENTO 1","Confirmado"]
[null,null,"2025-10-27",{"v":1234,"d":"R$ 1,234.00"},"Patrocinio",{"$f":"IF(tb_listareceita[[#This Row],[Nome da Receita]]=\"\",\"\",VLOOKUP(tb_listareceita[[#This Row],[Nome da Receita]],TB_Receita[[NOME DA RECEITA]:[GRUPO RECEITA]],2,0))","v":"Receita externa"},"EVENTO 5","Confirmado"]
[null,null,"2025-11-28",{"v":794,"d":"R$ 794.00"},"Bar",{"$f":"IF(tb_listareceita[[#This Row],[Nome da Receita]]=\"\",\"\",VLOOKUP(tb_listareceita[[#This Row],[Nome da Receita]],TB_Receita[[NOME DA RECEITA]:[GRUPO RECEITA]],2,0))","v":"Receita de consumo"},"EVENTO 1","Confirmado"]
[null,null,"2025-11-22",{"v":1247,"d":"R$ 1,247.00"},"Patrocinio",{"$f":"IF(tb_listareceita[[#This Row],[Nome da Receita]]=\"\",\"\",VLOOKUP(tb_listareceita[[#This Row],[Nome da Receita]],TB_Receita[[NOME DA RECEITA]:[GRUPO RECEITA]],2,0))","v":"Receita externa"},"EVENTO 5","Confirmado"]
[null,null,"2025-10-04",{"v":757,"d":"R$ 757.00"},"Patrocinio",{"$f":"IF(tb_listareceita[[#This Row],[Nome da Receita]]=\"\",\"\",VLOOKUP(tb_listareceita[[#This Row],[Nome da Receita]],TB_Receita[[NOME DA RECEITA]:[GRUPO RECEITA]],2,0))","v":"Receita externa"},"EVENTO 4","Confirmado"]
[null,null,"2025-10-01",{"v":739,"d":"R$ 739.00"},"Bilheteria",{"$f":"IF(tb_listareceita[[#This Row],[Nome da Receita]]=\"\",\"\",VLOOKUP(tb_listareceita[[#This Row],[Nome da Receita]],TB_Receita[[NOME DA RECEITA]:[GRUPO RECEITA]],2,0))","v":"Presença do público"},"GERAL","Confirmado"]
[null,null,"2025-07-28",{"v":1480,"d":"R$ 1,480.00"},"Bar",{"$f":"IF(tb_listareceita[[#This Row],[Nome da Receita]]=\"\",\"\",VLOOKUP(tb_listareceita[[#This Row],[Nome da Receita]],TB_Receita[[NOME DA RECEITA]:[GRUPO RECEITA]],2,0))","v":"Receita de consumo"},"EVENTO 5","Confirmado"]
[null,null,"2025-03-06",{"v":1504,"d":"R$ 1,504.00"},"Bilheteria",{"$f":"IF(tb_listareceita[[#This Row],[Nome da Receita]]=\"\",\"\",VLOOKUP(tb_listareceita[[#This Row],[Nome da Receita]],TB_Receita[[NOME DA RECEITA]:[GRUPO RECEITA]],2,0))","v":"Presença do público"},"EVENTO 5","Confirmado"]
[null,null,"2025-06-24",{"v":1389,"d":"R$ 1,389.00"},"Patrocinio",{"$f":"IF(tb_listareceita[[#This Row],[Nome da Receita]]=\"\",\"\",VLOOKUP(tb_listareceita[[#This Row],[Nome da Receita]],TB_Receita[[NOME DA RECEITA]:[GRUPO RECEITA]],2,0))","v":"Receita externa"},"EVENTO 4","Confirmado"]
[null,null,"2025-01-15",{"v":824,"d":"R$ 824.00"},"Bilheteria",{"$f":"IF(tb_listareceita[[#This Row],[Nome da Receita]]=\"\",\"\",VLOOKUP(tb_listareceita[[#This Row],[Nome da Receita]],TB_Receita[[NOME DA RECEITA]:[GRUPO RECEITA]],2,0))","v":"Presença do público"},"EVENTO 1","Confirmado"]
[null,null,"2025-12-14",{"v":342,"d":"R$ 342.00"},"Bar",{"$f":"IF(tb_listareceita[[#This Row],[Nome da Receita]]=\"\",\"\",VLOOKUP(tb_listareceita[[#This Row],[Nome da Receita]],TB_Receita[[NOME DA RECEITA]:[GRUPO RECEITA]],2,0))","v":"Receita de consumo"},"EVENTO 1","Confirmado"]
[null,null,"2025-05-21",{"v":324,"d":"R$ 324.00"},"Bilheteria",{"$f":"IF(tb_listareceita[[#This Row],[Nome da Receita]]=\"\",\"\",VLOOKUP(tb_listareceita[[#This Row],[Nome da Receita]],TB_Receita[[NOME DA RECEITA]:[GRUPO RECEITA]],2,0))","v":"Presença do público"},"EVENTO 4","Confirmado"]
[null,null,"2025-09-05",{"v":451,"d":"R$ 451.00"},"Patrocinio",{"$f":"IF(tb_listareceita[[#This Row],[Nome da Receita]]=\"\",\"\",VLOOKUP(tb_listareceita[[#This Row],[Nome da Receita]],TB_Receita[[NOME DA RECEITA]:[GRUPO RECEITA]],2,0))","v":"Receita externa"},"EVENTO 3","Confirmado"]
[null,null,"2025-11-11",{"v":1188,"d":"R$ 1,188.00"},"Bilheteria",{"$f":"IF(tb_listareceita[[#This Row],[Nome da Receita]]=\"\",\"\",VLOOKUP(tb_listareceita[[#This Row],[Nome da Receita]],TB_Receita[[NOME DA RECEITA]:[GRUPO RECEITA]],2,0))","v":"Presença do público"},"EVENTO 5","Confirmado"]
[null,null,"2025-08-19",{"v":783,"d":"R$ 783.00"},"Bar",{"$f":"IF(tb_listareceita[[#This Row],[Nome da Receita]]=\"\",\"\",VLOOKUP(tb_listareceita[[#This Row],[Nome da Receita]],TB_Receita[[NOME DA RECEITA]:[GRUPO RECEITA]],2,0))","v":"Receita de consumo"},"EVENTO 5","Confirmado"]
[null,null,"2025-02-20",{"v":635,"d":"R$ 635.00"},"Bar",{"$f":"IF(tb_listareceita[[#This Row],[Nome da Receita]]=\"\",\"\",VLOOKUP(tb_listareceita[[#This Row],[Nome da Receita]],TB_Receita[[NOME DA RECEITA]:[GRUPO RECEITA]],2,0))","v":"Receita de consumo"},"EVENTO 5","Confirmado"]
[null,null,"2025-04-28",{"v":1718,"d":"R$ 1,718.00"},"Bar",{"$f":"IF(tb_listareceita[[#This Row],[Nome da Receita]]=\"\",\"\",VLOOKUP(tb_listareceita[[#This Row],[Nome da Receita]],TB_Receita[[NOME DA RECEITA]:[GRUPO RECEITA]],2,0))","v":"Receita de consumo"},"EVENTO 4","Confirmado"]
[null,null,"2025-03-13",{"v":1723,"d":"R$ 1,723.00"},"Bilheteria",{"$f":"IF(tb_listareceita[[#This Row],[Nome da Receita]]=\"\",\"\",VLOOKUP(tb_listareceita[[#This Row],[Nome da Receita]],TB_Receita[[NOME DA RECEITA]:[GRUPO RECEITA]],2,0))","v":"Presença do público"},"EVENTO 5","Confirmado"]
[null,null,"2025-11-09",{"v":1048,"d":"R$ 1,048.00"},"Bar",{"$f":"IF(tb_listareceita[[#This Row],[Nome da Receita]]=\"\",\"\",VLOOKUP(tb_listareceita[[#This Row],[Nome da Receita]],TB_Receita[[NOME DA RECEITA]:[GRUPO RECEITA]],2,0))","v":"Receita de consumo"},"EVENTO 1","Confirmado"]
[null,null,"2025-08-09",{"v":1601,"d":"R$ 1,601.00"},"Bilheteria",{"$f":"IF(tb_listareceita[[#This Row],[Nome da Receita]]=\"\",\"\",VLOOKUP(tb_listareceita[[#This Row],[Nome da Receita]],TB_Receita[[NOME DA RECEITA]:[GRUPO RECEITA]],2,0))","v":"Presença do público"},"EVENTO 5","Confirmado"]
[null,null,"2025-11-10",{"v":1428,"d":"R$ 1,428.00"},"Bilheteria",{"$f":"IF(tb_listareceita[[#This Row],[Nome da Receita]]=\"\",\"\",VLOOKUP(tb_listareceita[[#This Row],[Nome da Receita]],TB_Receita[[NOME DA RECEITA]:[GRUPO RECEITA]],2,0))","v":"Presença do público"},"EVENTO 5","Confirmado"]
[null,null,"2025-03-01",{"v":1632,"d":"R$ 1,632.00"},"Bar",{"$f":"IF(tb_listareceita[[#This Row],[Nome da Receita]]=\"\",\"\",VLOOKUP(tb_listareceita[[#This Row],[Nome da Receita]],TB_Receita[[NOME DA RECEITA]:[GRUPO RECEITA]],2,0))","v":"Receita de consumo"},"EVENTO 2","Confirmado"]
[null,null,"2025-09-27",{"v":1409,"d":"R$ 1,409.00"},"Patrocinio",{"$f":"IF(tb_listareceita[[#This Row],[Nome da Receita]]=\"\",\"\",VLOOKUP(tb_listareceita[[#This Row],[Nome da Receita]],TB_Receita[[NOME DA RECEITA]:[GRUPO RECEITA]],2,0))","v":"Receita externa"},"EVENTO 5","Confirmado"]
[null,null,"2025-06-06",{"v":352,"d":"R$ 352.00"},"Bilheteria",{"$f":"IF(tb_listareceita[[#This Row],[Nome da Receita]]=\"\",\"\",VLOOKUP(tb_listareceita[[#This Row],[Nome da Receita]],TB_Receita[[NOME DA RECEITA]:[GRUPO RECEITA]],2,0))","v":"Presença do público"},"EVENTO 1","Confirmado"]
[null,null,"2025-01-10",{"v":1482,"d":"R$ 1,482.00"},"Bar",{"$f":"IF(tb_listareceita[[#This Row],[Nome da Receita]]=\"\",\"\",VLOOKUP(tb_listareceita[[#This Row],[Nome da Receita]],TB_Receita[[NOME DA RECEITA]:[GRUPO RECEITA]],2,0))","v":"Receita de consumo"},"EVENTO 3","Cancelado"]
[null,null,"2025-06-13",{"v":676,"d":"R$ 676.00"},"Bar",{"$f":"IF(tb_listareceita[[#This Row],[Nome da Receita]]=\"\",\"\",VLOOKUP(tb_listareceita[[#This Row],[Nome da Receita]],TB_Receita[[NOME DA RECEITA]:[GRUPO RECEITA]],2,0))","v":"Receita de consumo"},"EVENTO 1","Confirmado"]
[null,null,"2025-11-08",{"v":1722,"d":"R$ 1,722.00"},"Patrocinio",{"$f":"IF(tb_listareceita[[#This Row],[Nome da Receita]]=\"\",\"\",VLOOKUP(tb_listareceita[[#This Row],[Nome da Receita]],TB_Receita[[NOME DA RECEITA]:[GRUPO RECEITA]],2,0))","v":"Receita externa"},"EVENTO 2","Confirmado"]
[null,null,"2025-04-13",{"v":579,"d":"R$ 579.00"},"Patrocinio",{"$f":"IF(tb_listareceita[[#This Row],[Nome da Receita]]=\"\",\"\",VLOOKUP(tb_listareceita[[#This Row],[Nome da Receita]],TB_Receita[[NOME DA RECEITA]:[GRUPO RECEITA]],2,0))","v":"Receita externa"},"EVENTO 1","Confirmado"]
[null,null,"2025-09-19",{"v":755,"d":"R$ 755.00"},"Bilheteria",{"$f":"IF(tb_listareceita[[#This Row],[Nome da Receita]]=\"\",\"\",VLOOKUP(tb_listareceita[[#This Row],[Nome da Receita]],TB_Receita[[NOME DA RECEITA]:[GRUPO RECEITA]],2,0))","v":"Presença do público"},"EVENTO 4","Agendado"]
[null,null,"2025-06-26",{"v":628,"d":"R$ 628.00"},"Patrocinio",{"$f":"IF(tb_listareceita[[#This Row],[Nome da Receita]]=\"\",\"\",VLOOKUP(tb_listareceita[[#This Row],[Nome da Receita]],TB_Receita[[NOME DA RECEITA]:[GRUPO RECEITA]],2,0))","v":"Receita externa"},"EVENTO 2","Confirmado"]
[null,null,"2025-06-18",{"v":1870,"d":"R$ 1,870.00"},"Bar",{"$f":"IF(tb_listareceita[[#This Row],[Nome da Receita]]=\"\",\"\",VLOOKUP(tb_listareceita[[#This Row],[Nome da Receita]],TB_Receita[[NOME DA RECEITA]:[GRUPO RECEITA]],2,0))","v":"Receita de consumo"},"EVENTO 2","Confirmado"]
[null,null,"2025-03-11",{"v":1850,"d":"R$ 1,850.00"},"Patrocinio",{"$f":"IF(tb_listareceita[[#This Row],[Nome da Receita]]=\"\",\"\",VLOOKUP(tb_listareceita[[#This Row],[Nome da Receita]],TB_Receita[[NOME DA RECEITA]:[GRUPO RECEITA]],2,0))","v":"Receita externa"},"EVENTO 2","Confirmado"]
[null,null,"2025-02-08",{"v":1197,"d":"R$ 1,197.00"},"Patrocinio",{"$f":"IF(tb_listareceita[[#This Row],[Nome da Receita]]=\"\",\"\",VLOOKUP(tb_listareceita[[#This Row],[Nome da Receita]],TB_Receita[[NOME DA RECEITA]:[GRUPO RECEITA]],2,0))","v":"Receita externa"},"EVENTO 5","Confirmado"]
[null,null,"2025-10-03",{"v":1907,"d":"R$ 1,907.00"},"Patrocinio",{"$f":"IF(tb_listareceita[[#This Row],[Nome da Receita]]=\"\",\"\",VLOOKUP(tb_listareceita[[#This Row],[Nome da Receita]],TB_Receita[[NOME DA RECEITA]:[GRUPO RECEITA]],2,0))","v":"Receita externa"},"EVENTO 4","Confirmado"]
[null,null,"2025-02-16",{"v":1413,"d":"R$ 1,413.00"},"Bar",{"$f":"IF(tb_listareceita[[#This Row],[Nome da Receita]]=\"\",\"\",VLOOKUP(tb_listareceita[[#This Row],[Nome da Receita]],TB_Receita[[NOME DA RECEITA]:[GRUPO RECEITA]],2,0))","v":"Receita de consumo"},"GERAL","Confirmado"]
[null,null,"2025-07-13",{"v":436,"d":"R$ 436.00"},"Bar",{"$f":"IF(tb_listareceita[[#This Row],[Nome da Receita]]=\"\",\"\",VLOOKUP(tb_listareceita[[#This Row],[Nome da Receita]],TB_Receita[[NOME DA RECEITA]:[GRUPO RECEITA]],2,0))","v":"Receita de consumo"},"EVENTO 4","Confirmado"]
[null,null,"2025-10-15",{"v":573,"d":"R$ 573.00"},"Patrocinio",{"$f":"IF(tb_listareceita[[#This Row],[Nome da Receita]]=\"\",\"\",VLOOKUP(tb_listareceita[[#This Row],[Nome da Receita]],TB_Receita[[NOME DA RECEITA]:[GRUPO RECEITA]],2,0))","v":"Receita externa"},"EVENTO 2","Confirmado"]
[null,null,"2025-05-12",{"v":1236,"d":"R$ 1,236.00"},"Bilheteria",{"$f":"IF(tb_listareceita[[#This Row],[Nome da Receita]]=\"\",\"\",VLOOKUP(tb_listareceita[[#This Row],[Nome da Receita]],TB_Receita[[NOME DA RECEITA]:[GRUPO RECEITA]],2,0))","v":"Presença do público"},"EVENTO 3","Confirmado"]
[null,null,"2025-03-18",{"v":609,"d":"R$ 609.00"},"Patrocinio",{"$f":"IF(tb_listareceita[[#This Row],[Nome da Receita]]=\"\",\"\",VLOOKUP(tb_listareceita[[#This Row],[Nome da Receita]],TB_Receita[[NOME DA RECEITA]:[GRUPO RECEITA]],2,0))","v":"Receita externa"},"EVENTO 5","Confirmado"]
[null,null,"2025-11-25",{"v":1849,"d":"R$ 1,849.00"},"Bar",{"$f":"IF(tb_listareceita[[#This Row],[Nome da Receita]]=\"\",\"\",VLOOKUP(tb_listareceita[[#This Row],[Nome da Receita]],TB_Receita[[NOME DA RECEITA]:[GRUPO RECEITA]],2,0))","v":"Receita de consumo"},"EVENTO 3","Confirmado"]
[null,null,"2025-11-03",{"v":501,"d":"R$ 501.00"},"Bar",{"$f":"IF(tb_listareceita[[#This Row],[Nome da Receita]]=\"\",\"\",VLOOKUP(tb_listareceita[[#This Row],[Nome da Receita]],TB_Receita[[NOME DA RECEITA]:[GRUPO RECEITA]],2,0))","v":"Receita de consumo"},"EVENTO 3","Confirmado"]
[null,null,"2025-06-25",{"v":865,"d":"R$ 865.00"},"Bilheteria",{"$f":"IF(tb_listareceita[[#This Row],[Nome da Receita]]=\"\",\"\",VLOOKUP(tb_listareceita[[#This Row],[Nome da Receita]],TB_Receita[[NOME DA RECEITA]:[GRUPO RECEITA]],2,0))","v":"Presença do público"},"EVENTO 4","Confirmado"]
[null,null,"2025-05-10",{"v":1615,"d":"R$ 1,615.00"},"Bar",{"$f":"IF(tb_listareceita[[#This Row],[Nome da Receita]]=\"\",\"\",VLOOKUP(tb_listareceita[[#This Row],[Nome da Receita]],TB_Receita[[NOME DA RECEITA]:[GRUPO RECEITA]],2,0))","v":"Receita de consumo"},"GERAL","Confirmado"]
[null,null,"2025-07-04",{"v":1565,"d":"R$ 1,565.00"},"Patrocinio",{"$f":"IF(tb_listareceita[[#This Row],[Nome da Receita]]=\"\",\"\",VLOOKUP(tb_listareceita[[#This Row],[Nome da Receita]],TB_Receita[[NOME DA RECEITA]:[GRUPO RECEITA]],2,0))","v":"Receita externa"},"EVENTO 3","Confirmado"]
[null,null,"2025-03-27",{"v":1599,"d":"R$ 1,599.00"},"Bilheteria",{"$f":"IF(tb_listareceita[[#This Row],[Nome da Receita]]=\"\",\"\",VLOOKUP(tb_listareceita[[#This Row],[Nome da Receita]],TB_Receita[[NOME DA RECEITA]:[GRUPO RECEITA]],2,0))","v":"Presença do público"},"EVENTO 4","Confirmado"]
[null,null,"2025-08-22",{"v":535,"d":"R$ 535.00"},"Bilheteria",{"$f":"IF(tb_listareceita[[#This Row],[Nome da Receita]]=\"\",\"\",VLOOKUP(tb_listareceita[[#This Row],[Nome da Receita]],TB_Receita[[NOME DA RECEITA]:[GRUPO RECEITA]],2,0))","v":"Presença do público"},"EVENTO 5","Confirmado"]
[null,null,"2025-09-04",{"v":1000,"d":"R$ 1,000.00"},"Bar",{"$f":"IF(tb_listareceita[[#This Row],[Nome da Receita]]=\"\",\"\",VLOOKUP(tb_listareceita[[#This Row],[Nome da Receita]],TB_Receita[[NOME DA RECEITA]:[GRUPO RECEITA]],2,0))","v":"Receita de consumo"},"EVENTO 4","Confirmado"]
[null,null,"2025-09-10",{"v":1279,"d":"R$ 1,279.00"},"Patrocinio",{"$f":"IF(tb_listareceita[[#This Row],[Nome da Receita]]=\"\",\"\",VLOOKUP(tb_listareceita[[#This Row],[Nome da Receita]],TB_Receita[[NOME DA RECEITA]:[GRUPO RECEITA]],2,0))","v":"Receita externa"},"EVENTO 1","Confirmado"]
[null,null,"2025-06-03",{"v":419,"d":"R$ 419.00"},"Bilheteria",{"$f":"IF(tb_listareceita[[#This Row],[Nome da Receita]]=\"\",\"\",VLOOKUP(tb_listareceita[[#This Row],[Nome da Receita]],TB_Receita[[NOME DA RECEITA]:[GRUPO RECEITA]],2,0))","v":"Presença do público"},"EVENTO 1","Confirmado"]
[null,null,"2025-10-06",{"v":379,"d":"R$ 379.00"},"Bilheteria",{"$f":"IF(tb_listareceita[[#This Row],[Nome da Receita]]=\"\",\"\",VLOOKUP(tb_listareceita[[#This Row],[Nome da Receita]],TB_Receita[[NOME DA RECEITA]:[GRUPO RECEITA]],2,0))","v":"Presença do público"},"EVENTO 4","Confirmado"]
[null,null,"2025-02-01",{"v":525,"d":"R$ 525.00"},"Bilheteria",{"$f":"IF(tb_listareceita[[#This Row],[Nome da Receita]]=\"\",\"\",VLOOKUP(tb_listareceita[[#This Row],[Nome da Receita]],TB_Receita[[NOME DA RECEITA]:[GRUPO RECEITA]],2,0))","v":"Presença do público"},"EVENTO 4","Confirmado"]
[null,null,"2025-07-02",{"v":663,"d":"R$ 663.00"},"Bar",{"$f":"IF(tb_listareceita[[#This Row],[Nome da Receita]]=\"\",\"\",VLOOKUP(tb_listareceita[[#This Row],[Nome da Receita]],TB_Receita[[NOME DA RECEITA]:[GRUPO RECEITA]],2,0))","v":"Receita de consumo"},"EVENTO 3","Confirmado"]
[null,null,"2025-09-06",{"v":930,"d":"R$ 930.00"},"Patrocinio",{"$f":"IF(tb_listareceita[[#This Row],[Nome da Receita]]=\"\",\"\",VLOOKUP(tb_listareceita[[#This Row],[Nome da Receita]],TB_Receita[[NOME DA RECEITA]:[GRUPO RECEITA]],2,0))","v":"Receita externa"},"EVENTO 5","Confirmado"]
[null,null,"2025-01-17",{"v":1183,"d":"R$ 1,183.00"},"Bilheteria",{"$f":"IF(tb_listareceita[[#This Row],[Nome da Receita]]=\"\",\"\",VLOOKUP(tb_listareceita[[#This Row],[Nome da Receita]],TB_Receita[[NOME DA RECEITA]:[GRUPO RECEITA]],2,0))","v":"Presença do público"},"GERAL","Confirmado"]
[null,null,"2025-06-17",{"v":876,"d":"R$ 876.00"},"Bilheteria",{"$f":"IF(tb_listareceita[[#This Row],[Nome da Receita]]=\"\",\"\",VLOOKUP(tb_listareceita[[#This Row],[Nome da Receita]],TB_Receita[[NOME DA RECEITA]:[GRUPO RECEITA]],2,0))","v":"Presença do público"},"GERAL","Confirmado"]
[null,null,"2025-06-10",{"v":1863,"d":"R$ 1,863.00"},"Bilheteria",{"$f":"IF(tb_listareceita[[#This Row],[Nome da Receita]]=\"\",\"\",VLOOKUP(tb_listareceita[[#This Row],[Nome da Receita]],TB_Receita[[NOME DA RECEITA]:[GRUPO RECEITA]],2,0))","v":"Presença do público"},"EVENTO 2","Confirmado"]
[null,null,"2025-01-26",{"v":574,"d":"R$ 574.00"},"Bar",{"$f":"IF(tb_listareceita[[#This Row],[Nome da Receita]]=\"\",\"\",VLOOKUP(tb_listareceita[[#This Row],[Nome da Receita]],TB_Receita[[NOME DA RECEITA]:[GRUPO RECEITA]],2,0))","v":"Receita de consumo"},"EVENTO 3","Cancelado"]
[null,null,"2025-08-01",{"v":652,"d":"R$ 652.00"},"Patrocinio",{"$f":"IF(tb_listareceita[[#This Row],[Nome da Receita]]=\"\",\"\",VLOOKUP(tb_listareceita[[#This Row],[Nome da Receita]],TB_Receita[[NOME DA RECEITA]:[GRUPO RECEITA]],2,0))","v":"Receita externa"},"EVENTO 5","Confirmado"]
[null,null,"2025-07-13",{"v":702,"d":"R$ 702.00"},"Bilheteria",{"$f":"IF(tb_listareceita[[#This Row],[Nome da Receita]]=\"\",\"\",VLOOKUP(tb_listareceita[[#This Row],[Nome da Receita]],TB_Receita[[NOME DA RECEITA]:[GRUPO RECEITA]],2,0))","v":"Presença do público"},"EVENTO 3","Confirmado"]
[null,null,"2025-08-14",{"v":1227,"d":"R$ 1,227.00"},"Bar",{"$f":"IF(tb_listareceita[[#This Row],[Nome da Receita]]=\"\",\"\",VLOOKUP(tb_listareceita[[#This Row],[Nome da Receita]],TB_Receita[[NOME DA RECEITA]:[GRUPO RECEITA]],2,0))","v":"Receita de consumo"},"EVENTO 2","Confirmado"]
[null,null,"2025-11-22",{"v":1046,"d":"R$ 1,046.00"},"Bilheteria",{"$f":"IF(tb_listareceita[[#This Row],[Nome da Receita]]=\"\",\"\",VLOOKUP(tb_listareceita[[#This Row],[Nome da Receita]],TB_Receita[[NOME DA RECEITA]:[GRUPO RECEITA]],2,0))","v":"Presença do público"},"EVENTO 5","Agendado"]
[null,null,"2025-05-11",{"v":501,"d":"R$ 501.00"},"Bar",{"$f":"IF(tb_listareceita[[#This Row],[Nome da Receita]]=\"\",\"\",VLOOKUP(tb_listareceita[[#This Row],[Nome da Receita]],TB_Receita[[NOME DA RECEITA]:[GRUPO RECEITA]],2,0))","v":"Receita de consumo"},"EVENTO 4","Confirmado"]
[null,null,"2025-01-03",{"v":593,"d":"R$ 593.00"},"Bar",{"$f":"IF(tb_listareceita[[#This Row],[Nome da Receita]]=\"\",\"\",VLOOKUP(tb_listareceita[[#This Row],[Nome da Receita]],TB_Receita[[NOME DA RECEITA]:[GRUPO RECEITA]],2,0))","v":"Receita de consumo"},"EVENTO 3","Confirmado"]
[null,null,"2025-03-11",{"v":548,"d":"R$ 548.00"},"Bilheteria",{"$f":"IF(tb_listareceita[[#This Row],[Nome da Receita]]=\"\",\"\",VLOOKUP(tb_listareceita[[#This Row],[Nome da Receita]],TB_Receita[[NOME DA RECEITA]:[GRUPO RECEITA]],2,0))","v":"Presença do público"},"GERAL","Confirmado"]
[null,null,"2025-06-28",{"v":650,"d":"R$ 650.00"},"Bilheteria",{"$f":"IF(tb_listareceita[[#This Row],[Nome da Receita]]=\"\",\"\",VLOOKUP(tb_listareceita[[#This Row],[Nome da Receita]],TB_Receita[[NOME DA RECEITA]:[GRUPO RECEITA]],2,0))","v":"Presença do público"},"EVENTO 1","Confirmado"]
[null,null,"2025-03-20",{"v":599,"d":"R$ 599.00"},"Bar",{"$f":"IF(tb_listareceita[[#This Row],[Nome da Receita]]=\"\",\"\",VLOOKUP(tb_listareceita[[#This Row],[Nome da Receita]],TB_Receita[[NOME DA RECEITA]:[GRUPO RECEITA]],2,0))","v":"Receita de consumo"},"EVENTO 3","Confirmado"]
[null,null,"2025-08-23",{"v":903,"d":"R$ 903.00"},"Bilheteria",{"$f":"IF(tb_listareceita[[#This Row],[Nome da Receita]]=\"\",\"\",VLOOKUP(tb_listareceita[[#This Row],[Nome da Receita]],TB_Receita[[NOME DA RECEITA]:[GRUPO RECEITA]],2,0))","v":"Presença do público"},"EVENTO 1","Confirmado"]
[null,null,"2025-09-09",{"v":858,"d":"R$ 858.00"},"Patrocinio",{"$f":"IF(tb_listareceita[[#This Row],[Nome da Receita]]=\"\",\"\",VLOOKUP(tb_listareceita[[#This Row],[Nome da Receita]],TB_Receita[[NOME DA RECEITA]:[GRUPO RECEITA]],2,0))","v":"Receita externa"},"EVENTO 2","Confirmado"]
[null,null,"2025-07-05",{"v":1496,"d":"R$ 1,496.00"},"Bilheteria",{"$f":"IF(tb_listareceita[[#This Row],[Nome da Receita]]=\"\",\"\",VLOOKUP(tb_listareceita[[#This Row],[Nome da Receita]],TB_Receita[[NOME DA RECEITA]:[GRUPO RECEITA]],2,0))","v":"Presença do público"},"EVENTO 5","Confirmado"]
[null,null,"2025-11-07",{"v":1865,"d":"R$ 1,865.00"},"Patrocinio",{"$f":"IF(tb_listareceita[[#This Row],[Nome da Receita]]=\"\",\"\",VLOOKUP(tb_listareceita[[#This Row],[Nome da Receita]],TB_Receita[[NOME DA RECEITA]:[GRUPO RECEITA]],2,0))","v":"Receita externa"},"GERAL","Confirmado"]
[null,null,"2025-12-18",{"v":1139,"d":"R$ 1,139.00"},"Bar",{"$f":"IF(tb_listareceita[[#This Row],[Nome da Receita]]=\"\",\"\",VLOOKUP(tb_listareceita[[#This Row],[Nome da Receita]],TB_Receita[[NOME DA RECEITA]:[GRUPO RECEITA]],2,0))","v":"Receita de consumo"},"EVENTO 3","Confirmado"]
[null,null,"2025-06-10",{"v":1535,"d":"R$ 1,535.00"},"Bilheteria",{"$f":"IF(tb_listareceita[[#This Row],[Nome da Receita]]=\"\",\"\",VLOOKUP(tb_listareceita[[#This Row],[Nome da Receita]],TB_Receita[[NOME DA RECEITA]:[GRUPO RECEITA]],2,0))","v":"Presença do público"},"EVENTO 5","Confirmado"]
[null,null,"2025-06-12",{"v":1707,"d":"R$ 1,707.00"},"Bar",{"$f":"IF(tb_listareceita[[#This Row],[Nome da Receita]]=\"\",\"\",VLOOKUP(tb_listareceita[[#This Row],[Nome da Receita]],TB_Receita[[NOME DA RECEITA]:[GRUPO RECEITA]],2,0))","v":"Receita de consumo"},"EVENTO 5","Confirmado"]
[null,null,"2025-08-15",{"v":404,"d":"R$ 404.00"},"Patrocinio",{"$f":"IF(tb_listareceita[[#This Row],[Nome da Receita]]=\"\",\"\",VLOOKUP(tb_listareceita[[#This Row],[Nome da Receita]],TB_Receita[[NOME DA RECEITA]:[GRUPO RECEITA]],2,0))","v":"Receita externa"},"EVENTO 5","Confirmado"]
[null,null,"2025-06-22",{"v":934,"d":"R$ 934.00"},"Bar",{"$f":"IF(tb_listareceita[[#This Row],[Nome da Receita]]=\"\",\"\",VLOOKUP(tb_listareceita[[#This Row],[Nome da Receita]],TB_Receita[[NOME DA RECEITA]:[GRUPO RECEITA]],2,0))","v":"Receita de consumo"},"EVENTO 1","Confirmado"]
[null,null,"2025-04-03",{"v":1708,"d":"R$ 1,708.00"},"Bar",{"$f":"IF(tb_listareceita[[#This Row],[Nome da Receita]]=\"\",\"\",VLOOKUP(tb_listareceita[[#This Row],[Nome da Receita]],TB_Receita[[NOME DA RECEITA]:[GRUPO RECEITA]],2,0))","v":"Receita de consumo"},"EVENTO 2","Confirmado"]
[null,null,"2025-11-26",{"v":816,"d":"R$ 816.00"},"Bar",{"$f":"IF(tb_listareceita[[#This Row],[Nome da Receita]]=\"\",\"\",VLOOKUP(tb_listareceita[[#This Row],[Nome da Receita]],TB_Receita[[NOME DA RECEITA]:[GRUPO RECEITA]],2,0))","v":"Receita de consumo"},"EVENTO 4","Confirmado"]
[null,null,"2025-08-19",{"v":1821,"d":"R$ 1,821.00"},"Bilheteria",{"$f":"IF(tb_listareceita[[#This Row],[Nome da Receita]]=\"\",\"\",VLOOKUP(tb_listareceita[[#This Row],[Nome da Receita]],TB_Receita[[NOME DA RECEITA]:[GRUPO RECEITA]],2,0))","v":"Presença do público"},"GERAL","Confirmado"]
[null,null,"2025-04-13",{"v":1364,"d":"R$ 1,364.00"},"Bilheteria",{"$f":"IF(tb_listareceita[[#This Row],[Nome da Receita]]=\"\",\"\",VLOOKUP(tb_listareceita[[#This Row],[Nome da Receita]],TB_Receita[[NOME DA RECEITA]:[GRUPO RECEITA]],2,0))","v":"Presença do público"},"GERAL","Confirmado"]
[null,null,"2025-02-02",{"v":424,"d":"R$ 424.00"},"Bilheteria",{"$f":"IF(tb_listareceita[[#This Row],[Nome da Receita]]=\"\",\"\",VLOOKUP(tb_listareceita[[#This Row],[Nome da Receita]],TB_Receita[[NOME DA RECEITA]:[GRUPO RECEITA]],2,0))","v":"Presença do público"},"EVENTO 3","Confirmado"]
[null,null,"2025-09-04",{"v":701,"d":"R$ 701.00"},"Bilheteria",{"$f":"IF(tb_listareceita[[#This Row],[Nome da Receita]]=\"\",\"\",VLOOKUP(tb_listareceita[[#This Row],[Nome da Receita]],TB_Receita[[NOME DA RECEITA]:[GRUPO RECEITA]],2,0))","v":"Presença do público"},"EVENTO 3","Confirmado"]
[null,null,"2025-08-20",{"v":1836,"d":"R$ 1,836.00"},"Patrocinio",{"$f":"IF(tb_listareceita[[#This Row],[Nome da Receita]]=\"\",\"\",VLOOKUP(tb_listareceita[[#This Row],[Nome da Receita]],TB_Receita[[NOME DA RECEITA]:[GRUPO RECEITA]],2,0))","v":"Receita externa"},"EVENTO 1","Confirmado"]
[null,null,"2025-03-07",{"v":438,"d":"R$ 438.00"},"Patrocinio",{"$f":"IF(tb_listareceita[[#This Row],[Nome da Receita]]=\"\",\"\",VLOOKUP(tb_listareceita[[#This Row],[Nome da Receita]],TB_Receita[[NOME DA RECEITA]:[GRUPO RECEITA]],2,0))","v":"Receita externa"},"EVENTO 1","Confirmado"]
[null,null,"2025-03-20",{"v":1711,"d":"R$ 1,711.00"},"Bar",{"$f":"IF(tb_listareceita[[#This Row],[Nome da Receita]]=\"\",\"\",VLOOKUP(tb_listareceita[[#This Row],[Nome da Receita]],TB_Receita[[NOME DA RECEITA]:[GRUPO RECEITA]],2,0))","v":"Receita de consumo"},"EVENTO 1","Confirmado"]
[null,null,"2025-08-22",{"v":1269,"d":"R$ 1,269.00"},"Bilheteria",{"$f":"IF(tb_listareceita[[#This Row],[Nome da Receita]]=\"\",\"\",VLOOKUP(tb_listareceita[[#This Row],[Nome da Receita]],TB_Receita[[NOME DA RECEITA]:[GRUPO RECEITA]],2,0))","v":"Presença do público"},"EVENTO 2","Confirmado"]
[null,null,"2025-10-17",{"v":1114,"d":"R$ 1,114.00"},"Patrocinio",{"$f":"IF(tb_listareceita[[#This Row],[Nome da Receita]]=\"\",\"\",VLOOKUP(tb_listareceita[[#This Row],[Nome da Receita]],TB_Receita[[NOME DA RECEITA]:[GRUPO RECEITA]],2,0))","v":"Receita externa"},"GERAL","Confirmado"]
[null,null,"2025-09-06",{"v":1553,"d":"R$ 1,553.00"},"Bar",{"$f":"IF(tb_listareceita[[#This Row],[Nome da Receita]]=\"\",\"\",VLOOKUP(tb_listareceita[[#This Row],[Nome da Receita]],TB_Receita[[NOME DA RECEITA]:[GRUPO RECEITA]],2,0))","v":"Receita de consumo"},"GERAL","Confirmado"]
[null,null,"2025-03-19",{"v":547,"d":"R$ 547.00"},"Patrocinio",{"$f":"IF(tb_listareceita[[#This Row],[Nome da Receita]]=\"\",\"\",VLOOKUP(tb_listareceita[[#This Row],[Nome da Receita]],TB_Receita[[NOME DA RECEITA]:[GRUPO RECEITA]],2,0))","v":"Receita externa"},"EVENTO 2","Confirmado"]
[null,null,"2025-10-19",{"v":680,"d":"R$ 680.00"},"Patrocinio",{"$f":"IF(tb_listareceita[[#This Row],[Nome da Receita]]=\"\",\"\",VLOOKUP(tb_listareceita[[#This Row],[Nome da Receita]],TB_Receita[[NOME DA RECEITA]:[GRUPO RECEITA]],2,0))","v":"Receita externa"},"EVENTO 5","Cancelado"]
[null,null,"2025-01-22",{"v":1879,"d":"R$ 1,879.00"},"Patrocinio",{"$f":"IF(tb_listareceita[[#This Row],[Nome da Receita]]=\"\",\"\",VLOOKUP(tb_listareceita[[#This Row],[Nome da Receita]],TB_Receita[[NOME DA RECEITA]:[GRUPO RECEITA]],2,0))","v":"Receita externa"},"EVENTO 2","Confirmado"]
[null,null,"2025-03-02",{"v":333,"d":"R$ 333.00"},"Bar",{"$f":"IF(tb_listareceita[[#This Row],[Nome da Receita]]=\"\",\"\",VLOOKUP(tb_listareceita[[#This Row],[Nome da Receita]],TB_Receita[[NOME DA RECEITA]:[GRUPO RECEITA]],2,0))","v":"Receita de consumo"},"EVENTO 2","Confirmado"]
[null,null,"2025-07-23",{"v":1443,"d":"R$ 1,443.00"},"Patrocinio",{"$f":"IF(tb_listareceita[[#This Row],[Nome da Receita]]=\"\",\"\",VLOOKUP(tb_listareceita[[#This Row],[Nome da Receita]],TB_Receita[[NOME DA RECEITA]:[GRUPO RECEITA]],2,0))","v":"Receita externa"},"EVENTO 2","Confirmado"]
[null,null,"2025-08-15",{"v":1441,"d":"R$ 1,441.00"},"Bilheteria",{"$f":"IF(tb_listareceita[[#This Row],[Nome da Receita]]=\"\",\"\",VLOOKUP(tb_listareceita[[#This Row],[Nome da Receita]],TB_Receita[[NOME DA RECEITA]:[GRUPO RECEITA]],2,0))","v":"Presença do público"},"EVENTO 2","Agendado"]
[null,null,"2025-09-13",{"v":1601,"d":"R$ 1,601.00"},"Bilheteria",{"$f":"IF(tb_listareceita[[#This Row],[Nome da Receita]]=\"\",\"\",VLOOKUP(tb_listareceita[[#This Row],[Nome da Receita]],TB_Receita[[NOME DA RECEITA]:[GRUPO RECEITA]],2,0))","v":"Presença do público"},"EVENTO 5","Confirmado"]
[null,null,"2025-02-16",{"v":780,"d":"R$ 780.00"},"Bar",{"$f":"IF(tb_listareceita[[#This Row],[Nome da Receita]]=\"\",\"\",VLOOKUP(tb_listareceita[[#This Row],[Nome da Receita]],TB_Receita[[NOME DA RECEITA]:[GRUPO RECEITA]],2,0))","v":"Receita de consumo"},"GERAL","Confirmado"]
[null,null,"2025-12-23",{"v":1578,"d":"R$ 1,578.00"},"Patrocinio",{"$f":"IF(tb_listareceita[[#This Row],[Nome da Receita]]=\"\",\"\",VLOOKUP(tb_listareceita[[#This Row],[Nome da Receita]],TB_Receita[[NOME DA RECEITA]:[GRUPO RECEITA]],2,0))","v":"Receita externa"},"EVENTO 1","Confirmado"]
[null,null,"2025-03-14",{"v":1373,"d":"R$ 1,373.00"},"Bar",{"$f":"IF(tb_listareceita[[#This Row],[Nome da Receita]]=\"\",\"\",VLOOKUP(tb_listareceita[[#This Row],[Nome da Receita]],TB_Receita[[NOME DA RECEITA]:[GRUPO RECEITA]],2,0))","v":"Receita de consumo"},"EVENTO 1","Confirmado"]
[null,null,"2025-08-22",{"v":447,"d":"R$ 447.00"},"Bar",{"$f":"IF(tb_listareceita[[#This Row],[Nome da Receita]]=\"\",\"\",VLOOKUP(tb_listareceita[[#This Row],[Nome da Receita]],TB_Receita[[NOME DA RECEITA]:[GRUPO RECEITA]],2,0))","v":"Receita de consumo"},"EVENTO 1","Confirmado"]
[null,null,"2025-01-28",{"v":1243,"d":"R$ 1,243.00"},"Patrocinio",{"$f":"IF(tb_listareceita[[#This Row],[Nome da Receita]]=\"\",\"\",VLOOKUP(tb_listareceita[[#This Row],[Nome da Receita]],TB_Receita[[NOME DA RECEITA]:[GRUPO RECEITA]],2,0))","v":"Receita externa"},"EVENTO 5","Confirmado"]
[null,null,"2025-01-17",{"v":858,"d":"R$ 858.00"},"Bilheteria",{"$f":"IF(tb_listareceita[[#This Row],[Nome da Receita]]=\"\",\"\",VLOOKUP(tb_listareceita[[#This Row],[Nome da Receita]],TB_Receita[[NOME DA RECEITA]:[GRUPO RECEITA]],2,0))","v":"Presença do público"},"EVENTO 5","Confirmado"]
[null,null,"2025-08-21",{"v":1257,"d":"R$ 1,257.00"},"Bar",{"$f":"IF(tb_listareceita[[#This Row],[Nome da Receita]]=\"\",\"\",VLOOKUP(tb_listareceita[[#This Row],[Nome da Receita]],TB_Receita[[NOME DA RECEITA]:[GRUPO RECEITA]],2,0))","v":"Receita de consumo"},"EVENTO 5","Confirmado"]
[null,null,"2025-10-02",{"v":707,"d":"R$ 707.00"},"Bilheteria",{"$f":"IF(tb_listareceita[[#This Row],[Nome da Receita]]=\"\",\"\",VLOOKUP(tb_listareceita[[#This Row],[Nome da Receita]],TB_Receita[[NOME DA RECEITA]:[GRUPO RECEITA]],2,0))","v":"Presença do público"},"EVENTO 4","Confirmado"]
[null,null,"2025-06-24",{"v":348,"d":"R$ 348.00"},"Bilheteria",{"$f":"IF(tb_listareceita[[#This Row],[Nome da Receita]]=\"\",\"\",VLOOKUP(tb_listareceita[[#This Row],[Nome da Receita]],TB_Receita[[NOME DA RECEITA]:[GRUPO RECEITA]],2,0))","v":"Presença do público"},"EVENTO 5","Confirmado"]
[null,null,"2025-09-08",{"v":494,"d":"R$ 494.00"},"Bilheteria",{"$f":"IF(tb_listareceita[[#This Row],[Nome da Receita]]=\"\",\"\",VLOOKUP(tb_listareceita[[#This Row],[Nome da Receita]],TB_Receita[[NOME DA RECEITA]:[GRUPO RECEITA]],2,0))","v":"Presença do público"},"EVENTO 3","Confirmado"]
[null,null,"2025-03-06",{"v":1988,"d":"R$ 1,988.00"},"Bilheteria",{"$f":"IF(tb_listareceita[[#This Row],[Nome da Receita]]=\"\",\"\",VLOOKUP(tb_listareceita[[#This Row],[Nome da Receita]],TB_Receita[[NOME DA RECEITA]:[GRUPO RECEITA]],2,0))","v":"Presença do público"},"EVENTO 3","Confirmado"]
[null,null,"2025-06-05",{"v":1271,"d":"R$ 1,271.00"},"Bar",{"$f":"IF(tb_listareceita[[#This Row],[Nome da Receita]]=\"\",\"\",VLOOKUP(tb_listareceita[[#This Row],[Nome da Receita]],TB_Receita[[NOME DA RECEITA]:[GRUPO RECEITA]],2,0))","v":"Receita de consumo"},"GERAL","Confirmado"]
[null,null,"2025-06-10",{"v":1820,"d":"R$ 1,820.00"},"Bar",{"$f":"IF(tb_listareceita[[#This Row],[Nome da Receita]]=\"\",\"\",VLOOKUP(tb_listareceita[[#This Row],[Nome da Receita]],TB_Receita[[NOME DA RECEITA]:[GRUPO RECEITA]],2,0))","v":"Receita de consumo"},"GERAL","Confirmado"]
[null,null,"2025-01-18",{"v":1875,"d":"R$ 1,875.00"},"Patrocinio",{"$f":"IF(tb_listareceita[[#This Row],[Nome da Receita]]=\"\",\"\",VLOOKUP(tb_listareceita[[#This Row],[Nome da Receita]],TB_Receita[[NOME DA RECEITA]:[GRUPO RECEITA]],2,0))","v":"Receita externa"},"EVENTO 3","Confirmado"]
[null,null,"2025-01-20",{"v":1223,"d":"R$ 1,223.00"},"Bar",{"$f":"IF(tb_listareceita[[#This Row],[Nome da Receita]]=\"\",\"\",VLOOKUP(tb_listareceita[[#This Row],[Nome da Receita]],TB_Receita[[NOME DA RECEITA]:[GRUPO RECEITA]],2,0))","v":"Receita de consumo"},"GERAL","Confirmado"]
[null,null,"2025-11-19",{"v":806,"d":"R$ 806.00"},"Bar",{"$f":"IF(tb_listareceita[[#This Row],[Nome da Receita]]=\"\",\"\",VLOOKUP(tb_listareceita[[#This Row],[Nome da Receita]],TB_Receita[[NOME DA RECEITA]:[GRUPO RECEITA]],2,0))","v":"Receita de consumo"},"GERAL","Confirmado"]
[null,null,"2025-09-18",{"v":1269,"d":"R$ 1,269.00"},"Patrocinio",{"$f":"IF(tb_listareceita[[#This Row],[Nome da Receita]]=\"\",\"\",VLOOKUP(tb_listareceita[[#This Row],[Nome da Receita]],TB_Receita[[NOME DA RECEITA]:[GRUPO RECEITA]],2,0))","v":"Receita externa"},"EVENTO 1","Confirmado"]
[null,null,"2025-09-18",{"v":711,"d":"R$ 711.00"},"Patrocinio",{"$f":"IF(tb_listareceita[[#This Row],[Nome da Receita]]=\"\",\"\",VLOOKUP(tb_listareceita[[#This Row],[Nome da Receita]],TB_Receita[[NOME DA RECEITA]:[GRUPO RECEITA]],2,0))","v":"Receita externa"},"EVENTO 1","Confirmado"]
[null,null,"2025-07-18",{"v":349,"d":"R$ 349.00"},"Bar",{"$f":"IF(tb_listareceita[[#This Row],[Nome da Receita]]=\"\",\"\",VLOOKUP(tb_listareceita[[#This Row],[Nome da Receita]],TB_Receita[[NOME DA RECEITA]:[GRUPO RECEITA]],2,0))","v":"Receita de consumo"},"EVENTO 1","Confirmado"]
[null,null,"2025-06-26",{"v":472,"d":"R$ 472.00"},"Patrocinio",{"$f":"IF(tb_listareceita[[#This Row],[Nome da Receita]]=\"\",\"\",VLOOKUP(tb_listareceita[[#This Row],[Nome da Receita]],TB_Receita[[NOME DA RECEITA]:[GRUPO RECEITA]],2,0))","v":"Receita externa"},"EVENTO 2","Confirmado"]
[null,null,"2025-01-02",{"v":1209,"d":"R$ 1,209.00"},"Bilheteria",{"$f":"IF(tb_listareceita[[#This Row],[Nome da Receita]]=\"\",\"\",VLOOKUP(tb_listareceita[[#This Row],[Nome da Receita]],TB_Receita[[NOME DA RECEITA]:[GRUPO RECEITA]],2,0))","v":"Presença do público"},"EVENTO 4","Confirmado"]
[null,null,"2025-03-13",{"v":1296,"d":"R$ 1,296.00"},"Patrocinio",{"$f":"IF(tb_listareceita[[#This Row],[Nome da Receita]]=\"\",\"\",VLOOKUP(tb_listareceita[[#This Row],[Nome da Receita]],TB_Receita[[NOME DA RECEITA]:[GRUPO RECEITA]],2,0))","v":"Receita externa"},"EVENTO 5","Confirmado"]
[null,null,"2025-11-18",{"v":492,"d":"R$ 492.00"},"Bar",{"$f":"IF(tb_listareceita[[#This Row],[Nome da Receita]]=\"\",\"\",VLOOKUP(tb_listareceita[[#This Row],[Nome da Receita]],TB_Receita[[NOME DA RECEITA]:[GRUPO RECEITA]],2,0))","v":"Receita de consumo"},"EVENTO 3","Confirmado"]
[null,null,"2025-04-14",{"v":893,"d":"R$ 893.00"},"Bilheteria",{"$f":"IF(tb_listareceita[[#This Row],[Nome da Receita]]=\"\",\"\",VLOOKUP(tb_listareceita[[#This Row],[Nome da Receita]],TB_Receita[[NOME DA RECEITA]:[GRUPO RECEITA]],2,0))","v":"Presença do público"},"EVENTO 5","Confirmado"]
[null,null,"2025-03-05",{"v":846,"d":"R$ 846.00"},"Bilheteria",{"$f":"IF(tb_listareceita[[#This Row],[Nome da Receita]]=\"\",\"\",VLOOKUP(tb_listareceita[[#This Row],[Nome da Receita]],TB_Receita[[NOME DA RECEITA]:[GRUPO RECEITA]],2,0))","v":"Presença do público"},"EVENTO 5","Confirmado"]
[null,null,"2025-11-26",{"v":384,"d":"R$ 384.00"},"Bar",{"$f":"IF(tb_listareceita[[#This Row],[Nome da Receita]]=\"\",\"\",VLOOKUP(tb_listareceita[[#This Row],[Nome da Receita]],TB_Receita[[NOME DA RECEITA]:[GRUPO RECEITA]],2,0))","v":"Receita de consumo"},"GERAL","Confirmado"]
[null,null,"2025-03-23",{"v":1739,"d":"R$ 1,739.00"},"Bar",{"$f":"IF(tb_listareceita[[#This Row],[Nome da Receita]]=\"\",\"\",VLOOKUP(tb_listareceita[[#This Row],[Nome da Receita]],TB_Receita[[NOME DA RECEITA]:[GRUPO RECEITA]],2,0))","v":"Receita de consumo"},"EVENTO 2","Cancelado"]
[null,null,"2025-08-02",{"v":1897,"d":"R$ 1,897.00"},"Bar",{"$f":"IF(tb_listareceita[[#This Row],[Nome da Receita]]=\"\",\"\",VLOOKUP(tb_listareceita[[#This Row],[Nome da Receita]],TB_Receita[[NOME DA RECEITA]:[GRUPO RECEITA]],2,0))","v":"Receita de consumo"},"EVENTO 1","Confirmado"]
[null,null,"2025-07-25",{"v":1511,"d":"R$ 1,511.00"},"Bilheteria",{"$f":"IF(tb_listareceita[[#This Row],[Nome da Receita]]=\"\",\"\",VLOOKUP(tb_listareceita[[#This Row],[Nome da Receita]],TB_Receita[[NOME DA RECEITA]:[GRUPO RECEITA]],2,0))","v":"Presença do público"},"GERAL","Confirmado"]
[null,null,"2025-11-01",{"v":360,"d":"R$ 360.00"},"Bar",{"$f":"IF(tb_listareceita[[#This Row],[Nome da Receita]]=\"\",\"\",VLOOKUP(tb_listareceita[[#This Row],[Nome da Receita]],TB_Receita[[NOME DA RECEITA]:[GRUPO RECEITA]],2,0))","v":"Receita de consumo"},"EVENTO 5","Confirmado"]
[null,null,"2025-10-25",{"v":1408,"d":"R$ 1,408.00"},"Bar",{"$f":"IF(tb_listareceita[[#This Row],[Nome da Receita]]=\"\",\"\",VLOOKUP(tb_listareceita[[#This Row],[Nome da Receita]],TB_Receita[[NOME DA RECEITA]:[GRUPO RECEITA]],2,0))","v":"Receita de consumo"},"GERAL","Agendado"]
[null,null,"2025-09-16",{"v":1105,"d":"R$ 1,105.00"},"Bar",{"$f":"IF(tb_listareceita[[#This Row],[Nome da Receita]]=\"\",\"\",VLOOKUP(tb_listareceita[[#This Row],[Nome da Receita]],TB_Receita[[NOME DA RECEITA]:[GRUPO RECEITA]],2,0))","v":"Receita de consumo"},"EVENTO 5","Confirmado"]
[null,null,"2025-02-07",{"v":1523,"d":"R$ 1,523.00"},"Patrocinio",{"$f":"IF(tb_listareceita[[#This Row],[Nome da Receita]]=\"\",\"\",VLOOKUP(tb_listareceita[[#This Row],[Nome da Receita]],TB_Receita[[NOME DA RECEITA]:[GRUPO RECEITA]],2,0))","v":"Receita externa"},"EVENTO 3","Confirmado"]
[null,null,"2025-11-23",{"v":666,"d":"R$ 666.00"},"Bar",{"$f":"IF(tb_listareceita[[#This Row],[Nome da Receita]]=\"\",\"\",VLOOKUP(tb_listareceita[[#This Row],[Nome da Receita]],TB_Receita[[NOME DA RECEITA]:[GRUPO RECEITA]],2,0))","v":"Receita de consumo"},"GERAL","Confirmado"]
[null,null,"2025-02-23",{"v":1921,"d":"R$ 1,921.00"},"Bilheteria",{"$f":"IF(tb_listareceita[[#This Row],[Nome da Receita]]=\"\",\"\",VLOOKUP(tb_listareceita[[#This Row],[Nome da Receita]],TB_Receita[[NOME DA RECEITA]:[GRUPO RECEITA]],2,0))","v":"Presença do público"},"EVENTO 1","Confirmado"]
[null,null,"2025-11-27",{"v":861,"d":"R$ 861.00"},"Bilheteria",{"$f":"IF(tb_listareceita[[#This Row],[Nome da Receita]]=\"\",\"\",VLOOKUP(tb_listareceita[[#This Row],[Nome da Receita]],TB_Receita[[NOME DA RECEITA]:[GRUPO RECEITA]],2,0))","v":"Presença do público"},"EVENTO 1","Confirmado"]
[null,null,"2025-02-17",{"v":629,"d":"R$ 629.00"},"Patrocinio",{"$f":"IF(tb_listareceita[[#This Row],[Nome da Receita]]=\"\",\"\",VLOOKUP(tb_listareceita[[#This Row],[Nome da Receita]],TB_Receita[[NOME DA RECEITA]:[GRUPO RECEITA]],2,0))","v":"Receita externa"},"EVENTO 5","Confirmado"]
[null,null,"2025-12-07",{"v":1264,"d":"R$ 1,264.00"},"Bilheteria",{"$f":"IF(tb_listareceita[[#This Row],[Nome da Receita]]=\"\",\"\",VLOOKUP(tb_listareceita[[#This Row],[Nome da Receita]],TB_Receita[[NOME DA RECEITA]:[GRUPO RECEITA]],2,0))","v":"Presença do público"},"EVENTO 1","Confirmado"]
[null,null,"2025-09-02",{"v":386,"d":"R$ 386.00"},"Patrocinio",{"$f":"IF(tb_listareceita[[#This Row],[Nome da Receita]]=\"\",\"\",VLOOKUP(tb_listareceita[[#This Row],[Nome da Receita]],TB_Receita[[NOME DA RECEITA]:[GRUPO RECEITA]],2,0))","v":"Receita externa"},"EVENTO 5","Confirmado"]
[null,null,"2025-02-21",{"v":1754,"d":"R$ 1,754.00"},"Patrocinio",{"$f":"IF(tb_listareceita[[#This Row],[Nome da Receita]]=\"\",\"\",VLOOKUP(tb_listareceita[[#This Row],[Nome da Receita]],TB_Receita[[NOME DA RECEITA]:[GRUPO RECEITA]],2,0))","v":"Receita externa"},"EVENTO 2","Confirmado"]
[null,null,"2025-06-21",{"v":488,"d":"R$ 488.00"},"Bar",{"$f":"IF(tb_listareceita[[#This Row],[Nome da Receita]]=\"\",\"\",VLOOKUP(tb_listareceita[[#This Row],[Nome da Receita]],TB_Receita[[NOME DA RECEITA]:[GRUPO RECEITA]],2,0))","v":"Receita de consumo"},"GERAL","Confirmado"]
[null,null,"2025-05-12",{"v":1705,"d":"R$ 1,705.00"},"Bilheteria",{"$f":"IF(tb_listareceita[[#This Row],[Nome da Receita]]=\"\",\"\",VLOOKUP(tb_listareceita[[#This Row],[Nome da Receita]],TB_Receita[[NOME DA RECEITA]:[GRUPO RECEITA]],2,0))","v":"Presença do público"},"EVENTO 1","Confirmado"]
[null,null,"2025-12-16",{"v":1241,"d":"R$ 1,241.00"},"Patrocinio",{"$f":"IF(tb_listareceita[[#This Row],[Nome da Receita]]=\"\",\"\",VLOOKUP(tb_listareceita[[#This Row],[Nome da Receita]],TB_Receita[[NOME DA RECEITA]:[GRUPO RECEITA]],2,0))","v":"Receita externa"},"EVENTO 2","Confirmado"]
[null,null,"2025-02-18",{"v":851,"d":"R$ 851.00"},"Patrocinio",{"$f":"IF(tb_listareceita[[#This Row],[Nome da Receita]]=\"\",\"\",VLOOKUP(tb_listareceita[[#This Row],[Nome da Receita]],TB_Receita[[NOME DA RECEITA]:[GRUPO RECEITA]],2,0))","v":"Receita externa"},"EVENTO 1","Confirmado"]
[null,null,"2025-02-21",{"v":1789,"d":"R$ 1,789.00"},"Patrocinio",{"$f":"IF(tb_listareceita[[#This Row],[Nome da Receita]]=\"\",\"\",VLOOKUP(tb_listareceita[[#This Row],[Nome da Receita]],TB_Receita[[NOME DA RECEITA]:[GRUPO RECEITA]],2,0))","v":"Receita externa"},"EVENTO 4","Confirmado"]
[null,null,"2025-07-18",{"v":743,"d":"R$ 743.00"},"Patrocinio",{"$f":"IF(tb_listareceita[[#This Row],[Nome da Receita]]=\"\",\"\",VLOOKUP(tb_listareceita[[#This Row],[Nome da Receita]],TB_Receita[[NOME DA RECEITA]:[GRUPO RECEITA]],2,0))","v":"Receita externa"},"EVENTO 4","Confirmado"]
[null,null,"2025-04-15",{"v":1201,"d":"R$ 1,201.00"},"Bar",{"$f":"IF(tb_listareceita[[#This Row],[Nome da Receita]]=\"\",\"\",VLOOKUP(tb_listareceita[[#This Row],[Nome da Receita]],TB_Receita[[NOME DA RECEITA]:[GRUPO RECEITA]],2,0))","v":"Receita de consumo"},"EVENTO 3","Confirmado"]
[null,null,"2025-08-13",{"v":1353,"d":"R$ 1,353.00"},"Bar",{"$f":"IF(tb_listareceita[[#This Row],[Nome da Receita]]=\"\",\"\",VLOOKUP(tb_listareceita[[#This Row],[Nome da Receita]],TB_Receita[[NOME DA RECEITA]:[GRUPO RECEITA]],2,0))","v":"Receita de consumo"},"EVENTO 2","Confirmado"]
[null,null,"2025-05-16",{"v":1435,"d":"R$ 1,435.00"},"Patrocinio",{"$f":"IF(tb_listareceita[[#This Row],[Nome da Receita]]=\"\",\"\",VLOOKUP(tb_listareceita[[#This Row],[Nome da Receita]],TB_Receita[[NOME DA RECEITA]:[GRUPO RECEITA]],2,0))","v":"Receita externa"},"EVENTO 3","Confirmado"]
[null,null,"2025-07-25",{"v":1819,"d":"R$ 1,819.00"},"Bar",{"$f":"IF(tb_listareceita[[#This Row],[Nome da Receita]]=\"\",\"\",VLOOKUP(tb_listareceita[[#This Row],[Nome da Receita]],TB_Receita[[NOME DA RECEITA]:[GRUPO RECEITA]],2,0))","v":"Receita de consumo"},"EVENTO 4","Confirmado"]
[null,null,"2025-09-18",{"v":1880,"d":"R$ 1,880.00"},"Patrocinio",{"$f":"IF(tb_listareceita[[#This Row],[Nome da Receita]]=\"\",\"\",VLOOKUP(tb_listareceita[[#This Row],[Nome da Receita]],TB_Receita[[NOME DA RECEITA]:[GRUPO RECEITA]],2,0))","v":"Receita externa"},"EVENTO 4","Confirmado"]
[null,null,"2025-02-27",{"v":662,"d":"R$ 662.00"},"Patrocinio",{"$f":"IF(tb_listareceita[[#This Row],[Nome da Receita]]=\"\",\"\",VLOOKUP(tb_listareceita[[#This Row],[Nome da Receita]],TB_Receita[[NOME DA RECEITA]:[GRUPO RECEITA]],2,0))","v":"Receita externa"},"EVENTO 1","Confirmado"]
[null,null,"2025-01-25",{"v":1459,"d":"R$ 1,459.00"},"Bar",{"$f":"IF(tb_listareceita[[#This Row],[Nome da Receita]]=\"\",\"\",VLOOKUP(tb_listareceita[[#This Row],[Nome da Receita]],TB_Receita[[NOME DA RECEITA]:[GRUPO RECEITA]],2,0))","v":"Receita de consumo"},"GERAL","Confirmado"]
[null,null,"2025-04-04",{"v":1568,"d":"R$ 1,568.00"},"Patrocinio",{"$f":"IF(tb_listareceita[[#This Row],[Nome da Receita]]=\"\",\"\",VLOOKUP(tb_listareceita[[#This Row],[Nome da Receita]],TB_Receita[[NOME DA RECEITA]:[GRUPO RECEITA]],2,0))","v":"Receita externa"},"EVENTO 3","Confirmado"]
[null,null,"2025-02-02",{"v":817,"d":"R$ 817.00"},"Bilheteria",{"$f":"IF(tb_listareceita[[#This Row],[Nome da Receita]]=\"\",\"\",VLOOKUP(tb_listareceita[[#This Row],[Nome da Receita]],TB_Receita[[NOME DA RECEITA]:[GRUPO RECEITA]],2,0))","v":"Presença do público"},"EVENTO 1","Confirmado"]
[null,null,"2025-05-02",{"v":1612,"d":"R$ 1,612.00"},"Bar",{"$f":"IF(tb_listareceita[[#This Row],[Nome da Receita]]=\"\",\"\",VLOOKUP(tb_listareceita[[#This Row],[Nome da Receita]],TB_Receita[[NOME DA RECEITA]:[GRUPO RECEITA]],2,0))","v":"Receita de consumo"},"EVENTO 2","Confirmado"]
[null,null,"2025-06-18",{"v":895,"d":"R$ 895.00"},"Patrocinio",{"$f":"IF(tb_listareceita[[#This Row],[Nome da Receita]]=\"\",\"\",VLOOKUP(tb_listareceita[[#This Row],[Nome da Receita]],TB_Receita[[NOME DA RECEITA]:[GRUPO RECEITA]],2,0))","v":"Receita externa"},"EVENTO 1","Confirmado"]
[null,null,"2025-11-23",{"v":366,"d":"R$ 366.00"},"Patrocinio",{"$f":"IF(tb_listareceita[[#This Row],[Nome da Receita]]=\"\",\"\",VLOOKUP(tb_listareceita[[#This Row],[Nome da Receita]],TB_Receita[[NOME DA RECEITA]:[GRUPO RECEITA]],2,0))","v":"Receita externa"},"EVENTO 2","Confirmado"]
[null,null,"2025-06-28",{"v":684,"d":"R$ 684.00"},"Patrocinio",{"$f":"IF(tb_listareceita[[#This Row],[Nome da Receita]]=\"\",\"\",VLOOKUP(tb_listareceita[[#This Row],[Nome da Receita]],TB_Receita[[NOME DA RECEITA]:[GRUPO RECEITA]],2,0))","v":"Receita externa"},"EVENTO 4","Cancelado"]
[null,null,"2025-03-03",{"v":479,"d":"R$ 479.00"},"Bar",{"$f":"IF(tb_listareceita[[#This Row],[Nome da Receita]]=\"\",\"\",VLOOKUP(tb_listareceita[[#This Row],[Nome da Receita]],TB_Receita[[NOME DA RECEITA]:[GRUPO RECEITA]],2,0))","v":"Receita de consumo"},"EVENTO 4","Confirmado"]
[null,null,"2025-09-17",{"v":1208,"d":"R$ 1,208.00"},"Bar",{"$f":"IF(tb_listareceita[[#This Row],[Nome da Receita]]=\"\",\"\",VLOOKUP(tb_listareceita[[#This Row],[Nome da Receita]],TB_Receita[[NOME DA RECEITA]:[GRUPO RECEITA]],2,0))","v":"Receita de consumo"},"GERAL","Confirmado"]
[null,null,"2025-12-06",{"v":790,"d":"R$ 790.00"},"Bilheteria",{"$f":"IF(tb_listareceita[[#This Row],[Nome da Receita]]=\"\",\"\",VLOOKUP(tb_listareceita[[#This Row],[Nome da Receita]],TB_Receita[[NOME DA RECEITA]:[GRUPO RECEITA]],2,0))","v":"Presença do público"},"EVENTO 4","Confirmado"]
[null,null,"2025-04-24",{"v":1355,"d":"R$ 1,355.00"},"Patrocinio",{"$f":"IF(tb_listareceita[[#This Row],[Nome da Receita]]=\"\",\"\",VLOOKUP(tb_listareceita[[#This Row],[Nome da Receita]],TB_Receita[[NOME DA RECEITA]:[GRUPO RECEITA]],2,0))","v":"Receita externa"},"EVENTO 5","Agendado"]
[null,null,"2025-03-23",{"v":807,"d":"R$ 807.00"},"Bar",{"$f":"IF(tb_listareceita[[#This Row],[Nome da Receita]]=\"\",\"\",VLOOKUP(tb_listareceita[[#This Row],[Nome da Receita]],TB_Receita[[NOME DA RECEITA]:[GRUPO RECEITA]],2,0))","v":"Receita de consumo"},"EVENTO 3","Confirmado"]
[null,null,"2025-01-20",{"v":1127,"d":"R$ 1,127.00"},"Patrocinio",{"$f":"IF(tb_listareceita[[#This Row],[Nome da Receita]]=\"\",\"\",VLOOKUP(tb_listareceita[[#This Row],[Nome da Receita]],TB_Receita[[NOME DA RECEITA]:[GRUPO RECEITA]],2,0))","v":"Receita externa"},"EVENTO 1","Confirmado"]
[null,null,"2025-09-13",{"v":1090,"d":"R$ 1,090.00"},"Patrocinio",{"$f":"IF(tb_listareceita[[#This Row],[Nome da Receita]]=\"\",\"\",VLOOKUP(tb_listareceita[[#This Row],[Nome da Receita]],TB_Receita[[NOME DA RECEITA]:[GRUPO RECEITA]],2,0))","v":"Receita externa"},"EVENTO 1","Confirmado"]
[null,null,"2025-01-16",{"v":578,"d":"R$ 578.00"},"Patrocinio",{"$f":"IF(tb_listareceita[[#This Row],[Nome da Receita]]=\"\",\"\",VLOOKUP(tb_listareceita[[#This Row],[Nome da Receita]],TB_Receita[[NOME DA RECEITA]:[GRUPO RECEITA]],2,0))","v":"Receita externa"},"EVENTO 4","Confirmado"]
[null,null,"2025-07-11",{"v":1080,"d":"R$ 1,080.00"},"Bilheteria",{"$f":"IF(tb_listareceita[[#This Row],[Nome da Receita]]=\"\",\"\",VLOOKUP(tb_listareceita[[#This Row],[Nome da Receita]],TB_Receita[[NOME DA RECEITA]:[GRUPO RECEITA]],2,0))","v":"Presença do público"},"EVENTO 5","Confirmado"]
[null,null,"2025-04-17",{"v":1924,"d":"R$ 1,924.00"},"Bilheteria",{"$f":"IF(tb_listareceita[[#This Row],[Nome da Receita]]=\"\",\"\",VLOOKUP(tb_listareceita[[#This Row],[Nome da Receita]],TB_Receita[[NOME DA RECEITA]:[GRUPO RECEITA]],2,0))","v":"Presença do público"},"EVENTO 1","Confirmado"]
[null,null,"2025-07-23",{"v":884,"d":"R$ 884.00"},"Bar",{"$f":"IF(tb_listareceita[[#This Row],[Nome da Receita]]=\"\",\"\",VLOOKUP(tb_listareceita[[#This Row],[Nome da Receita]],TB_Receita[[NOME DA RECEITA]:[GRUPO RECEITA]],2,0))","v":"Receita de consumo"},"EVENTO 4","Confirmado"]
[null,null,"2025-10-26",{"v":1179,"d":"R$ 1,179.00"},"Patrocinio",{"$f":"IF(tb_listareceita[[#This Row],[Nome da Receita]]=\"\",\"\",VLOOKUP(tb_listareceita[[#This Row],[Nome da Receita]],TB_Receita[[NOME DA RECEITA]:[GRUPO RECEITA]],2,0))","v":"Receita externa"},"EVENTO 5","Confirmado"]
[null,null,"2025-02-08",{"v":1092,"d":"R$ 1,092.00"},"Bilheteria",{"$f":"IF(tb_listareceita[[#This Row],[Nome da Receita]]=\"\",\"\",VLOOKUP(tb_listareceita[[#This Row],[Nome da Receita]],TB_Receita[[NOME DA RECEITA]:[GRUPO RECEITA]],2,0))","v":"Presença do público"},"EVENTO 1","Confirmado"]
[null,null,"2025-11-04",{"v":1849,"d":"R$ 1,849.00"},"Bar",{"$f":"IF(tb_listareceita[[#This Row],[Nome da Receita]]=\"\",\"\",VLOOKUP(tb_listareceita[[#This Row],[Nome da Receita]],TB_Receita[[NOME DA RECEITA]:[GRUPO RECEITA]],2,0))","v":"Receita de consumo"},"EVENTO 5","Confirmado"]
[null,null,"2025-06-19",{"v":675,"d":"R$ 675.00"},"Bar",{"$f":"IF(tb_listareceita[[#This Row],[Nome da Receita]]=\"\",\"\",VLOOKUP(tb_listareceita[[#This Row],[Nome da Receita]],TB_Receita[[NOME DA RECEITA]:[GRUPO RECEITA]],2,0))","v":"Receita de consumo"},"GERAL","Confirmado"]
[null,null,"2025-03-17",{"v":1633,"d":"R$ 1,633.00"},"Bilheteria",{"$f":"IF(tb_listareceita[[#This Row],[Nome da Receita]]=\"\",\"\",VLOOKUP(tb_listareceita[[#This Row],[Nome da Receita]],TB_Receita[[NOME DA RECEITA]:[GRUPO RECEITA]],2,0))","v":"Presença do público"},"GERAL","Confirmado"]
[null,null,"2025-11-14",{"v":308,"d":"R$ 308.00"},"Patrocinio",{"$f":"IF(tb_listareceita[[#This Row],[Nome da Receita]]=\"\",\"\",VLOOKUP(tb_listareceita[[#This Row],[Nome da Receita]],TB_Receita[[NOME DA RECEITA]:[GRUPO RECEITA]],2,0))","v":"Receita externa"},"EVENTO 4","Confirmado"]
[null,null,"2025-01-15",{"v":348,"d":"R$ 348.00"},"Bilheteria",{"$f":"IF(tb_listareceita[[#This Row],[Nome da Receita]]=\"\",\"\",VLOOKUP(tb_listareceita[[#This Row],[Nome da Receita]],TB_Receita[[NOME DA RECEITA]:[GRUPO RECEITA]],2,0))","v":"Presença do público"},"EVENTO 2","Confirmado"]
[null,null,"2025-12-26",{"v":1991,"d":"R$ 1,991.00"},"Patrocinio",{"$f":"IF(tb_listareceita[[#This Row],[Nome da Receita]]=\"\",\"\",VLOOKUP(tb_listareceita[[#This Row],[Nome da Receita]],TB_Receita[[NOME DA RECEITA]:[GRUPO RECEITA]],2,0))","v":"Receita externa"},"EVENTO 3","Confirmado"]
[null,null,"2025-12-10",{"v":1025,"d":"R$ 1,025.00"},"Bar",{"$f":"IF(tb_listareceita[[#This Row],[Nome da Receita]]=\"\",\"\",VLOOKUP(tb_listareceita[[#This Row],[Nome da Receita]],TB_Receita[[NOME DA RECEITA]:[GRUPO RECEITA]],2,0))","v":"Receita de consumo"},"GERAL","Confirmado"]
[null,null,"2025-04-23",{"v":788,"d":"R$ 788.00"},"Bilheteria",{"$f":"IF(tb_listareceita[[#This Row],[Nome da Receita]]=\"\",\"\",VLOOKUP(tb_listareceita[[#This Row],[Nome da Receita]],TB_Receita[[NOME DA RECEITA]:[GRUPO RECEITA]],2,0))","v":"Presença do público"},"EVENTO 5","Confirmado"]
[null,null,"2025-05-03",{"v":1943,"d":"R$ 1,943.00"},"Bilheteria",{"$f":"IF(tb_listareceita[[#This Row],[Nome da Receita]]=\"\",\"\",VLOOKUP(tb_listareceita[[#This Row],[Nome da Receita]],TB_Receita[[NOME DA RECEITA]:[GRUPO RECEITA]],2,0))","v":"Presença do público"},"EVENTO 5","Confirmado"]
[null,null,"2025-12-14",{"v":501,"d":"R$ 501.00"},"Bilheteria",{"$f":"IF(tb_listareceita[[#This Row],[Nome da Receita]]=\"\",\"\",VLOOKUP(tb_listareceita[[#This Row],[Nome da Receita]],TB_Receita[[NOME DA RECEITA]:[GRUPO RECEITA]],2,0))","v":"Presença do público"},"EVENTO 4","Confirmado"]
[null,null,"2025-09-15",{"v":705,"d":"R$ 705.00"},"Bar",{"$f":"IF(tb_listareceita[[#This Row],[Nome da Receita]]=\"\",\"\",VLOOKUP(tb_listareceita[[#This Row],[Nome da Receita]],TB_Receita[[NOME DA RECEITA]:[GRUPO RECEITA]],2,0))","v":"Receita de consumo"},"EVENTO 1","Confirmado"]
[null,null,"2025-06-01",{"v":528,"d":"R$ 528.00"},"Patrocinio",{"$f":"IF(tb_listareceita[[#This Row],[Nome da Receita]]=\"\",\"\",VLOOKUP(tb_listareceita[[#This Row],[Nome da Receita]],TB_Receita[[NOME DA RECEITA]:[GRUPO RECEITA]],2,0))","v":"Receita externa"},"EVENTO 5","Confirmado"]
[null,null,"2025-11-03",{"v":1436,"d":"R$ 1,436.00"},"Bilheteria",{"$f":"IF(tb_listareceita[[#This Row],[Nome da Receita]]=\"\",\"\",VLOOKUP(tb_listareceita[[#This Row],[Nome da Receita]],TB_Receita[[NOME DA RECEITA]:[GRUPO RECEITA]],2,0))","v":"Presença do público"},"EVENTO 1","Confirmado"]
[null,null,"2025-12-08",{"v":1247,"d":"R$ 1,247.00"},"Bar",{"$f":"IF(tb_listareceita[[#This Row],[Nome da Receita]]=\"\",\"\",VLOOKUP(tb_listareceita[[#This Row],[Nome da Receita]],TB_Receita[[NOME DA RECEITA]:[GRUPO RECEITA]],2,0))","v":"Receita de consumo"},"GERAL","Confirmado"]
[null,null,"2025-09-17",{"v":302,"d":"R$ 302.00"},"Bilheteria",{"$f":"IF(tb_listareceita[[#This Row],[Nome da Receita]]=\"\",\"\",VLOOKUP(tb_listareceita[[#This Row],[Nome da Receita]],TB_Receita[[NOME DA RECEITA]:[GRUPO RECEITA]],2,0))","v":"Presença do público"},"EVENTO 3","Confirmado"]
[null,null,"2025-05-19",{"v":1043,"d":"R$ 1,043.00"},"Bar",{"$f":"IF(tb_listareceita[[#This Row],[Nome da Receita]]=\"\",\"\",VLOOKUP(tb_listareceita[[#This Row],[Nome da Receita]],TB_Receita[[NOME DA RECEITA]:[GRUPO RECEITA]],2,0))","v":"Receita de consumo"},"EVENTO 5","Confirmado"]
[null,null,"2025-08-05",{"v":769,"d":"R$ 769.00"},"Bar",{"$f":"IF(tb_listareceita[[#This Row],[Nome da Receita]]=\"\",\"\",VLOOKUP(tb_listareceita[[#This Row],[Nome da Receita]],TB_Receita[[NOME DA RECEITA]:[GRUPO RECEITA]],2,0))","v":"Receita de consumo"},"EVENTO 4","Confirmado"]
[null,null,"2025-01-27",{"v":1782,"d":"R$ 1,782.00"},"Patrocinio",{"$f":"IF(tb_listareceita[[#This Row],[Nome da Receita]]=\"\",\"\",VLOOKUP(tb_listareceita[[#This Row],[Nome da Receita]],TB_Receita[[NOME DA RECEITA]:[GRUPO RECEITA]],2,0))","v":"Receita externa"},"EVENTO 1","Confirmado"]
[null,null,"2025-05-26",{"v":1960,"d":"R$ 1,960.00"},"Bar",{"$f":"IF(tb_listareceita[[#This Row],[Nome da Receita]]=\"\",\"\",VLOOKUP(tb_listareceita[[#This Row],[Nome da Receita]],TB_Receita[[NOME DA RECEITA]:[GRUPO RECEITA]],2,0))","v":"Receita de consumo"},"EVENTO 5","Cancelado"]
[null,null,"2025-08-03",{"v":943,"d":"R$ 943.00"},"Patrocinio",{"$f":"IF(tb_listareceita[[#This Row],[Nome da Receita]]=\"\",\"\",VLOOKUP(tb_listareceita[[#This Row],[Nome da Receita]],TB_Receita[[NOME DA RECEITA]:[GRUPO RECEITA]],2,0))","v":"Receita externa"},"EVENTO 3","Confirmado"]
[null,null,"2025-04-06",{"v":545,"d":"R$ 545.00"},"Bar",{"$f":"IF(tb_listareceita[[#This Row],[Nome da Receita]]=\"\",\"\",VLOOKUP(tb_listareceita[[#This Row],[Nome da Receita]],TB_Receita[[NOME DA RECEITA]:[GRUPO RECEITA]],2,0))","v":"Receita de consumo"},"EVENTO 1","Confirmado"]
[null,null,"2025-04-04",{"v":502,"d":"R$ 502.00"},"Bilheteria",{"$f":"IF(tb_listareceita[[#This Row],[Nome da Receita]]=\"\",\"\",VLOOKUP(tb_listareceita[[#This Row],[Nome da Receita]],TB_Receita[[NOME DA RECEITA]:[GRUPO RECEITA]],2,0))","v":"Presença do público"},"EVENTO 4","Confirmado"]
[null,null,"2025-04-01",{"v":851,"d":"R$ 851.00"},"Bar",{"$f":"IF(tb_listareceita[[#This Row],[Nome da Receita]]=\"\",\"\",VLOOKUP(tb_listareceita[[#This Row],[Nome da Receita]],TB_Receita[[NOME DA RECEITA]:[GRUPO RECEITA]],2,0))","v":"Receita de consumo"},"GERAL","Agendado"]
[null,null,"2025-12-05",{"v":644,"d":"R$ 644.00"},"Patrocinio",{"$f":"IF(tb_listareceita[[#This Row],[Nome da Receita]]=\"\",\"\",VLOOKUP(tb_listareceita[[#This Row],[Nome da Receita]],TB_Receita[[NOME DA RECEITA]:[GRUPO RECEITA]],2,0))","v":"Receita externa"},"EVENTO 2","Confirmado"]
[null,null,"2025-02-22",{"v":1341,"d":"R$ 1,341.00"},"Patrocinio",{"$f":"IF(tb_listareceita[[#This Row],[Nome da Receita]]=\"\",\"\",VLOOKUP(tb_listareceita[[#This Row],[Nome da Receita]],TB_Receita[[NOME DA RECEITA]:[GRUPO RECEITA]],2,0))","v":"Receita externa"},"GERAL","Confirmado"]
[null,null,"2025-06-19",{"v":989,"d":"R$ 989.00"},"Bar",{"$f":"IF(tb_listareceita[[#This Row],[Nome da Receita]]=\"\",\"\",VLOOKUP(tb_listareceita[[#This Row],[Nome da Receita]],TB_Receita[[NOME DA RECEITA]:[GRUPO RECEITA]],2,0))","v":"Receita de consumo"},"EVENTO 1","Confirmado"]
[null,null,"2025-09-16",{"v":1428,"d":"R$ 1,428.00"},"Bilheteria",{"$f":"IF(tb_listareceita[[#This Row],[Nome da Receita]]=\"\",\"\",VLOOKUP(tb_listareceita[[#This Row],[Nome da Receita]],TB_Receita[[NOME DA RECEITA]:[GRUPO RECEITA]],2,0))","v":"Presença do público"},"EVENTO 2","Confirmado"]
[null,null,"2025-08-04",{"v":1238,"d":"R$ 1,238.00"},"Patrocinio",{"$f":"IF(tb_listareceita[[#This Row],[Nome da Receita]]=\"\",\"\",VLOOKUP(tb_listareceita[[#This Row],[Nome da Receita]],TB_Receita[[NOME DA RECEITA]:[GRUPO RECEITA]],2,0))","v":"Receita externa"},"GERAL","Confirmado"]
[null,null,"2025-11-15",{"v":1254,"d":"R$ 1,254.00"},"Patrocinio",{"$f":"IF(tb_listareceita[[#This Row],[Nome da Receita]]=\"\",\"\",VLOOKUP(tb_listareceita[[#This Row],[Nome da Receita]],TB_Receita[[NOME DA RECEITA]:[GRUPO RECEITA]],2,0))","v":"Receita externa"},"GERAL","Confirmado"]
[null,null,"2025-02-06",{"v":941,"d":"R$ 941.00"},"Bar",{"$f":"IF(tb_listareceita[[#This Row],[Nome da Receita]]=\"\",\"\",VLOOKUP(tb_listareceita[[#This Row],[Nome da Receita]],TB_Receita[[NOME DA RECEITA]:[GRUPO RECEITA]],2,0))","v":"Receita de consumo"},"EVENTO 1","Confirmado"]
[null,null,"2025-10-03",{"v":669,"d":"R$ 669.00"},"Patrocinio",{"$f":"IF(tb_listareceita[[#This Row],[Nome da Receita]]=\"\",\"\",VLOOKUP(tb_listareceita[[#This Row],[Nome da Receita]],TB_Receita[[NOME DA RECEITA]:[GRUPO RECEITA]],2,0))","v":"Receita externa"},"GERAL","Confirmado"]
[null,null,"2025-03-04",{"v":1877,"d":"R$ 1,877.00"},"Bar",{"$f":"IF(tb_listareceita[[#This Row],[Nome da Receita]]=\"\",\"\",VLOOKUP(tb_listareceita[[#This Row],[Nome da Receita]],TB_Receita[[NOME DA RECEITA]:[GRUPO RECEITA]],2,0))","v":"Receita de consumo"},"EVENTO 2","Confirmado"]
[null,null,"2025-12-17",{"v":765,"d":"R$ 765.00"},"Bilheteria",{"$f":"IF(tb_listareceita[[#This Row],[Nome da Receita]]=\"\",\"\",VLOOKUP(tb_listareceita[[#This Row],[Nome da Receita]],TB_Receita[[NOME DA RECEITA]:[GRUPO RECEITA]],2,0))","v":"Presença do público"},"EVENTO 5","Confirmado"]
[null,null,"2025-07-18",{"v":798,"d":"R$ 798.00"},"Bilheteria",{"$f":"IF(tb_listareceita[[#This Row],[Nome da Receita]]=\"\",\"\",VLOOKUP(tb_listareceita[[#This Row],[Nome da Receita]],TB_Receita[[NOME DA RECEITA]:[GRUPO RECEITA]],2,0))","v":"Presença do público"},"EVENTO 1","Confirmado"]
[null,null,"2025-08-25",{"v":1921,"d":"R$ 1,921.00"},"Bilheteria",{"$f":"IF(tb_listareceita[[#This Row],[Nome da Receita]]=\"\",\"\",VLOOKUP(tb_listareceita[[#This Row],[Nome da Receita]],TB_Receita[[NOME DA RECEITA]:[GRUPO RECEITA]],2,0))","v":"Presença do público"},"EVENTO 4","Confirmado"]
[null,null,"2025-09-07",{"v":866,"d":"R$ 866.00"},"Bar",{"$f":"IF(tb_listareceita[[#This Row],[Nome da Receita]]=\"\",\"\",VLOOKUP(tb_listareceita[[#This Row],[Nome da Receita]],TB_Receita[[NOME DA RECEITA]:[GRUPO RECEITA]],2,0))","v":"Receita de consumo"},"EVENTO 2","Confirmado"]
[null,null,"2025-11-08",{"v":947,"d":"R$ 947.00"},"Bilheteria",{"$f":"IF(tb_listareceita[[#This Row],[Nome da Receita]]=\"\",\"\",VLOOKUP(tb_listareceita[[#This Row],[Nome da Receita]],TB_Receita[[NOME DA RECEITA]:[GRUPO RECEITA]],2,0))","v":"Presença do público"},"GERAL","Confirmado"]
[null,null,"2025-07-17",{"v":1958,"d":"R$ 1,958.00"},"Patrocinio",{"$f":"IF(tb_listareceita[[#This Row],[Nome da Receita]]=\"\",\"\",VLOOKUP(tb_listareceita[[#This Row],[Nome da Receita]],TB_Receita[[NOME DA RECEITA]:[GRUPO RECEITA]],2,0))","v":"Receita externa"},"EVENTO 2","Confirmado"]
[null,null,"2025-01-22",{"v":327,"d":"R$ 327.00"},"Bar",{"$f":"IF(tb_listareceita[[#This Row],[Nome da Receita]]=\"\",\"\",VLOOKUP(tb_listareceita[[#This Row],[Nome da Receita]],TB_Receita[[NOME DA RECEITA]:[GRUPO RECEITA]],2,0))","v":"Receita de consumo"},"EVENTO 3","Confirmado"]
[null,null,"2025-04-07",{"v":1246,"d":"R$ 1,246.00"},"Bar",{"$f":"IF(tb_listareceita[[#This Row],[Nome da Receita]]=\"\",\"\",VLOOKUP(tb_listareceita[[#This Row],[Nome da Receita]],TB_Receita[[NOME DA RECEITA]:[GRUPO RECEITA]],2,0))","v":"Receita de consumo"},"EVENTO 2","Confirmado"]
[null,null,"2025-06-05",{"v":1465,"d":"R$ 1,465.00"},"Bar",{"$f":"IF(tb_listareceita[[#This Row],[Nome da Receita]]=\"\",\"\",VLOOKUP(tb_listareceita[[#This Row],[Nome da Receita]],TB_Receita[[NOME DA RECEITA]:[GRUPO RECEITA]],2,0))","v":"Receita de consumo"},"EVENTO 2","Confirmado"]
[null,null,"2025-12-19",{"v":1792,"d":"R$ 1,792.00"},"Bilheteria",{"$f":"IF(tb_listareceita[[#This Row],[Nome da Receita]]=\"\",\"\",VLOOKUP(tb_listareceita[[#This Row],[Nome da Receita]],TB_Receita[[NOME DA RECEITA]:[GRUPO RECEITA]],2,0))","v":"Presença do público"},"GERAL","Confirmado"]
[null,null,"2025-12-05",{"v":1259,"d":"R$ 1,259.00"},"Bar",{"$f":"IF(tb_listareceita[[#This Row],[Nome da Receita]]=\"\",\"\",VLOOKUP(tb_listareceita[[#This Row],[Nome da Receita]],TB_Receita[[NOME DA RECEITA]:[GRUPO RECEITA]],2,0))","v":"Receita de consumo"},"EVENTO 5","Confirmado"]
[null,null,"2025-04-08",{"v":489,"d":"R$ 489.00"},"Bar",{"$f":"IF(tb_listareceita[[#This Row],[Nome da Receita]]=\"\",\"\",VLOOKUP(tb_listareceita[[#This Row],[Nome da Receita]],TB_Receita[[NOME DA RECEITA]:[GRUPO RECEITA]],2,0))","v":"Receita de consumo"},"EVENTO 1","Confirmado"]
[null,null,"2025-01-01",{"v":1864,"d":"R$ 1,864.00"},"Patrocinio",{"$f":"IF(tb_listareceita[[#This Row],[Nome da Receita]]=\"\",\"\",VLOOKUP(tb_listareceita[[#This Row],[Nome da Receita]],TB_Receita[[NOME DA RECEITA]:[GRUPO RECEITA]],2,0))","v":"Receita externa"},"EVENTO 5","Confirmado"]
[null,null,"2025-02-15",{"v":895,"d":"R$ 895.00"},"Bilheteria",{"$f":"IF(tb_listareceita[[#This Row],[Nome da Receita]]=\"\",\"\",VLOOKUP(tb_listareceita[[#This Row],[Nome da Receita]],TB_Receita[[NOME DA RECEITA]:[GRUPO RECEITA]],2,0))","v":"Presença do público"},"EVENTO 5","Confirmado"]
[null,null,"2025-12-04",{"v":1365,"d":"R$ 1,365.00"},"Bar",{"$f":"IF(tb_listareceita[[#This Row],[Nome da Receita]]=\"\",\"\",VLOOKUP(tb_listareceita[[#This Row],[Nome da Receita]],TB_Receita[[NOME DA RECEITA]:[GRUPO RECEITA]],2,0))","v":"Receita de consumo"},"EVENTO 3","Confirmado"]
[null,null,"2025-08-08",{"v":1943,"d":"R$ 1,943.00"},"Patrocinio",{"$f":"IF(tb_listareceita[[#This Row],[Nome da Receita]]=\"\",\"\",VLOOKUP(tb_listareceita[[#This Row],[Nome da Receita]],TB_Receita[[NOME DA RECEITA]:[GRUPO RECEITA]],2,0))","v":"Receita externa"},"EVENTO 5","Confirmado"]
[null,null,"2025-09-22",{"v":1436,"d":"R$ 1,436.00"},"Patrocinio",{"$f":"IF(tb_listareceita[[#This Row],[Nome da Receita]]=\"\",\"\",VLOOKUP(tb_listareceita[[#This Row],[Nome da Receita]],TB_Receita[[NOME DA RECEITA]:[GRUPO RECEITA]],2,0))","v":"Receita externa"},"EVENTO 1","Confirmado"]
[null,null,"2025-07-22",{"v":1173,"d":"R$ 1,173.00"},"Patrocinio",{"$f":"IF(tb_listareceita[[#This Row],[Nome da Receita]]=\"\",\"\",VLOOKUP(tb_listareceita[[#This Row],[Nome da Receita]],TB_Receita[[NOME DA RECEITA]:[GRUPO RECEITA]],2,0))","v":"Receita externa"},"EVENTO 1","Confirmado"]
[null,null,"2025-07-08",{"v":489,"d":"R$ 489.00"},"Bar",{"$f":"IF(tb_listareceita[[#This Row],[Nome da Receita]]=\"\",\"\",VLOOKUP(tb_listareceita[[#This Row],[Nome da Receita]],TB_Receita[[NOME DA RECEITA]:[GRUPO RECEITA]],2,0))","v":"Receita de consumo"},"GERAL","Cancelado"]
[null,null,"2025-04-04",{"v":838,"d":"R$ 838.00"},"Patrocinio",{"$f":"IF(tb_listareceita[[#This Row],[Nome da Receita]]=\"\",\"\",VLOOKUP(tb_listareceita[[#This Row],[Nome da Receita]],TB_Receita[[NOME DA RECEITA]:[GRUPO RECEITA]],2,0))","v":"Receita externa"},"GERAL","Confirmado"]
[null,null,"2025-07-04",{"v":395,"d":"R$ 395.00"},"Patrocinio",{"$f":"IF(tb_listareceita[[#This Row],[Nome da Receita]]=\"\",\"\",VLOOKUP(tb_listareceita[[#This Row],[Nome da Receita]],TB_Receita[[NOME DA RECEITA]:[GRUPO RECEITA]],2,0))","v":"Receita externa"},"EVENTO 4","Confirmado"]
[null,null,"2025-09-25",{"v":1461,"d":"R$ 1,461.00"},"Patrocinio",{"$f":"IF(tb_listareceita[[#This Row],[Nome da Receita]]=\"\",\"\",VLOOKUP(tb_listareceita[[#This Row],[Nome da Receita]],TB_Receita[[NOME DA RECEITA]:[GRUPO RECEITA]],2,0))","v":"Receita externa"},"EVENTO 2","Confirmado"]
[null,null,"2025-10-01",{"v":1791,"d":"R$ 1,791.00"},"Bilheteria",{"$f":"IF(tb_listareceita[[#This Row],[Nome da Receita]]=\"\",\"\",VLOOKUP(tb_listareceita[[#This Row],[Nome da Receita]],TB_Receita[[NOME DA RECEITA]:[GRUPO RECEITA]],2,0))","v":"Presença do público"},"EVENTO 4","Agendado"]
[null,null,"2025-12-18",{"v":1666,"d":"R$ 1,666.00"},"Bar",{"$f":"IF(tb_listareceita[[#This Row],[Nome da Receita]]=\"\",\"\",VLOOKUP(tb_listareceita[[#This Row],[Nome da Receita]],TB_Receita[[NOME DA RECEITA]:[GRUPO RECEITA]],2,0))","v":"Receita de consumo"},"EVENTO 5","Confirmado"]
[null,null,"2025-01-08",{"v":1658,"d":"R$ 1,658.00"},"Patrocinio",{"$f":"IF(tb_listareceita[[#This Row],[Nome da Receita]]=\"\",\"\",VLOOKUP(tb_listareceita[[#This Row],[Nome da Receita]],TB_Receita[[NOME DA RECEITA]:[GRUPO RECEITA]],2,0))","v":"Receita externa"},"EVENTO 5","Confirmado"]
[null,null,"2025-08-04",{"v":1647,"d":"R$ 1,647.00"},"Bilheteria",{"$f":"IF(tb_listareceita[[#This Row],[Nome da Receita]]=\"\",\"\",VLOOKUP(tb_listareceita[[#This Row],[Nome da Receita]],TB_Receita[[NOME DA RECEITA]:[GRUPO RECEITA]],2,0))","v":"Presença do público"},"GERAL","Confirmado"]
[null,null,"2025-08-28",{"v":1770,"d":"R$ 1,770.00"},"Bilheteria",{"$f":"IF(tb_listareceita[[#This Row],[Nome da Receita]]=\"\",\"\",VLOOKUP(tb_listareceita[[#This Row],[Nome da Receita]],TB_Receita[[NOME DA RECEITA]:[GRUPO RECEITA]],2,0))","v":"Presença do público"},"EVENTO 2","Confirmado"]
[null,null,"2025-09-21",{"v":377,"d":"R$ 377.00"},"Bar",{"$f":"IF(tb_listareceita[[#This Row],[Nome da Receita]]=\"\",\"\",VLOOKUP(tb_listareceita[[#This Row],[Nome da Receita]],TB_Receita[[NOME DA RECEITA]:[GRUPO RECEITA]],2,0))","v":"Receita de consumo"},"EVENTO 4","Confirmado"]
[null,null,"2025-07-07",{"v":505,"d":"R$ 505.00"},"Bar",{"$f":"IF(tb_listareceita[[#This Row],[Nome da Receita]]=\"\",\"\",VLOOKUP(tb_listareceita[[#This Row],[Nome da Receita]],TB_Receita[[NOME DA RECEITA]:[GRUPO RECEITA]],2,0))","v":"Receita de consumo"},"GERAL","Confirmado"]
[null,null,"2025-06-13",{"v":1452,"d":"R$ 1,452.00"},"Patrocinio",{"$f":"IF(tb_listareceita[[#This Row],[Nome da Receita]]=\"\",\"\",VLOOKUP(tb_listareceita[[#This Row],[Nome da Receita]],TB_Receita[[NOME DA RECEITA]:[GRUPO RECEITA]],2,0))","v":"Receita externa"},"EVENTO 5","Confirmado"]
[null,null,"2025-06-27",{"v":1892,"d":"R$ 1,892.00"},"Bar",{"$f":"IF(tb_listareceita[[#This Row],[Nome da Receita]]=\"\",\"\",VLOOKUP(tb_listareceita[[#This Row],[Nome da Receita]],TB_Receita[[NOME DA RECEITA]:[GRUPO RECEITA]],2,0))","v":"Receita de consumo"},"GERAL","Confirmado"]
[null,null,"2025-03-19",{"v":320,"d":"R$ 320.00"},"Bilheteria",{"$f":"IF(tb_listareceita[[#This Row],[Nome da Receita]]=\"\",\"\",VLOOKUP(tb_listareceita[[#This Row],[Nome da Receita]],TB_Receita[[NOME DA RECEITA]:[GRUPO RECEITA]],2,0))","v":"Presença do público"},"EVENTO 4","Confirmado"]
[null,null,"2025-04-05",{"v":454,"d":"R$ 454.00"},"Patrocinio",{"$f":"IF(tb_listareceita[[#This Row],[Nome da Receita]]=\"\",\"\",VLOOKUP(tb_listareceita[[#This Row],[Nome da Receita]],TB_Receita[[NOME DA RECEITA]:[GRUPO RECEITA]],2,0))","v":"Receita externa"},"EVENTO 3","Confirmado"]
[null,null,"2025-04-26",{"v":1344,"d":"R$ 1,344.00"},"Patrocinio",{"$f":"IF(tb_listareceita[[#This Row],[Nome da Receita]]=\"\",\"\",VLOOKUP(tb_listareceita[[#This Row],[Nome da Receita]],TB_Receita[[NOME DA RECEITA]:[GRUPO RECEITA]],2,0))","v":"Receita externa"},"GERAL","Confirmado"]
[null,null,"2025-11-11",{"v":1829,"d":"R$ 1,829.00"},"Bar",{"$f":"IF(tb_listareceita[[#This Row],[Nome da Receita]]=\"\",\"\",VLOOKUP(tb_listareceita[[#This Row],[Nome da Receita]],TB_Receita[[NOME DA RECEITA]:[GRUPO RECEITA]],2,0))","v":"Receita de consumo"},"GERAL","Confirmado"]
[null,null,"2025-02-03",{"v":1421,"d":"R$ 1,421.00"},"Patrocinio",{"$f":"IF(tb_listareceita[[#This Row],[Nome da Receita]]=\"\",\"\",VLOOKUP(tb_listareceita[[#This Row],[Nome da Receita]],TB_Receita[[NOME DA RECEITA]:[GRUPO RECEITA]],2,0))","v":"Receita externa"},"EVENTO 5","Confirmado"]
[null,null,"2025-12-02",{"v":326,"d":"R$ 326.00"},"Bilheteria",{"$f":"IF(tb_listareceita[[#This Row],[Nome da Receita]]=\"\",\"\",VLOOKUP(tb_listareceita[[#This Row],[Nome da Receita]],TB_Receita[[NOME DA RECEITA]:[GRUPO RECEITA]],2,0))","v":"Presença do público"},"EVENTO 1","Confirmado"]
[null,null,"2025-11-06",{"v":777,"d":"R$ 777.00"},"Bilheteria",{"$f":"IF(tb_listareceita[[#This Row],[Nome da Receita]]=\"\",\"\",VLOOKUP(tb_listareceita[[#This Row],[Nome da Receita]],TB_Receita[[NOME DA RECEITA]:[GRUPO RECEITA]],2,0))","v":"Presença do público"},"EVENTO 2","Confirmado"]
[null,null,"2025-12-06",{"v":1344,"d":"R$ 1,344.00"},"Bar",{"$f":"IF(tb_listareceita[[#This Row],[Nome da Receita]]=\"\",\"\",VLOOKUP(tb_listareceita[[#This Row],[Nome da Receita]],TB_Receita[[NOME DA RECEITA]:[GRUPO RECEITA]],2,0))","v":"Receita de consumo"},"EVENTO 5","Confirmado"]
[null,null,"2025-01-02",{"v":1177,"d":"R$ 1,177.00"},"Bar",{"$f":"IF(tb_listareceita[[#This Row],[Nome da Receita]]=\"\",\"\",VLOOKUP(tb_listareceita[[#This Row],[Nome da Receita]],TB_Receita[[NOME DA RECEITA]:[GRUPO RECEITA]],2,0))","v":"Receita de consumo"},"EVENTO 5","Confirmado"]
[null,null,"2025-04-07",{"v":1110,"d":"R$ 1,110.00"},"Patrocinio",{"$f":"IF(tb_listareceita[[#This Row],[Nome da Receita]]=\"\",\"\",VLOOKUP(tb_listareceita[[#This Row],[Nome da Receita]],TB_Receita[[NOME DA RECEITA]:[GRUPO RECEITA]],2,0))","v":"Receita externa"},"EVENTO 2","Confirmado"]
[null,null,"2025-05-06",{"v":465,"d":"R$ 465.00"},"Patrocinio",{"$f":"IF(tb_listareceita[[#This Row],[Nome da Receita]]=\"\",\"\",VLOOKUP(tb_listareceita[[#This Row],[Nome da Receita]],TB_Receita[[NOME DA RECEITA]:[GRUPO RECEITA]],2,0))","v":"Receita externa"},"EVENTO 1","Confirmado"]
[null,null,"2025-02-11",{"v":1312,"d":"R$ 1,312.00"},"Bilheteria",{"$f":"IF(tb_listareceita[[#This Row],[Nome da Receita]]=\"\",\"\",VLOOKUP(tb_listareceita[[#This Row],[Nome da Receita]],TB_Receita[[NOME DA RECEITA]:[GRUPO RECEITA]],2,0))","v":"Presença do público"},"EVENTO 1","Confirmado"]
[null,null,"2025-06-10",{"v":1795,"d":"R$ 1,795.00"},"Bar",{"$f":"IF(tb_listareceita[[#This Row],[Nome da Receita]]=\"\",\"\",VLOOKUP(tb_listareceita[[#This Row],[Nome da Receita]],TB_Receita[[NOME DA RECEITA]:[GRUPO RECEITA]],2,0))","v":"Receita de consumo"},"EVENTO 1","Confirmado"]
[null,null,"2025-06-18",{"v":518,"d":"R$ 518.00"},"Patrocinio",{"$f":"IF(tb_listareceita[[#This Row],[Nome da Receita]]=\"\",\"\",VLOOKUP(tb_listareceita[[#This Row],[Nome da Receita]],TB_Receita[[NOME DA RECEITA]:[GRUPO RECEITA]],2,0))","v":"Receita externa"},"EVENTO 2","Confirmado"]
[null,null,"2025-05-25",{"v":1296,"d":"R$ 1,296.00"},"Bilheteria",{"$f":"IF(tb_listareceita[[#This Row],[Nome da Receita]]=\"\",\"\",VLOOKUP(tb_listareceita[[#This Row],[Nome da Receita]],TB_Receita[[NOME DA RECEITA]:[GRUPO RECEITA]],2,0))","v":"Presença do público"},"GERAL","Confirmado"]
[null,null,"2025-08-18",{"v":421,"d":"R$ 421.00"},"Patrocinio",{"$f":"IF(tb_listareceita[[#This Row],[Nome da Receita]]=\"\",\"\",VLOOKUP(tb_listareceita[[#This Row],[Nome da Receita]],TB_Receita[[NOME DA RECEITA]:[GRUPO RECEITA]],2,0))","v":"Receita externa"},"EVENTO 4","Confirmado"]
[null,null,"2025-12-13",{"v":1163,"d":"R$ 1,163.00"},"Bilheteria",{"$f":"IF(tb_listareceita[[#This Row],[Nome da Receita]]=\"\",\"\",VLOOKUP(tb_listareceita[[#This Row],[Nome da Receita]],TB_Receita[[NOME DA RECEITA]:[GRUPO RECEITA]],2,0))","v":"Presença do público"},"GERAL","Confirmado"]
[null,null,"2025-07-19",{"v":1712,"d":"R$ 1,712.00"},"Patrocinio",{"$f":"IF(tb_listareceita[[#This Row],[Nome da Receita]]=\"\",\"\",VLOOKUP(tb_listareceita[[#This Row],[Nome da Receita]],TB_Receita[[NOME DA RECEITA]:[GRUPO RECEITA]],2,0))","v":"Receita externa"},"EVENTO 4","Confirmado"]
[null,null,"2025-02-14",{"v":349,"d":"R$ 349.00"},"Bilheteria",{"$f":"IF(tb_listareceita[[#This Row],[Nome da Receita]]=\"\",\"\",VLOOKUP(tb_listareceita[[#This Row],[Nome da Receita]],TB_Receita[[NOME DA RECEITA]:[GRUPO RECEITA]],2,0))","v":"Presença do público"},"EVENTO 3","Confirmado"]
[null,null,"2025-12-17",{"v":1999,"d":"R$ 1,999.00"},"Patrocinio",{"$f":"IF(tb_listareceita[[#This Row],[Nome da Receita]]=\"\",\"\",VLOOKUP(tb_listareceita[[#This Row],[Nome da Receita]],TB_Receita[[NOME DA RECEITA]:[GRUPO RECEITA]],2,0))","v":"Receita externa"},"EVENTO 5","Cancelado"]
[null,null,"2025-03-17",{"v":1751,"d":"R$ 1,751.00"},"Bilheteria",{"$f":"IF(tb_listareceita[[#This Row],[Nome da Receita]]=\"\",\"\",VLOOKUP(tb_listareceita[[#This Row],[Nome da Receita]],TB_Receita[[NOME DA RECEITA]:[GRUPO RECEITA]],2,0))","v":"Presença do público"},"GERAL","Confirmado"]
[null,null,"2025-12-07",{"v":550,"d":"R$ 550.00"},"Patrocinio",{"$f":"IF(tb_listareceita[[#This Row],[Nome da Receita]]=\"\",\"\",VLOOKUP(tb_listareceita[[#This Row],[Nome da Receita]],TB_Receita[[NOME DA RECEITA]:[GRUPO RECEITA]],2,0))","v":"Receita externa"},"EVENTO 2","Confirmado"]
[null,null,"2025-02-21",{"v":531,"d":"R$ 531.00"},"Bar",{"$f":"IF(tb_listareceita[[#This Row],[Nome da Receita]]=\"\",\"\",VLOOKUP(tb_listareceita[[#This Row],[Nome da Receita]],TB_Receita[[NOME DA RECEITA]:[GRUPO RECEITA]],2,0))","v":"Receita de consumo"},"EVENTO 1","Confirmado"]
[null,null,"2025-08-20",{"v":373,"d":"R$ 373.00"},"Bilheteria",{"$f":"IF(tb_listareceita[[#This Row],[Nome da Receita]]=\"\",\"\",VLOOKUP(tb_listareceita[[#This Row],[Nome da Receita]],TB_Receita[[NOME DA RECEITA]:[GRUPO RECEITA]],2,0))","v":"Presença do público"},"EVENTO 4","Agendado"]
[null,null,"2025-12-03",{"v":1939,"d":"R$ 1,939.00"},"Patrocinio",{"$f":"IF(tb_listareceita[[#This Row],[Nome da Receita]]=\"\",\"\",VLOOKUP(tb_listareceita[[#This Row],[Nome da Receita]],TB_Receita[[NOME DA RECEITA]:[GRUPO RECEITA]],2,0))","v":"Receita externa"},"GERAL","Confirmado"]
[null,null,"2025-12-25",{"v":1801,"d":"R$ 1,801.00"},"Patrocinio",{"$f":"IF(tb_listareceita[[#This Row],[Nome da Receita]]=\"\",\"\",VLOOKUP(tb_listareceita[[#This Row],[Nome da Receita]],TB_Receita[[NOME DA RECEITA]:[GRUPO RECEITA]],2,0))","v":"Receita externa"},"EVENTO 1","Confirmado"]
[null,null,"2025-07-23",{"v":1981,"d":"R$ 1,981.00"},"Bilheteria",{"$f":"IF(tb_listareceita[[#This Row],[Nome da Receita]]=\"\",\"\",VLOOKUP(tb_listareceita[[#This Row],[Nome da Receita]],TB_Receita[[NOME DA RECEITA]:[GRUPO RECEITA]],2,0))","v":"Presença do público"},"EVENTO 1","Confirmado"]
[null,null,"2025-02-17",{"v":1745,"d":"R$ 1,745.00"},"Bar",{"$f":"IF(tb_listareceita[[#This Row],[Nome da Receita]]=\"\",\"\",VLOOKUP(tb_listareceita[[#This Row],[Nome da Receita]],TB_Receita[[NOME DA RECEITA]:[GRUPO RECEITA]],2,0))","v":"Receita de consumo"},"EVENTO 4","Confirmado"]
[null,null,"2025-11-11",{"v":1145,"d":"R$ 1,145.00"},"Patrocinio",{"$f":"IF(tb_listareceita[[#This Row],[Nome da Receita]]=\"\",\"\",VLOOKUP(tb_listareceita[[#This Row],[Nome da Receita]],TB_Receita[[NOME DA RECEITA]:[GRUPO RECEITA]],2,0))","v":"Receita externa"},"EVENTO 4","Confirmado"]
[null,null,"2025-10-27",{"v":1502,"d":"R$ 1,502.00"},"Patrocinio",{"$f":"IF(tb_listareceita[[#This Row],[Nome da Receita]]=\"\",\"\",VLOOKUP(tb_listareceita[[#This Row],[Nome da Receita]],TB_Receita[[NOME DA RECEITA]:[GRUPO RECEITA]],2,0))","v":"Receita externa"},"EVENTO 3","Confirmado"]
[null,null,"2025-04-08",{"v":1797,"d":"R$ 1,797.00"},"Patrocinio",{"$f":"IF(tb_listareceita[[#This Row],[Nome da Receita]]=\"\",\"\",VLOOKUP(tb_listareceita[[#This Row],[Nome da Receita]],TB_Receita[[NOME DA RECEITA]:[GRUPO RECEITA]],2,0))","v":"Receita externa"},"GERAL","Confirmado"]
[null,null,"2025-11-14",{"v":1766,"d":"R$ 1,766.00"},"Bilheteria",{"$f":"IF(tb_listareceita[[#This Row],[Nome da Receita]]=\"\",\"\",VLOOKUP(tb_listareceita[[#This Row],[Nome da Receita]],TB_Receita[[NOME DA RECEITA]:[GRUPO RECEITA]],2,0))","v":"Presença do público"},"EVENTO 3","Confirmado"]
[null,null,"2025-12-23",{"v":499,"d":"R$ 499.00"},"Bilheteria",{"$f":"IF(tb_listareceita[[#This Row],[Nome da Receita]]=\"\",\"\",VLOOKUP(tb_listareceita[[#This Row],[Nome da Receita]],TB_Receita[[NOME DA RECEITA]:[GRUPO RECEITA]],2,0))","v":"Presença do público"},"EVENTO 2","Confirmado"]
[null,null,"2025-05-17",{"v":1712,"d":"R$ 1,712.00"},"Bilheteria",{"$f":"IF(tb_listareceita[[#This Row],[Nome da Receita]]=\"\",\"\",VLOOKUP(tb_listareceita[[#This Row],[Nome da Receita]],TB_Receita[[NOME DA RECEITA]:[GRUPO RECEITA]],2,0))","v":"Presença do público"},"EVENTO 3","Confirmado"]
[null,null,"2025-01-14",{"v":756,"d":"R$ 756.00"},"Bar",{"$f":"IF(tb_listareceita[[#This Row],[Nome da Receita]]=\"\",\"\",VLOOKUP(tb_listareceita[[#This Row],[Nome da Receita]],TB_Receita[[NOME DA RECEITA]:[GRUPO RECEITA]],2,0))","v":"Receita de consumo"},"EVENTO 3","Confirmado"]
[null,null,"2025-02-19",{"v":1499,"d":"R$ 1,499.00"},"Patrocinio",{"$f":"IF(tb_listareceita[[#This Row],[Nome da Receita]]=\"\",\"\",VLOOKUP(tb_listareceita[[#This Row],[Nome da Receita]],TB_Receita[[NOME DA RECEITA]:[GRUPO RECEITA]],2,0))","v":"Receita externa"},"EVENTO 3","Confirmado"]
[null,null,"2025-01-01",{"v":889,"d":"R$ 889.00"},"Patrocinio",{"$f":"IF(tb_listareceita[[#This Row],[Nome da Receita]]=\"\",\"\",VLOOKUP(tb_listareceita[[#This Row],[Nome da Receita]],TB_Receita[[NOME DA RECEITA]:[GRUPO RECEITA]],2,0))","v":"Receita externa"},"EVENTO 1","Confirmado"]
[null,null,"2025-06-20",{"v":461,"d":"R$ 461.00"},"Bilheteria",{"$f":"IF(tb_listareceita[[#This Row],[Nome da Receita]]=\"\",\"\",VLOOKUP(tb_listareceita[[#This Row],[Nome da Receita]],TB_Receita[[NOME DA RECEITA]:[GRUPO RECEITA]],2,0))","v":"Presença do público"},"EVENTO 1","Confirmado"]
[null,null,"2025-07-11",{"v":678,"d":"R$ 678.00"},"Bilheteria",{"$f":"IF(tb_listareceita[[#This Row],[Nome da Receita]]=\"\",\"\",VLOOKUP(tb_listareceita[[#This Row],[Nome da Receita]],TB_Receita[[NOME DA RECEITA]:[GRUPO RECEITA]],2,0))","v":"Presença do público"},"EVENTO 4","Confirmado"]
[null,null,"2025-03-03",{"v":1655,"d":"R$ 1,655.00"},"Bilheteria",{"$f":"IF(tb_listareceita[[#This Row],[Nome da Receita]]=\"\",\"\",VLOOKUP(tb_listareceita[[#This Row],[Nome da Receita]],TB_Receita[[NOME DA RECEITA]:[GRUPO RECEITA]],2,0))","v":"Presença do público"},"EVENTO 1","Confirmado"]
[null,null,"2025-03-01",{"v":1565,"d":"R$ 1,565.00"},"Bar",{"$f":"IF(tb_listareceita[[#This Row],[Nome da Receita]]=\"\",\"\",VLOOKUP(tb_listareceita[[#This Row],[Nome da Receita]],TB_Receita[[NOME DA RECEITA]:[GRUPO RECEITA]],2,0))","v":"Receita de consumo"},"EVENTO 3","Confirmado"]
[null,null,"2025-05-27",{"v":612,"d":"R$ 612.00"},"Patrocinio",{"$f":"IF(tb_listareceita[[#This Row],[Nome da Receita]]=\"\",\"\",VLOOKUP(tb_listareceita[[#This Row],[Nome da Receita]],TB_Receita[[NOME DA RECEITA]:[GRUPO RECEITA]],2,0))","v":"Receita externa"},"EVENTO 2","Confirmado"]
[null,null,"2025-10-12",{"v":803,"d":"R$ 803.00"},"Bilheteria",{"$f":"IF(tb_listareceita[[#This Row],[Nome da Receita]]=\"\",\"\",VLOOKUP(tb_listareceita[[#This Row],[Nome da Receita]],TB_Receita[[NOME DA RECEITA]:[GRUPO RECEITA]],2,0))","v":"Presença do público"},"GERAL","Confirmado"]
[null,null,"2025-10-09",{"v":998,"d":"R$ 998.00"},"Bilheteria",{"$f":"IF(tb_listareceita[[#This Row],[Nome da Receita]]=\"\",\"\",VLOOKUP(tb_listareceita[[#This Row],[Nome da Receita]],TB_Receita[[NOME DA RECEITA]:[GRUPO RECEITA]],2,0))","v":"Presença do público"},"EVENTO 5","Confirmado"]
[null,null,"2025-08-05",{"v":819,"d":"R$ 819.00"},"Bar",{"$f":"IF(tb_listareceita[[#This Row],[Nome da Receita]]=\"\",\"\",VLOOKUP(tb_listareceita[[#This Row],[Nome da Receita]],TB_Receita[[NOME DA RECEITA]:[GRUPO RECEITA]],2,0))","v":"Receita de consumo"},"GERAL","Confirmado"]
[null,null,"2025-04-12",{"v":1317,"d":"R$ 1,317.00"},"Bar",{"$f":"IF(tb_listareceita[[#This Row],[Nome da Receita]]=\"\",\"\",VLOOKUP(tb_listareceita[[#This Row],[Nome da Receita]],TB_Receita[[NOME DA RECEITA]:[GRUPO RECEITA]],2,0))","v":"Receita de consumo"},"EVENTO 2","Confirmado"]
[null,null,"2025-01-16",{"v":583,"d":"R$ 583.00"},"Patrocinio",{"$f":"IF(tb_listareceita[[#This Row],[Nome da Receita]]=\"\",\"\",VLOOKUP(tb_listareceita[[#This Row],[Nome da Receita]],TB_Receita[[NOME DA RECEITA]:[GRUPO RECEITA]],2,0))","v":"Receita externa"},"EVENTO 3","Confirmado"]
[null,null,"2025-01-23",{"v":1272,"d":"R$ 1,272.00"},"Bar",{"$f":"IF(tb_listareceita[[#This Row],[Nome da Receita]]=\"\",\"\",VLOOKUP(tb_listareceita[[#This Row],[Nome da Receita]],TB_Receita[[NOME DA RECEITA]:[GRUPO RECEITA]],2,0))","v":"Receita de consumo"},"EVENTO 3","Confirmado"]
[null,null,"2025-11-27",{"v":1983,"d":"R$ 1,983.00"},"Bar",{"$f":"IF(tb_listareceita[[#This Row],[Nome da Receita]]=\"\",\"\",VLOOKUP(tb_listareceita[[#This Row],[Nome da Receita]],TB_Receita[[NOME DA RECEITA]:[GRUPO RECEITA]],2,0))","v":"Receita de consumo"},"EVENTO 4","Confirmado"]
[null,null,"2025-05-24",{"v":1827,"d":"R$ 1,827.00"},"Bar",{"$f":"IF(tb_listareceita[[#This Row],[Nome da Receita]]=\"\",\"\",VLOOKUP(tb_listareceita[[#This Row],[Nome da Receita]],TB_Receita[[NOME DA RECEITA]:[GRUPO RECEITA]],2,0))","v":"Receita de consumo"},"GERAL","Confirmado"]
[null,null,"2025-11-10",{"v":388,"d":"R$ 388.00"},"Bar",{"$f":"IF(tb_listareceita[[#This Row],[Nome da Receita]]=\"\",\"\",VLOOKUP(tb_listareceita[[#This Row],[Nome da Receita]],TB_Receita[[NOME DA RECEITA]:[GRUPO RECEITA]],2,0))","v":"Receita de consumo"},"EVENTO 4","Confirmado"]
[null,null,"2025-01-06",{"v":1232,"d":"R$ 1,232.00"},"Bilheteria",{"$f":"IF(tb_listareceita[[#This Row],[Nome da Receita]]=\"\",\"\",VLOOKUP(tb_listareceita[[#This Row],[Nome da Receita]],TB_Receita[[NOME DA RECEITA]:[GRUPO RECEITA]],2,0))","v":"Presença do público"},"EVENTO 1","Cancelado"]
[null,null,"2025-11-28",{"v":364,"d":"R$ 364.00"},"Bar",{"$f":"IF(tb_listareceita[[#This Row],[Nome da Receita]]=\"\",\"\",VLOOKUP(tb_listareceita[[#This Row],[Nome da Receita]],TB_Receita[[NOME DA RECEITA]:[GRUPO RECEITA]],2,0))","v":"Receita de consumo"},"EVENTO 2","Confirmado"]
[null,null,"2025-06-24",{"v":1229,"d":"R$ 1,229.00"},"Bar",{"$f":"IF(tb_listareceita[[#This Row],[Nome da Receita]]=\"\",\"\",VLOOKUP(tb_listareceita[[#This Row],[Nome da Receita]],TB_Receita[[NOME DA RECEITA]:[GRUPO RECEITA]],2,0))","v":"Receita de consumo"},"EVENTO 2","Confirmado"]
[null,null,"2025-03-18",{"v":689,"d":"R$ 689.00"},"Bar",{"$f":"IF(tb_listareceita[[#This Row],[Nome da Receita]]=\"\",\"\",VLOOKUP(tb_listareceita[[#This Row],[Nome da Receita]],TB_Receita[[NOME DA RECEITA]:[GRUPO RECEITA]],2,0))","v":"Receita de consumo"},"EVENTO 2","Confirmado"]
[null,null,"2025-05-08",{"v":1381,"d":"R$ 1,381.00"},"Bilheteria",{"$f":"IF(tb_listareceita[[#This Row],[Nome da Receita]]=\"\",\"\",VLOOKUP(tb_listareceita[[#This Row],[Nome da Receita]],TB_Receita[[NOME DA RECEITA]:[GRUPO RECEITA]],2,0))","v":"Presença do público"},"EVENTO 2","Agendado"]
[null,null,"2025-09-17",{"v":781,"d":"R$ 781.00"},"Bilheteria",{"$f":"IF(tb_listareceita[[#This Row],[Nome da Receita]]=\"\",\"\",VLOOKUP(tb_listareceita[[#This Row],[Nome da Receita]],TB_Receita[[NOME DA RECEITA]:[GRUPO RECEITA]],2,0))","v":"Presença do público"},"EVENTO 2","Confirmado"]
[null,null,"2025-08-20",{"v":1154,"d":"R$ 1,154.00"},"Bar",{"$f":"IF(tb_listareceita[[#This Row],[Nome da Receita]]=\"\",\"\",VLOOKUP(tb_listareceita[[#This Row],[Nome da Receita]],TB_Receita[[NOME DA RECEITA]:[GRUPO RECEITA]],2,0))","v":"Receita de consumo"},"EVENTO 4","Confirmado"]
[null,null,"2025-12-04",{"v":709,"d":"R$ 709.00"},"Patrocinio",{"$f":"IF(tb_listareceita[[#This Row],[Nome da Receita]]=\"\",\"\",VLOOKUP(tb_listareceita[[#This Row],[Nome da Receita]],TB_Receita[[NOME DA RECEITA]:[GRUPO RECEITA]],2,0))","v":"Receita externa"},"EVENTO 5","Confirmado"]
[null,null,"2025-10-26",{"v":740,"d":"R$ 740.00"},"Bar",{"$f":"IF(tb_listareceita[[#This Row],[Nome da Receita]]=\"\",\"\",VLOOKUP(tb_listareceita[[#This Row],[Nome da Receita]],TB_Receita[[NOME DA RECEITA]:[GRUPO RECEITA]],2,0))","v":"Receita de consumo"},"EVENTO 2","Confirmado"]
[null,null,"2025-09-03",{"v":1834,"d":"R$ 1,834.00"},"Patrocinio",{"$f":"IF(tb_listareceita[[#This Row],[Nome da Receita]]=\"\",\"\",VLOOKUP(tb_listareceita[[#This Row],[Nome da Receita]],TB_Receita[[NOME DA RECEITA]:[GRUPO RECEITA]],2,0))","v":"Receita externa"},"EVENTO 3","Confirmado"]
[null,null,"2025-04-21",{"v":1259,"d":"R$ 1,259.00"},"Patrocinio",{"$f":"IF(tb_listareceita[[#This Row],[Nome da Receita]]=\"\",\"\",VLOOKUP(tb_listareceita[[#This Row],[Nome da Receita]],TB_Receita[[NOME DA RECEITA]:[GRUPO RECEITA]],2,0))","v":"Receita externa"},"EVENTO 1","Confirmado"]
[null,null,"2025-10-14",{"v":1402,"d":"R$ 1,402.00"},"Bilheteria",{"$f":"IF(tb_listareceita[[#This Row],[Nome da Receita]]=\"\",\"\",VLOOKUP(tb_listareceita[[#This Row],[Nome da Receita]],TB_Receita[[NOME DA RECEITA]:[GRUPO RECEITA]],2,0))","v":"Presença do público"},"EVENTO 5","Confirmado"]
[null,null,"2025-05-06",{"v":1362,"d":"R$ 1,362.00"},"Bilheteria",{"$f":"IF(tb_listareceita[[#This Row],[Nome da Receita]]=\"\",\"\",VLOOKUP(tb_listareceita[[#This Row],[Nome da Receita]],TB_Receita[[NOME DA RECEITA]:[GRUPO RECEITA]],2,0))","v":"Presença do público"},"EVENTO 3","Confirmado"]
[null,null,"2025-02-24",{"v":673,"d":"R$ 673.00"},"Bilheteria",{"$f":"IF(tb_listareceita[[#This Row],[Nome da Receita]]=\"\",\"\",VLOOKUP(tb_listareceita[[#This Row],[Nome da Receita]],TB_Receita[[NOME DA RECEITA]:[GRUPO RECEITA]],2,0))","v":"Presença do público"},"EVENTO 4","Confirmado"]
[null,null,"2025-04-15",{"v":1198,"d":"R$ 1,198.00"},"Bar",{"$f":"IF(tb_listareceita[[#This Row],[Nome da Receita]]=\"\",\"\",VLOOKUP(tb_listareceita[[#This Row],[Nome da Receita]],TB_Receita[[NOME DA RECEITA]:[GRUPO RECEITA]],2,0))","v":"Receita de consumo"},"EVENTO 4","Confirmado"]
[null,null,"2025-08-06",{"v":387,"d":"R$ 387.00"},"Patrocinio",{"$f":"IF(tb_listareceita[[#This Row],[Nome da Receita]]=\"\",\"\",VLOOKUP(tb_listareceita[[#This Row],[Nome da Receita]],TB_Receita[[NOME DA RECEITA]:[GRUPO RECEITA]],2,0))","v":"Receita externa"},"EVENTO 4","Confirmado"]
[null,null,"2025-08-24",{"v":658,"d":"R$ 658.00"},"Patrocinio",{"$f":"IF(tb_listareceita[[#This Row],[Nome da Receita]]=\"\",\"\",VLOOKUP(tb_listareceita[[#This Row],[Nome da Receita]],TB_Receita[[NOME DA RECEITA]:[GRUPO RECEITA]],2,0))","v":"Receita externa"},"EVENTO 3","Confirmado"]
[null,null,"2025-12-03",{"v":882,"d":"R$ 882.00"},"Patrocinio",{"$f":"IF(tb_listareceita[[#This Row],[Nome da Receita]]=\"\",\"\",VLOOKUP(tb_listareceita[[#This Row],[Nome da Receita]],TB_Receita[[NOME DA RECEITA]:[GRUPO RECEITA]],2,0))","v":"Receita externa"},"EVENTO 5","Confirmado"]
[null,null,"2025-09-06",{"v":863,"d":"R$ 863.00"},"Bar",{"$f":"IF(tb_listareceita[[#This Row],[Nome da Receita]]=\"\",\"\",VLOOKUP(tb_listareceita[[#This Row],[Nome da Receita]],TB_Receita[[NOME DA RECEITA]:[GRUPO RECEITA]],2,0))","v":"Receita de consumo"},"EVENTO 5","Confirmado"]
[null,null,"2025-05-09",{"v":547,"d":"R$ 547.00"},"Bar",{"$f":"IF(tb_listareceita[[#This Row],[Nome da Receita]]=\"\",\"\",VLOOKUP(tb_listareceita[[#This Row],[Nome da Receita]],TB_Receita[[NOME DA RECEITA]:[GRUPO RECEITA]],2,0))","v":"Receita de consumo"},"EVENTO 5","Confirmado"]
[null,null,"2025-09-20",{"v":885,"d":"R$ 885.00"},"Bilheteria",{"$f":"IF(tb_listareceita[[#This Row],[Nome da Receita]]=\"\",\"\",VLOOKUP(tb_listareceita[[#This Row],[Nome da Receita]],TB_Receita[[NOME DA RECEITA]:[GRUPO RECEITA]],2,0))","v":"Presença do público"},"EVENTO 2","Confirmado"]
[null,null,"2025-10-25",{"v":766,"d":"R$ 766.00"},"Patrocinio",{"$f":"IF(tb_listareceita[[#This Row],[Nome da Receita]]=\"\",\"\",VLOOKUP(tb_listareceita[[#This Row],[Nome da Receita]],TB_Receita[[NOME DA RECEITA]:[GRUPO RECEITA]],2,0))","v":"Receita externa"},"EVENTO 1","Confirmado"]
[null,null,"2025-10-02",{"v":1192,"d":"R$ 1,192.00"},"Bar",{"$f":"IF(tb_listareceita[[#This Row],[Nome da Receita]]=\"\",\"\",VLOOKUP(tb_listareceita[[#This Row],[Nome da Receita]],TB_Receita[[NOME DA RECEITA]:[GRUPO RECEITA]],2,0))","v":"Receita de consumo"},"EVENTO 2","Confirmado"]
[null,null,"2025-07-11",{"v":1118,"d":"R$ 1,118.00"},"Bar",{"$f":"IF(tb_listareceita[[#This Row],[Nome da Receita]]=\"\",\"\",VLOOKUP(tb_listareceita[[#This Row],[Nome da Receita]],TB_Receita[[NOME DA RECEITA]:[GRUPO RECEITA]],2,0))","v":"Receita de consumo"},"EVENTO 2","Confirmado"]
[null,null,"2025-10-28",{"v":872,"d":"R$ 872.00"},"Patrocinio",{"$f":"IF(tb_listareceita[[#This Row],[Nome da Receita]]=\"\",\"\",VLOOKUP(tb_listareceita[[#This Row],[Nome da Receita]],TB_Receita[[NOME DA RECEITA]:[GRUPO RECEITA]],2,0))","v":"Receita externa"},"EVENTO 2","Confirmado"]
[null,null,"2025-07-08",{"v":1434,"d":"R$ 1,434.00"},"Bar",{"$f":"IF(tb_listareceita[[#This Row],[Nome da Receita]]=\"\",\"\",VLOOKUP(tb_listareceita[[#This Row],[Nome da Receita]],TB_Receita[[NOME DA RECEITA]:[GRUPO RECEITA]],2,0))","v":"Receita de consumo"},"EVENTO 3","Confirmado"]
[null,null,"2025-03-16",{"v":1073,"d":"R$ 1,073.00"},"Patrocinio",{"$f":"IF(tb_listareceita[[#This Row],[Nome da Receita]]=\"\",\"\",VLOOKUP(tb_listareceita[[#This Row],[Nome da Receita]],TB_Receita[[NOME DA RECEITA]:[GRUPO RECEITA]],2,0))","v":"Receita externa"},"EVENTO 1","Confirmado"]
[null,null,"2025-06-02",{"v":1825,"d":"R$ 1,825.00"},"Bar",{"$f":"IF(tb_listareceita[[#This Row],[Nome da Receita]]=\"\",\"\",VLOOKUP(tb_listareceita[[#This Row],[Nome da Receita]],TB_Receita[[NOME DA RECEITA]:[GRUPO RECEITA]],2,0))","v":"Receita de consumo"},"EVENTO 4","Confirmado"]
[null,null,"2025-03-25",{"v":1367,"d":"R$ 1,367.00"},"Bar",{"$f":"IF(tb_listareceita[[#This Row],[Nome da Receita]]=\"\",\"\",VLOOKUP(tb_listareceita[[#This Row],[Nome da Receita]],TB_Receita[[NOME DA RECEITA]:[GRUPO RECEITA]],2,0))","v":"Receita de consumo"},"EVENTO 4","Confirmado"]
[null,null,"2025-01-19",{"v":1608,"d":"R$ 1,608.00"},"Bar",{"$f":"IF(tb_listareceita[[#This Row],[Nome da Receita]]=\"\",\"\",VLOOKUP(tb_listareceita[[#This Row],[Nome da Receita]],TB_Receita[[NOME DA RECEITA]:[GRUPO RECEITA]],2,0))","v":"Receita de consumo"},"GERAL","Confirmado"]
[null,null,"2025-01-25",{"v":532,"d":"R$ 532.00"},"Patrocinio",{"$f":"IF(tb_listareceita[[#This Row],[Nome da Receita]]=\"\",\"\",VLOOKUP(tb_listareceita[[#This Row],[Nome da Receita]],TB_Receita[[NOME DA RECEITA]:[GRUPO RECEITA]],2,0))","v":"Receita externa"},"EVENTO 4","Confirmado"]
[null,null,"2025-02-23",{"v":1292,"d":"R$ 1,292.00"},"Bar",{"$f":"IF(tb_listareceita[[#This Row],[Nome da Receita]]=\"\",\"\",VLOOKUP(tb_listareceita[[#This Row],[Nome da Receita]],TB_Receita[[NOME DA RECEITA]:[GRUPO RECEITA]],2,0))","v":"Receita de consumo"},"EVENTO 1","Confirmado"]
[null,null,"2025-01-05",{"v":1861,"d":"R$ 1,861.00"},"Patrocinio",{"$f":"IF(tb_listareceita[[#This Row],[Nome da Receita]]=\"\",\"\",VLOOKUP(tb_listareceita[[#This Row],[Nome da Receita]],TB_Receita[[NOME DA RECEITA]:[GRUPO RECEITA]],2,0))","v":"Receita externa"},"EVENTO 5","Cancelado"]
[null,null,"2025-06-24",{"v":984,"d":"R$ 984.00"},"Bar",{"$f":"IF(tb_listareceita[[#This Row],[Nome da Receita]]=\"\",\"\",VLOOKUP(tb_listareceita[[#This Row],[Nome da Receita]],TB_Receita[[NOME DA RECEITA]:[GRUPO RECEITA]],2,0))","v":"Receita de consumo"},"GERAL","Confirmado"]
[null,null,"2025-11-05",{"v":1679,"d":"R$ 1,679.00"},"Bar",{"$f":"IF(tb_listareceita[[#This Row],[Nome da Receita]]=\"\",\"\",VLOOKUP(tb_listareceita[[#This Row],[Nome da Receita]],TB_Receita[[NOME DA RECEITA]:[GRUPO RECEITA]],2,0))","v":"Receita de consumo"},"EVENTO 1","Confirmado"]
[null,null,"2025-11-17",{"v":1412,"d":"R$ 1,412.00"},"Bar",{"$f":"IF(tb_listareceita[[#This Row],[Nome da Receita]]=\"\",\"\",VLOOKUP(tb_listareceita[[#This Row],[Nome da Receita]],TB_Receita[[NOME DA RECEITA]:[GRUPO RECEITA]],2,0))","v":"Receita de consumo"},"EVENTO 3","Confirmado"]
[null,null,"2025-03-22",{"v":1655,"d":"R$ 1,655.00"},"Patrocinio",{"$f":"IF(tb_listareceita[[#This Row],[Nome da Receita]]=\"\",\"\",VLOOKUP(tb_listareceita[[#This Row],[Nome da Receita]],TB_Receita[[NOME DA RECEITA]:[GRUPO RECEITA]],2,0))","v":"Receita externa"},"EVENTO 2","Confirmado"]
[null,null,"2025-02-22",{"v":899,"d":"R$ 899.00"},"Patrocinio",{"$f":"IF(tb_listareceita[[#This Row],[Nome da Receita]]=\"\",\"\",VLOOKUP(tb_listareceita[[#This Row],[Nome da Receita]],TB_Receita[[NOME DA RECEITA]:[GRUPO RECEITA]],2,0))","v":"Receita externa"},"GERAL","Agendado"]
[null,null,"2025-01-22",{"v":1368,"d":"R$ 1,368.00"},"Bilheteria",{"$f":"IF(tb_listareceita[[#This Row],[Nome da Receita]]=\"\",\"\",VLOOKUP(tb_listareceita[[#This Row],[Nome da Receita]],TB_Receita[[NOME DA RECEITA]:[GRUPO RECEITA]],2,0))","v":"Presença do público"},"EVENTO 5","Confirmado"]

{"sheet":"DESPESAS","index":3,"n_rows":100,"n_cols":8,"rows_kept":100}
[]
[]
[]
[]
[]
[]
[null,null,"Data da Despesa","R$ Total","Nome da Despesa","Grupo da Despesa","Evento ref.","Status transação"]
[null,null,"2025-10-11",{"v":665,"d":"R$ 665.00"},"Agua",{"$f":"IF(tb_listadespesa[[#This Row],[Nome da Despesa]]=\"\",\"\",VLOOKUP(tb_listadespesa[[#This Row],[Nome da Despesa]],TB_Despesa[[NOME DE DESPESA]:[GRUPO DESPESA]],2,0))","v":"Contas de uso"},"GERAL","Confirmado"]
[null,null,"2025-03-20",{"v":924,"d":"R$ 924.00"},"Equipamento",{"$f":"IF(tb_listadespesa[[#This Row],[Nome da Despesa]]=\"\",\"\",VLOOKUP(tb_listadespesa[[#This Row],[Nome da Despesa]],TB_Despesa[[NOME DE DESPESA]:[GRUPO DESPESA]],2,0))","v":"Estrutura"},"EVENTO 1","Confirmado"]
[null,null,"2025-08-19",{"v":119,"d":"R$ 119.00"},"Artista",{"$f":"IF(tb_listadespesa[[#This Row],[Nome da Despesa]]=\"\",\"\",VLOOKUP(tb_listadespesa[[#This Row],[Nome da Despesa]],TB_Despesa[[NOME DE DESPESA]:[GRUPO DESPESA]],2,0))","v":"Atrações"},"EVENTO 3","Cancelado"]
[null,null,"2025-08-18",{"v":471,"d":"R$ 471.00"},"Equipamento",{"$f":"IF(tb_listadespesa[[#This Row],[Nome da Despesa]]=\"\",\"\",VLOOKUP(tb_listadespesa[[#This Row],[Nome da Despesa]],TB_Despesa[[NOME DE DESPESA]:[GRUPO DESPESA]],2,0))","v":"Estrutura"},"EVENTO 3","Confirmado"]
[null,null,"2025-01-11",{"v":486,"d":"R$ 486.00"},"Luz",{"$f":"IF(tb_listadespesa[[#This Row],[Nome da Despesa]]=\"\",\"\",VLOOKUP(tb_listadespesa[[#This Row],[Nome da Despesa]],TB_Despesa[[NOME DE DESPESA]:[GRUPO DESPESA]],2,0))","v":"Contas de uso"},"EVENTO 4","Confirmado"]
[null,null,"2025-06-12",{"v":380,"d":"R$ 380.00"},"Luz",{"$f":"IF(tb_listadespesa[[#This Row],[Nome da Despesa]]=\"\",\"\",VLOOKUP(tb_listadespesa[[#This Row],[Nome da Despesa]],TB_Despesa[[NOME DE DESPESA]:[GRUPO DESPESA]],2,0))","v":"Contas de uso"},"GERAL","Confirmado"]
[null,null,"2025-07-25",{"v":656,"d":"R$ 656.00"},"Luz",{"$f":"IF(tb_listadespesa[[#This Row],[Nome da Despesa]]=\"\",\"\",VLOOKUP(tb_listadespesa[[#This Row],[Nome da Despesa]],TB_Despesa[[NOME DE DESPESA]:[GRUPO DESPESA]],2,0))","v":"Contas de uso"},"EVENTO 2","Agendado"]
[null,null,"2025-03-03",{"v":966,"d":"R$ 966.00"},"Luz",{"$f":"IF(tb_listadespesa[[#This Row],[Nome da Despesa]]=\"\",\"\",VLOOKUP(tb_listadespesa[[#This Row],[Nome da Despesa]],TB_Despesa[[NOME DE DESPESA]:[GRUPO DESPESA]],2,0))","v":"Contas de uso"},"EVENTO 5","Confirmado"]
[null,null,"2025-11-21",{"v":506,"d":"R$ 506.00"},"Luz",{"$f":"IF(tb_listadespesa[[#This Row],[Nome da Despesa]]=\"\",\"\",VLOOKUP(tb_listadespesa[[#This Row],[Nome da Despesa]],TB_Despesa[[NOME DE DESPESA]:[GRUPO DESPESA]],2,0))","v":"Contas de uso"},"EVENTO 3","Confirmado"]
[null,null,"2025-05-06",{"v":638,"d":"R$ 638.00"},"Artista",{"$f":"IF(tb_listadespesa[[#This Row],[Nome da Despesa]]=\"\",\"\",VLOOKUP(tb_listadespesa[[#This Row],[Nome da Despesa]],TB_Despesa[[NOME DE DESPESA]:[GRUPO DESPESA]],2,0))","v":"Atrações"},"EVENTO 4","Confirmado"]
[null,null,"2025-02-14",{"v":707,"d":"R$ 707.00"},"Equipamento",{"$f":"IF(tb_listadespesa[[#This Row],[Nome da Despesa]]=\"\",\"\",VLOOKUP(tb_listadespesa[[#This Row],[Nome da Despesa]],TB_Despesa[[NOME DE DESPESA]:[GRUPO DESPESA]],2,0))","v":"Estrutura"},"GERAL","Confirmado"]
[null,null,"2025-12-03",{"v":424,"d":"R$ 424.00"},"Artista",{"$f":"IF(tb_listadespesa[[#This Row],[Nome da Despesa]]=\"\",\"\",VLOOKUP(tb_listadespesa[[#This Row],[Nome da Despesa]],TB_Despesa[[NOME DE DESPESA]:[GRUPO DESPESA]],2,0))","v":"Atrações"},"EVENTO 1","Confirmado"]
[null,null,"2025-09-14",{"v":962,"d":"R$ 962.00"},"Equipamento",{"$f":"IF(tb_listadespesa[[#This Row],[Nome da Despesa]]=\"\",\"\",VLOOKUP(tb_listadespesa[[#This Row],[Nome da Despesa]],TB_Despesa[[NOME DE DESPESA]:[GRUPO DESPESA]],2,0))","v":"Estrutura"},"EVENTO 3","Confirmado"]
[null,null,"2025-06-23",{"v":107,"d":"R$ 107.00"},"Equipamento",{"$f":"IF(tb_listadespesa[[#This Row],[Nome da Despesa]]=\"\",\"\",VLOOKUP(tb_listadespesa[[#This Row],[Nome da Despesa]],TB_Despesa[[NOME DE DESPESA]:[GRUPO DESPESA]],2,0))","v":"Estrutura"},"EVENTO 2","Confirmado"]
[null,null,"2025-11-25",{"v":503,"d":"R$ 503.00"},"Artista",{"$f":"IF(tb_listadespesa[[#This Row],[Nome da Despesa]]=\"\",\"\",VLOOKUP(tb_listadespesa[[#This Row],[Nome da Despesa]],TB_Despesa[[NOME DE DESPESA]:[GRUPO DESPESA]],2,0))","v":"Atrações"},"EVENTO 2","Confirmado"]
[null,null,"2025-12-16",{"v":610,"d":"R$ 610.00"},"Equipamento",{"$f":"IF(tb_listadespesa[[#This Row],[Nome da Despesa]]=\"\",\"\",VLOOKUP(tb_listadespesa[[#This Row],[Nome da Despesa]],TB_Despesa[[NOME DE DESPESA]:[GRUPO DESPESA]],2,0))","v":"Estrutura"},"EVENTO 2","Confirmado"]
[null,null,"2025-12-02",{"v":372,"d":"R$ 372.00"},"Equipamento",{"$f":"IF(tb_listadespesa[[#This Row],[Nome da Despesa]]=\"\",\"\",VLOOKUP(tb_listadespesa[[#This Row],[Nome da Despesa]],TB_Despesa[[NOME DE DESPESA]:[GRUPO DESPESA]],2,0))","v":"Estrutura"},"EVENTO 4","Confirmado"]
[null,null,"2025-12-16",{"v":588,"d":"R$ 588.00"},"Artista",{"$f":"IF(tb_listadespesa[[#This Row],[Nome da Despesa]]=\"\",\"\",VLOOKUP(tb_listadespesa[[#This Row],[Nome da Despesa]],TB_Despesa[[NOME DE DESPESA]:[GRUPO DESPESA]],2,0))","v":"Atrações"},"EVENTO 3","Confirmado"]
[null,null,"2025-03-27",{"v":228,"d":"R$ 228.00"},"Luz",{"$f":"IF(tb_listadespesa[[#This Row],[Nome da Despesa]]=\"\",\"\",VLOOKUP(tb_listadespesa[[#This Row],[Nome da Despesa]],TB_Despesa[[NOME DE DESPESA]:[GRUPO DESPESA]],2,0))","v":"Contas de uso"},"GERAL","Confirmado"]
[null,null,"2025-05-17",{"v":866,"d":"R$ 866.00"},"Agua",{"$f":"IF(tb_listadespesa[[#This Row],[Nome da Despesa]]=\"\",\"\",VLOOKUP(tb_listadespesa[[#This Row],[Nome da Despesa]],TB_Despesa[[NOME DE DESPESA]:[GRUPO DESPESA]],2,0))","v":"Contas de uso"},"EVENTO 2","Cancelado"]
[null,null,"2025-02-19",{"v":726,"d":"R$ 726.00"},"Artista",{"$f":"IF(tb_listadespesa[[#This Row],[Nome da Despesa]]=\"\",\"\",VLOOKUP(tb_listadespesa[[#This Row],[Nome da Despesa]],TB_Despesa[[NOME DE DESPESA]:[GRUPO DESPESA]],2,0))","v":"Atrações"},"EVENTO 5","Confirmado"]
[null,null,"2025-02-23",{"v":730,"d":"R$ 730.00"},"Equipamento",{"$f":"IF(tb_listadespesa[[#This Row],[Nome da Despesa]]=\"\",\"\",VLOOKUP(tb_listadespesa[[#This Row],[Nome da Despesa]],TB_Despesa[[NOME DE DESPESA]:[GRUPO DESPESA]],2,0))","v":"Estrutura"},"EVENTO 4","Confirmado"]
[null,null,"2025-02-15",{"v":366,"d":"R$ 366.00"},"Equipamento",{"$f":"IF(tb_listadespesa[[#This Row],[Nome da Despesa]]=\"\",\"\",VLOOKUP(tb_listadespesa[[#This Row],[Nome da Despesa]],TB_Despesa[[NOME DE DESPESA]:[GRUPO DESPESA]],2,0))","v":"Estrutura"},"EVENTO 1","Confirmado"]
[null,null,"2025-09-21",{"v":141,"d":"R$ 141.00"},"Aluguel",{"$f":"IF(tb_listadespesa[[#This Row],[Nome da Despesa]]=\"\",\"\",VLOOKUP(tb_listadespesa[[#This Row],[Nome da Despesa]],TB_Despesa[[NOME DE DESPESA]:[GRUPO DESPESA]],2,0))","v":"Local evento"},"EVENTO 3","Confirmado"]
[null,null,"2025-12-17",{"v":534,"d":"R$ 534.00"},"Equipamento",{"$f":"IF(tb_listadespesa[[#This Row],[Nome da Despesa]]=\"\",\"\",VLOOKUP(tb_listadespesa[[#This Row],[Nome da Despesa]],TB_Despesa[[NOME DE DESPESA]:[GRUPO DESPESA]],2,0))","v":"Estrutura"},"EVENTO 5","Confirmado"]
[null,null,"2025-10-03",{"v":938,"d":"R$ 938.00"},"Equipamento",{"$f":"IF(tb_listadespesa[[#This Row],[Nome da Despesa]]=\"\",\"\",VLOOKUP(tb_listadespesa[[#This Row],[Nome da Despesa]],TB_Despesa[[NOME DE DESPESA]:[GRUPO DESPESA]],2,0))","v":"Estrutura"},"EVENTO 1","Confirmado"]
[null,null,"2025-01-14",{"v":145,"d":"R$ 145.00"},"Artista",{"$f":"IF(tb_listadespesa[[#This Row],[Nome da Despesa]]=\"\",\"\",VLOOKUP(tb_listadespesa[[#This Row],[Nome da Despesa]],TB_Despesa[[NOME DE DESPESA]:[GRUPO DESPESA]],2,0))","v":"Atrações"},"EVENTO 4","Confirmado"]
[null,null,"2025-08-25",{"v":316,"d":"R$ 316.00"},"Agua",{"$f":"IF(tb_listadespesa[[#This Row],[Nome da Despesa]]=\"\",\"\",VLOOKUP(tb_listadespesa[[#This Row],[Nome da Despesa]],TB_Despesa[[NOME DE DESPESA]:[GRUPO DESPESA]],2,0))","v":"Contas de uso"},"GERAL","Confirmado"]
[null,null,"2025-07-22",{"v":932,"d":"R$ 932.00"},"Aluguel",{"$f":"IF(tb_listadespesa[[#This Row],[Nome da Despesa]]=\"\",\"\",VLOOKUP(tb_listadespesa[[#This Row],[Nome da Despesa]],TB_Despesa[[NOME DE DESPESA]:[GRUPO DESPESA]],2,0))","v":"Local evento"},"EVENTO 5","Confirmado"]
[null,null,"2025-10-27",{"v":304,"d":"R$ 304.00"},"Aluguel",{"$f":"IF(tb_listadespesa[[#This Row],[Nome da Despesa]]=\"\",\"\",VLOOKUP(tb_listadespesa[[#This Row],[Nome da Despesa]],TB_Despesa[[NOME DE DESPESA]:[GRUPO DESPESA]],2,0))","v":"Local evento"},"EVENTO 3","Confirmado"]
[null,null,"2025-02-07",{"v":555,"d":"R$ 555.00"},"Agua",{"$f":"IF(tb_listadespesa[[#This Row],[Nome da Despesa]]=\"\",\"\",VLOOKUP(tb_listadespesa[[#This Row],[Nome da Despesa]],TB_Despesa[[NOME DE DESPESA]:[GRUPO DESPESA]],2,0))","v":"Contas de uso"},"EVENTO 4","Confirmado"]
[null,null,"2025-09-03",{"v":801,"d":"R$ 801.00"},"Equipamento",{"$f":"IF(tb_listadespesa[[#This Row],[Nome da Despesa]]=\"\",\"\",VLOOKUP(tb_listadespesa[[#This Row],[Nome da Despesa]],TB_Despesa[[NOME DE DESPESA]:[GRUPO DESPESA]],2,0))","v":"Estrutura"},"EVENTO 3","Confirmado"]
[null,null,"2025-06-12",{"v":518,"d":"R$ 518.00"},"Agua",{"$f":"IF(tb_listadespesa[[#This Row],[Nome da Despesa]]=\"\",\"\",VLOOKUP(tb_listadespesa[[#This Row],[Nome da Despesa]],TB_Despesa[[NOME DE DESPESA]:[GRUPO DESPESA]],2,0))","v":"Contas de uso"},"GERAL","Confirmado"]
[null,null,"2025-11-18",{"v":395,"d":"R$ 395.00"},"Aluguel",{"$f":"IF(tb_listadespesa[[#This Row],[Nome da Despesa]]=\"\",\"\",VLOOKUP(tb_listadespesa[[#This Row],[Nome da Despesa]],TB_Despesa[[NOME DE DESPESA]:[GRUPO DESPESA]],2,0))","v":"Local evento"},"EVENTO 5","Confirmado"]
[null,null,"2025-11-28",{"v":770,"d":"R$ 770.00"},"Aluguel",{"$f":"IF(tb_listadespesa[[#This Row],[Nome da Despesa]]=\"\",\"\",VLOOKUP(tb_listadespesa[[#This Row],[Nome da Despesa]],TB_Despesa[[NOME DE DESPESA]:[GRUPO DESPESA]],2,0))","v":"Local evento"},"EVENTO 2","Cancelado"]
[null,null,"2025-09-15",{"v":388,"d":"R$ 388.00"},"Agua",{"$f":"IF(tb_listadespesa[[#This Row],[Nome da Despesa]]=\"\",\"\",VLOOKUP(tb_listadespesa[[#This Row],[Nome da Despesa]],TB_Despesa[[NOME DE DESPESA]:[GRUPO DESPESA]],2,0))","v":"Contas de uso"},"EVENTO 5","Confirmado"]
[null,null,"2025-06-28",{"v":979,"d":"R$ 979.00"},"Aluguel",{"$f":"IF(tb_listadespesa[[#This Row],[Nome da Despesa]]=\"\",\"\",VLOOKUP(tb_listadespesa[[#This Row],[Nome da Despesa]],TB_Despesa[[NOME DE DESPESA]:[GRUPO DESPESA]],2,0))","v":"Local evento"},"GERAL","Confirmado"]
[null,null,"2025-09-21",{"v":970,"d":"R$ 970.00"},"Aluguel",{"$f":"IF(tb_listadespesa[[#This Row],[Nome da Despesa]]=\"\",\"\",VLOOKUP(tb_listadespesa[[#This Row],[Nome da Despesa]],TB_Despesa[[NOME DE DESPESA]:[GRUPO DESPESA]],2,0))","v":"Local evento"},"GERAL","Agendado"]
[null,null,"2025-10-03",{"v":949,"d":"R$ 949.00"},"Luz",{"$f":"IF(tb_listadespesa[[#This Row],[Nome da Despesa]]=\"\",\"\",VLOOKUP(tb_listadespesa[[#This Row],[Nome da Despesa]],TB_Despesa[[NOME DE DESPESA]:[GRUPO DESPESA]],2,0))","v":"Contas de uso"},"EVENTO 3","Confirmado"]
[null,null,"2025-12-21",{"v":642,"d":"R$ 642.00"},"Aluguel",{"$f":"IF(tb_listadespesa[[#This Row],[Nome da Despesa]]=\"\",\"\",VLOOKUP(tb_listadespesa[[#This Row],[Nome da Despesa]],TB_Despesa[[NOME DE DESPESA]:[GRUPO DESPESA]],2,0))","v":"Local evento"},"EVENTO 2","Confirmado"]
[null,null,"2025-06-15",{"v":410,"d":"R$ 410.00"},"Equipamento",{"$f":"IF(tb_listadespesa[[#This Row],[Nome da Despesa]]=\"\",\"\",VLOOKUP(tb_listadespesa[[#This Row],[Nome da Despesa]],TB_Despesa[[NOME DE DESPESA]:[GRUPO DESPESA]],2,0))","v":"Estrutura"},"EVENTO 1","Confirmado"]
[null,null,"2025-06-16",{"v":551,"d":"R$ 551.00"},"Equipamento",{"$f":"IF(tb_listadespesa[[#This Row],[Nome da Despesa]]=\"\",\"\",VLOOKUP(tb_listadespesa[[#This Row],[Nome da Despesa]],TB_Despesa[[NOME DE DESPESA]:[GRUPO DESPESA]],2,0))","v":"Estrutura"},"EVENTO 4","Confirmado"]
[null,null,"2025-12-12",{"v":404,"d":"R$ 404.00"},"Luz",{"$f":"IF(tb_listadespesa[[#This Row],[Nome da Despesa]]=\"\",\"\",VLOOKUP(tb_listadespesa[[#This Row],[Nome da Despesa]],TB_Despesa[[NOME DE DESPESA]:[GRUPO DESPESA]],2,0))","v":"Contas de uso"},"EVENTO 3","Confirmado"]
[null,null,"2025-03-03",{"v":210,"d":"R$ 210.00"},"Luz",{"$f":"IF(tb_listadespesa[[#This Row],[Nome da Despesa]]=\"\",\"\",VLOOKUP(tb_listadespesa[[#This Row],[Nome da Despesa]],TB_Despesa[[NOME DE DESPESA]:[GRUPO DESPESA]],2,0))","v":"Contas de uso"},"EVENTO 2","Confirmado"]
[null,null,"2025-04-28",{"v":930,"d":"R$ 930.00"},"Luz",{"$f":"IF(tb_listadespesa[[#This Row],[Nome da Despesa]]=\"\",\"\",VLOOKUP(tb_listadespesa[[#This Row],[Nome da Despesa]],TB_Despesa[[NOME DE DESPESA]:[GRUPO DESPESA]],2,0))","v":"Contas de uso"},"GERAL","Confirmado"]
[null,null,"2025-05-23",{"v":819,"d":"R$ 819.00"},"Luz",{"$f":"IF(tb_listadespesa[[#This Row],[Nome da Despesa]]=\"\",\"\",VLOOKUP(tb_listadespesa[[#This Row],[Nome da Despesa]],TB_Despesa[[NOME DE DESPESA]:[GRUPO DESPESA]],2,0))","v":"Contas de uso"},"EVENTO 4","Confirmado"]
[null,null,"2025-06-25",{"v":882,"d":"R$ 882.00"},"Aluguel",{"$f":"IF(tb_listadespesa[[#This Row],[Nome da Despesa]]=\"\",\"\",VLOOKUP(tb_listadespesa[[#This Row],[Nome da Despesa]],TB_Despesa[[NOME DE DESPESA]:[GRUPO DESPESA]],2,0))","v":"Local evento"},"EVENTO 2","Confirmado"]
[null,null,"2025-11-10",{"v":173,"d":"R$ 173.00"},"Artista",{"$f":"IF(tb_listadespesa[[#This Row],[Nome da Despesa]]=\"\",\"\",VLOOKUP(tb_listadespesa[[#This Row],[Nome da Despesa]],TB_Despesa[[NOME DE DESPESA]:[GRUPO DESPESA]],2,0))","v":"Atrações"},"EVENTO 5","Confirmado"]
[null,null,"2025-11-17",{"v":369,"d":"R$ 369.00"},"Equipamento",{"$f":"IF(tb_listadespesa[[#This Row],[Nome da Despesa]]=\"\",\"\",VLOOKUP(tb_listadespesa[[#This Row],[Nome da Despesa]],TB_Despesa[[NOME DE DESPESA]:[GRUPO DESPESA]],2,0))","v":"Estrutura"},"EVENTO 2","Confirmado"]
[null,null,"2025-04-12",{"v":740,"d":"R$ 740.00"},"Artista",{"$f":"IF(tb_listadespesa[[#This Row],[Nome da Despesa]]=\"\",\"\",VLOOKUP(tb_listadespesa[[#This Row],[Nome da Despesa]],TB_Despesa[[NOME DE DESPESA]:[GRUPO DESPESA]],2,0))","v":"Atrações"},"EVENTO 1","Confirmado"]
[null,null,"2025-02-16",{"v":167,"d":"R$ 167.00"},"Aluguel",{"$f":"IF(tb_listadespesa[[#This Row],[Nome da Despesa]]=\"\",\"\",VLOOKUP(tb_listadespesa[[#This Row],[Nome da Despesa]],TB_Despesa[[NOME DE DESPESA]:[GRUPO DESPESA]],2,0))","v":"Local evento"},"EVENTO 5","Confirmado"]
[null,null,"2025-03-12",{"v":837,"d":"R$ 837.00"},"Agua",{"$f":"IF(tb_listadespesa[[#This Row],[Nome da Despesa]]=\"\",\"\",VLOOKUP(tb_listadespesa[[#This Row],[Nome da Despesa]],TB_Despesa[[NOME DE DESPESA]:[GRUPO DESPESA]],2,0))","v":"Contas de uso"},"EVENTO 3","Confirmado"]
[null,null,"2025-06-21",{"v":421,"d":"R$ 421.00"},"Artista",{"$f":"IF(tb_listadespesa[[#This Row],[Nome da Despesa]]=\"\",\"\",VLOOKUP(tb_listadespesa[[#This Row],[Nome da Despesa]],TB_Despesa[[NOME DE DESPESA]:[GRUPO DESPESA]],2,0))","v":"Atrações"},"EVENTO 2","Confirmado"]
[null,null,"2025-11-16",{"v":429,"d":"R$ 429.00"},"Aluguel",{"$f":"IF(tb_listadespesa[[#This Row],[Nome da Despesa]]=\"\",\"\",VLOOKUP(tb_listadespesa[[#This Row],[Nome da Despesa]],TB_Despesa[[NOME DE DESPESA]:[GRUPO DESPESA]],2,0))","v":"Local evento"},"GERAL","Confirmado"]
[null,null,"2025-03-24",{"v":418,"d":"R$ 418.00"},"Aluguel",{"$f":"IF(tb_listadespesa[[#This Row],[Nome da Despesa]]=\"\",\"\",VLOOKUP(tb_listadespesa[[#This Row],[Nome da Despesa]],TB_Despesa[[NOME DE DESPESA]:[GRUPO DESPESA]],2,0))","v":"Local evento"},"EVENTO 5","Confirmado"]
[null,null,"2025-04-21",{"v":503,"d":"R$ 503.00"},"Agua",{"$f":"IF(tb_listadespesa[[#This Row],[Nome da Despesa]]=\"\",\"\",VLOOKUP(tb_listadespesa[[#This Row],[Nome da Despesa]],TB_Despesa[[NOME DE DESPESA]:[GRUPO DESPESA]],2,0))","v":"Contas de uso"},"EVENTO 5","Confirmado"]
[null,null,"2025-03-26",{"v":879,"d":"R$ 879.00"},"Aluguel",{"$f":"IF(tb_listadespesa[[#This Row],[Nome da Despesa]]=\"\",\"\",VLOOKUP(tb_listadespesa[[#This Row],[Nome da Despesa]],TB_Despesa[[NOME DE DESPESA]:[GRUPO DESPESA]],2,0))","v":"Local evento"},"EVENTO 3","Confirmado"]
[null,null,"2025-08-21",{"v":508,"d":"R$ 508.00"},"Luz",{"$f":"IF(tb_listadespesa[[#This Row],[Nome da Despesa]]=\"\",\"\",VLOOKUP(tb_listadespesa[[#This Row],[Nome da Despesa]],TB_Despesa[[NOME DE DESPESA]:[GRUPO DESPESA]],2,0))","v":"Contas de uso"},"EVENTO 5","Confirmado"]
[null,null,"2025-01-16",{"v":572,"d":"R$ 572.00"},"Aluguel",{"$f":"IF(tb_listadespesa[[#This Row],[Nome da Despesa]]=\"\",\"\",VLOOKUP(tb_listadespesa[[#This Row],[Nome da Despesa]],TB_Despesa[[NOME DE DESPESA]:[GRUPO DESPESA]],2,0))","v":"Local evento"},"EVENTO 3","Confirmado"]
[null,null,"2025-03-07",{"v":634,"d":"R$ 634.00"},"Agua",{"$f":"IF(tb_listadespesa[[#This Row],[Nome da Despesa]]=\"\",\"\",VLOOKUP(tb_listadespesa[[#This Row],[Nome da Despesa]],TB_Despesa[[NOME DE DESPESA]:[GRUPO DESPESA]],2,0))","v":"Contas de uso"},"EVENTO 1","Confirmado"]
[null,null,"2025-03-26",{"v":674,"d":"R$ 674.00"},"Artista",{"$f":"IF(tb_listadespesa[[#This Row],[Nome da Despesa]]=\"\",\"\",VLOOKUP(tb_listadespesa[[#This Row],[Nome da Despesa]],TB_Despesa[[NOME DE DESPESA]:[GRUPO DESPESA]],2,0))","v":"Atrações"},"EVENTO 5","Confirmado"]
[null,null,"2025-07-11",{"v":615,"d":"R$ 615.00"},"Artista",{"$f":"IF(tb_listadespesa[[#This Row],[Nome da Despesa]]=\"\",\"\",VLOOKUP(tb_listadespesa[[#This Row],[Nome da Despesa]],TB_Despesa[[NOME DE DESPESA]:[GRUPO DESPESA]],2,0))","v":"Atrações"},"EVENTO 1","Confirmado"]
[null,null,"2025-05-04",{"v":381,"d":"R$ 381.00"},"Agua",{"$f":"IF(tb_listadespesa[[#This Row],[Nome da Despesa]]=\"\",\"\",VLOOKUP(tb_listadespesa[[#This Row],[Nome da Despesa]],TB_Despesa[[NOME DE DESPESA]:[GRUPO DESPESA]],2,0))","v":"Contas de uso"},"EVENTO 4","Confirmado"]
[null,null,"2025-05-21",{"v":104,"d":"R$ 104.00"},"Artista",{"$f":"IF(tb_listadespesa[[#This Row],[Nome da Despesa]]=\"\",\"\",VLOOKUP(tb_listadespesa[[#This Row],[Nome da Despesa]],TB_Despesa[[NOME DE DESPESA]:[GRUPO DESPESA]],2,0))","v":"Atrações"},"EVENTO 5","Confirmado"]
[null,null,"2025-04-24",{"v":660,"d":"R$ 660.00"},"Equipamento",{"$f":"IF(tb_listadespesa[[#This Row],[Nome da Despesa]]=\"\",\"\",VLOOKUP(tb_listadespesa[[#This Row],[Nome da Despesa]],TB_Despesa[[NOME DE DESPESA]:[GRUPO DESPESA]],2,0))","v":"Estrutura"},"EVENTO 2","Confirmado"]
[null,null,"2025-09-14",{"v":469,"d":"R$ 469.00"},"Equipamento",{"$f":"IF(tb_listadespesa[[#This Row],[Nome da Despesa]]=\"\",\"\",VLOOKUP(tb_listadespesa[[#This Row],[Nome da Despesa]],TB_Despesa[[NOME DE DESPESA]:[GRUPO DESPESA]],2,0))","v":"Estrutura"},"GERAL","Confirmado"]
[null,null,"2025-02-19",{"v":246,"d":"R$ 246.00"},"Agua",{"$f":"IF(tb_listadespesa[[#This Row],[Nome da Despesa]]=\"\",\"\",VLOOKUP(tb_listadespesa[[#This Row],[Nome da Despesa]],TB_Despesa[[NOME DE DESPESA]:[GRUPO DESPESA]],2,0))","v":"Contas de uso"},"EVENTO 1","Cancelado"]
[null,null,"2025-04-15",{"v":211,"d":"R$ 211.00"},"Equipamento",{"$f":"IF(tb_listadespesa[[#This Row],[Nome da Despesa]]=\"\",\"\",VLOOKUP(tb_listadespesa[[#This Row],[Nome da Despesa]],TB_Despesa[[NOME DE DESPESA]:[GRUPO DESPESA]],2,0))","v":"Estrutura"},"EVENTO 1","Confirmado"]
[null,null,"2025-07-25",{"v":460,"d":"R$ 460.00"},"Equipamento",{"$f":"IF(tb_listadespesa[[#This Row],[Nome da Despesa]]=\"\",\"\",VLOOKUP(tb_listadespesa[[#This Row],[Nome da Despesa]],TB_Despesa[[NOME DE DESPESA]:[GRUPO DESPESA]],2,0))","v":"Estrutura"},"EVENTO 1","Confirmado"]
[null,null,"2025-05-21",{"v":462,"d":"R$ 462.00"},"Agua",{"$f":"IF(tb_listadespesa[[#This Row],[Nome da Despesa]]=\"\",\"\",VLOOKUP(tb_listadespesa[[#This Row],[Nome da Despesa]],TB_Despesa[[NOME DE DESPESA]:[GRUPO DESPESA]],2,0))","v":"Contas de uso"},"EVENTO 1","Agendado"]
[null,null,"2025-04-24",{"v":536,"d":"R$ 536.00"},"Aluguel",{"$f":"IF(tb_listadespesa[[#This Row],[Nome da Despesa]]=\"\",\"\",VLOOKUP(tb_listadespesa[[#This Row],[Nome da Despesa]],TB_Despesa[[NOME DE DESPESA]:[GRUPO DESPESA]],2,0))","v":"Local evento"},"EVENTO 5","Confirmado"]
[null,null,"2025-01-02",{"v":252,"d":"R$ 252.00"},"Luz",{"$f":"IF(tb_listadespesa[[#This Row],[Nome da Despesa]]=\"\",\"\",VLOOKUP(tb_listadespesa[[#This Row],[Nome da Despesa]],TB_Despesa[[NOME DE DESPESA]:[GRUPO DESPESA]],2,0))","v":"Contas de uso"},"EVENTO 5","Confirmado"]
[null,null,"2025-03-04",{"v":237,"d":"R$ 237.00"},"Aluguel",{"$f":"IF(tb_listadespesa[[#This Row],[Nome da Despesa]]=\"\",\"\",VLOOKUP(tb_listadespesa[[#This Row],[Nome da Despesa]],TB_Despesa[[NOME DE DESPESA]:[GRUPO DESPESA]],2,0))","v":"Local evento"},"EVENTO 5","Cancelado"]
[null,null,"2025-11-25",{"v":351,"d":"R$ 351.00"},"Agua",{"$f":"IF(tb_listadespesa[[#This Row],[Nome da Despesa]]=\"\",\"\",VLOOKUP(tb_listadespesa[[#This Row],[Nome da Despesa]],TB_Despesa[[NOME DE DESPESA]:[GRUPO DESPESA]],2,0))","v":"Contas de uso"},"EVENTO 4","Confirmado"]
[null,null,"2025-04-07",{"v":596,"d":"R$ 596.00"},"Luz",{"$f":"IF(tb_listadespesa[[#This Row],[Nome da Despesa]]=\"\",\"\",VLOOKUP(tb_listadespesa[[#This Row],[Nome da Despesa]],TB_Despesa[[NOME DE DESPESA]:[GRUPO DESPESA]],2,0))","v":"Contas de uso"},"GERAL","Confirmado"]
[null,null,"2025-06-16",{"v":726,"d":"R$ 726.00"},"Luz",{"$f":"IF(tb_listadespesa[[#This Row],[Nome da Despesa]]=\"\",\"\",VLOOKUP(tb_listadespesa[[#This Row],[Nome da Despesa]],TB_Despesa[[NOME DE DESPESA]:[GRUPO DESPESA]],2,0))","v":"Contas de uso"},"EVENTO 1","Confirmado"]
[null,null,"2025-08-05",{"v":719,"d":"R$ 719.00"},"Equipamento",{"$f":"IF(tb_listadespesa[[#This Row],[Nome da Despesa]]=\"\",\"\",VLOOKUP(tb_listadespesa[[#This Row],[Nome da Despesa]],TB_Despesa[[NOME DE DESPESA]:[GRUPO DESPESA]],2,0))","v":"Estrutura"},"EVENTO 2","Confirmado"]
[null,null,"2025-09-24",{"v":674,"d":"R$ 674.00"},"Aluguel",{"$f":"IF(tb_listadespesa[[#This Row],[Nome da Despesa]]=\"\",\"\",VLOOKUP(tb_listadespesa[[#This Row],[Nome da Despesa]],TB_Despesa[[NOME DE DESPESA]:[GRUPO DESPESA]],2,0))","v":"Local evento"},"EVENTO 5","Confirmado"]
[null,null,"2025-09-10",{"v":762,"d":"R$ 762.00"},"Aluguel",{"$f":"IF(tb_listadespesa[[#This Row],[Nome da Despesa]]=\"\",\"\",VLOOKUP(tb_listadespesa[[#This Row],[Nome da Despesa]],TB_Despesa[[NOME DE DESPESA]:[GRUPO DESPESA]],2,0))","v":"Local evento"},"EVENTO 4","Confirmado"]
[null,null,"2025-06-27",{"v":297,"d":"R$ 297.00"},"Luz",{"$f":"IF(tb_listadespesa[[#This Row],[Nome da Despesa]]=\"\",\"\",VLOOKUP(tb_listadespesa[[#This Row],[Nome da Despesa]],TB_Despesa[[NOME DE DESPESA]:[GRUPO DESPESA]],2,0))","v":"Contas de uso"},"EVENTO 3","Confirmado"]
[null,null,"2025-07-09",{"v":146,"d":"R$ 146.00"},"Agua",{"$f":"IF(tb_listadespesa[[#This Row],[Nome da Despesa]]=\"\",\"\",VLOOKUP(tb_listadespesa[[#This Row],[Nome da Despesa]],TB_Despesa[[NOME DE DESPESA]:[GRUPO DESPESA]],2,0))","v":"Contas de uso"},"EVENTO 2","Confirmado"]
[null,null,"2025-12-24",{"v":546,"d":"R$ 546.00"},"Artista",{"$f":"IF(tb_listadespesa[[#This Row],[Nome da Despesa]]=\"\",\"\",VLOOKUP(tb_listadespesa[[#This Row],[Nome da Despesa]],TB_Despesa[[NOME DE DESPESA]:[GRUPO DESPESA]],2,0))","v":"Atrações"},"EVENTO 3","Confirmado"]
[null,null,"2025-06-21",{"v":821,"d":"R$ 821.00"},"Aluguel",{"$f":"IF(tb_listadespesa[[#This Row],[Nome da Despesa]]=\"\",\"\",VLOOKUP(tb_listadespesa[[#This Row],[Nome da Despesa]],TB_Despesa[[NOME DE DESPESA]:[GRUPO DESPESA]],2,0))","v":"Local evento"},"EVENTO 5","Confirmado"]
[null,null,"2025-07-17",{"v":528,"d":"R$ 528.00"},"Luz",{"$f":"IF(tb_listadespesa[[#This Row],[Nome da Despesa]]=\"\",\"\",VLOOKUP(tb_listadespesa[[#This Row],[Nome da Despesa]],TB_Despesa[[NOME DE DESPESA]:[GRUPO DESPESA]],2,0))","v":"Contas de uso"},"EVENTO 4","Confirmado"]
[null,null,"2025-12-09",{"v":705,"d":"R$ 705.00"},"Luz",{"$f":"IF(tb_listadespesa[[#This Row],[Nome da Despesa]]=\"\",\"\",VLOOKUP(tb_listadespesa[[#This Row],[Nome da Despesa]],TB_Despesa[[NOME DE DESPESA]:[GRUPO DESPESA]],2,0))","v":"Contas de uso"},"EVENTO 2","Confirmado"]
[null,null,"2025-02-06",{"v":802,"d":"R$ 802.00"},"Artista",{"$f":"IF(tb_listadespesa[[#This Row],[Nome da Despesa]]=\"\",\"\",VLOOKUP(tb_listadespesa[[#This Row],[Nome da Despesa]],TB_Despesa[[NOME DE DESPESA]:[GRUPO DESPESA]],2,0))","v":"Atrações"},"EVENTO 4","Confirmado"]
[null,null,"2025-05-22",{"v":524,"d":"R$ 524.00"},"Artista",{"$f":"IF(tb_listadespesa[[#This Row],[Nome da Despesa]]=\"\",\"\",VLOOKUP(tb_listadespesa[[#This Row],[Nome da Despesa]],TB_Despesa[[NOME DE DESPESA]:[GRUPO DESPESA]],2,0))","v":"Atrações"},"EVENTO 3","Confirmado"]
[null,null,"2025-02-01",{"v":625,"d":"R$ 625.00"},"Artista",{"$f":"IF(tb_listadespesa[[#This Row],[Nome da Despesa]]=\"\",\"\",VLOOKUP(tb_listadespesa[[#This Row],[Nome da Despesa]],TB_Despesa[[NOME DE DESPESA]:[GRUPO DESPESA]],2,0))","v":"Atrações"},"GERAL","Confirmado"]
[null,null,"2025-02-20",{"v":285,"d":"R$ 285.00"},"Equipamento",{"$f":"IF(tb_listadespesa[[#This Row],[Nome da Despesa]]=\"\",\"\",VLOOKUP(tb_listadespesa[[#This Row],[Nome da Despesa]],TB_Despesa[[NOME DE DESPESA]:[GRUPO DESPESA]],2,0))","v":"Estrutura"},"GERAL","Confirmado"]
[null,null,"2025-04-14",{"v":131,"d":"R$ 131.00"},"Aluguel",{"$f":"IF(tb_listadespesa[[#This Row],[Nome da Despesa]]=\"\",\"\",VLOOKUP(tb_listadespesa[[#This Row],[Nome da Despesa]],TB_Despesa[[NOME DE DESPESA]:[GRUPO DESPESA]],2,0))","v":"Local evento"},"EVENTO 3","Confirmado"]
[null,null,"2025-04-08",{"v":319,"d":"R$ 319.00"},"Artista",{"$f":"IF(tb_listadespesa[[#This Row],[Nome da Despesa]]=\"\",\"\",VLOOKUP(tb_listadespesa[[#This Row],[Nome da Despesa]],TB_Despesa[[NOME DE DESPESA]:[GRUPO DESPESA]],2,0))","v":"Atrações"},"EVENTO 3","Agendado"]
[null,null,"2025-11-21",{"v":195,"d":"R$ 195.00"},"Equipamento",{"$f":"IF(tb_listadespesa[[#This Row],[Nome da Despesa]]=\"\",\"\",VLOOKUP(tb_listadespesa[[#This Row],[Nome da Despesa]],TB_Despesa[[NOME DE DESPESA]:[GRUPO DESPESA]],2,0))","v":"Estrutura"},"EVENTO 3","Agendado"]
[null,null,"2025-03-17",{"v":611,"d":"R$ 611.00"},"Agua",{"$f":"IF(tb_listadespesa[[#This Row],[Nome da Despesa]]=\"\",\"\",VLOOKUP(tb_listadespesa[[#This Row],[Nome da Despesa]],TB_Despesa[[NOME DE DESPESA]:[GRUPO DESPESA]],2,0))","v":"Contas de uso"},"GERAL","Cancelado"]

{"sheet":"CADASTROS","index":4,"n_rows":13,"n_cols":9,"rows_kept":13}
[]
[]
[]
[]
[]
[]
[null,null,"NOME DA RECEITA","GRUPO RECEITA",null,"NOME DE DESPESA","GRUPO DESPESA",null,"EVENTOs"]
[null,null,"Bilheteria","Presença do público",null,"Aluguel","Local evento",null,"EVENTO 1"]
[null,null,"Patrocinio","Receita externa",null,"Equipamento","Estrutura",null,"EVENTO 2"]
[null,null,"Bar","Receita de consumo",null,"Luz","Contas de uso",null,"EVENTO 3"]
[{"$nulls":5},"Agua","Contas de uso",null,"EVENTO 4"]
[{"$nulls":5},"Artista","Atrações",null,"EVENTO 5"]
[{"$nulls":8},"GERAL"]

{"sheet":"CONSOLIDADO","index":5,"n_rows":493,"n_cols":18,"rows_kept":493,"hidden":true}
[]
[]
[]
[]
[]
[]
[null,null,"DATA","FONTE (Receita/Despesa","Nome da fonte","Grupo da fonte","Evento ref.","Status transação","R$ receita","R$ despesa","reserva 1","reserva 2","reserva 3","reserva 4","reserva 5","Mês","Nome Mês","Ano"]
[null,null,"2025-12-14","Receita","Bilheteria","Presença do público","EVENTO 1","Confirmado",{"v":1944,"d":"R$ 1,944.00"},{"$nulls":6},{"$f":"IF(TB_Consolidado[[#This Row],[DATA]]=\"\",\"\",MONTH(TB_Consolidado[[#This Row],[DATA]]))","v":12},{"$f":"IF(TB_Consolidado[[#This Row],[DATA]]=\"\",\"\",TEXT(TB_Consolidado[[#This Row],[DATA]],\"mmmm\"))","v":"December"},{"$f":"IF(TB_Consolidado[[#This Row],[Nome Mês]]=\"\",\"\",YEAR(TB_Consolidado[[#This Row],[DATA]]))","v":2025}]
[null,null,"2025-12-24","Receita","Patrocinio","Receita externa","GERAL","Confirmado",{"v":1089,"d":"R$ 1,089.00"},{"$nulls":6},{"$f":"IF(TB_Consolidado[[#This Row],[DATA]]=\"\",\"\",MONTH(TB_Consolidado[[#This Row],[DATA]]))","v":12},{"$f":"IF(TB_Consolidado[[#This Row],[DATA]]=\"\",\"\",TEXT(TB_Consolidado[[#This Row],[DATA]],\"mmmm\"))","v":"December"},{"$f":"IF(TB_Consolidado[[#This Row],[Nome Mês]]=\"\",\"\",YEAR(TB_Consolidado[[#This Row],[DATA]]))","v":2025}]
[null,null,"2025-10-21","Receita","Patrocinio","Receita externa","EVENTO 5","Confirmado",{"v":1452,"d":"R$ 1,452.00"},{"$nulls":6},{"$f":"IF(TB_Consolidado[[#This Row],[DATA]]=\"\",\"\",MONTH(TB_Consolidado[[#This Row],[DATA]]))","v":10},{"$f":"IF(TB_Consolidado[[#This Row],[DATA]]=\"\",\"\",TEXT(TB_Consolidado[[#This Row],[DATA]],\"mmmm\"))","v":"October"},{"$f":"IF(TB_Consolidado[[#This Row],[Nome Mês]]=\"\",\"\",YEAR(TB_Consolidado[[#This Row],[DATA]]))","v":2025}]
[null,null,"2025-06-10","Receita","Bilheteria","Presença do público","EVENTO 4","Cancelado",{"v":592,"d":"R$ 592.00"},{"$nulls":6},{"$f":"IF(TB_Consolidado[[#This Row],[DATA]]=\"\",\"\",MONTH(TB_Consolidado[[#This Row],[DATA]]))","v":6},{"$f":"IF(TB_Consolidado[[#This Row],[DATA]]=\"\",\"\",TEXT(TB_Consolidado[[#This Row],[DATA]],\"mmmm\"))","v":"June"},{"$f":"IF(TB_Consolidado[[#This Row],[Nome Mês]]=\"\",\"\",YEAR(TB_Consolidado[[#This Row],[DATA]]))","v":2025}]
[null,null,"2025-03-20","Receita","Patrocinio","Receita externa","EVENTO 1","Agendado",{"v":1782,"d":"R$ 1,782.00"},{"$nulls":6},{"$f":"IF(TB_Consolidado[[#This Row],[DATA]]=\"\",\"\",MONTH(TB_Consolidado[[#This Row],[DATA]]))","v":3},{"$f":"IF(TB_Consolidado[[#This Row],[DATA]]=\"\",\"\",TEXT(TB_Consolidado[[#This Row],[DATA]],\"mmmm\"))","v":"March"},{"$f":"IF(TB_Consolidado[[#This Row],[Nome Mês]]=\"\",\"\",YEAR(TB_Consolidado[[#This Row],[DATA]]))","v":2025}]
[null,null,"2025-01-24","Receita","Bar","Receita de consumo","GERAL","Confirmado",{"v":636,"d":"R$ 636.00"},{"$nulls":6},{"$f":"IF(TB_Consolidado[[#This Row],[DATA]]=\"\",\"\",MONTH(TB_Consolidado[[#This Row],[DATA]]))","v":1},{"$f":"IF(TB_Consolidado[[#This Row],[DATA]]=\"\",\"\",TEXT(TB_Consolidado[[#This Row],[DATA]],\"mmmm\"))","v":"January"},{"$f":"IF(TB_Consolidado[[#This Row],[Nome Mês]]=\"\",\"\",YEAR(TB_Consolidado[[#This Row],[DATA]]))","v":2025}]
[null,null,"2025-02-04","Receita","Patrocinio","Receita externa","EVENTO 4","Confirmado",{"v":1969,"d":"R$ 1,969.00"},{"$nulls":6},{"$f":"IF(TB_Consolidado[[#This Row],[DATA]]=\"\",\"\",MONTH(TB_Consolidado[[#This Row],[DATA]]))","v":2},{"$f":"IF(TB_Consolidado[[#This Row],[DATA]]=\"\",\"\",TEXT(TB_Consolidado[[#This Row],[DATA]],\"mmmm\"))","v":"February"},{"$f":"IF(TB_Consolidado[[#This Row],[Nome Mês]]=\"\",\"\",YEAR(TB_Consolidado[[#This Row],[DATA]]))","v":2025}]
[null,null,"2025-12-12","Receita","Patrocinio","Receita externa","EVENTO 3","Confirmado",{"v":687,"d":"R$ 687.00"},{"$nulls":6},{"$f":"IF(TB_Consolidado[[#This Row],[DATA]]=\"\",\"\",MONTH(TB_Consolidado[[#This Row],[DATA]]))","v":12},{"$f":"IF(TB_Consolidado[[#This Row],[DATA]]=\"\",\"\",TEXT(TB_Consolidado[[#This Row],[DATA]],\"mmmm\"))","v":"December"},{"$f":"IF(TB_Consolidado[[#This Row],[Nome Mês]]=\"\",\"\",YEAR(TB_Consolidado[[#This Row],[DATA]]))","v":2025}]
[null,null,"2025-04-17","Receita","Bar","Receita de consumo","EVENTO 5","Confirmado",{"v":917,"d":"R$ 917.00"},{"$nulls":6},{"$f":"IF(TB_Consolidado[[#This Row],[DATA]]=\"\",\"\",MONTH(TB_Consolidado[[#This Row],[DATA]]))","v":4},{"$f":"IF(TB_Consolidado[[#This Row],[DATA]]=\"\",\"\",TEXT(TB_Consolidado[[#This Row],[DATA]],\"mmmm\"))","v":"April"},{"$f":"IF(TB_Consolidado[[#This Row],[Nome Mês]]=\"\",\"\",YEAR(TB_Consolidado[[#This Row],[DATA]]))","v":2025}]
[null,null,"2025-09-25","Receita","Bar","Receita de consumo","GERAL","Confirmado",{"v":697,"d":"R$ 697.00"},{"$nulls":6},{"$f":"IF(TB_Consolidado[[#This Row],[DATA]]=\"\",\"\",MONTH(TB_Consolidado[[#This Row],[DATA]]))","v":9},{"$f":"IF(TB_Consolidado[[#This Row],[DATA]]=\"\",\"\",TEXT(TB_Consolidado[[#This Row],[DATA]],\"mmmm\"))","v":"September"},{"$f":"IF(TB_Consolidado[[#This Row],[Nome Mês]]=\"\",\"\",YEAR(TB_Consolidado[[#This Row],[DATA]]))","v":2025}]
[null,null,"2025-09-23","Receita","Patrocinio","Receita externa","EVENTO 1","Confirmado",{"v":1445,"d":"R$ 1,445.00"},{"$nulls":6},{"$f":"IF(TB_Consolidado[[#This Row],[DATA]]=\"\",\"\",MONTH(TB_Consolidado[[#This Row],[DATA]]))","v":9},{"$f":"IF(TB_Consolidado[[#This Row],[DATA]]=\"\",\"\",TEXT(TB_Consolidado[[#This Row],[DATA]],\"mmmm\"))","v":"September"},{"$f":"IF(TB_Consolidado[[#This Row],[Nome Mês]]=\"\",\"\",YEAR(TB_Consolidado[[#This Row],[DATA]]))","v":2025}]
[null,null,"2025-10-14","Receita","Bar","Receita de consumo","EVENTO 3","Confirmado",{"v":490,"d":"R$ 490.00"},{"$nulls":6},{"$f":"IF(TB_Consolidado[[#This Row],[DATA]]=\"\",\"\",MONTH(TB_Consolidado[[#This Row],[DATA]]))","v":10},{"$f":"IF(TB_Consolidado[[#This Row],[DATA]]=\"\",\"\",TEXT(TB_Consolidado[[#This Row],[DATA]],\"mmmm\"))","v":"October"},{"$f":"IF(TB_Consolidado[[#This Row],[Nome Mês]]=\"\",\"\",YEAR(TB_Consolidado[[#This Row],[DATA]]))","v":2025}]
[null,null,"2025-12-27","Receita","Bilheteria","Presença do público","EVENTO 4","Confirmado",{"v":1723,"d":"R$ 1,723.00"},{"$nulls":6},{"$f":"IF(TB_Consolidado[[#This Row],[DATA]]=\"\",\"\",MONTH(TB_Consolidado[[#This Row],[DATA]]))","v":12},{"$f":"IF(TB_Consolidado[[#This Row],[DATA]]=\"\",\"\",TEXT(TB_Consolidado[[#This Row],[DATA]],\"mmmm\"))","v":"December"},{"$f":"IF(TB_Consolidado[[#This Row],[Nome Mês]]=\"\",\"\",YEAR(TB_Consolidado[[#This Row],[DATA]]))","v":2025}]
[null,null,"2025-09-17","Receita","Patrocinio","Receita externa","EVENTO 5","Confirmado",{"v":615,"d":"R$ 615.00"},{"$nulls":6},{"$f":"IF(TB_Consolidado[[#This Row],[DATA]]=\"\",\"\",MONTH(TB_Consolidado[[#This Row],[DATA]]))","v":9},{"$f":"IF(TB_Consolidado[[#This Row],[DATA]]=\"\",\"\",TEXT(TB_Consolidado[[#This Row],[DATA]],\"mmmm\"))","v":"September"},{"$f":"IF(TB_Consolidado[[#This Row],[Nome Mês]]=\"\",\"\",YEAR(TB_Consolidado[[#This Row],[DATA]]))","v":2025}]
[null,null,"2025-02-20","Receita","Patrocinio","Receita externa","EVENTO 2","Confirmado",{"v":1667,"d":"R$ 1,667.00"},{"$nulls":6},{"$f":"IF(TB_Consolidado[[#This Row],[DATA]]=\"\",\"\",MONTH(TB_Consolidado[[#This Row],[DATA]]))","v":2},{"$f":"IF(TB_Consolidado[[#This Row],[DATA]]=\"\",\"\",TEXT(TB_Consolidado[[#This Row],[DATA]],\"mmmm\"))","v":"February"},{"$f":"IF(TB_Consolidado[[#This Row],[Nome Mês]]=\"\",\"\",YEAR(TB_Consolidado[[#This Row],[DATA]]))","v":2025}]
[null,null,"2025-10-05","Receita","Bilheteria","Presença do público","EVENTO 2","Confirmado",{"v":612,"d":"R$ 612.00"},{"$nulls":6},{"$f":"IF(TB_Consolidado[[#This Row],[DATA]]=\"\",\"\",MONTH(TB_Consolidado[[#This Row],[DATA]]))","v":10},{"$f":"IF(TB_Consolidado[[#This Row],[DATA]]=\"\",\"\",TEXT(TB_Consolidado[[#This Row],[DATA]],\"mmmm\"))","v":"October"},{"$f":"IF(TB_Consolidado[[#This Row],[Nome Mês]]=\"\",\"\",YEAR(TB_Consolidado[[#This Row],[DATA]]))","v":2025}]
[null,null,"2025-04-18","Receita","Bilheteria","Presença do público","EVENTO 4","Confirmado",{"v":967,"d":"R$ 967.00"},{"$nulls":6},{"$f":"IF(TB_Consolidado[[#This Row],[DATA]]=\"\",\"\",MONTH(TB_Consolidado[[#This Row],[DATA]]))","v":4},{"$f":"IF(TB_Consolidado[[#This Row],[DATA]]=\"\",\"\",TEXT(TB_Consolidado[[#This Row],[DATA]],\"mmmm\"))","v":"April"},{"$f":"IF(TB_Consolidado[[#This Row],[Nome Mês]]=\"\",\"\",YEAR(TB_Consolidado[[#This Row],[DATA]]))","v":2025}]
[null,null,"2025-02-27","Receita","Bar","Receita de consumo","EVENTO 4","Confirmado",{"v":1925,"d":"R$ 1,925.00"},{"$nulls":6},{"$f":"IF(TB_Consolidado[[#This Row],[DATA]]=\"\",\"\",MONTH(TB_Consolidado[[#This Row],[DATA]]))","v":2},{"$f":"IF(TB_Consolidado[[#This Row],[DATA]]=\"\",\"\",TEXT(TB_Consolidado[[#This Row],[DATA]],\"mmmm\"))","v":"February"},{"$f":"IF(TB_Consolidado[[#This Row],[Nome Mês]]=\"\",\"\",YEAR(TB_Consolidado[[#This Row],[DATA]]))","v":2025}]
[null,null,"2025-03-25","Receita","Bar","Receita de consumo","EVENTO 4","Agendado",{"v":512,"d":"R$ 512.00"},{"$nulls":6},{"$f":"IF(TB_Consolidado[[#This Row],[DATA]]=\"\",\"\",MONTH(TB_Consolidado[[#This Row],[DATA]]))","v":3},{"$f":"IF(TB_Consolidado[[#This Row],[DATA]]=\"\",\"\",TEXT(TB_Consolidado[[#This Row],[DATA]],\"mmmm\"))","v":"March"},{"$f":"IF(TB_Consolidado[[#This Row],[Nome Mês]]=\"\",\"\",YEAR(TB_Consolidado[[#This Row],[DATA]]))","v":2025}]
[null,null,"2025-09-18","Receita","Bar","Receita de consumo","EVENTO 2","Confirmado",{"v":1125,"d":"R$ 1,125.00"},{"$nulls":6},{"$f":"IF(TB_Consolidado[[#This Row],[DATA]]=\"\",\"\",MONTH(TB_Consolidado[[#This Row],[DATA]]))","v":9},{"$f":"IF(TB_Consolidado[[#This Row],[DATA]]=\"\",\"\",TEXT(TB_Consolidado[[#This Row],[DATA]],\"mmmm\"))","v":"September"},{"$f":"IF(TB_Consolidado[[#This Row],[Nome Mês]]=\"\",\"\",YEAR(TB_Consolidado[[#This Row],[DATA]]))","v":2025}]
[null,null,"2025-05-19","Receita","Bar","Receita de consumo","EVENTO 1","Confirmado",{"v":1598,"d":"R$ 1,598.00"},{"$nulls":6},{"$f":"IF(TB_Consolidado[[#This Row],[DATA]]=\"\",\"\",MONTH(TB_Consolidado[[#This Row],[DATA]]))","v":5},{"$f":"IF(TB_Consolidado[[#This Row],[DATA]]=\"\",\"\",TEXT(TB_Consolidado[[#This Row],[DATA]],\"mmmm\"))","v":"May"},{"$f":"IF(TB_Consolidado[[#This Row],[Nome Mês]]=\"\",\"\",YEAR(TB_Consolidado[[#This Row],[DATA]]))","v":2025}]
[null,null,"2025-11-25","Receita","Bilheteria","Presença do público","EVENTO 5","Confirmado",{"v":946,"d":"R$ 946.00"},{"$nulls":6},{"$f":"IF(TB_Consolidado[[#This Row],[DATA]]=\"\",\"\",MONTH(TB_Consolidado[[#This Row],[DATA]]))","v":11},{"$f":"IF(TB_Consolidado[[#This Row],[DATA]]=\"\",\"\",TEXT(TB_Consolidado[[#This Row],[DATA]],\"mmmm\"))","v":"November"},{"$f":"IF(TB_Consolidado[[#This Row],[Nome Mês]]=\"\",\"\",YEAR(TB_Consolidado[[#This Row],[DATA]]))","v":2025}]
[null,null,"2025-10-26","Receita","Patrocinio","Receita externa","EVENTO 5","Confirmado",{"v":778,"d":"R$ 778.00"},{"$nulls":6},{"$f":"IF(TB_Consolidado[[#This Row],[DATA]]=\"\",\"\",MONTH(TB_Consolidado[[#This Row],[DATA]]))","v":10},{"$f":"IF(TB_Consolidado[[#This Row],[DATA]]=\"\",\"\",TEXT(TB_Consolidado[[#This Row],[DATA]],\"mmmm\"))","v":"October"},{"$f":"IF(TB_Consolidado[[#This Row],[Nome Mês]]=\"\",\"\",YEAR(TB_Consolidado[[#This Row],[DATA]]))","v":2025}]
[null,null,"2025-11-09","Receita","Bar","Receita de consumo","EVENTO 2","Confirmado",{"v":1471,"d":"R$ 1,471.00"},{"$nulls":6},{"$f":"IF(TB_Consolidado[[#This Row],[DATA]]=\"\",\"\",MONTH(TB_Consolidado[[#This Row],[DATA]]))","v":11},{"$f":"IF(TB_Consolidado[[#This Row],[DATA]]=\"\",\"\",TEXT(TB_Consolidado[[#This Row],[DATA]],\"mmmm\"))","v":"November"},{"$f":"IF(TB_Consolidado[[#This Row],[Nome Mês]]=\"\",\"\",YEAR(TB_Consolidado[[#This Row],[DATA]]))","v":2025}]
[null,null,"2025-11-05","Receita","Bilheteria","Presença do público","GERAL","Confirmado",{"v":1457,"d":"R$ 1,457.00"},{"$nulls":6},{"$f":"IF(TB_Consolidado[[#This Row],[DATA]]=\"\",\"\",MONTH(TB_Consolidado[[#This Row],[DATA]]))","v":11},{"$f":"IF(TB_Consolidado[[#This Row],[DATA]]=\"\",\"\",TEXT(TB_Consolidado[[#This Row],[DATA]],\"mmmm\"))","v":"November"},{"$f":"IF(TB_Consolidado[[#This Row],[Nome Mês]]=\"\",\"\",YEAR(TB_Consolidado[[#This Row],[DATA]]))","v":2025}]
[null,null,"2025-09-23","Receita","Bilheteria","Presença do público","EVENTO 3","Confirmado",{"v":640,"d":"R$ 640.00"},{"$nulls":6},{"$f":"IF(TB_Consolidado[[#This Row],[DATA]]=\"\",\"\",MONTH(TB_Consolidado[[#This Row],[DATA]]))","v":9},{"$f":"IF(TB_Consolidado[[#This Row],[DATA]]=\"\",\"\",TEXT(TB_Consolidado[[#This Row],[DATA]],\"mmmm\"))","v":"September"},{"$f":"IF(TB_Consolidado[[#This Row],[Nome Mês]]=\"\",\"\",YEAR(TB_Consolidado[[#This Row],[DATA]]))","v":2025}]
[null,null,"2025-10-22","Receita","Bilheteria","Presença do público","EVENTO 3","Confirmado",{"v":653,"d":"R$ 653.00"},{"$nulls":6},{"$f":"IF(TB_Consolidado[[#This Row],[DATA]]=\"\",\"\",MONTH(TB_Consolidado[[#This Row],[DATA]]))","v":10},{"$f":"IF(TB_Consolidado[[#This Row],[DATA]]=\"\",\"\",TEXT(TB_Consolidado[[#This Row],[DATA]],\"mmmm\"))","v":"October"},{"$f":"IF(TB_Consolidado[[#This Row],[Nome Mês]]=\"\",\"\",YEAR(TB_Consolidado[[#This Row],[DATA]]))","v":2025}]
[null,null,"2025-12-28","Receita","Patrocinio","Receita externa","EVENTO 2","Confirmado",{"v":378,"d":"R$ 378.00"},{"$nulls":6},{"$f":"IF(TB_Consolidado[[#This Row],[DATA]]=\"\",\"\",MONTH(TB_Consolidado[[#This Row],[DATA]]))","v":12},{"$f":"IF(TB_Consolidado[[#This Row],[DATA]]=\"\",\"\",TEXT(TB_Consolidado[[#This Row],[DATA]],\"mmmm\"))","v":"December"},{"$f":"IF(TB_Consolidado[[#This Row],[Nome Mês]]=\"\",\"\",YEAR(TB_Consolidado[[#This Row],[DATA]]))","v":2025}]
[null,null,"2025-12-27","Receita","Bar","Receita de consumo","GERAL","Confirmado",{"v":1494,"d":"R$ 1,494.00"},{"$nulls":6},{"$f":"IF(TB_Consolidado[[#This Row],[DATA]]=\"\",\"\",MONTH(TB_Consolidado[[#This Row],[DATA]]))","v":12},{"$f":"IF(TB_Consolidado[[#This Row],[DATA]]=\"\",\"\",TEXT(TB_Consolidado[[#This Row],[DATA]],\"mmmm\"))","v":"December"},{"$f":"IF(TB_Consolidado[[#This Row],[Nome Mês]]=\"\",\"\",YEAR(TB_Consolidado[[#This Row],[DATA]]))","v":2025}]
[null,null,"2025-04-16","Receita","Bilheteria","Presença do público","EVENTO 4","Confirmado",{"v":1050,"d":"R$ 1,050.00"},{"$nulls":6},{"$f":"IF(TB_Consolidado[[#This Row],[DATA]]=\"\",\"\",MONTH(TB_Consolidado[[#This Row],[DATA]]))","v":4},{"$f":"IF(TB_Consolidado[[#This Row],[DATA]]=\"\",\"\",TEXT(TB_Consolidado[[#This Row],[DATA]],\"mmmm\"))","v":"April"},{"$f":"IF(TB_Consolidado[[#This Row],[Nome Mês]]=\"\",\"\",YEAR(TB_Consolidado[[#This Row],[DATA]]))","v":2025}]
[null,null,"2025-04-14","Receita","Bilheteria","Presença do público","EVENTO 5","Confirmado",{"v":658,"d":"R$ 658.00"},{"$nulls":6},{"$f":"IF(TB_Consolidado[[#This Row],[DATA]]=\"\",\"\",MONTH(TB_Consolidado[[#This Row],[DATA]]))","v":4},{"$f":"IF(TB_Consolidado[[#This Row],[DATA]]=\"\",\"\",TEXT(TB_Consolidado[[#This Row],[DATA]],\"mmmm\"))","v":"April"},{"$f":"IF(TB_Consolidado[[#This Row],[Nome Mês]]=\"\",\"\",YEAR(TB_Consolidado[[#This Row],[DATA]]))","v":2025}]
[null,null,"2025-09-13","Receita","Bar","Receita de consumo","EVENTO 4","Confirmado",{"v":1549,"d":"R$ 1,549.00"},{"$nulls":6},{"$f":"IF(TB_Consolidado[[#This Row],[DATA]]=\"\",\"\",MONTH(TB_Consolidado[[#This Row],[DATA]]))","v":9},{"$f":"IF(TB_Consolidado[[#This Row],[DATA]]=\"\",\"\",TEXT(TB_Consolidado[[#This Row],[DATA]],\"mmmm\"))","v":"September"},{"$f":"IF(TB_Consolidado[[#This Row],[Nome Mês]]=\"\",\"\",YEAR(TB_Consolidado[[#This Row],[DATA]]))","v":2025}]
[null,null,"2025-02-20","Receita","Patrocinio","Receita externa","EVENTO 3","Confirmado",{"v":1458,"d":"R$ 1,458.00"},{"$nulls":6},{"$f":"IF(TB_Consolidado[[#This Row],[DATA]]=\"\",\"\",MONTH(TB_Consolidado[[#This Row],[DATA]]))","v":2},{"$f":"IF(TB_Consolidado[[#This Row],[DATA]]=\"\",\"\",TEXT(TB_Consolidado[[#This Row],[DATA]],\"mmmm\"))","v":"February"},{"$f":"IF(TB_Consolidado[[#This Row],[Nome Mês]]=\"\",\"\",YEAR(TB_Consolidado[[#This Row],[DATA]]))","v":2025}]
[null,null,"2025-07-04","Receita","Patrocinio","Receita externa","EVENTO 3","Confirmado",{"v":1864,"d":"R$ 1,864.00"},{"$nulls":6},{"$f":"IF(TB_Consolidado[[#This Row],[DATA]]=\"\",\"\",MONTH(TB_Consolidado[[#This Row],[DATA]]))","v":7},{"$f":"IF(TB_Consolidado[[#This Row],[DATA]]=\"\",\"\",TEXT(TB_Consolidado[[#This Row],[DATA]],\"mmmm\"))","v":"July"},{"$f":"IF(TB_Consolidado[[#This Row],[Nome Mês]]=\"\",\"\",YEAR(TB_Consolidado[[#This Row],[DATA]]))","v":2025}]
[null,null,"2025-10-14","Receita","Patrocinio","Receita externa","GERAL","Cancelado",{"v":1132,"d":"R$ 1,132.00"},{"$nulls":6},{"$f":"IF(TB_Consolidado[[#This Row],[DATA]]=\"\",\"\",MONTH(TB_Consolidado[[#This Row],[DATA]]))","v":10},{"$f":"IF(TB_Consolidado[[#This Row],[DATA]]=\"\",\"\",TEXT(TB_Consolidado[[#This Row],[DATA]],\"mmmm\"))","v":"October"},{"$f":"IF(TB_Consolidado[[#This Row],[Nome Mês]]=\"\",\"\",YEAR(TB_Consolidado[[#This Row],[DATA]]))","v":2025}]
[null,null,"2025-04-08","Receita","Bilheteria","Presença do público","EVENTO 4","Confirmado",{"v":453,"d":"R$ 453.00"},{"$nulls":6},{"$f":"IF(TB_Consolidado[[#This Row],[DATA]]=\"\",\"\",MONTH(TB_Consolidado[[#This Row],[DATA]]))","v":4},{"$f":"IF(TB_Consolidado[[#This Row],[DATA]]=\"\",\"\",TEXT(TB_Consolidado[[#This Row],[DATA]],\"mmmm\"))","v":"April"},{"$f":"IF(TB_Consolidado[[#This Row],[Nome Mês]]=\"\",\"\",YEAR(TB_Consolidado[[#This Row],[DATA]]))","v":2025}]
[null,null,"2025-10-13","Receita","Bilheteria","Presença do público","EVENTO 1","Confirmado",{"v":1389,"d":"R$ 1,389.00"},{"$nulls":6},{"$f":"IF(TB_Consolidado[[#This Row],[DATA]]=\"\",\"\",MONTH(TB_Consolidado[[#This Row],[DATA]]))","v":10},{"$f":"IF(TB_Consolidado[[#This Row],[DATA]]=\"\",\"\",TEXT(TB_Consolidado[[#This Row],[DATA]],\"mmmm\"))","v":"October"},{"$f":"IF(TB_Consolidado[[#This Row],[Nome Mês]]=\"\",\"\",YEAR(TB_Consolidado[[#This Row],[DATA]]))","v":2025}]
[null,null,"2025-03-19","Receita","Patrocinio","Receita externa","EVENTO 2","Confirmado",{"v":953,"d":"R$ 953.00"},{"$nulls":6},{"$f":"IF(TB_Consolidado[[#This Row],[DATA]]=\"\",\"\",MONTH(TB_Consolidado[[#This Row],[DATA]]))","v":3},{"$f":"IF(TB_Consolidado[[#This Row],[DATA]]=\"\",\"\",TEXT(TB_Consolidado[[#This Row],[DATA]],\"mmmm\"))","v":"March"},{"$f":"IF(TB_Consolidado[[#This Row],[Nome Mês]]=\"\",\"\",YEAR(TB_Consolidado[[#This Row],[DATA]]))","v":2025}]
[null,null,"2025-03-17","Receita","Patrocinio","Receita externa","EVENTO 3","Agendado",{"v":1008,"d":"R$ 1,008.00"},{"$nulls":6},{"$f":"IF(TB_Consolidado[[#This Row],[DATA]]=\"\",\"\",MONTH(TB_Consolidado[[#This Row],[DATA]]))","v":3},{"$f":"IF(TB_Consolidado[[#This Row],[DATA]]=\"\",\"\",TEXT(TB_Consolidado[[#This Row],[DATA]],\"mmmm\"))","v":"March"},{"$f":"IF(TB_Consolidado[[#This Row],[Nome Mês]]=\"\",\"\",YEAR(TB_Consolidado[[#This Row],[DATA]]))","v":2025}]
[null,null,"2025-06-16","Receita","Patrocinio","Receita externa","EVENTO 4","Confirmado",{"v":1095,"d":"R$ 1,095.00"},{"$nulls":6},{"$f":"IF(TB_Consolidado[[#This Row],[DATA]]=\"\",\"\",MONTH(TB_Consolidado[[#This Row],[DATA]]))","v":6},{"$f":"IF(TB_Consolidado[[#This Row],[DATA]]=\"\",\"\",TEXT(TB_Consolidado[[#This Row],[DATA]],\"mmmm\"))","v":"June"},{"$f":"IF(TB_Consolidado[[#This Row],[Nome Mês]]=\"\",\"\",YEAR(TB_Consolidado[[#This Row],[DATA]]))","v":2025}]
[null,null,"2025-02-09","Receita","Bar","Receita de consumo","EVENTO 1","Confirmado",{"v":974,"d":"R$ 974.00"},{"$nulls":6},{"$f":"IF(TB_Consolidado[[#This Row],[DATA]]=\"\",\"\",MONTH(TB_Consolidado[[#This Row],[DATA]]))","v":2},{"$f":"IF(TB_Consolidado[[#This Row],[DATA]]=\"\",\"\",TEXT(TB_Consolidado[[#This Row],[DATA]],\"mmmm\"))","v":"February"},{"$f":"IF(TB_Consolidado[[#This Row],[Nome Mês]]=\"\",\"\",YEAR(TB_Consolidado[[#This Row],[DATA]]))","v":2025}]
[null,null,"2025-07-27","Receita","Bar","Receita de consumo","EVENTO 4","Confirmado",{"v":1069,"d":"R$ 1,069.00"},{"$nulls":6},{"$f":"IF(TB_Consolidado[[#This Row],[DATA]]=\"\",\"\",MONTH(TB_Consolidado[[#This Row],[DATA]]))","v":7},{"$f":"IF(TB_Consolidado[[#This Row],[DATA]]=\"\",\"\",TEXT(TB_Consolidado[[#This Row],[DATA]],\"mmmm\"))","v":"July"},{"$f":"IF(TB_Consolidado[[#This Row],[Nome Mês]]=\"\",\"\",YEAR(TB_Consolidado[[#This Row],[DATA]]))","v":2025}]
[null,null,"2025-10-02","Receita","Patrocinio","Receita externa","EVENTO 1","Agendado",{"v":995,"d":"R$ 995.00"},{"$nulls":6},{"$f":"IF(TB_Consolidado[[#This Row],[DATA]]=\"\",\"\",MONTH(TB_Consolidado[[#This Row],[DATA]]))","v":10},{"$f":"IF(TB_Consolidado[[#This Row],[DATA]]=\"\",\"\",TEXT(TB_Consolidado[[#This Row],[DATA]],\"mmmm\"))","v":"October"},{"$f":"IF(TB_Consolidado[[#This Row],[Nome Mês]]=\"\",\"\",YEAR(TB_Consolidado[[#This Row],[DATA]]))","v":2025}]
[null,null,"2025-01-26","Receita","Patrocinio","Receita externa","EVENTO 4","Confirmado",{"v":1294,"d":"R$ 1,294.00"},{"$nulls":6},{"$f":"IF(TB_Consolidado[[#This Row],[DATA]]=\"\",\"\",MONTH(TB_Consolidado[[#This Row],[DATA]]))","v":1},{"$f":"IF(TB_Consolidado[[#This Row],[DATA]]=\"\",\"\",TEXT(TB_Consolidado[[#This Row],[DATA]],\"mmmm\"))","v":"January"},{"$f":"IF(TB_Consolidado[[#This Row],[Nome Mês]]=\"\",\"\",YEAR(TB_Consolidado[[#This Row],[DATA]]))","v":2025}]
[null,null,"2025-09-17","Receita","Patrocinio","Receita externa","EVENTO 5","Confirmado",{"v":1263,"d":"R$ 1,263.00"},{"$nulls":6},{"$f":"IF(TB_Consolidado[[#This Row],[DATA]]=\"\",\"\",MONTH(TB_Consolidado[[#This Row],[DATA]]))","v":9},{"$f":"IF(TB_Consolidado[[#This Row],[DATA]]=\"\",\"\",TEXT(TB_Consolidado[[#This Row],[DATA]],\"mmmm\"))","v":"September"},{"$f":"IF(TB_Consolidado[[#This Row],[Nome Mês]]=\"\",\"\",YEAR(TB_Consolidado[[#This Row],[DATA]]))","v":2025}]
[null,null,"2025-06-17","Receita","Bar","Receita de consumo","EVENTO 2","Confirmado",{"v":1490,"d":"R$ 1,490.00"},{"$nulls":6},{"$f":"IF(TB_Consolidado[[#This Row],[DATA]]=\"\",\"\",MONTH(TB_Consolidado[[#This Row],[DATA]]))","v":6},{"$f":"IF(TB_Consolidado[[#This Row],[DATA]]=\"\",\"\",TEXT(TB_Consolidado[[#This Row],[DATA]],\"mmmm\"))","v":"June"},{"$f":"IF(TB_Consolidado[[#This Row],[Nome Mês]]=\"\",\"\",YEAR(TB_Consolidado[[#This Row],[DATA]]))","v":2025}]
[null,null,"2025-09-03","Receita","Bar","Receita de consumo","EVENTO 4","Confirmado",{"v":750,"d":"R$ 750.00"},{"$nulls":6},{"$f":"IF(TB_Consolidado[[#This Row],[DATA]]=\"\",\"\",MONTH(TB_Consolidado[[#This Row],[DATA]]))","v":9},{"$f":"IF(TB_Consolidado[[#This Row],[DATA]]=\"\",\"\",TEXT(TB_Consolidado[[#This Row],[DATA]],\"mmmm\"))","v":"September"},{"$f":"IF(TB_Consolidado[[#This Row],[Nome Mês]]=\"\",\"\",YEAR(TB_Consolidado[[#This Row],[DATA]]))","v":2025}]
[null,null,"2025-07-10","Receita","Bar","Receita de consumo","EVENTO 4","Confirmado",{"v":1405,"d":"R$ 1,405.00"},{"$nulls":6},{"$f":"IF(TB_Consolidado[[#This Row],[DATA]]=\"\",\"\",MONTH(TB_Consolidado[[#This Row],[DATA]]))","v":7},{"$f":"IF(TB_Consolidado[[#This Row],[DATA]]=\"\",\"\",TEXT(TB_Consolidado[[#This Row],[DATA]],\"mmmm\"))","v":"July"},{"$f":"IF(TB_Consolidado[[#This Row],[Nome Mês]]=\"\",\"\",YEAR(TB_Consolidado[[#This Row],[DATA]]))","v":2025}]
[null,null,"2025-08-24","Receita","Patrocinio","Receita externa","GERAL","Confirmado",{"v":791,"d":"R$ 791.00"},{"$nulls":6},{"$f":"IF(TB_Consolidado[[#This Row],[DATA]]=\"\",\"\",MONTH(TB_Consolidado[[#This Row],[DATA]]))","v":8},{"$f":"IF(TB_Consolidado[[#This Row],[DATA]]=\"\",\"\",TEXT(TB_Consolidado[[#This Row],[DATA]],\"mmmm\"))","v":"August"},{"$f":"IF(TB_Consolidado[[#This Row],[Nome Mês]]=\"\",\"\",YEAR(TB_Consolidado[[#This Row],[DATA]]))","v":2025}]
[null,null,"2025-12-11","Receita","Bar","Receita de consumo","GERAL","Confirmado",{"v":531,"d":"R$ 531.00"},{"$nulls":6},{"$f":"IF(TB_Consolidado[[#This Row],[DATA]]=\"\",\"\",MONTH(TB_Consolidado[[#This Row],[DATA]]))","v":12},{"$f":"IF(TB_Consolidado[[#This Row],[DATA]]=\"\",\"\",TEXT(TB_Consolidado[[#This Row],[DATA]],\"mmmm\"))","v":"December"},{"$f":"IF(TB_Consolidado[[#This Row],[Nome Mês]]=\"\",\"\",YEAR(TB_Consolidado[[#This Row],[DATA]]))","v":2025}]
[null,null,"2025-04-14","Receita","Bar","Receita de consumo","EVENTO 2","Confirmado",{"v":1425,"d":"R$ 1,425.00"},{"$nulls":6},{"$f":"IF(TB_Consolidado[[#This Row],[DATA]]=\"\",\"\",MONTH(TB_Consolidado[[#This Row],[DATA]]))","v":4},{"$f":"IF(TB_Consolidado[[#This Row],[DATA]]=\"\",\"\",TEXT(TB_Consolidado[[#This Row],[DATA]],\"mmmm\"))","v":"April"},{"$f":"IF(TB_Consolidado[[#This Row],[Nome Mês]]=\"\",\"\",YEAR(TB_Consolidado[[#This Row],[DATA]]))","v":2025}]
[null,null,"2025-08-08","Receita","Bar","Receita de consumo","EVENTO 3","Confirmado",{"v":507,"d":"R$ 507.00"},{"$nulls":6},{"$f":"IF(TB_Consolidado[[#This Row],[DATA]]=\"\",\"\",MONTH(TB_Consolidado[[#This Row],[DATA]]))","v":8},{"$f":"IF(TB_Consolidado[[#This Row],[DATA]]=\"\",\"\",TEXT(TB_Consolidado[[#This Row],[DATA]],\"mmmm\"))","v":"August"},{"$f":"IF(TB_Consolidado[[#This Row],[Nome Mês]]=\"\",\"\",YEAR(TB_Consolidado[[#This Row],[DATA]]))","v":2025}]
[null,null,"2025-08-01","Receita","Bar","Receita de consumo","EVENTO 1","Confirmado",{"v":1455,"d":"R$ 1,455.00"},{"$nulls":6},{"$f":"IF(TB_Consolidado[[#This Row],[DATA]]=\"\",\"\",MONTH(TB_Consolidado[[#This Row],[DATA]]))","v":8},{"$f":"IF(TB_Consolidado[[#This Row],[DATA]]=\"\",\"\",TEXT(TB_Consolidado[[#This Row],[DATA]],\"mmmm\"))","v":"August"},{"$f":"IF(TB_Consolidado[[#This Row],[Nome Mês]]=\"\",\"\",YEAR(TB_Consolidado[[#This Row],[DATA]]))","v":2025}]
[null,null,"2025-04-27","Receita","Bar","Receita de consumo","EVENTO 1","Confirmado",{"v":1663,"d":"R$ 1,663.00"},{"$nulls":6},{"$f":"IF(TB_Consolidado[[#This Row],[DATA]]=\"\",\"\",MONTH(TB_Consolidado[[#This Row],[DATA]]))","v":4},{"$f":"IF(TB_Consolidado[[#This Row],[DATA]]=\"\",\"\",TEXT(TB_Consolidado[[#This Row],[DATA]],\"mmmm\"))","v":"April"},{"$f":"IF(TB_Consolidado[[#This Row],[Nome Mês]]=\"\",\"\",YEAR(TB_Consolidado[[#This Row],[DATA]]))","v":2025}]
[null,null,"2025-09-07","Receita","Patrocinio","Receita externa","GERAL","Confirmado",{"v":787,"d":"R$ 787.00"},{"$nulls":6},{"$f":"IF(TB_Consolidado[[#This Row],[DATA]]=\"\",\"\",MONTH(TB_Consolidado[[#This Row],[DATA]]))","v":9},{"$f":"IF(TB_Consolidado[[#This Row],[DATA]]=\"\",\"\",TEXT(TB_Consolidado[[#This Row],[DATA]],\"mmmm\"))","v":"September"},{"$f":"IF(TB_Consolidado[[#This Row],[Nome Mês]]=\"\",\"\",YEAR(TB_Consolidado[[#This Row],[DATA]]))","v":2025}]
[null,null,"2025-09-05","Receita","Bar","Receita de consumo","EVENTO 5","Confirmado",{"v":787,"d":"R$ 787.00"},{"$nulls":6},{"$f":"IF(TB_Consolidado[[#This Row],[DATA]]=\"\",\"\",MONTH(TB_Consolidado[[#This Row],[DATA]]))","v":9},{"$f":"IF(TB_Consolidado[[#This Row],[DATA]]=\"\",\"\",TEXT(TB_Consolidado[[#This Row],[DATA]],\"mmmm\"))","v":"September"},{"$f":"IF(TB_Consolidado[[#This Row],[Nome Mês]]=\"\",\"\",YEAR(TB_Consolidado[[#This Row],[DATA]]))","v":2025}]
[null,null,"2025-02-12","Receita","Bilheteria","Presença do público","GERAL","Confirmado",{"v":632,"d":"R$ 632.00"},{"$nulls":6},{"$f":"IF(TB_Consolidado[[#This Row],[DATA]]=\"\",\"\",MONTH(TB_Consolidado[[#This Row],[DATA]]))","v":2},{"$f":"IF(TB_Consolidado[[#This Row],[DATA]]=\"\",\"\",TEXT(TB_Consolidado[[#This Row],[DATA]],\"mmmm\"))","v":"February"},{"$f":"IF(TB_Consolidado[[#This Row],[Nome Mês]]=\"\",\"\",YEAR(TB_Consolidado[[#This Row],[DATA]]))","v":2025}]
[null,null,"2025-04-03","Receita","Patrocinio","Receita externa","EVENTO 3","Confirmado",{"v":1198,"d":"R$ 1,198.00"},{"$nulls":6},{"$f":"IF(TB_Consolidado[[#This Row],[DATA]]=\"\",\"\",MONTH(TB_Consolidado[[#This Row],[DATA]]))","v":4},{"$f":"IF(TB_Consolidado[[#This Row],[DATA]]=\"\",\"\",TEXT(TB_Consolidado[[#This Row],[DATA]],\"mmmm\"))","v":"April"},{"$f":"IF(TB_Consolidado[[#This Row],[Nome Mês]]=\"\",\"\",YEAR(TB_Consolidado[[#This Row],[DATA]]))","v":2025}]
[null,null,"2025-11-23","Receita","Patrocinio","Receita externa","GERAL","Confirmado",{"v":1488,"d":"R$ 1,488.00"},{"$nulls":6},{"$f":"IF(TB_Consolidado[[#This Row],[DATA]]=\"\",\"\",MONTH(TB_Consolidado[[#This Row],[DATA]]))","v":11},{"$f":"IF(TB_Consolidado[[#This Row],[DATA]]=\"\",\"\",TEXT(TB_Consolidado[[#This Row],[DATA]],\"mmmm\"))","v":"November"},{"$f":"IF(TB_Consolidado[[#This Row],[Nome Mês]]=\"\",\"\",YEAR(TB_Consolidado[[#This Row],[DATA]]))","v":2025}]
[null,null,"2025-07-18","Receita","Bilheteria","Presença do público","EVENTO 4","Confirmado",{"v":1444,"d":"R$ 1,444.00"},{"$nulls":6},{"$f":"IF(TB_Consolidado[[#This Row],[DATA]]=\"\",\"\",MONTH(TB_Consolidado[[#This Row],[DATA]]))","v":7},{"$f":"IF(TB_Consolidado[[#This Row],[DATA]]=\"\",\"\",TEXT(TB_Consolidado[[#This Row],[DATA]],\"mmmm\"))","v":"July"},{"$f":"IF(TB_Consolidado[[#This Row],[Nome Mês]]=\"\",\"\",YEAR(TB_Consolidado[[#This Row],[DATA]]))","v":2025}]
[null,null,"2025-12-18","Receita","Patrocinio","Receita externa","GERAL","Confirmado",{"v":1406,"d":"R$ 1,406.00"},{"$nulls":6},{"$f":"IF(TB_Consolidado[[#This Row],[DATA]]=\"\",\"\",MONTH(TB_Consolidado[[#This Row],[DATA]]))","v":12},{"$f":"IF(TB_Consolidado[[#This Row],[DATA]]=\"\",\"\",TEXT(TB_Consolidado[[#This Row],[DATA]],\"mmmm\"))","v":"December"},{"$f":"IF(TB_Consolidado[[#This Row],[Nome Mês]]=\"\",\"\",YEAR(TB_Consolidado[[#This Row],[DATA]]))","v":2025}]
[null,null,"2025-08-12","Receita","Patrocinio","Receita externa","EVENTO 3","Confirmado",{"v":997,"d":"R$ 997.00"},{"$nulls":6},{"$f":"IF(TB_Consolidado[[#This Row],[DATA]]=\"\",\"\",MONTH(TB_Consolidado[[#This Row],[DATA]]))","v":8},{"$f":"IF(TB_Consolidado[[#This Row],[DATA]]=\"\",\"\",TEXT(TB_Consolidado[[#This Row],[DATA]],\"mmmm\"))","v":"August"},{"$f":"IF(TB_Consolidado[[#This Row],[Nome Mês]]=\"\",\"\",YEAR(TB_Consolidado[[#This Row],[DATA]]))","v":2025}]
[null,null,"2025-04-16","Receita","Bilheteria","Presença do público","EVENTO 5","Confirmado",{"v":1893,"d":"R$ 1,893.00"},{"$nulls":6},{"$f":"IF(TB_Consolidado[[#This Row],[DATA]]=\"\",\"\",MONTH(TB_Consolidado[[#This Row],[DATA]]))","v":4},{"$f":"IF(TB_Consolidado[[#This Row],[DATA]]=\"\",\"\",TEXT(TB_Consolidado[[#This Row],[DATA]],\"mmmm\"))","v":"April"},{"$f":"IF(TB_Consolidado[[#This Row],[Nome Mês]]=\"\",\"\",YEAR(TB_Consolidado[[#This Row],[DATA]]))","v":2025}]
[null,null,"2025-06-03","Receita","Patrocinio","Receita externa","EVENTO 2","Confirmado",{"v":1946,"d":"R$ 1,946.00"},{"$nulls":6},{"$f":"IF(TB_Consolidado[[#This Row],[DATA]]=\"\",\"\",MONTH(TB_Consolidado[[#This Row],[DATA]]))","v":6},{"$f":"IF(TB_Consolidado[[#This Row],[DATA]]=\"\",\"\",TEXT(TB_Consolidado[[#This Row],[DATA]],\"mmmm\"))","v":"June"},{"$f":"IF(TB_Consolidado[[#This Row],[Nome Mês]]=\"\",\"\",YEAR(TB_Consolidado[[#This Row],[DATA]]))","v":2025}]
[null,null,"2025-05-04","Receita","Bilheteria","Presença do público","EVENTO 3","Confirmado",{"v":515,"d":"R$ 515.00"},{"$nulls":6},{"$f":"IF(TB_Consolidado[[#This Row],[DATA]]=\"\",\"\",MONTH(TB_Consolidado[[#This Row],[DATA]]))","v":5},{"$f":"IF(TB_Consolidado[[#This Row],[DATA]]=\"\",\"\",TEXT(TB_Consolidado[[#This Row],[DATA]],\"mmmm\"))","v":"May"},{"$f":"IF(TB_Consolidado[[#This Row],[Nome Mês]]=\"\",\"\",YEAR(TB_Consolidado[[#This Row],[DATA]]))","v":2025}]
[null,null,"2025-01-11","Receita","Patrocinio","Receita externa","EVENTO 3","Confirmado",{"v":425,"d":"R$ 425.00"},{"$nulls":6},{"$f":"IF(TB_Consolidado[[#This Row],[DATA]]=\"\",\"\",MONTH(TB_Consolidado[[#This Row],[DATA]]))","v":1},{"$f":"IF(TB_Consolidado[[#This Row],[DATA]]=\"\",\"\",TEXT(TB_Consolidado[[#This Row],[DATA]],\"mmmm\"))","v":"January"},{"$f":"IF(TB_Consolidado[[#This Row],[Nome Mês]]=\"\",\"\",YEAR(TB_Consolidado[[#This Row],[DATA]]))","v":2025}]
[null,null,"2025-01-18","Receita","Bar","Receita de consumo","EVENTO 4","Cancelado",{"v":1849,"d":"R$ 1,849.00"},{"$nulls":6},{"$f":"IF(TB_Consolidado[[#This Row],[DATA]]=\"\",\"\",MONTH(TB_Consolidado[[#This Row],[DATA]]))","v":1},{"$f":"IF(TB_Consolidado[[#This Row],[DATA]]=\"\",\"\",TEXT(TB_Consolidado[[#This Row],[DATA]],\"mmmm\"))","v":"January"},{"$f":"IF(TB_Consolidado[[#This Row],[Nome Mês]]=\"\",\"\",YEAR(TB_Consolidado[[#This Row],[DATA]]))","v":2025}]
[null,null,"2025-01-07","Receita","Bar","Receita de consumo","EVENTO 2","Confirmado",{"v":627,"d":"R$ 627.00"},{"$nulls":6},{"$f":"IF(TB_Consolidado[[#This Row],[DATA]]=\"\",\"\",MONTH(TB_Consolidado[[#This Row],[DATA]]))","v":1},{"$f":"IF(TB_Consolidado[[#This Row],[DATA]]=\"\",\"\",TEXT(TB_Consolidado[[#This Row],[DATA]],\"mmmm\"))","v":"January"},{"$f":"IF(TB_Consolidado[[#This Row],[Nome Mês]]=\"\",\"\",YEAR(TB_Consolidado[[#This Row],[DATA]]))","v":2025}]
[null,null,"2025-12-20","Receita","Bar","Receita de consumo","EVENTO 2","Confirmado",{"v":1577,"d":"R$ 1,577.00"},{"$nulls":6},{"$f":"IF(TB_Consolidado[[#This Row],[DATA]]=\"\",\"\",MONTH(TB_Consolidado[[#This Row],[DATA]]))","v":12},{"$f":"IF(TB_Consolidado[[#This Row],[DATA]]=\"\",\"\",TEXT(TB_Consolidado[[#This Row],[DATA]],\"mmmm\"))","v":"December"},{"$f":"IF(TB_Consolidado[[#This Row],[Nome Mês]]=\"\",\"\",YEAR(TB_Consolidado[[#This Row],[DATA]]))","v":2025}]
[null,null,"2025-03-21","Receita","Bar","Receita de consumo","EVENTO 4","Confirmado",{"v":328,"d":"R$ 328.00"},{"$nulls":6},{"$f":"IF(TB_Consolidado[[#This Row],[DATA]]=\"\",\"\",MONTH(TB_Consolidado[[#This Row],[DATA]]))","v":3},{"$f":"IF(TB_Consolidado[[#This Row],[DATA]]=\"\",\"\",TEXT(TB_Consolidado[[#This Row],[DATA]],\"mmmm\"))","v":"March"},{"$f":"IF(TB_Consolidado[[#This Row],[Nome Mês]]=\"\",\"\",YEAR(TB_Consolidado[[#This Row],[DATA]]))","v":2025}]
[null,null,"2025-10-02","Receita","Patrocinio","Receita externa","EVENTO 3","Agendado",{"v":1062,"d":"R$ 1,062.00"},{"$nulls":6},{"$f":"IF(TB_Consolidado[[#This Row],[DATA]]=\"\",\"\",MONTH(TB_Consolidado[[#This Row],[DATA]]))","v":10},{"$f":"IF(TB_Consolidado[[#This Row],[DATA]]=\"\",\"\",TEXT(TB_Consolidado[[#This Row],[DATA]],\"mmmm\"))","v":"October"},{"$f":"IF(TB_Consolidado[[#This Row],[Nome Mês]]=\"\",\"\",YEAR(TB_Consolidado[[#This Row],[DATA]]))","v":2025}]
[null,null,"2025-09-06","Receita","Patrocinio","Receita externa","EVENTO 4","Confirmado",{"v":820,"d":"R$ 820.00"},{"$nulls":6},{"$f":"IF(TB_Consolidado[[#This Row],[DATA]]=\"\",\"\",MONTH(TB_Consolidado[[#This Row],[DATA]]))","v":9},{"$f":"IF(TB_Consolidado[[#This Row],[DATA]]=\"\",\"\",TEXT(TB_Consolidado[[#This Row],[DATA]],\"mmmm\"))","v":"September"},{"$f":"IF(TB_Consolidado[[#This Row],[Nome Mês]]=\"\",\"\",YEAR(TB_Consolidado[[#This Row],[DATA]]))","v":2025}]
[null,null,"2025-09-17","Receita","Bar","Receita de consumo","EVENTO 2","Confirmado",{"v":411,"d":"R$ 411.00"},{"$nulls":6},{"$f":"IF(TB_Consolidado[[#This Row],[DATA]]=\"\",\"\",MONTH(TB_Consolidado[[#This Row],[DATA]]))","v":9},{"$f":"IF(TB_Consolidado[[#This Row],[DATA]]=\"\",\"\",TEXT(TB_Consolidado[[#This Row],[DATA]],\"mmmm\"))","v":"September"},{"$f":"IF(TB_Consolidado[[#This Row],[Nome Mês]]=\"\",\"\",YEAR(TB_Consolidado[[#This Row],[DATA]]))","v":2025}]
[null,null,"2025-10-26","Receita","Bilheteria","Presença do público","EVENTO 2","Confirmado",{"v":666,"d":"R$ 666.00"},{"$nulls":6},{"$f":"IF(TB_Consolidado[[#This Row],[DATA]]=\"\",\"\",MONTH(TB_Consolidado[[#This Row],[DATA]]))","v":10},{"$f":"IF(TB_Consolidado[[#This Row],[DATA]]=\"\",\"\",TEXT(TB_Consolidado[[#This Row],[DATA]],\"mmmm\"))","v":"October"},{"$f":"IF(TB_Consolidado[[#This Row],[Nome Mês]]=\"\",\"\",YEAR(TB_Consolidado[[#This Row],[DATA]]))","v":2025}]
[null,null,"2025-09-15","Receita","Patrocinio","Receita externa","EVENTO 1","Confirmado",{"v":1017,"d":"R$ 1,017.00"},{"$nulls":6},{"$f":"IF(TB_Consolidado[[#This Row],[DATA]]=\"\",\"\",MONTH(TB_Consolidado[[#This Row],[DATA]]))","v":9},{"$f":"IF(TB_Consolidado[[#This Row],[DATA]]=\"\",\"\",TEXT(TB_Consolidado[[#This Row],[DATA]],\"mmmm\"))","v":"September"},{"$f":"IF(TB_Consolidado[[#This Row],[Nome Mês]]=\"\",\"\",YEAR(TB_Consolidado[[#This Row],[DATA]]))","v":2025}]
[null,null,"2025-10-27","Receita","Patrocinio","Receita externa","EVENTO 5","Confirmado",{"v":1234,"d":"R$ 1,234.00"},{"$nulls":6},{"$f":"IF(TB_Consolidado[[#This Row],[DATA]]=\"\",\"\",MONTH(TB_Consolidado[[#This Row],[DATA]]))","v":10},{"$f":"IF(TB_Consolidado[[#This Row],[DATA]]=\"\",\"\",TEXT(TB_Consolidado[[#This Row],[DATA]],\"mmmm\"))","v":"October"},{"$f":"IF(TB_Consolidado[[#This Row],[Nome Mês]]=\"\",\"\",YEAR(TB_Consolidado[[#This Row],[DATA]]))","v":2025}]
[null,null,"2025-11-28","Receita","Bar","Receita de consumo","EVENTO 1","Confirmado",{"v":794,"d":"R$ 794.00"},{"$nulls":6},{"$f":"IF(TB_Consolidado[[#This Row],[DATA]]=\"\",\"\",MONTH(TB_Consolidado[[#This Row],[DATA]]))","v":11},{"$f":"IF(TB_Consolidado[[#This Row],[DATA]]=\"\",\"\",TEXT(TB_Consolidado[[#This Row],[DATA]],\"mmmm\"))","v":"November"},{"$f":"IF(TB_Consolidado[[#This Row],[Nome Mês]]=\"\",\"\",YEAR(TB_Consolidado[[#This Row],[DATA]]))","v":2025}]
[null,null,"2025-11-22","Receita","Patrocinio","Receita externa","EVENTO 5","Confirmado",{"v":1247,"d":"R$ 1,247.00"},{"$nulls":6},{"$f":"IF(TB_Consolidado[[#This Row],[DATA]]=\"\",\"\",MONTH(TB_Consolidado[[#This Row],[DATA]]))","v":11},{"$f":"IF(TB_Consolidado[[#This Row],[DATA]]=\"\",\"\",TEXT(TB_Consolidado[[#This Row],[DATA]],\"mmmm\"))","v":"November"},{"$f":"IF(TB_Consolidado[[#This Row],[Nome Mês]]=\"\",\"\",YEAR(TB_Consolidado[[#This Row],[DATA]]))","v":2025}]
[null,null,"2025-10-04","Receita","Patrocinio","Receita externa","EVENTO 4","Confirmado",{"v":757,"d":"R$ 757.00"},{"$nulls":6},{"$f":"IF(TB_Consolidado[[#This Row],[DATA]]=\"\",\"\",MONTH(TB_Consolidado[[#This Row],[DATA]]))","v":10},{"$f":"IF(TB_Consolidado[[#This Row],[DATA]]=\"\",\"\",TEXT(TB_Consolidado[[#This Row],[DATA]],\"mmmm\"))","v":"October"},{"$f":"IF(TB_Consolidado[[#This Row],[Nome Mês]]=\"\",\"\",YEAR(TB_Consolidado[[#This Row],[DATA]]))","v":2025}]
[null,null,"2025-10-01","Receita","Bilheteria","Presença do público","GERAL","Confirmado",{"v":739,"d":"R$ 739.00"},{"$nulls":6},{"$f":"IF(TB_Consolidado[[#This Row],[DATA]]=\"\",\"\",MONTH(TB_Consolidado[[#This Row],[DATA]]))","v":10},{"$f":"IF(TB_Consolidado[[#This Row],[DATA]]=\"\",\"\",TEXT(TB_Consolidado[[#This Row],[DATA]],\"mmmm\"))","v":"October"},{"$f":"IF(TB_Consolidado[[#This Row],[Nome Mês]]=\"\",\"\",YEAR(TB_Consolidado[[#This Row],[DATA]]))","v":2025}]
[null,null,"2025-07-28","Receita","Bar","Receita de consumo","EVENTO 5","Confirmado",{"v":1480,"d":"R$ 1,480.00"},{"$nulls":6},{"$f":"IF(TB_Consolidado[[#This Row],[DATA]]=\"\",\"\",MONTH(TB_Consolidado[[#This Row],[DATA]]))","v":7},{"$f":"IF(TB_Consolidado[[#This Row],[DATA]]=\"\",\"\",TEXT(TB_Consolidado[[#This Row],[DATA]],\"mmmm\"))","v":"July"},{"$f":"IF(TB_Consolidado[[#This Row],[Nome Mês]]=\"\",\"\",YEAR(TB_Consolidado[[#This Row],[DATA]]))","v":2025}]
[null,null,"2025-03-06","Receita","Bilheteria","Presença do público","EVENTO 5","Confirmado",{"v":1504,"d":"R$ 1,504.00"},{"$nulls":6},{"$f":"IF(TB_Consolidado[[#This Row],[DATA]]=\"\",\"\",MONTH(TB_Consolidado[[#This Row],[DATA]]))","v":3},{"$f":"IF(TB_Consolidado[[#This Row],[DATA]]=\"\",\"\",TEXT(TB_Consolidado[[#This Row],[DATA]],\"mmmm\"))","v":"March"},{"$f":"IF(TB_Consolidado[[#This Row],[Nome Mês]]=\"\",\"\",YEAR(TB_Consolidado[[#This Row],[DATA]]))","v":2025}]
[null,null,"2025-06-24","Receita","Patrocinio","Receita externa","EVENTO 4","Confirmado",{"v":1389,"d":"R$ 1,389.00"},{"$nulls":6},{"$f":"IF(TB_Consolidado[[#This Row],[DATA]]=\"\",\"\",MONTH(TB_Consolidado[[#This Row],[DATA]]))","v":6},{"$f":"IF(TB_Consolidado[[#This Row],[DATA]]=\"\",\"\",TEXT(TB_Consolidado[[#This Row],[DATA]],\"mmmm\"))","v":"June"},{"$f":"IF(TB_Consolidado[[#This Row],[Nome Mês]]=\"\",\"\",YEAR(TB_Consolidado[[#This Row],[DATA]]))","v":2025}]
[null,null,"2025-01-15","Receita","Bilheteria","Presença do público","EVENTO 1","Confirmado",{"v":824,"d":"R$ 824.00"},{"$nulls":6},{"$f":"IF(TB_Consolidado[[#This Row],[DATA]]=\"\",\"\",MONTH(TB_Consolidado[[#This Row],[DATA]]))","v":1},{"$f":"IF(TB_Consolidado[[#This Row],[DATA]]=\"\",\"\",TEXT(TB_Consolidado[[#This Row],[DATA]],\"mmmm\"))","v":"January"},{"$f":"IF(TB_Consolidado[[#This Row],[Nome Mês]]=\"\",\"\",YEAR(TB_Consolidado[[#This Row],[DATA]]))","v":2025}]
[null,null,"2025-12-14","Receita","Bar","Receita de consumo","EVENTO 1","Confirmado",{"v":342,"d":"R$ 342.00"},{"$nulls":6},{"$f":"IF(TB_Consolidado[[#This Row],[DATA]]=\"\",\"\",MONTH(TB_Consolidado[[#This Row],[DATA]]))","v":12},{"$f":"IF(TB_Consolidado[[#This Row],[DATA]]=\"\",\"\",TEXT(TB_Consolidado[[#This Row],[DATA]],\"mmmm\"))","v":"December"},{"$f":"IF(TB_Consolidado[[#This Row],[Nome Mês]]=\"\",\"\",YEAR(TB_Consolidado[[#This Row],[DATA]]))","v":2025}]
[null,null,"2025-05-21","Receita","Bilheteria","Presença do público","EVENTO 4","Confirmado",{"v":324,"d":"R$ 324.00"},{"$nulls":6},{"$f":"IF(TB_Consolidado[[#This Row],[DATA]]=\"\",\"\",MONTH(TB_Consolidado[[#This Row],[DATA]]))","v":5},{"$f":"IF(TB_Consolidado[[#This Row],[DATA]]=\"\",\"\",TEXT(TB_Consolidado[[#This Row],[DATA]],\"mmmm\"))","v":"May"},{"$f":"IF(TB_Consolidado[[#This Row],[Nome Mês]]=\"\",\"\",YEAR(TB_Consolidado[[#This Row],[DATA]]))","v":2025}]
[null,null,"2025-09-05","Receita","Patrocinio","Receita externa","EVENTO 3","Confirmado",{"v":451,"d":"R$ 451.00"},{"$nulls":6},{"$f":"IF(TB_Consolidado[[#This Row],[DATA]]=\"\",\"\",MONTH(TB_Consolidado[[#This Row],[DATA]]))","v":9},{"$f":"IF(TB_Consolidado[[#This Row],[DATA]]=\"\",\"\",TEXT(TB_Consolidado[[#This Row],[DATA]],\"mmmm\"))","v":"September"},{"$f":"IF(TB_Consolidado[[#This Row],[Nome Mês]]=\"\",\"\",YEAR(TB_Consolidado[[#This Row],[DATA]]))","v":2025}]
[null,null,"2025-11-11","Receita","Bilheteria","Presença do público","EVENTO 5","Confirmado",{"v":1188,"d":"R$ 1,188.00"},{"$nulls":6},{"$f":"IF(TB_Consolidado[[#This Row],[DATA]]=\"\",\"\",MONTH(TB_Consolidado[[#This Row],[DATA]]))","v":11},{"$f":"IF(TB_Consolidado[[#This Row],[DATA]]=\"\",\"\",TEXT(TB_Consolidado[[#This Row],[DATA]],\"mmmm\"))","v":"November"},{"$f":"IF(TB_Consolidado[[#This Row],[Nome Mês]]=\"\",\"\",YEAR(TB_Consolidado[[#This Row],[DATA]]))","v":2025}]
[null,null,"2025-08-19","Receita","Bar","Receita de consumo","EVENTO 5","Confirmado",{"v":783,"d":"R$ 783.00"},{"$nulls":6},{"$f":"IF(TB_Consolidado[[#This Row],[DATA]]=\"\",\"\",MONTH(TB_Consolidado[[#This Row],[DATA]]))","v":8},{"$f":"IF(TB_Consolidado[[#This Row],[DATA]]=\"\",\"\",TEXT(TB_Consolidado[[#This Row],[DATA]],\"mmmm\"))","v":"August"},{"$f":"IF(TB_Consolidado[[#This Row],[Nome Mês]]=\"\",\"\",YEAR(TB_Consolidado[[#This Row],[DATA]]))","v":2025}]
[null,null,"2025-02-20","Receita","Bar","Receita de consumo","EVENTO 5","Confirmado",{"v":635,"d":"R$ 635.00"},{"$nulls":6},{"$f":"IF(TB_Consolidado[[#This Row],[DATA]]=\"\",\"\",MONTH(TB_Consolidado[[#This Row],[DATA]]))","v":2},{"$f":"IF(TB_Consolidado[[#This Row],[DATA]]=\"\",\"\",TEXT(TB_Consolidado[[#This Row],[DATA]],\"mmmm\"))","v":"February"},{"$f":"IF(TB_Consolidado[[#This Row],[Nome Mês]]=\"\",\"\",YEAR(TB_Consolidado[[#This Row],[DATA]]))","v":2025}]
[null,null,"2025-04-28","Receita","Bar","Receita de consumo","EVENTO 4","Confirmado",{"v":1718,"d":"R$ 1,718.00"},{"$nulls":6},{"$f":"IF(TB_Consolidado[[#This Row],[DATA]]=\"\",\"\",MONTH(TB_Consolidado[[#This Row],[DATA]]))","v":4},{"$f":"IF(TB_Consolidado[[#This Row],[DATA]]=\"\",\"\",TEXT(TB_Consolidado[[#This Row],[DATA]],\"mmmm\"))","v":"April"},{"$f":"IF(TB_Consolidado[[#This Row],[Nome Mês]]=\"\",\"\",YEAR(TB_Consolidado[[#This Row],[DATA]]))","v":2025}]
[null,null,"2025-03-13","Receita","Bilheteria","Presença do público","EVENTO 5","Confirmado",{"v":1723,"d":"R$ 1,723.00"},{"$nulls":6},{"$f":"IF(TB_Consolidado[[#This Row],[DATA]]=\"\",\"\",MONTH(TB_Consolidado[[#This Row],[DATA]]))","v":3},{"$f":"IF(TB_Consolidado[[#This Row],[DATA]]=\"\",\"\",TEXT(TB_Consolidado[[#This Row],[DATA]],\"mmmm\"))","v":"March"},{"$f":"IF(TB_Consolidado[[#This Row],[Nome Mês]]=\"\",\"\",YEAR(TB_Consolidado[[#This Row],[DATA]]))","v":2025}]
[null,null,"2025-11-09","Receita","Bar","Receita de consumo","EVENTO 1","Confirmado",{"v":1048,"d":"R$ 1,048.00"},{"$nulls":6},{"$f":"IF(TB_Consolidado[[#This Row],[DATA]]=\"\",\"\",MONTH(TB_Consolidado[[#This Row],[DATA]]))","v":11},{"$f":"IF(TB_Consolidado[[#This Row],[DATA]]=\"\",\"\",TEXT(TB_Consolidado[[#This Row],[DATA]],\"mmmm\"))","v":"November"},{"$f":"IF(TB_Consolidado[[#This Row],[Nome Mês]]=\"\",\"\",YEAR(TB_Consolidado[[#This Row],[DATA]]))","v":2025}]
[null,null,"2025-08-09","Receita","Bilheteria","Presença do público","EVENTO 5","Confirmado",{"v":1601,"d":"R$ 1,601.00"},{"$nulls":6},{"$f":"IF(TB_Consolidado[[#This Row],[DATA]]=\"\",\"\",MONTH(TB_Consolidado[[#This Row],[DATA]]))","v":8},{"$f":"IF(TB_Consolidado[[#This Row],[DATA]]=\"\",\"\",TEXT(TB_Consolidado[[#This Row],[DATA]],\"mmmm\"))","v":"August"},{"$f":"IF(TB_Consolidado[[#This Row],[Nome Mês]]=\"\",\"\",YEAR(TB_Consolidado[[#This Row],[DATA]]))","v":2025}]
[null,null,"2025-11-10","Receita","Bilheteria","Presença do público","EVENTO 5","Confirmado",{"v":1428,"d":"R$ 1,428.00"},{"$nulls":6},{"$f":"IF(TB_Consolidado[[#This Row],[DATA]]=\"\",\"\",MONTH(TB_Consolidado[[#This Row],[DATA]]))","v":11},{"$f":"IF(TB_Consolidado[[#This Row],[DATA]]=\"\",\"\",TEXT(TB_Consolidado[[#This Row],[DATA]],\"mmmm\"))","v":"November"},{"$f":"IF(TB_Consolidado[[#This Row],[Nome Mês]]=\"\",\"\",YEAR(TB_Consolidado[[#This Row],[DATA]]))","v":2025}]
[null,null,"2025-03-01","Receita","Bar","Receita de consumo","EVENTO 2","Confirmado",{"v":1632,"d":"R$ 1,632.00"},{"$nulls":6},{"$f":"IF(TB_Consolidado[[#This Row],[DATA]]=\"\",\"\",MONTH(TB_Consolidado[[#This Row],[DATA]]))","v":3},{"$f":"IF(TB_Consolidado[[#This Row],[DATA]]=\"\",\"\",TEXT(TB_Consolidado[[#This Row],[DATA]],\"mmmm\"))","v":"March"},{"$f":"IF(TB_Consolidado[[#This Row],[Nome Mês]]=\"\",\"\",YEAR(TB_Consolidado[[#This Row],[DATA]]))","v":2025}]
[null,null,"2025-09-27","Receita","Patrocinio","Receita externa","EVENTO 5","Confirmado",{"v":1409,"d":"R$ 1,409.00"},{"$nulls":6},{"$f":"IF(TB_Consolidado[[#This Row],[DATA]]=\"\",\"\",MONTH(TB_Consolidado[[#This Row],[DATA]]))","v":9},{"$f":"IF(TB_Consolidado[[#This Row],[DATA]]=\"\",\"\",TEXT(TB_Consolidado[[#This Row],[DATA]],\"mmmm\"))","v":"September"},{"$f":"IF(TB_Consolidado[[#This Row],[Nome Mês]]=\"\",\"\",YEAR(TB_Consolidado[[#This Row],[DATA]]))","v":2025}]
[null,null,"2025-06-06","Receita","Bilheteria","Presença do público","EVENTO 1","Confirmado",{"v":352,"d":"R$ 352.00"},{"$nulls":6},{"$f":"IF(TB_Consolidado[[#This Row],[DATA]]=\"\",\"\",MONTH(TB_Consolidado[[#This Row],[DATA]]))","v":6},{"$f":"IF(TB_Consolidado[[#This Row],[DATA]]=\"\",\"\",TEXT(TB_Consolidado[[#This Row],[DATA]],\"mmmm\"))","v":"June"},{"$f":"IF(TB_Consolidado[[#This Row],[Nome Mês]]=\"\",\"\",YEAR(TB_Consolidado[[#This Row],[DATA]]))","v":2025}]
[null,null,"2025-01-10","Receita","Bar","Receita de consumo","EVENTO 3","Cancelado",{"v":1482,"d":"R$ 1,482.00"},{"$nulls":6},{"$f":"IF(TB_Consolidado[[#This Row],[DATA]]=\"\",\"\",MONTH(TB_Consolidado[[#This Row],[DATA]]))","v":1},{"$f":"IF(TB_Consolidado[[#This Row],[DATA]]=\"\",\"\",TEXT(TB_Consolidado[[#This Row],[DATA]],\"mmmm\"))","v":"January"},{"$f":"IF(TB_Consolidado[[#This Row],[Nome Mês]]=\"\",\"\",YEAR(TB_Consolidado[[#This Row],[DATA]]))","v":2025}]
[null,null,"2025-06-13","Receita","Bar","Receita de consumo","EVENTO 1","Confirmado",{"v":676,"d":"R$ 676.00"},{"$nulls":6},{"$f":"IF(TB_Consolidado[[#This Row],[DATA]]=\"\",\"\",MONTH(TB_Consolidado[[#This Row],[DATA]]))","v":6},{"$f":"IF(TB_Consolidado[[#This Row],[DATA]]=\"\",\"\",TEXT(TB_Consolidado[[#This Row],[DATA]],\"mmmm\"))","v":"June"},{"$f":"IF(TB_Consolidado[[#This Row],[Nome Mês]]=\"\",\"\",YEAR(TB_Consolidado[[#This Row],[DATA]]))","v":2025}]
[null,null,"2025-11-08","Receita","Patrocinio","Receita externa","EVENTO 2","Confirmado",{"v":1722,"d":"R$ 1,722.00"},{"$nulls":6},{"$f":"IF(TB_Consolidado[[#This Row],[DATA]]=\"\",\"\",MONTH(TB_Consolidado[[#This Row],[DATA]]))","v":11},{"$f":"IF(TB_Consolidado[[#This Row],[DATA]]=\"\",\"\",TEXT(TB_Consolidado[[#This Row],[DATA]],\"mmmm\"))","v":"November"},{"$f":"IF(TB_Consolidado[[#This Row],[Nome Mês]]=\"\",\"\",YEAR(TB_Consolidado[[#This Row],[DATA]]))","v":2025}]
[null,null,"2025-04-13","Receita","Patrocinio","Receita externa","EVENTO 1","Confirmado",{"v":579,"d":"R$ 579.00"},{"$nulls":6},{"$f":"IF(TB_Consolidado[[#This Row],[DATA]]=\"\",\"\",MONTH(TB_Consolidado[[#This Row],[DATA]]))","v":4},{"$f":"IF(TB_Consolidado[[#This Row],[DATA]]=\"\",\"\",TEXT(TB_Consolidado[[#This Row],[DATA]],\"mmmm\"))","v":"April"},{"$f":"IF(TB_Consolidado[[#This Row],[Nome Mês]]=\"\",\"\",YEAR(TB_Consolidado[[#This Row],[DATA]]))","v":2025}]
[null,null,"2025-09-19","Receita","Bilheteria","Presença do público","EVENTO 4","Agendado",{"v":755,"d":"R$ 755.00"},{"$nulls":6},{"$f":"IF(TB_Consolidado[[#This Row],[DATA]]=\"\",\"\",MONTH(TB_Consolidado[[#This Row],[DATA]]))","v":9},{"$f":"IF(TB_Consolidado[[#This Row],[DATA]]=\"\",\"\",TEXT(TB_Consolidado[[#This Row],[DATA]],\"mmmm\"))","v":"September"},{"$f":"IF(TB_Consolidado[[#This Row],[Nome Mês]]=\"\",\"\",YEAR(TB_Consolidado[[#This Row],[DATA]]))","v":2025}]
[null,null,"2025-06-26","Receita","Patrocinio","Receita externa","EVENTO 2","Confirmado",{"v":628,"d":"R$ 628.00"},{"$nulls":6},{"$f":"IF(TB_Consolidado[[#This Row],[DATA]]=\"\",\"\",MONTH(TB_Consolidado[[#This Row],[DATA]]))","v":6},{"$f":"IF(TB_Consolidado[[#This Row],[DATA]]=\"\",\"\",TEXT(TB_Consolidado[[#This Row],[DATA]],\"mmmm\"))","v":"June"},{"$f":"IF(TB_Consolidado[[#This Row],[Nome Mês]]=\"\",\"\",YEAR(TB_Consolidado[[#This Row],[DATA]]))","v":2025}]
[null,null,"2025-06-18","Receita","Bar","Receita de consumo","EVENTO 2","Confirmado",{"v":1870,"d":"R$ 1,870.00"},{"$nulls":6},{"$f":"IF(TB_Consolidado[[#This Row],[DATA]]=\"\",\"\",MONTH(TB_Consolidado[[#This Row],[DATA]]))","v":6},{"$f":"IF(TB_Consolidado[[#This Row],[DATA]]=\"\",\"\",TEXT(TB_Consolidado[[#This Row],[DATA]],\"mmmm\"))","v":"June"},{"$f":"IF(TB_Consolidado[[#This Row],[Nome Mês]]=\"\",\"\",YEAR(TB_Consolidado[[#This Row],[DATA]]))","v":2025}]
[null,null,"2025-03-11","Receita","Patrocinio","Receita externa","EVENTO 2","Confirmado",{"v":1850,"d":"R$ 1,850.00"},{"$nulls":6},{"$f":"IF(TB_Consolidado[[#This Row],[DATA]]=\"\",\"\",MONTH(TB_Consolidado[[#This Row],[DATA]]))","v":3},{"$f":"IF(TB_Consolidado[[#This Row],[DATA]]=\"\",\"\",TEXT(TB_Consolidado[[#This Row],[DATA]],\"mmmm\"))","v":"March"},{"$f":"IF(TB_Consolidado[[#This Row],[Nome Mês]]=\"\",\"\",YEAR(TB_Consolidado[[#This Row],[DATA]]))","v":2025}]
[null,null,"2025-02-08","Receita","Patrocinio","Receita externa","EVENTO 5","Confirmado",{"v":1197,"d":"R$ 1,197.00"},{"$nulls":6},{"$f":"IF(TB_Consolidado[[#This Row],[DATA]]=\"\",\"\",MONTH(TB_Consolidado[[#This Row],[DATA]]))","v":2},{"$f":"IF(TB_Consolidado[[#This Row],[DATA]]=\"\",\"\",TEXT(TB_Consolidado[[#This Row],[DATA]],\"mmmm\"))","v":"February"},{"$f":"IF(TB_Consolidado[[#This Row],[Nome Mês]]=\"\",\"\",YEAR(TB_Consolidado[[#This Row],[DATA]]))","v":2025}]
[null,null,"2025-10-03","Receita","Patrocinio","Receita externa","EVENTO 4","Confirmado",{"v":1907,"d":"R$ 1,907.00"},{"$nulls":6},{"$f":"IF(TB_Consolidado[[#This Row],[DATA]]=\"\",\"\",MONTH(TB_Consolidado[[#This Row],[DATA]]))","v":10},{"$f":"IF(TB_Consolidado[[#This Row],[DATA]]=\"\",\"\",TEXT(TB_Consolidado[[#This Row],[DATA]],\"mmmm\"))","v":"October"},{"$f":"IF(TB_Consolidado[[#This Row],[Nome Mês]]=\"\",\"\",YEAR(TB_Consolidado[[#This Row],[DATA]]))","v":2025}]
[null,null,"2025-02-16","Receita","Bar","Receita de consumo","GERAL","Confirmado",{"v":1413,"d":"R$ 1,413.00"},{"$nulls":6},{"$f":"IF(TB_Consolidado[[#This Row],[DATA]]=\"\",\"\",MONTH(TB_Consolidado[[#This Row],[DATA]]))","v":2},{"$f":"IF(TB_Consolidado[[#This Row],[DATA]]=\"\",\"\",TEXT(TB_Consolidado[[#This Row],[DATA]],\"mmmm\"))","v":"February"},{"$f":"IF(TB_Consolidado[[#This Row],[Nome Mês]]=\"\",\"\",YEAR(TB_Consolidado[[#This Row],[DATA]]))","v":2025}]
[null,null,"2025-07-13","Receita","Bar","Receita de consumo","EVENTO 4","Confirmado",{"v":436,"d":"R$ 436.00"},{"$nulls":6},{"$f":"IF(TB_Consolidado[[#This Row],[DATA]]=\"\",\"\",MONTH(TB_Consolidado[[#This Row],[DATA]]))","v":7},{"$f":"IF(TB_Consolidado[[#This Row],[DATA]]=\"\",\"\",TEXT(TB_Consolidado[[#This Row],[DATA]],\"mmmm\"))","v":"July"},{"$f":"IF(TB_Consolidado[[#This Row],[Nome Mês]]=\"\",\"\",YEAR(TB_Consolidado[[#This Row],[DATA]]))","v":2025}]
[null,null,"2025-10-15","Receita","Patrocinio","Receita externa","EVENTO 2","Confirmado",{"v":573,"d":"R$ 573.00"},{"$nulls":6},{"$f":"IF(TB_Consolidado[[#This Row],[DATA]]=\"\",\"\",MONTH(TB_Consolidado[[#This Row],[DATA]]))","v":10},{"$f":"IF(TB_Consolidado[[#This Row],[DATA]]=\"\",\"\",TEXT(TB_Consolidado[[#This Row],[DATA]],\"mmmm\"))","v":"October"},{"$f":"IF(TB_Consolidado[[#This Row],[Nome Mês]]=\"\",\"\",YEAR(TB_Consolidado[[#This Row],[DATA]]))","v":2025}]
[null,null,"2025-05-12","Receita","Bilheteria","Presença do público","EVENTO 3","Confirmado",{"v":1236,"d":"R$ 1,236.00"},{"$nulls":6},{"$f":"IF(TB_Consolidado[[#This Row],[DATA]]=\"\",\"\",MONTH(TB_Consolidado[[#This Row],[DATA]]))","v":5},{"$f":"IF(TB_Consolidado[[#This Row],[DATA]]=\"\",\"\",TEXT(TB_Consolidado[[#This Row],[DATA]],\"mmmm\"))","v":"May"},{"$f":"IF(TB_Consolidado[[#This Row],[Nome Mês]]=\"\",\"\",YEAR(TB_Consolidado[[#This Row],[DATA]]))","v":2025}]
[null,null,"2025-03-18","Receita","Patrocinio","Receita externa","EVENTO 5","Confirmado",{"v":609,"d":"R$ 609.00"},{"$nulls":6},{"$f":"IF(TB_Consolidado[[#This Row],[DATA]]=\"\",\"\",MONTH(TB_Consolidado[[#This Row],[DATA]]))","v":3},{"$f":"IF(TB_Consolidado[[#This Row],[DATA]]=\"\",\"\",TEXT(TB_Consolidado[[#This Row],[DATA]],\"mmmm\"))","v":"March"},{"$f":"IF(TB_Consolidado[[#This Row],[Nome Mês]]=\"\",\"\",YEAR(TB_Consolidado[[#This Row],[DATA]]))","v":2025}]
[null,null,"2025-11-25","Receita","Bar","Receita de consumo","EVENTO 3","Confirmado",{"v":1849,"d":"R$ 1,849.00"},{"$nulls":6},{"$f":"IF(TB_Consolidado[[#This Row],[DATA]]=\"\",\"\",MONTH(TB_Consolidado[[#This Row],[DATA]]))","v":11},{"$f":"IF(TB_Consolidado[[#This Row],[DATA]]=\"\",\"\",TEXT(TB_Consolidado[[#This Row],[DATA]],\"mmmm\"))","v":"November"},{"$f":"IF(TB_Consolidado[[#This Row],[Nome Mês]]=\"\",\"\",YEAR(TB_Consolidado[[#This Row],[DATA]]))","v":2025}]
[null,null,"2025-11-03","Receita","Bar","Receita de consumo","EVENTO 3","Confirmado",{"v":501,"d":"R$ 501.00"},{"$nulls":6},{"$f":"IF(TB_Consolidado[[#This Row],[DATA]]=\"\",\"\",MONTH(TB_Consolidado[[#This Row],[DATA]]))","v":11},{"$f":"IF(TB_Consolidado[[#This Row],[DATA]]=\"\",\"\",TEXT(TB_Consolidado[[#This Row],[DATA]],\"mmmm\"))","v":"November"},{"$f":"IF(TB_Consolidado[[#This Row],[Nome Mês]]=\"\",\"\",YEAR(TB_Consolidado[[#This Row],[DATA]]))","v":2025}]
[null,null,"2025-06-25","Receita","Bilheteria","Presença do público","EVENTO 4","Confirmado",{"v":865,"d":"R$ 865.00"},{"$nulls":6},{"$f":"IF(TB_Consolidado[[#This Row],[DATA]]=\"\",\"\",MONTH(TB_Consolidado[[#This Row],[DATA]]))","v":6},{"$f":"IF(TB_Consolidado[[#This Row],[DATA]]=\"\",\"\",TEXT(TB_Consolidado[[#This Row],[DATA]],\"mmmm\"))","v":"June"},{"$f":"IF(TB_Consolidado[[#This Row],[Nome Mês]]=\"\",\"\",YEAR(TB_Consolidado[[#This Row],[DATA]]))","v":2025}]
[null,null,"2025-05-10","Receita","Bar","Receita de consumo","GERAL","Confirmado",{"v":1615,"d":"R$ 1,615.00"},{"$nulls":6},{"$f":"IF(TB_Consolidado[[#This Row],[DATA]]=\"\",\"\",MONTH(TB_Consolidado[[#This Row],[DATA]]))","v":5},{"$f":"IF(TB_Consolidado[[#This Row],[DATA]]=\"\",\"\",TEXT(TB_Consolidado[[#This Row],[DATA]],\"mmmm\"))","v":"May"},{"$f":"IF(TB_Consolidado[[#This Row],[Nome Mês]]=\"\",\"\",YEAR(TB_Consolidado[[#This Row],[DATA]]))","v":2025}]
[null,null,"2025-07-04","Receita","Patrocinio","Receita externa","EVENTO 3","Confirmado",{"v":1565,"d":"R$ 1,565.00"},{"$nulls":6},{"$f":"IF(TB_Consolidado[[#This Row],[DATA]]=\"\",\"\",MONTH(TB_Consolidado[[#This Row],[DATA]]))","v":7},{"$f":"IF(TB_Consolidado[[#This Row],[DATA]]=\"\",\"\",TEXT(TB_Consolidado[[#This Row],[DATA]],\"mmmm\"))","v":"July"},{"$f":"IF(TB_Consolidado[[#This Row],[Nome Mês]]=\"\",\"\",YEAR(TB_Consolidado[[#This Row],[DATA]]))","v":2025}]
[null,null,"2025-03-27","Receita","Bilheteria","Presença do público","EVENTO 4","Confirmado",{"v":1599,"d":"R$ 1,599.00"},{"$nulls":6},{"$f":"IF(TB_Consolidado[[#This Row],[DATA]]=\"\",\"\",MONTH(TB_Consolidado[[#This Row],[DATA]]))","v":3},{"$f":"IF(TB_Consolidado[[#This Row],[DATA]]=\"\",\"\",TEXT(TB_Consolidado[[#This Row],[DATA]],\"mmmm\"))","v":"March"},{"$f":"IF(TB_Consolidado[[#This Row],[Nome Mês]]=\"\",\"\",YEAR(TB_Consolidado[[#This Row],[DATA]]))","v":2025}]
[null,null,"2025-08-22","Receita","Bilheteria","Presença do público","EVENTO 5","Confirmado",{"v":535,"d":"R$ 535.00"},{"$nulls":6},{"$f":"IF(TB_Consolidado[[#This Row],[DATA]]=\"\",\"\",MONTH(TB_Consolidado[[#This Row],[DATA]]))","v":8},{"$f":"IF(TB_Consolidado[[#This Row],[DATA]]=\"\",\"\",TEXT(TB_Consolidado[[#This Row],[DATA]],\"mmmm\"))","v":"August"},{"$f":"IF(TB_Consolidado[[#This Row],[Nome Mês]]=\"\",\"\",YEAR(TB_Consolidado[[#This Row],[DATA]]))","v":2025}]
[null,null,"2025-09-04","Receita","Bar","Receita de consumo","EVENTO 4","Confirmado",{"v":1000,"d":"R$ 1,000.00"},{"$nulls":6},{"$f":"IF(TB_Consolidado[[#This Row],[DATA]]=\"\",\"\",MONTH(TB_Consolidado[[#This Row],[DATA]]))","v":9},{"$f":"IF(TB_Consolidado[[#This Row],[DATA]]=\"\",\"\",TEXT(TB_Consolidado[[#This Row],[DATA]],\"mmmm\"))","v":"September"},{"$f":"IF(TB_Consolidado[[#This Row],[Nome Mês]]=\"\",\"\",YEAR(TB_Consolidado[[#This Row],[DATA]]))","v":2025}]
[null,null,"2025-09-10","Receita","Patrocinio","Receita externa","EVENTO 1","Confirmado",{"v":1279,"d":"R$ 1,279.00"},{"$nulls":6},{"$f":"IF(TB_Consolidado[[#This Row],[DATA]]=\"\",\"\",MONTH(TB_Consolidado[[#This Row],[DATA]]))","v":9},{"$f":"IF(TB_Consolidado[[#This Row],[DATA]]=\"\",\"\",TEXT(TB_Consolidado[[#This Row],[DATA]],\"mmmm\"))","v":"September"},{"$f":"IF(TB_Consolidado[[#This Row],[Nome Mês]]=\"\",\"\",YEAR(TB_Consolidado[[#This Row],[DATA]]))","v":2025}]
[null,null,"2025-06-03","Receita","Bilheteria","Presença do público","EVENTO 1","Confirmado",{"v":419,"d":"R$ 419.00"},{"$nulls":6},{"$f":"IF(TB_Consolidado[[#This Row],[DATA]]=\"\",\"\",MONTH(TB_Consolidado[[#This Row],[DATA]]))","v":6},{"$f":"IF(TB_Consolidado[[#This Row],[DATA]]=\"\",\"\",TEXT(TB_Consolidado[[#This Row],[DATA]],\"mmmm\"))","v":"June"},{"$f":"IF(TB_Consolidado[[#This Row],[Nome Mês]]=\"\",\"\",YEAR(TB_Consolidado[[#This Row],[DATA]]))","v":2025}]
[null,null,"2025-10-06","Receita","Bilheteria","Presença do público","EVENTO 4","Confirmado",{"v":379,"d":"R$ 379.00"},{"$nulls":6},{"$f":"IF(TB_Consolidado[[#This Row],[DATA]]=\"\",\"\",MONTH(TB_Consolidado[[#This Row],[DATA]]))","v":10},{"$f":"IF(TB_Consolidado[[#This Row],[DATA]]=\"\",\"\",TEXT(TB_Consolidado[[#This Row],[DATA]],\"mmmm\"))","v":"October"},{"$f":"IF(TB_Consolidado[[#This Row],[Nome Mês]]=\"\",\"\",YEAR(TB_Consolidado[[#This Row],[DATA]]))","v":2025}]
[null,null,"2025-02-01","Receita","Bilheteria","Presença do público","EVENTO 4","Confirmado",{"v":525,"d":"R$ 525.00"},{"$nulls":6},{"$f":"IF(TB_Consolidado[[#This Row],[DATA]]=\"\",\"\",MONTH(TB_Consolidado[[#This Row],[DATA]]))","v":2},{"$f":"IF(TB_Consolidado[[#This Row],[DATA]]=\"\",\"\",TEXT(TB_Consolidado[[#This Row],[DATA]],\"mmmm\"))","v":"February"},{"$f":"IF(TB_Consolidado[[#This Row],[Nome Mês]]=\"\",\"\",YEAR(TB_Consolidado[[#This Row],[DATA]]))","v":2025}]
[null,null,"2025-07-02","Receita","Bar","Receita de consumo","EVENTO 3","Confirmado",{"v":663,"d":"R$ 663.00"},{"$nulls":6},{"$f":"IF(TB_Consolidado[[#This Row],[DATA]]=\"\",\"\",MONTH(TB_Consolidado[[#This Row],[DATA]]))","v":7},{"$f":"IF(TB_Consolidado[[#This Row],[DATA]]=\"\",\"\",TEXT(TB_Consolidado[[#This Row],[DATA]],\"mmmm\"))","v":"July"},{"$f":"IF(TB_Consolidado[[#This Row],[Nome Mês]]=\"\",\"\",YEAR(TB_Consolidado[[#This Row],[DATA]]))","v":2025}]
[null,null,"2025-09-06","Receita","Patrocinio","Receita externa","EVENTO 5","Confirmado",{"v":930,"d":"R$ 930.00"},{"$nulls":6},{"$f":"IF(TB_Consolidado[[#This Row],[DATA]]=\"\",\"\",MONTH(TB_Consolidado[[#This Row],[DATA]]))","v":9},{"$f":"IF(TB_Consolidado[[#This Row],[DATA]]=\"\",\"\",TEXT(TB_Consolidado[[#This Row],[DATA]],\"mmmm\"))","v":"September"},{"$f":"IF(TB_Consolidado[[#This Row],[Nome Mês]]=\"\",\"\",YEAR(TB_Consolidado[[#This Row],[DATA]]))","v":2025}]
[null,null,"2025-01-17","Receita","Bilheteria","Presença do público","GERAL","Confirmado",{"v":1183,"d":"R$ 1,183.00"},{"$nulls":6},{"$f":"IF(TB_Consolidado[[#This Row],[DATA]]=\"\",\"\",MONTH(TB_Consolidado[[#This Row],[DATA]]))","v":1},{"$f":"IF(TB_Consolidado[[#This Row],[DATA]]=\"\",\"\",TEXT(TB_Consolidado[[#This Row],[DATA]],\"mmmm\"))","v":"January"},{"$f":"IF(TB_Consolidado[[#This Row],[Nome Mês]]=\"\",\"\",YEAR(TB_Consolidado[[#This Row],[DATA]]))","v":2025}]
[null,null,"2025-06-17","Receita","Bilheteria","Presença do público","GERAL","Confirmado",{"v":876,"d":"R$ 876.00"},{"$nulls":6},{"$f":"IF(TB_Consolidado[[#This Row],[DATA]]=\"\",\"\",MONTH(TB_Consolidado[[#This Row],[DATA]]))","v":6},{"$f":"IF(TB_Consolidado[[#This Row],[DATA]]=\"\",\"\",TEXT(TB_Consolidado[[#This Row],[DATA]],\"mmmm\"))","v":"June"},{"$f":"IF(TB_Consolidado[[#This Row],[Nome Mês]]=\"\",\"\",YEAR(TB_Consolidado[[#This Row],[DATA]]))","v":2025}]
[null,null,"2025-06-10","Receita","Bilheteria","Presença do público","EVENTO 2","Confirmado",{"v":1863,"d":"R$ 1,863.00"},{"$nulls":6},{"$f":"IF(TB_Consolidado[[#This Row],[DATA]]=\"\",\"\",MONTH(TB_Consolidado[[#This Row],[DATA]]))","v":6},{"$f":"IF(TB_Consolidado[[#This Row],[DATA]]=\"\",\"\",TEXT(TB_Consolidado[[#This Row],[DATA]],\"mmmm\"))","v":"June"},{"$f":"IF(TB_Consolidado[[#This Row],[Nome Mês]]=\"\",\"\",YEAR(TB_Consolidado[[#This Row],[DATA]]))","v":2025}]
[null,null,"2025-01-26","Receita","Bar","Receita de consumo","EVENTO 3","Cancelado",{"v":574,"d":"R$ 574.00"},{"$nulls":6},{"$f":"IF(TB_Consolidado[[#This Row],[DATA]]=\"\",\"\",MONTH(TB_Consolidado[[#This Row],[DATA]]))","v":1},{"$f":"IF(TB_Consolidado[[#This Row],[DATA]]=\"\",\"\",TEXT(TB_Consolidado[[#This Row],[DATA]],\"mmmm\"))","v":"January"},{"$f":"IF(TB_Consolidado[[#This Row],[Nome Mês]]=\"\",\"\",YEAR(TB_Consolidado[[#This Row],[DATA]]))","v":2025}]
[null,null,"2025-08-01","Receita","Patrocinio","Receita externa","EVENTO 5","Confirmado",{"v":652,"d":"R$ 652.00"},{"$nulls":6},{"$f":"IF(TB_Consolidado[[#This Row],[DATA]]=\"\",\"\",MONTH(TB_Consolidado[[#This Row],[DATA]]))","v":8},{"$f":"IF(TB_Consolidado[[#This Row],[DATA]]=\"\",\"\",TEXT(TB_Consolidado[[#This Row],[DATA]],\"mmmm\"))","v":"August"},{"$f":"IF(TB_Consolidado[[#This Row],[Nome Mês]]=\"\",\"\",YEAR(TB_Consolidado[[#This Row],[DATA]]))","v":2025}]
[null,null,"2025-07-13","Receita","Bilheteria","Presença do público","EVENTO 3","Confirmado",{"v":702,"d":"R$ 702.00"},{"$nulls":6},{"$f":"IF(TB_Consolidado[[#This Row],[DATA]]=\"\",\"\",MONTH(TB_Consolidado[[#This Row],[DATA]]))","v":7},{"$f":"IF(TB_Consolidado[[#This Row],[DATA]]=\"\",\"\",TEXT(TB_Consolidado[[#This Row],[DATA]],\"mmmm\"))","v":"July"},{"$f":"IF(TB_Consolidado[[#This Row],[Nome Mês]]=\"\",\"\",YEAR(TB_Consolidado[[#This Row],[DATA]]))","v":2025}]
[null,null,"2025-08-14","Receita","Bar","Receita de consumo","EVENTO 2","Confirmado",{"v":1227,"d":"R$ 1,227.00"},{"$nulls":6},{"$f":"IF(TB_Consolidado[[#This Row],[DATA]]=\"\",\"\",MONTH(TB_Consolidado[[#This Row],[DATA]]))","v":8},{"$f":"IF(TB_Consolidado[[#This Row],[DATA]]=\"\",\"\",TEXT(TB_Consolidado[[#This Row],[DATA]],\"mmmm\"))","v":"August"},{"$f":"IF(TB_Consolidado[[#This Row],[Nome Mês]]=\"\",\"\",YEAR(TB_Consolidado[[#This Row],[DATA]]))","v":2025}]
[null,null,"2025-11-22","Receita","Bilheteria","Presença do público","EVENTO 5","Agendado",{"v":1046,"d":"R$ 1,046.00"},{"$nulls":6},{"$f":"IF(TB_Consolidado[[#This Row],[DATA]]=\"\",\"\",MONTH(TB_Consolidado[[#This Row],[DATA]]))","v":11},{"$f":"IF(TB_Consolidado[[#This Row],[DATA]]=\"\",\"\",TEXT(TB_Consolidado[[#This Row],[DATA]],\"mmmm\"))","v":"November"},{"$f":"IF(TB_Consolidado[[#This Row],[Nome Mês]]=\"\",\"\",YEAR(TB_Consolidado[[#This Row],[DATA]]))","v":2025}]
[null,null,"2025-05-11","Receita","Bar","Receita de consumo","EVENTO 4","Confirmado",{"v":501,"d":"R$ 501.00"},{"$nulls":6},{"$f":"IF(TB_Consolidado[[#This Row],[DATA]]=\"\",\"\",MONTH(TB_Consolidado[[#This Row],[DATA]]))","v":5},{"$f":"IF(TB_Consolidado[[#This Row],[DATA]]=\"\",\"\",TEXT(TB_Consolidado[[#This Row],[DATA]],\"mmmm\"))","v":"May"},{"$f":"IF(TB_Consolidado[[#This Row],[Nome Mês]]=\"\",\"\",YEAR(TB_Consolidado[[#This Row],[DATA]]))","v":2025}]
[null,null,"2025-01-03","Receita","Bar","Receita de consumo","EVENTO 3","Confirmado",{"v":593,"d":"R$ 593.00"},{"$nulls":6},{"$f":"IF(TB_Consolidado[[#This Row],[DATA]]=\"\",\"\",MONTH(TB_Consolidado[[#This Row],[DATA]]))","v":1},{"$f":"IF(TB_Consolidado[[#This Row],[DATA]]=\"\",\"\",TEXT(TB_Consolidado[[#This Row],[DATA]],\"mmmm\"))","v":"January"},{"$f":"IF(TB_Consolidado[[#This Row],[Nome Mês]]=\"\",\"\",YEAR(TB_Consolidado[[#This Row],[DATA]]))","v":2025}]
[null,null,"2025-03-11","Receita","Bilheteria","Presença do público","GERAL","Confirmado",{"v":548,"d":"R$ 548.00"},{"$nulls":6},{"$f":"IF(TB_Consolidado[[#This Row],[DATA]]=\"\",\"\",MONTH(TB_Consolidado[[#This Row],[DATA]]))","v":3},{"$f":"IF(TB_Consolidado[[#This Row],[DATA]]=\"\",\"\",TEXT(TB_Consolidado[[#This Row],[DATA]],\"mmmm\"))","v":"March"},{"$f":"IF(TB_Consolidado[[#This Row],[Nome Mês]]=\"\",\"\",YEAR(TB_Consolidado[[#This Row],[DATA]]))","v":2025}]
[null,null,"2025-06-28","Receita","Bilheteria","Presença do público","EVENTO 1","Confirmado",{"v":650,"d":"R$ 650.00"},{"$nulls":6},{"$f":"IF(TB_Consolidado[[#This Row],[DATA]]=\"\",\"\",MONTH(TB_Consolidado[[#This Row],[DATA]]))","v":6},{"$f":"IF(TB_Consolidado[[#This Row],[DATA]]=\"\",\"\",TEXT(TB_Consolidado[[#This Row],[DATA]],\"mmmm\"))","v":"June"},{"$f":"IF(TB_Consolidado[[#This Row],[Nome Mês]]=\"\",\"\",YEAR(TB_Consolidado[[#This Row],[DATA]]))","v":2025}]
[null,null,"2025-03-20","Receita","Bar","Receita de consumo","EVENTO 3","Confirmado",{"v":599,"d":"R$ 599.00"},{"$nulls":6},{"$f":"IF(TB_Consolidado[[#This Row],[DATA]]=\"\",\"\",MONTH(TB_Consolidado[[#This Row],[DATA]]))","v":3},{"$f":"IF(TB_Consolidado[[#This Row],[DATA]]=\"\",\"\",TEXT(TB_Consolidado[[#This Row],[DATA]],\"mmmm\"))","v":"March"},{"$f":"IF(TB_Consolidado[[#This Row],[Nome Mês]]=\"\",\"\",YEAR(TB_Consolidado[[#This Row],[DATA]]))","v":2025}]
[null,null,"2025-08-23","Receita","Bilheteria","Presença do público","EVENTO 1","Confirmado",{"v":903,"d":"R$ 903.00"},{"$nulls":6},{"$f":"IF(TB_Consolidado[[#This Row],[DATA]]=\"\",\"\",MONTH(TB_Consolidado[[#This Row],[DATA]]))","v":8},{"$f":"IF(TB_Consolidado[[#This Row],[DATA]]=\"\",\"\",TEXT(TB_Consolidado[[#This Row],[DATA]],\"mmmm\"))","v":"August"},{"$f":"IF(TB_Consolidado[[#This Row],[Nome Mês]]=\"\",\"\",YEAR(TB_Consolidado[[#This Row],[DATA]]))","v":2025}]
[null,null,"2025-09-09","Receita","Patrocinio","Receita externa","EVENTO 2","Confirmado",{"v":858,"d":"R$ 858.00"},{"$nulls":6},{"$f":"IF(TB_Consolidado[[#This Row],[DATA]]=\"\",\"\",MONTH(TB_Consolidado[[#This Row],[DATA]]))","v":9},{"$f":"IF(TB_Consolidado[[#This Row],[DATA]]=\"\",\"\",TEXT(TB_Consolidado[[#This Row],[DATA]],\"mmmm\"))","v":"September"},{"$f":"IF(TB_Consolidado[[#This Row],[Nome Mês]]=\"\",\"\",YEAR(TB_Consolidado[[#This Row],[DATA]]))","v":2025}]
[null,null,"2025-07-05","Receita","Bilheteria","Presença do público","EVENTO 5","Confirmado",{"v":1496,"d":"R$ 1,496.00"},{"$nulls":6},{"$f":"IF(TB_Consolidado[[#This Row],[DATA]]=\"\",\"\",MONTH(TB_Consolidado[[#This Row],[DATA]]))","v":7},{"$f":"IF(TB_Consolidado[[#This Row],[DATA]]=\"\",\"\",TEXT(TB_Consolidado[[#This Row],[DATA]],\"mmmm\"))","v":"July"},{"$f":"IF(TB_Consolidado[[#This Row],[Nome Mês]]=\"\",\"\",YEAR(TB_Consolidado[[#This Row],[DATA]]))","v":2025}]
[null,null,"2025-11-07","Receita","Patrocinio","Receita externa","GERAL","Confirmado",{"v":1865,"d":"R$ 1,865.00"},{"$nulls":6},{"$f":"IF(TB_Consolidado[[#This Row],[DATA]]=\"\",\"\",MONTH(TB_Consolidado[[#This Row],[DATA]]))","v":11},{"$f":"IF(TB_Consolidado[[#This Row],[DATA]]=\"\",\"\",TEXT(TB_Consolidado[[#This Row],[DATA]],\"mmmm\"))","v":"November"},{"$f":"IF(TB_Consolidado[[#This Row],[Nome Mês]]=\"\",\"\",YEAR(TB_Consolidado[[#This Row],[DATA]]))","v":2025}]
[null,null,"2025-12-18","Receita","Bar","Receita de consumo","EVENTO 3","Confirmado",{"v":1139,"d":"R$ 1,139.00"},{"$nulls":6},{"$f":"IF(TB_Consolidado[[#This Row],[DATA]]=\"\",\"\",MONTH(TB_Consolidado[[#This Row],[DATA]]))","v":12},{"$f":"IF(TB_Consolidado[[#This Row],[DATA]]=\"\",\"\",TEXT(TB_Consolidado[[#This Row],[DATA]],\"mmmm\"))","v":"December"},{"$f":"IF(TB_Consolidado[[#This Row],[Nome Mês]]=\"\",\"\",YEAR(TB_Consolidado[[#This Row],[DATA]]))","v":2025}]
[null,null,"2025-06-10","Receita","Bilheteria","Presença do público","EVENTO 5","Confirmado",{"v":1535,"d":"R$ 1,535.00"},{"$nulls":6},{"$f":"IF(TB_Consolidado[[#This Row],[DATA]]=\"\",\"\",MONTH(TB_Consolidado[[#This Row],[DATA]]))","v":6},{"$f":"IF(TB_Consolidado[[#This Row],[DATA]]=\"\",\"\",TEXT(TB_Consolidado[[#This Row],[DATA]],\"mmmm\"))","v":"June"},{"$f":"IF(TB_Consolidado[[#This Row],[Nome Mês]]=\"\",\"\",YEAR(TB_Consolidado[[#This Row],[DATA]]))","v":2025}]
[null,null,"2025-06-12","Receita","Bar","Receita de consumo","EVENTO 5","Confirmado",{"v":1707,"d":"R$ 1,707.00"},{"$nulls":6},{"$f":"IF(TB_Consolidado[[#This Row],[DATA]]=\"\",\"\",MONTH(TB_Consolidado[[#This Row],[DATA]]))","v":6},{"$f":"IF(TB_Consolidado[[#This Row],[DATA]]=\"\",\"\",TEXT(TB_Consolidado[[#This Row],[DATA]],\"mmmm\"))","v":"June"},{"$f":"IF(TB_Consolidado[[#This Row],[Nome Mês]]=\"\",\"\",YEAR(TB_Consolidado[[#This Row],[DATA]]))","v":2025}]
[null,null,"2025-08-15","Receita","Patrocinio","Receita externa","EVENTO 5","Confirmado",{"v":404,"d":"R$ 404.00"},{"$nulls":6},{"$f":"IF(TB_Consolidado[[#This Row],[DATA]]=\"\",\"\",MONTH(TB_Consolidado[[#This Row],[DATA]]))","v":8},{"$f":"IF(TB_Consolidado[[#This Row],[DATA]]=\"\",\"\",TEXT(TB_Consolidado[[#This Row],[DATA]],\"mmmm\"))","v":"August"},{"$f":"IF(TB_Consolidado[[#This Row],[Nome Mês]]=\"\",\"\",YEAR(TB_Consolidado[[#This Row],[DATA]]))","v":2025}]
[null,null,"2025-06-22","Receita","Bar","Receita de consumo","EVENTO 1","Confirmado",{"v":934,"d":"R$ 934.00"},{"$nulls":6},{"$f":"IF(TB_Consolidado[[#This Row],[DATA]]=\"\",\"\",MONTH(TB_Consolidado[[#This Row],[DATA]]))","v":6},{"$f":"IF(TB_Consolidado[[#This Row],[DATA]]=\"\",\"\",TEXT(TB_Consolidado[[#This Row],[DATA]],\"mmmm\"))","v":"June"},{"$f":"IF(TB_Consolidado[[#This Row],[Nome Mês]]=\"\",\"\",YEAR(TB_Consolidado[[#This Row],[DATA]]))","v":2025}]
[null,null,"2025-04-03","Receita","Bar","Receita de consumo","EVENTO 2","Confirmado",{"v":1708,"d":"R$ 1,708.00"},{"$nulls":6},{"$f":"IF(TB_Consolidado[[#This Row],[DATA]]=\"\",\"\",MONTH(TB_Consolidado[[#This Row],[DATA]]))","v":4},{"$f":"IF(TB_Consolidado[[#This Row],[DATA]]=\"\",\"\",TEXT(TB_Consolidado[[#This Row],[DATA]],\"mmmm\"))","v":"April"},{"$f":"IF(TB_Consolidado[[#This Row],[Nome Mês]]=\"\",\"\",YEAR(TB_Consolidado[[#This Row],[DATA]]))","v":2025}]
[null,null,"2025-11-26","Receita","Bar","Receita de consumo","EVENTO 4","Confirmado",{"v":816,"d":"R$ 816.00"},{"$nulls":6},{"$f":"IF(TB_Consolidado[[#This Row],[DATA]]=\"\",\"\",MONTH(TB_Consolidado[[#This Row],[DATA]]))","v":11},{"$f":"IF(TB_Consolidado[[#This Row],[DATA]]=\"\",\"\",TEXT(TB_Consolidado[[#This Row],[DATA]],\"mmmm\"))","v":"November"},{"$f":"IF(TB_Consolidado[[#This Row],[Nome Mês]]=\"\",\"\",YEAR(TB_Consolidado[[#This Row],[DATA]]))","v":2025}]
[null,null,"2025-08-19","Receita","Bilheteria","Presença do público","GERAL","Confirmado",{"v":1821,"d":"R$ 1,821.00"},{"$nulls":6},{"$f":"IF(TB_Consolidado[[#This Row],[DATA]]=\"\",\"\",MONTH(TB_Consolidado[[#This Row],[DATA]]))","v":8},{"$f":"IF(TB_Consolidado[[#This Row],[DATA]]=\"\",\"\",TEXT(TB_Consolidado[[#This Row],[DATA]],\"mmmm\"))","v":"August"},{"$f":"IF(TB_Consolidado[[#This Row],[Nome Mês]]=\"\",\"\",YEAR(TB_Consolidado[[#This Row],[DATA]]))","v":2025}]
[null,null,"2025-04-13","Receita","Bilheteria","Presença do público","GERAL","Confirmado",{"v":1364,"d":"R$ 1,364.00"},{"$nulls":6},{"$f":"IF(TB_Consolidado[[#This Row],[DATA]]=\"\",\"\",MONTH(TB_Consolidado[[#This Row],[DATA]]))","v":4},{"$f":"IF(TB_Consolidado[[#This Row],[DATA]]=\"\",\"\",TEXT(TB_Consolidado[[#This Row],[DATA]],\"mmmm\"))","v":"April"},{"$f":"IF(TB_Consolidado[[#This Row],[Nome Mês]]=\"\",\"\",YEAR(TB_Consolidado[[#This Row],[DATA]]))","v":2025}]
[null,null,"2025-02-02","Receita","Bilheteria","Presença do público","EVENTO 3","Confirmado",{"v":424,"d":"R$ 424.00"},{"$nulls":6},{"$f":"IF(TB_Consolidado[[#This Row],[DATA]]=\"\",\"\",MONTH(TB_Consolidado[[#This Row],[DATA]]))","v":2},{"$f":"IF(TB_Consolidado[[#This Row],[DATA]]=\"\",\"\",TEXT(TB_Consolidado[[#This Row],[DATA]],\"mmmm\"))","v":"February"},{"$f":"IF(TB_Consolidado[[#This Row],[Nome Mês]]=\"\",\"\",YEAR(TB_Consolidado[[#This Row],[DATA]]))","v":2025}]
[null,null,"2025-09-04","Receita","Bilheteria","Presença do público","EVENTO 3","Confirmado",{"v":701,"d":"R$ 701.00"},{"$nulls":6},{"$f":"IF(TB_Consolidado[[#This Row],[DATA]]=\"\",\"\",MONTH(TB_Consolidado[[#This Row],[DATA]]))","v":9},{"$f":"IF(TB_Consolidado[[#This Row],[DATA]]=\"\",\"\",TEXT(TB_Consolidado[[#This Row],[DATA]],\"mmmm\"))","v":"September"},{"$f":"IF(TB_Consolidado[[#This Row],[Nome Mês]]=\"\",\"\",YEAR(TB_Consolidado[[#This Row],[DATA]]))","v":2025}]
[null,null,"2025-08-20","Receita","Patrocinio","Receita externa","EVENTO 1","Confirmado",{"v":1836,"d":"R$ 1,836.00"},{"$nulls":6},{"$f":"IF(TB_Consolidado[[#This Row],[DATA]]=\"\",\"\",MONTH(TB_Consolidado[[#This Row],[DATA]]))","v":8},{"$f":"IF(TB_Consolidado[[#This Row],[DATA]]=\"\",\"\",TEXT(TB_Consolidado[[#This Row],[DATA]],\"mmmm\"))","v":"August"},{"$f":"IF(TB_Consolidado[[#This Row],[Nome Mês]]=\"\",\"\",YEAR(TB_Consolidado[[#This Row],[DATA]]))","v":2025}]
[null,null,"2025-03-07","Receita","Patrocinio","Receita externa","EVENTO 1","Confirmado",{"v":438,"d":"R$ 438.00"},{"$nulls":6},{"$f":"IF(TB_Consolidado[[#This Row],[DATA]]=\"\",\"\",MONTH(TB_Consolidado[[#This Row],[DATA]]))","v":3},{"$f":"IF(TB_Consolidado[[#This Row],[DATA]]=\"\",\"\",TEXT(TB_Consolidado[[#This Row],[DATA]],\"mmmm\"))","v":"March"},{"$f":"IF(TB_Consolidado[[#This Row],[Nome Mês]]=\"\",\"\",YEAR(TB_Consolidado[[#This Row],[DATA]]))","v":2025}]
[null,null,"2025-03-20","Receita","Bar","Receita de consumo","EVENTO 1","Confirmado",{"v":1711,"d":"R$ 1,711.00"},{"$nulls":6},{"$f":"IF(TB_Consolidado[[#This Row],[DATA]]=\"\",\"\",MONTH(TB_Consolidado[[#This Row],[DATA]]))","v":3},{"$f":"IF(TB_Consolidado[[#This Row],[DATA]]=\"\",\"\",TEXT(TB_Consolidado[[#This Row],[DATA]],\"mmmm\"))","v":"March"},{"$f":"IF(TB_Consolidado[[#This Row],[Nome Mês]]=\"\",\"\",YEAR(TB_Consolidado[[#This Row],[DATA]]))","v":2025}]
[null,null,"2025-08-22","Receita","Bilheteria","Presença do público","EVENTO 2","Confirmado",{"v":1269,"d":"R$ 1,269.00"},{"$nulls":6},{"$f":"IF(TB_Consolidado[[#This Row],[DATA]]=\"\",\"\",MONTH(TB_Consolidado[[#This Row],[DATA]]))","v":8},{"$f":"IF(TB_Consolidado[[#This Row],[DATA]]=\"\",\"\",TEXT(TB_Consolidado[[#This Row],[DATA]],\"mmmm\"))","v":"August"},{"$f":"IF(TB_Consolidado[[#This Row],[Nome Mês]]=\"\",\"\",YEAR(TB_Consolidado[[#This Row],[DATA]]))","v":2025}]
[null,null,"2025-10-17","Receita","Patrocinio","Receita externa","GERAL","Confirmado",{"v":1114,"d":"R$ 1,114.00"},{"$nulls":6},{"$f":"IF(TB_Consolidado[[#This Row],[DATA]]=\"\",\"\",MONTH(TB_Consolidado[[#This Row],[DATA]]))","v":10},{"$f":"IF(TB_Consolidado[[#This Row],[DATA]]=\"\",\"\",TEXT(TB_Consolidado[[#This Row],[DATA]],\"mmmm\"))","v":"October"},{"$f":"IF(TB_Consolidado[[#This Row],[Nome Mês]]=\"\",\"\",YEAR(TB_Consolidado[[#This Row],[DATA]]))","v":2025}]
[null,null,"2025-09-06","Receita","Bar","Receita de consumo","GERAL","Confirmado",{"v":1553,"d":"R$ 1,553.00"},{"$nulls":6},{"$f":"IF(TB_Consolidado[[#This Row],[DATA]]=\"\",\"\",MONTH(TB_Consolidado[[#This Row],[DATA]]))","v":9},{"$f":"IF(TB_Consolidado[[#This Row],[DATA]]=\"\",\"\",TEXT(TB_Consolidado[[#This Row],[DATA]],\"mmmm\"))","v":"September"},{"$f":"IF(TB_Consolidado[[#This Row],[Nome Mês]]=\"\",\"\",YEAR(TB_Consolidado[[#This Row],[DATA]]))","v":2025}]
[null,null,"2025-03-19","Receita","Patrocinio","Receita externa","EVENTO 2","Confirmado",{"v":547,"d":"R$ 547.00"},{"$nulls":6},{"$f":"IF(TB_Consolidado[[#This Row],[DATA]]=\"\",\"\",MONTH(TB_Consolidado[[#This Row],[DATA]]))","v":3},{"$f":"IF(TB_Consolidado[[#This Row],[DATA]]=\"\",\"\",TEXT(TB_Consolidado[[#This Row],[DATA]],\"mmmm\"))","v":"March"},{"$f":"IF(TB_Consolidado[[#This Row],[Nome Mês]]=\"\",\"\",YEAR(TB_Consolidado[[#This Row],[DATA]]))","v":2025}]
[null,null,"2025-10-19","Receita","Patrocinio","Receita externa","EVENTO 5","Cancelado",{"v":680,"d":"R$ 680.00"},{"$nulls":6},{"$f":"IF(TB_Consolidado[[#This Row],[DATA]]=\"\",\"\",MONTH(TB_Consolidado[[#This Row],[DATA]]))","v":10},{"$f":"IF(TB_Consolidado[[#This Row],[DATA]]=\"\",\"\",TEXT(TB_Consolidado[[#This Row],[DATA]],\"mmmm\"))","v":"October"},{"$f":"IF(TB_Consolidado[[#This Row],[Nome Mês]]=\"\",\"\",YEAR(TB_Consolidado[[#This Row],[DATA]]))","v":2025}]
[null,null,"2025-01-22","Receita","Patrocinio","Receita externa","EVENTO 2","Confirmado",{"v":1879,"d":"R$ 1,879.00"},{"$nulls":6},{"$f":"IF(TB_Consolidado[[#This Row],[DATA]]=\"\",\"\",MONTH(TB_Consolidado[[#This Row],[DATA]]))","v":1},{"$f":"IF(TB_Consolidado[[#This Row],[DATA]]=\"\",\"\",TEXT(TB_Consolidado[[#This Row],[DATA]],\"mmmm\"))","v":"January"},{"$f":"IF(TB_Consolidado[[#This Row],[Nome Mês]]=\"\",\"\",YEAR(TB_Consolidado[[#This Row],[DATA]]))","v":2025}]
[null,null,"2025-03-02","Receita","Bar","Receita de consumo","EVENTO 2","Confirmado",{"v":333,"d":"R$ 333.00"},{"$nulls":6},{"$f":"IF(TB_Consolidado[[#This Row],[DATA]]=\"\",\"\",MONTH(TB_Consolidado[[#This Row],[DATA]]))","v":3},{"$f":"IF(TB_Consolidado[[#This Row],[DATA]]=\"\",\"\",TEXT(TB_Consolidado[[#This Row],[DATA]],\"mmmm\"))","v":"March"},{"$f":"IF(TB_Consolidado[[#This Row],[Nome Mês]]=\"\",\"\",YEAR(TB_Consolidado[[#This Row],[DATA]]))","v":2025}]
[null,null,"2025-07-23","Receita","Patrocinio","Receita externa","EVENTO 2","Confirmado",{"v":1443,"d":"R$ 1,443.00"},{"$nulls":6},{"$f":"IF(TB_Consolidado[[#This Row],[DATA]]=\"\",\"\",MONTH(TB_Consolidado[[#This Row],[DATA]]))","v":7},{"$f":"IF(TB_Consolidado[[#This Row],[DATA]]=\"\",\"\",TEXT(TB_Consolidado[[#This Row],[DATA]],\"mmmm\"))","v":"July"},{"$f":"IF(TB_Consolidado[[#This Row],[Nome Mês]]=\"\",\"\",YEAR(TB_Consolidado[[#This Row],[DATA]]))","v":2025}]
[null,null,"2025-08-15","Receita","Bilheteria","Presença do público","EVENTO 2","Agendado",{"v":1441,"d":"R$ 1,441.00"},{"$nulls":6},{"$f":"IF(TB_Consolidado[[#This Row],[DATA]]=\"\",\"\",MONTH(TB_Consolidado[[#This Row],[DATA]]))","v":8},{"$f":"IF(TB_Consolidado[[#This Row],[DATA]]=\"\",\"\",TEXT(TB_Consolidado[[#This Row],[DATA]],\"mmmm\"))","v":"August"},{"$f":"IF(TB_Consolidado[[#This Row],[Nome Mês]]=\"\",\"\",YEAR(TB_Consolidado[[#This Row],[DATA]]))","v":2025}]
[null,null,"2025-09-13","Receita","Bilheteria","Presença do público","EVENTO 5","Confirmado",{"v":1601,"d":"R$ 1,601.00"},{"$nulls":6},{"$f":"IF(TB_Consolidado[[#This Row],[DATA]]=\"\",\"\",MONTH(TB_Consolidado[[#This Row],[DATA]]))","v":9},{"$f":"IF(TB_Consolidado[[#This Row],[DATA]]=\"\",\"\",TEXT(TB_Consolidado[[#This Row],[DATA]],\"mmmm\"))","v":"September"},{"$f":"IF(TB_Consolidado[[#This Row],[Nome Mês]]=\"\",\"\",YEAR(TB_Consolidado[[#This Row],[DATA]]))","v":2025}]
[null,null,"2025-02-16","Receita","Bar","Receita de consumo","GERAL","Confirmado",{"v":780,"d":"R$ 780.00"},{"$nulls":6},{"$f":"IF(TB_Consolidado[[#This Row],[DATA]]=\"\",\"\",MONTH(TB_Consolidado[[#This Row],[DATA]]))","v":2},{"$f":"IF(TB_Consolidado[[#This Row],[DATA]]=\"\",\"\",TEXT(TB_Consolidado[[#This Row],[DATA]],\"mmmm\"))","v":"February"},{"$f":"IF(TB_Consolidado[[#This Row],[Nome Mês]]=\"\",\"\",YEAR(TB_Consolidado[[#This Row],[DATA]]))","v":2025}]
[null,null,"2025-12-23","Receita","Patrocinio","Receita externa","EVENTO 1","Confirmado",{"v":1578,"d":"R$ 1,578.00"},{"$nulls":6},{"$f":"IF(TB_Consolidado[[#This Row],[DATA]]=\"\",\"\",MONTH(TB_Consolidado[[#This Row],[DATA]]))","v":12},{"$f":"IF(TB_Consolidado[[#This Row],[DATA]]=\"\",\"\",TEXT(TB_Consolidado[[#This Row],[DATA]],\"mmmm\"))","v":"December"},{"$f":"IF(TB_Consolidado[[#This Row],[Nome Mês]]=\"\",\"\",YEAR(TB_Consolidado[[#This Row],[DATA]]))","v":2025}]
[null,null,"2025-03-14","Receita","Bar","Receita de consumo","EVENTO 1","Confirmado",{"v":1373,"d":"R$ 1,373.00"},{"$nulls":6},{"$f":"IF(TB_Consolidado[[#This Row],[DATA]]=\"\",\"\",MONTH(TB_Consolidado[[#This Row],[DATA]]))","v":3},{"$f":"IF(TB_Consolidado[[#This Row],[DATA]]=\"\",\"\",TEXT(TB_Consolidado[[#This Row],[DATA]],\"mmmm\"))","v":"March"},{"$f":"IF(TB_Consolidado[[#This Row],[Nome Mês]]=\"\",\"\",YEAR(TB_Consolidado[[#This Row],[DATA]]))","v":2025}]
[null,null,"2025-08-22","Receita","Bar","Receita de consumo","EVENTO 1","Confirmado",{"v":447,"d":"R$ 447.00"},{"$nulls":6},{"$f":"IF(TB_Consolidado[[#This Row],[DATA]]=\"\",\"\",MONTH(TB_Consolidado[[#This Row],[DATA]]))","v":8},{"$f":"IF(TB_Consolidado[[#This Row],[DATA]]=\"\",\"\",TEXT(TB_Consolidado[[#This Row],[DATA]],\"mmmm\"))","v":"August"},{"$f":"IF(TB_Consolidado[[#This Row],[Nome Mês]]=\"\",\"\",YEAR(TB_Consolidado[[#This Row],[DATA]]))","v":2025}]
[null,null,"2025-01-28","Receita","Patrocinio","Receita externa","EVENTO 5","Confirmado",{"v":1243,"d":"R$ 1,243.00"},{"$nulls":6},{"$f":"IF(TB_Consolidado[[#This Row],[DATA]]=\"\",\"\",MONTH(TB_Consolidado[[#This Row],[DATA]]))","v":1},{"$f":"IF(TB_Consolidado[[#This Row],[DATA]]=\"\",\"\",TEXT(TB_Consolidado[[#This Row],[DATA]],\"mmmm\"))","v":"January"},{"$f":"IF(TB_Consolidado[[#This Row],[Nome Mês]]=\"\",\"\",YEAR(TB_Consolidado[[#This Row],[DATA]]))","v":2025}]
[null,null,"2025-01-17","Receita","Bilheteria","Presença do público","EVENTO 5","Confirmado",{"v":858,"d":"R$ 858.00"},{"$nulls":6},{"$f":"IF(TB_Consolidado[[#This Row],[DATA]]=\"\",\"\",MONTH(TB_Consolidado[[#This Row],[DATA]]))","v":1},{"$f":"IF(TB_Consolidado[[#This Row],[DATA]]=\"\",\"\",TEXT(TB_Consolidado[[#This Row],[DATA]],\"mmmm\"))","v":"January"},{"$f":"IF(TB_Consolidado[[#This Row],[Nome Mês]]=\"\",\"\",YEAR(TB_Consolidado[[#This Row],[DATA]]))","v":2025}]
[null,null,"2025-08-21","Receita","Bar","Receita de consumo","EVENTO 5","Confirmado",{"v":1257,"d":"R$ 1,257.00"},{"$nulls":6},{"$f":"IF(TB_Consolidado[[#This Row],[DATA]]=\"\",\"\",MONTH(TB_Consolidado[[#This Row],[DATA]]))","v":8},{"$f":"IF(TB_Consolidado[[#This Row],[DATA]]=\"\",\"\",TEXT(TB_Consolidado[[#This Row],[DATA]],\"mmmm\"))","v":"August"},{"$f":"IF(TB_Consolidado[[#This Row],[Nome Mês]]=\"\",\"\",YEAR(TB_Consolidado[[#This Row],[DATA]]))","v":2025}]
[null,null,"2025-10-02","Receita","Bilheteria","Presença do público","EVENTO 4","Confirmado",{"v":707,"d":"R$ 707.00"},{"$nulls":6},{"$f":"IF(TB_Consolidado[[#This Row],[DATA]]=\"\",\"\",MONTH(TB_Consolidado[[#This Row],[DATA]]))","v":10},{"$f":"IF(TB_Consolidado[[#This Row],[DATA]]=\"\",\"\",TEXT(TB_Consolidado[[#This Row],[DATA]],\"mmmm\"))","v":"October"},{"$f":"IF(TB_Consolidado[[#This Row],[Nome Mês]]=\"\",\"\",YEAR(TB_Consolidado[[#This Row],[DATA]]))","v":2025}]
[null,null,"2025-06-24","Receita","Bilheteria","Presença do público","EVENTO 5","Confirmado",{"v":348,"d":"R$ 348.00"},{"$nulls":6},{"$f":"IF(TB_Consolidado[[#This Row],[DATA]]=\"\",\"\",MONTH(TB_Consolidado[[#This Row],[DATA]]))","v":6},{"$f":"IF(TB_Consolidado[[#This Row],[DATA]]=\"\",\"\",TEXT(TB_Consolidado[[#This Row],[DATA]],\"mmmm\"))","v":"June"},{"$f":"IF(TB_Consolidado[[#This Row],[Nome Mês]]=\"\",\"\",YEAR(TB_Consolidado[[#This Row],[DATA]]))","v":2025}]
[null,null,"2025-09-08","Receita","Bilheteria","Presença do público","EVENTO 3","Confirmado",{"v":494,"d":"R$ 494.00"},{"$nulls":6},{"$f":"IF(TB_Consolidado[[#This Row],[DATA]]=\"\",\"\",MONTH(TB_Consolidado[[#This Row],[DATA]]))","v":9},{"$f":"IF(TB_Consolidado[[#This Row],[DATA]]=\"\",\"\",TEXT(TB_Consolidado[[#This Row],[DATA]],\"mmmm\"))","v":"September"},{"$f":"IF(TB_Consolidado[[#This Row],[Nome Mês]]=\"\",\"\",YEAR(TB_Consolidado[[#This Row],[DATA]]))","v":2025}]
[null,null,"2025-03-06","Receita","Bilheteria","Presença do público","EVENTO 3","Confirmado",{"v":1988,"d":"R$ 1,988.00"},{"$nulls":6},{"$f":"IF(TB_Consolidado[[#This Row],[DATA]]=\"\",\"\",MONTH(TB_Consolidado[[#This Row],[DATA]]))","v":3},{"$f":"IF(TB_Consolidado[[#This Row],[DATA]]=\"\",\"\",TEXT(TB_Consolidado[[#This Row],[DATA]],\"mmmm\"))","v":"March"},{"$f":"IF(TB_Consolidado[[#This Row],[Nome Mês]]=\"\",\"\",YEAR(TB_Consolidado[[#This Row],[DATA]]))","v":2025}]
[null,null,"2025-06-05","Receita","Bar","Receita de consumo","GERAL","Confirmado",{"v":1271,"d":"R$ 1,271.00"},{"$nulls":6},{"$f":"IF(TB_Consolidado[[#This Row],[DATA]]=\"\",\"\",MONTH(TB_Consolidado[[#This Row],[DATA]]))","v":6},{"$f":"IF(TB_Consolidado[[#This Row],[DATA]]=\"\",\"\",TEXT(TB_Consolidado[[#This Row],[DATA]],\"mmmm\"))","v":"June"},{"$f":"IF(TB_Consolidado[[#This Row],[Nome Mês]]=\"\",\"\",YEAR(TB_Consolidado[[#This Row],[DATA]]))","v":2025}]
[null,null,"2025-06-10","Receita","Bar","Receita de consumo","GERAL","Confirmado",{"v":1820,"d":"R$ 1,820.00"},{"$nulls":6},{"$f":"IF(TB_Consolidado[[#This Row],[DATA]]=\"\",\"\",MONTH(TB_Consolidado[[#This Row],[DATA]]))","v":6},{"$f":"IF(TB_Consolidado[[#This Row],[DATA]]=\"\",\"\",TEXT(TB_Consolidado[[#This Row],[DATA]],\"mmmm\"))","v":"June"},{"$f":"IF(TB_Consolidado[[#This Row],[Nome Mês]]=\"\",\"\",YEAR(TB_Consolidado[[#This Row],[DATA]]))","v":2025}]
[null,null,"2025-01-18","Receita","Patrocinio","Receita externa","EVENTO 3","Confirmado",{"v":1875,"d":"R$ 1,875.00"},{"$nulls":6},{"$f":"IF(TB_Consolidado[[#This Row],[DATA]]=\"\",\"\",MONTH(TB_Consolidado[[#This Row],[DATA]]))","v":1},{"$f":"IF(TB_Consolidado[[#This Row],[DATA]]=\"\",\"\",TEXT(TB_Consolidado[[#This Row],[DATA]],\"mmmm\"))","v":"January"},{"$f":"IF(TB_Consolidado[[#This Row],[Nome Mês]]=\"\",\"\",YEAR(TB_Consolidado[[#This Row],[DATA]]))","v":2025}]
[null,null,"2025-01-20","Receita","Bar","Receita de consumo","GERAL","Confirmado",{"v":1223,"d":"R$ 1,223.00"},{"$nulls":6},{"$f":"IF(TB_Consolidado[[#This Row],[DATA]]=\"\",\"\",MONTH(TB_Consolidado[[#This Row],[DATA]]))","v":1},{"$f":"IF(TB_Consolidado[[#This Row],[DATA]]=\"\",\"\",TEXT(TB_Consolidado[[#This Row],[DATA]],\"mmmm\"))","v":"January"},{"$f":"IF(TB_Consolidado[[#This Row],[Nome Mês]]=\"\",\"\",YEAR(TB_Consolidado[[#This Row],[DATA]]))","v":2025}]
[null,null,"2025-11-19","Receita","Bar","Receita de consumo","GERAL","Confirmado",{"v":806,"d":"R$ 806.00"},{"$nulls":6},{"$f":"IF(TB_Consolidado[[#This Row],[DATA]]=\"\",\"\",MONTH(TB_Consolidado[[#This Row],[DATA]]))","v":11},{"$f":"IF(TB_Consolidado[[#This Row],[DATA]]=\"\",\"\",TEXT(TB_Consolidado[[#This Row],[DATA]],\"mmmm\"))","v":"November"},{"$f":"IF(TB_Consolidado[[#This Row],[Nome Mês]]=\"\",\"\",YEAR(TB_Consolidado[[#This Row],[DATA]]))","v":2025}]
[null,null,"2025-09-18","Receita","Patrocinio","Receita externa","EVENTO 1","Confirmado",{"v":1269,"d":"R$ 1,269.00"},{"$nulls":6},{"$f":"IF(TB_Consolidado[[#This Row],[DATA]]=\"\",\"\",MONTH(TB_Consolidado[[#This Row],[DATA]]))","v":9},{"$f":"IF(TB_Consolidado[[#This Row],[DATA]]=\"\",\"\",TEXT(TB_Consolidado[[#This Row],[DATA]],\"mmmm\"))","v":"September"},{"$f":"IF(TB_Consolidado[[#This Row],[Nome Mês]]=\"\",\"\",YEAR(TB_Consolidado[[#This Row],[DATA]]))","v":2025}]
[null,null,"2025-09-18","Receita","Patrocinio","Receita externa","EVENTO 1","Confirmado",{"v":711,"d":"R$ 711.00"},{"$nulls":6},{"$f":"IF(TB_Consolidado[[#This Row],[DATA]]=\"\",\"\",MONTH(TB_Consolidado[[#This Row],[DATA]]))","v":9},{"$f":"IF(TB_Consolidado[[#This Row],[DATA]]=\"\",\"\",TEXT(TB_Consolidado[[#This Row],[DATA]],\"mmmm\"))","v":"September"},{"$f":"IF(TB_Consolidado[[#This Row],[Nome Mês]]=\"\",\"\",YEAR(TB_Consolidado[[#This Row],[DATA]]))","v":2025}]
[null,null,"2025-07-18","Receita","Bar","Receita de consumo","EVENTO 1","Confirmado",{"v":349,"d":"R$ 349.00"},{"$nulls":6},{"$f":"IF(TB_Consolidado[[#This Row],[DATA]]=\"\",\"\",MONTH(TB_Consolidado[[#This Row],[DATA]]))","v":7},{"$f":"IF(TB_Consolidado[[#This Row],[DATA]]=\"\",\"\",TEXT(TB_Consolidado[[#This Row],[DATA]],\"mmmm\"))","v":"July"},{"$f":"IF(TB_Consolidado[[#This Row],[Nome Mês]]=\"\",\"\",YEAR(TB_Consolidado[[#This Row],[DATA]]))","v":2025}]
[null,null,"2025-06-26","Receita","Patrocinio","Receita externa","EVENTO 2","Confirmado",{"v":472,"d":"R$ 472.00"},{"$nulls":6},{"$f":"IF(TB_Consolidado[[#This Row],[DATA]]=\"\",\"\",MONTH(TB_Consolidado[[#This Row],[DATA]]))","v":6},{"$f":"IF(TB_Consolidado[[#This Row],[DATA]]=\"\",\"\",TEXT(TB_Consolidado[[#This Row],[DATA]],\"mmmm\"))","v":"June"},{"$f":"IF(TB_Consolidado[[#This Row],[Nome Mês]]=\"\",\"\",YEAR(TB_Consolidado[[#This Row],[DATA]]))","v":2025}]
[null,null,"2025-01-02","Receita","Bilheteria","Presença do público","EVENTO 4","Confirmado",{"v":1209,"d":"R$ 1,209.00"},{"$nulls":6},{"$f":"IF(TB_Consolidado[[#This Row],[DATA]]=\"\",\"\",MONTH(TB_Consolidado[[#This Row],[DATA]]))","v":1},{"$f":"IF(TB_Consolidado[[#This Row],[DATA]]=\"\",\"\",TEXT(TB_Consolidado[[#This Row],[DATA]],\"mmmm\"))","v":"January"},{"$f":"IF(TB_Consolidado[[#This Row],[Nome Mês]]=\"\",\"\",YEAR(TB_Consolidado[[#This Row],[DATA]]))","v":2025}]
[null,null,"2025-03-13","Receita","Patrocinio","Receita externa","EVENTO 5","Confirmado",{"v":1296,"d":"R$ 1,296.00"},{"$nulls":6},{"$f":"IF(TB_Consolidado[[#This Row],[DATA]]=\"\",\"\",MONTH(TB_Consolidado[[#This Row],[DATA]]))","v":3},{"$f":"IF(TB_Consolidado[[#This Row],[DATA]]=\"\",\"\",TEXT(TB_Consolidado[[#This Row],[DATA]],\"mmmm\"))","v":"March"},{"$f":"IF(TB_Consolidado[[#This Row],[Nome Mês]]=\"\",\"\",YEAR(TB_Consolidado[[#This Row],[DATA]]))","v":2025}]
[null,null,"2025-11-18","Receita","Bar","Receita de consumo","EVENTO 3","Confirmado",{"v":492,"d":"R$ 492.00"},{"$nulls":6},{"$f":"IF(TB_Consolidado[[#This Row],[DATA]]=\"\",\"\",MONTH(TB_Consolidado[[#This Row],[DATA]]))","v":11},{"$f":"IF(TB_Consolidado[[#This Row],[DATA]]=\"\",\"\",TEXT(TB_Consolidado[[#This Row],[DATA]],\"mmmm\"))","v":"November"},{"$f":"IF(TB_Consolidado[[#This Row],[Nome Mês]]=\"\",\"\",YEAR(TB_Consolidado[[#This Row],[DATA]]))","v":2025}]
[null,null,"2025-04-14","Receita","Bilheteria","Presença do público","EVENTO 5","Confirmado",{"v":893,"d":"R$ 893.00"},{"$nulls":6},{"$f":"IF(TB_Consolidado[[#This Row],[DATA]]=\"\",\"\",MONTH(TB_Consolidado[[#This Row],[DATA]]))","v":4},{"$f":"IF(TB_Consolidado[[#This Row],[DATA]]=\"\",\"\",TEXT(TB_Consolidado[[#This Row],[DATA]],\"mmmm\"))","v":"April"},{"$f":"IF(TB_Consolidado[[#This Row],[Nome Mês]]=\"\",\"\",YEAR(TB_Consolidado[[#This Row],[DATA]]))","v":2025}]
[null,null,"2025-03-05","Receita","Bilheteria","Presença do público","EVENTO 5","Confirmado",{"v":846,"d":"R$ 846.00"},{"$nulls":6},{"$f":"IF(TB_Consolidado[[#This Row],[DATA]]=\"\",\"\",MONTH(TB_Consolidado[[#This Row],[DATA]]))","v":3},{"$f":"IF(TB_Consolidado[[#This Row],[DATA]]=\"\",\"\",TEXT(TB_Consolidado[[#This Row],[DATA]],\"mmmm\"))","v":"March"},{"$f":"IF(TB_Consolidado[[#This Row],[Nome Mês]]=\"\",\"\",YEAR(TB_Consolidado[[#This Row],[DATA]]))","v":2025}]
[null,null,"2025-11-26","Receita","Bar","Receita de consumo","GERAL","Confirmado",{"v":384,"d":"R$ 384.00"},{"$nulls":6},{"$f":"IF(TB_Consolidado[[#This Row],[DATA]]=\"\",\"\",MONTH(TB_Consolidado[[#This Row],[DATA]]))","v":11},{"$f":"IF(TB_Consolidado[[#This Row],[DATA]]=\"\",\"\",TEXT(TB_Consolidado[[#This Row],[DATA]],\"mmmm\"))","v":"November"},{"$f":"IF(TB_Consolidado[[#This Row],[Nome Mês]]=\"\",\"\",YEAR(TB_Consolidado[[#This Row],[DATA]]))","v":2025}]
[null,null,"2025-03-23","Receita","Bar","Receita de consumo","EVENTO 2","Cancelado",{"v":1739,"d":"R$ 1,739.00"},{"$nulls":6},{"$f":"IF(TB_Consolidado[[#This Row],[DATA]]=\"\",\"\",MONTH(TB_Consolidado[[#This Row],[DATA]]))","v":3},{"$f":"IF(TB_Consolidado[[#This Row],[DATA]]=\"\",\"\",TEXT(TB_Consolidado[[#This Row],[DATA]],\"mmmm\"))","v":"March"},{"$f":"IF(TB_Consolidado[[#This Row],[Nome Mês]]=\"\",\"\",YEAR(TB_Consolidado[[#This Row],[DATA]]))","v":2025}]
[null,null,"2025-08-02","Receita","Bar","Receita de consumo","EVENTO 1","Confirmado",{"v":1897,"d":"R$ 1,897.00"},{"$nulls":6},{"$f":"IF(TB_Consolidado[[#This Row],[DATA]]=\"\",\"\",MONTH(TB_Consolidado[[#This Row],[DATA]]))","v":8},{"$f":"IF(TB_Consolidado[[#This Row],[DATA]]=\"\",\"\",TEXT(TB_Consolidado[[#This Row],[DATA]],\"mmmm\"))","v":"August"},{"$f":"IF(TB_Consolidado[[#This Row],[Nome Mês]]=\"\",\"\",YEAR(TB_Consolidado[[#This Row],[DATA]]))","v":2025}]
[null,null,"2025-07-25","Receita","Bilheteria","Presença do público","GERAL","Confirmado",{"v":1511,"d":"R$ 1,511.00"},{"$nulls":6},{"$f":"IF(TB_Consolidado[[#This Row],[DATA]]=\"\",\"\",MONTH(TB_Consolidado[[#This Row],[DATA]]))","v":7},{"$f":"IF(TB_Consolidado[[#This Row],[DATA]]=\"\",\"\",TEXT(TB_Consolidado[[#This Row],[DATA]],\"mmmm\"))","v":"July"},{"$f":"IF(TB_Consolidado[[#This Row],[Nome Mês]]=\"\",\"\",YEAR(TB_Consolidado[[#This Row],[DATA]]))","v":2025}]
[null,null,"2025-11-01","Receita","Bar","Receita de consumo","EVENTO 5","Confirmado",{"v":360,"d":"R$ 360.00"},{"$nulls":6},{"$f":"IF(TB_Consolidado[[#This Row],[DATA]]=\"\",\"\",MONTH(TB_Consolidado[[#This Row],[DATA]]))","v":11},{"$f":"IF(TB_Consolidado[[#This Row],[DATA]]=\"\",\"\",TEXT(TB_Consolidado[[#This Row],[DATA]],\"mmmm\"))","v":"November"},{"$f":"IF(TB_Consolidado[[#This Row],[Nome Mês]]=\"\",\"\",YEAR(TB_Consolidado[[#This Row],[DATA]]))","v":2025}]
[null,null,"2025-10-25","Receita","Bar","Receita de consumo","GERAL","Agendado",{"v":1408,"d":"R$ 1,408.00"},{"$nulls":6},{"$f":"IF(TB_Consolidado[[#This Row],[DATA]]=\"\",\"\",MONTH(TB_Consolidado[[#This Row],[DATA]]))","v":10},{"$f":"IF(TB_Consolidado[[#This Row],[DATA]]=\"\",\"\",TEXT(TB_Consolidado[[#This Row],[DATA]],\"mmmm\"))","v":"October"},{"$f":"IF(TB_Consolidado[[#This Row],[Nome Mês]]=\"\",\"\",YEAR(TB_Consolidado[[#This Row],[DATA]]))","v":2025}]
[null,null,"2025-09-16","Receita","Bar","Receita de consumo","EVENTO 5","Confirmado",{"v":1105,"d":"R$ 1,105.00"},{"$nulls":6},{"$f":"IF(TB_Consolidado[[#This Row],[DATA]]=\"\",\"\",MONTH(TB_Consolidado[[#This Row],[DATA]]))","v":9},{"$f":"IF(TB_Consolidado[[#This Row],[DATA]]=\"\",\"\",TEXT(TB_Consolidado[[#This Row],[DATA]],\"mmmm\"))","v":"September"},{"$f":"IF(TB_Consolidado[[#This Row],[Nome Mês]]=\"\",\"\",YEAR(TB_Consolidado[[#This Row],[DATA]]))","v":2025}]
[null,null,"2025-02-07","Receita","Patrocinio","Receita externa","EVENTO 3","Confirmado",{"v":1523,"d":"R$ 1,523.00"},{"$nulls":6},{"$f":"IF(TB_Consolidado[[#This Row],[DATA]]=\"\",\"\",MONTH(TB_Consolidado[[#This Row],[DATA]]))","v":2},{"$f":"IF(TB_Consolidado[[#This Row],[DATA]]=\"\",\"\",TEXT(TB_Consolidado[[#This Row],[DATA]],\"mmmm\"))","v":"February"},{"$f":"IF(TB_Consolidado[[#This Row],[Nome Mês]]=\"\",\"\",YEAR(TB_Consolidado[[#This Row],[DATA]]))","v":2025}]
[null,null,"2025-11-23","Receita","Bar","Receita de consumo","GERAL","Confirmado",{"v":666,"d":"R$ 666.00"},{"$nulls":6},{"$f":"IF(TB_Consolidado[[#This Row],[DATA]]=\"\",\"\",MONTH(TB_Consolidado[[#This Row],[DATA]]))","v":11},{"$f":"IF(TB_Consolidado[[#This Row],[DATA]]=\"\",\"\",TEXT(TB_Consolidado[[#This Row],[DATA]],\"mmmm\"))","v":"November"},{"$f":"IF(TB_Consolidado[[#This Row],[Nome Mês]]=\"\",\"\",YEAR(TB_Consolidado[[#This Row],[DATA]]))","v":2025}]
[null,null,"2025-02-23","Receita","Bilheteria","Presença do público","EVENTO 1","Confirmado",{"v":1921,"d":"R$ 1,921.00"},{"$nulls":6},{"$f":"IF(TB_Consolidado[[#This Row],[DATA]]=\"\",\"\",MONTH(TB_Consolidado[[#This Row],[DATA]]))","v":2},{"$f":"IF(TB_Consolidado[[#This Row],[DATA]]=\"\",\"\",TEXT(TB_Consolidado[[#This Row],[DATA]],\"mmmm\"))","v":"February"},{"$f":"IF(TB_Consolidado[[#This Row],[Nome Mês]]=\"\",\"\",YEAR(TB_Consolidado[[#This Row],[DATA]]))","v":2025}]
[null,null,"2025-11-27","Receita","Bilheteria","Presença do público","EVENTO 1","Confirmado",{"v":861,"d":"R$ 861.00"},{"$nulls":6},{"$f":"IF(TB_Consolidado[[#This Row],[DATA]]=\"\",\"\",MONTH(TB_Consolidado[[#This Row],[DATA]]))","v":11},{"$f":"IF(TB_Consolidado[[#This Row],[DATA]]=\"\",\"\",TEXT(TB_Consolidado[[#This Row],[DATA]],\"mmmm\"))","v":"November"},{"$f":"IF(TB_Consolidado[[#This Row],[Nome Mês]]=\"\",\"\",YEAR(TB_Consolidado[[#This Row],[DATA]]))","v":2025}]
[null,null,"2025-02-17","Receita","Patrocinio","Receita externa","EVENTO 5","Confirmado",{"v":629,"d":"R$ 629.00"},{"$nulls":6},{"$f":"IF(TB_Consolidado[[#This Row],[DATA]]=\"\",\"\",MONTH(TB_Consolidado[[#This Row],[DATA]]))","v":2},{"$f":"IF(TB_Consolidado[[#This Row],[DATA]]=\"\",\"\",TEXT(TB_Consolidado[[#This Row],[DATA]],\"mmmm\"))","v":"February"},{"$f":"IF(TB_Consolidado[[#This Row],[Nome Mês]]=\"\",\"\",YEAR(TB_Consolidado[[#This Row],[DATA]]))","v":2025}]
[null,null,"2025-12-07","Receita","Bilheteria","Presença do público","EVENTO 1","Confirmado",{"v":1264,"d":"R$ 1,264.00"},{"$nulls":6},{"$f":"IF(TB_Consolidado[[#This Row],[DATA]]=\"\",\"\",MONTH(TB_Consolidado[[#This Row],[DATA]]))","v":12},{"$f":"IF(TB_Consolidado[[#This Row],[DATA]]=\"\",\"\",TEXT(TB_Consolidado[[#This Row],[DATA]],\"mmmm\"))","v":"December"},{"$f":"IF(TB_Consolidado[[#This Row],[Nome Mês]]=\"\",\"\",YEAR(TB_Consolidado[[#This Row],[DATA]]))","v":2025}]
[null,null,"2025-09-02","Receita","Patrocinio","Receita externa","EVENTO 5","Confirmado",{"v":386,"d":"R$ 386.00"},{"$nulls":6},{"$f":"IF(TB_Consolidado[[#This Row],[DATA]]=\"\",\"\",MONTH(TB_Consolidado[[#This Row],[DATA]]))","v":9},{"$f":"IF(TB_Consolidado[[#This Row],[DATA]]=\"\",\"\",TEXT(TB_Consolidado[[#This Row],[DATA]],\"mmmm\"))","v":"September"},{"$f":"IF(TB_Consolidado[[#This Row],[Nome Mês]]=\"\",\"\",YEAR(TB_Consolidado[[#This Row],[DATA]]))","v":2025}]
[null,null,"2025-02-21","Receita","Patrocinio","Receita externa","EVENTO 2","Confirmado",{"v":1754,"d":"R$ 1,754.00"},{"$nulls":6},{"$f":"IF(TB_Consolidado[[#This Row],[DATA]]=\"\",\"\",MONTH(TB_Consolidado[[#This Row],[DATA]]))","v":2},{"$f":"IF(TB_Consolidado[[#This Row],[DATA]]=\"\",\"\",TEXT(TB_Consolidado[[#This Row],[DATA]],\"mmmm\"))","v":"February"},{"$f":"IF(TB_Consolidado[[#This Row],[Nome Mês]]=\"\",\"\",YEAR(TB_Consolidado[[#This Row],[DATA]]))","v":2025}]
[null,null,"2025-06-21","Receita","Bar","Receita de consumo","GERAL","Confirmado",{"v":488,"d":"R$ 488.00"},{"$nulls":6},{"$f":"IF(TB_Consolidado[[#This Row],[DATA]]=\"\",\"\",MONTH(TB_Consolidado[[#This Row],[DATA]]))","v":6},{"$f":"IF(TB_Consolidado[[#This Row],[DATA]]=\"\",\"\",TEXT(TB_Consolidado[[#This Row],[DATA]],\"mmmm\"))","v":"June"},{"$f":"IF(TB_Consolidado[[#This Row],[Nome Mês]]=\"\",\"\",YEAR(TB_Consolidado[[#This Row],[DATA]]))","v":2025}]
[null,null,"2025-05-12","Receita","Bilheteria","Presença do público","EVENTO 1","Confirmado",{"v":1705,"d":"R$ 1,705.00"},{"$nulls":6},{"$f":"IF(TB_Consolidado[[#This Row],[DATA]]=\"\",\"\",MONTH(TB_Consolidado[[#This Row],[DATA]]))","v":5},{"$f":"IF(TB_Consolidado[[#This Row],[DATA]]=\"\",\"\",TEXT(TB_Consolidado[[#This Row],[DATA]],\"mmmm\"))","v":"May"},{"$f":"IF(TB_Consolidado[[#This Row],[Nome Mês]]=\"\",\"\",YEAR(TB_Consolidado[[#This Row],[DATA]]))","v":2025}]
[null,null,"2025-12-16","Receita","Patrocinio","Receita externa","EVENTO 2","Confirmado",{"v":1241,"d":"R$ 1,241.00"},{"$nulls":6},{"$f":"IF(TB_Consolidado[[#This Row],[DATA]]=\"\",\"\",MONTH(TB_Consolidado[[#This Row],[DATA]]))","v":12},{"$f":"IF(TB_Consolidado[[#This Row],[DATA]]=\"\",\"\",TEXT(TB_Consolidado[[#This Row],[DATA]],\"mmmm\"))","v":"December"},{"$f":"IF(TB_Consolidado[[#This Row],[Nome Mês]]=\"\",\"\",YEAR(TB_Consolidado[[#This Row],[DATA]]))","v":2025}]
[null,null,"2025-02-18","Receita","Patrocinio","Receita externa","EVENTO 1","Confirmado",{"v":851,"d":"R$ 851.00"},{"$nulls":6},{"$f":"IF(TB_Consolidado[[#This Row],[DATA]]=\"\",\"\",MONTH(TB_Consolidado[[#This Row],[DATA]]))","v":2},{"$f":"IF(TB_Consolidado[[#This Row],[DATA]]=\"\",\"\",TEXT(TB_Consolidado[[#This Row],[DATA]],\"mmmm\"))","v":"February"},{"$f":"IF(TB_Consolidado[[#This Row],[Nome Mês]]=\"\",\"\",YEAR(TB_Consolidado[[#This Row],[DATA]]))","v":2025}]
[null,null,"2025-02-21","Receita","Patrocinio","Receita externa","EVENTO 4","Confirmado",{"v":1789,"d":"R$ 1,789.00"},{"$nulls":6},{"$f":"IF(TB_Consolidado[[#This Row],[DATA]]=\"\",\"\",MONTH(TB_Consolidado[[#This Row],[DATA]]))","v":2},{"$f":"IF(TB_Consolidado[[#This Row],[DATA]]=\"\",\"\",TEXT(TB_Consolidado[[#This Row],[DATA]],\"mmmm\"))","v":"February"},{"$f":"IF(TB_Consolidado[[#This Row],[Nome Mês]]=\"\",\"\",YEAR(TB_Consolidado[[#This Row],[DATA]]))","v":2025}]
[null,null,"2025-07-18","Receita","Patrocinio","Receita externa","EVENTO 4","Confirmado",{"v":743,"d":"R$ 743.00"},{"$nulls":6},{"$f":"IF(TB_Consolidado[[#This Row],[DATA]]=\"\",\"\",MONTH(TB_Consolidado[[#This Row],[DATA]]))","v":7},{"$f":"IF(TB_Consolidado[[#This Row],[DATA]]=\"\",\"\",TEXT(TB_Consolidado[[#This Row],[DATA]],\"mmmm\"))","v":"July"},{"$f":"IF(TB_Consolidado[[#This Row],[Nome Mês]]=\"\",\"\",YEAR(TB_Consolidado[[#This Row],[DATA]]))","v":2025}]
[null,null,"2025-04-15","Receita","Bar","Receita de consumo","EVENTO 3","Confirmado",{"v":1201,"d":"R$ 1,201.00"},{"$nulls":6},{"$f":"IF(TB_Consolidado[[#This Row],[DATA]]=\"\",\"\",MONTH(TB_Consolidado[[#This Row],[DATA]]))","v":4},{"$f":"IF(TB_Consolidado[[#This Row],[DATA]]=\"\",\"\",TEXT(TB_Consolidado[[#This Row],[DATA]],\"mmmm\"))","v":"April"},{"$f":"IF(TB_Consolidado[[#This Row],[Nome Mês]]=\"\",\"\",YEAR(TB_Consolidado[[#This Row],[DATA]]))","v":2025}]
[null,null,"2025-08-13","Receita","Bar","Receita de consumo","EVENTO 2","Confirmado",{"v":1353,"d":"R$ 1,353.00"},{"$nulls":6},{"$f":"IF(TB_Consolidado[[#This Row],[DATA]]=\"\",\"\",MONTH(TB_Consolidado[[#This Row],[DATA]]))","v":8},{"$f":"IF(TB_Consolidado[[#This Row],[DATA]]=\"\",\"\",TEXT(TB_Consolidado[[#This Row],[DATA]],\"mmmm\"))","v":"August"},{"$f":"IF(TB_Consolidado[[#This Row],[Nome Mês]]=\"\",\"\",YEAR(TB_Consolidado[[#This Row],[DATA]]))","v":2025}]
[null,null,"2025-05-16","Receita","Patrocinio","Receita externa","EVENTO 3","Confirmado",{"v":1435,"d":"R$ 1,435.00"},{"$nulls":6},{"$f":"IF(TB_Consolidado[[#This Row],[DATA]]=\"\",\"\",MONTH(TB_Consolidado[[#This Row],[DATA]]))","v":5},{"$f":"IF(TB_Consolidado[[#This Row],[DATA]]=\"\",\"\",TEXT(TB_Consolidado[[#This Row],[DATA]],\"mmmm\"))","v":"May"},{"$f":"IF(TB_Consolidado[[#This Row],[Nome Mês]]=\"\",\"\",YEAR(TB_Consolidado[[#This Row],[DATA]]))","v":2025}]
[null,null,"2025-07-25","Receita","Bar","Receita de consumo","EVENTO 4","Confirmado",{"v":1819,"d":"R$ 1,819.00"},{"$nulls":6},{"$f":"IF(TB_Consolidado[[#This Row],[DATA]]=\"\",\"\",MONTH(TB_Consolidado[[#This Row],[DATA]]))","v":7},{"$f":"IF(TB_Consolidado[[#This Row],[DATA]]=\"\",\"\",TEXT(TB_Consolidado[[#This Row],[DATA]],\"mmmm\"))","v":"July"},{"$f":"IF(TB_Consolidado[[#This Row],[Nome Mês]]=\"\",\"\",YEAR(TB_Consolidado[[#This Row],[DATA]]))","v":2025}]
[null,null,"2025-09-18","Receita","Patrocinio","Receita externa","EVENTO 4","Confirmado",{"v":1880,"d":"R$ 1,880.00"},{"$nulls":6},{"$f":"IF(TB_Consolidado[[#This Row],[DATA]]=\"\",\"\",MONTH(TB_Consolidado[[#This Row],[DATA]]))","v":9},{"$f":"IF(TB_Consolidado[[#This Row],[DATA]]=\"\",\"\",TEXT(TB_Consolidado[[#This Row],[DATA]],\"mmmm\"))","v":"September"},{"$f":"IF(TB_Consolidado[[#This Row],[Nome Mês]]=\"\",\"\",YEAR(TB_Consolidado[[#This Row],[DATA]]))","v":2025}]
[null,null,"2025-02-27","Receita","Patrocinio","Receita externa","EVENTO 1","Confirmado",{"v":662,"d":"R$ 662.00"},{"$nulls":6},{"$f":"IF(TB_Consolidado[[#This Row],[DATA]]=\"\",\"\",MONTH(TB_Consolidado[[#This Row],[DATA]]))","v":2},{"$f":"IF(TB_Consolidado[[#This Row],[DATA]]=\"\",\"\",TEXT(TB_Consolidado[[#This Row],[DATA]],\"mmmm\"))","v":"February"},{"$f":"IF(TB_Consolidado[[#This Row],[Nome Mês]]=\"\",\"\",YEAR(TB_Consolidado[[#This Row],[DATA]]))","v":2025}]
[null,null,"2025-01-25","Receita","Bar","Receita de consumo","GERAL","Confirmado",{"v":1459,"d":"R$ 1,459.00"},{"$nulls":6},{"$f":"IF(TB_Consolidado[[#This Row],[DATA]]=\"\",\"\",MONTH(TB_Consolidado[[#This Row],[DATA]]))","v":1},{"$f":"IF(TB_Consolidado[[#This Row],[DATA]]=\"\",\"\",TEXT(TB_Consolidado[[#This Row],[DATA]],\"mmmm\"))","v":"January"},{"$f":"IF(TB_Consolidado[[#This Row],[Nome Mês]]=\"\",\"\",YEAR(TB_Consolidado[[#This Row],[DATA]]))","v":2025}]
[null,null,"2025-04-04","Receita","Patrocinio","Receita externa","EVENTO 3","Confirmado",{"v":1568,"d":"R$ 1,568.00"},{"$nulls":6},{"$f":"IF(TB_Consolidado[[#This Row],[DATA]]=\"\",\"\",MONTH(TB_Consolidado[[#This Row],[DATA]]))","v":4},{"$f":"IF(TB_Consolidado[[#This Row],[DATA]]=\"\",\"\",TEXT(TB_Consolidado[[#This Row],[DATA]],\"mmmm\"))","v":"April"},{"$f":"IF(TB_Consolidado[[#This Row],[Nome Mês]]=\"\",\"\",YEAR(TB_Consolidado[[#This Row],[DATA]]))","v":2025}]
[null,null,"2025-02-02","Receita","Bilheteria","Presença do público","EVENTO 1","Confirmado",{"v":817,"d":"R$ 817.00"},{"$nulls":6},{"$f":"IF(TB_Consolidado[[#This Row],[DATA]]=\"\",\"\",MONTH(TB_Consolidado[[#This Row],[DATA]]))","v":2},{"$f":"IF(TB_Consolidado[[#This Row],[DATA]]=\"\",\"\",TEXT(TB_Consolidado[[#This Row],[DATA]],\"mmmm\"))","v":"February"},{"$f":"IF(TB_Consolidado[[#This Row],[Nome Mês]]=\"\",\"\",YEAR(TB_Consolidado[[#This Row],[DATA]]))","v":2025}]
[null,null,"2025-05-02","Receita","Bar","Receita de consumo","EVENTO 2","Confirmado",{"v":1612,"d":"R$ 1,612.00"},{"$nulls":6},{"$f":"IF(TB_Consolidado[[#This Row],[DATA]]=\"\",\"\",MONTH(TB_Consolidado[[#This Row],[DATA]]))","v":5},{"$f":"IF(TB_Consolidado[[#This Row],[DATA]]=\"\",\"\",TEXT(TB_Consolidado[[#This Row],[DATA]],\"mmmm\"))","v":"May"},{"$f":"IF(TB_Consolidado[[#This Row],[Nome Mês]]=\"\",\"\",YEAR(TB_Consolidado[[#This Row],[DATA]]))","v":2025}]
[null,null,"2025-06-18","Receita","Patrocinio","Receita externa","EVENTO 1","Confirmado",{"v":895,"d":"R$ 895.00"},{"$nulls":6},{"$f":"IF(TB_Consolidado[[#This Row],[DATA]]=\"\",\"\",MONTH(TB_Consolidado[[#This Row],[DATA]]))","v":6},{"$f":"IF(TB_Consolidado[[#This Row],[DATA]]=\"\",\"\",TEXT(TB_Consolidado[[#This Row],[DATA]],\"mmmm\"))","v":"June"},{"$f":"IF(TB_Consolidado[[#This Row],[Nome Mês]]=\"\",\"\",YEAR(TB_Consolidado[[#This Row],[DATA]]))","v":2025}]
[null,null,"2025-11-23","Receita","Patrocinio","Receita externa","EVENTO 2","Confirmado",{"v":366,"d":"R$ 366.00"},{"$nulls":6},{"$f":"IF(TB_Consolidado[[#This Row],[DATA]]=\"\",\"\",MONTH(TB_Consolidado[[#This Row],[DATA]]))","v":11},{"$f":"IF(TB_Consolidado[[#This Row],[DATA]]=\"\",\"\",TEXT(TB_Consolidado[[#This Row],[DATA]],\"mmmm\"))","v":"November"},{"$f":"IF(TB_Consolidado[[#This Row],[Nome Mês]]=\"\",\"\",YEAR(TB_Consolidado[[#This Row],[DATA]]))","v":2025}]
[null,null,"2025-06-28","Receita","Patrocinio","Receita externa","EVENTO 4","Cancelado",{"v":684,"d":"R$ 684.00"},{"$nulls":6},{"$f":"IF(TB_Consolidado[[#This Row],[DATA]]=\"\",\"\",MONTH(TB_Consolidado[[#This Row],[DATA]]))","v":6},{"$f":"IF(TB_Consolidado[[#This Row],[DATA]]=\"\",\"\",TEXT(TB_Consolidado[[#This Row],[DATA]],\"mmmm\"))","v":"June"},{"$f":"IF(TB_Consolidado[[#This Row],[Nome Mês]]=\"\",\"\",YEAR(TB_Consolidado[[#This Row],[DATA]]))","v":2025}]
[null,null,"2025-03-03","Receita","Bar","Receita de consumo","EVENTO 4","Confirmado",{"v":479,"d":"R$ 479.00"},{"$nulls":6},{"$f":"IF(TB_Consolidado[[#This Row],[DATA]]=\"\",\"\",MONTH(TB_Consolidado[[#This Row],[DATA]]))","v":3},{"$f":"IF(TB_Consolidado[[#This Row],[DATA]]=\"\",\"\",TEXT(TB_Consolidado[[#This Row],[DATA]],\"mmmm\"))","v":"March"},{"$f":"IF(TB_Consolidado[[#This Row],[Nome Mês]]=\"\",\"\",YEAR(TB_Consolidado[[#This Row],[DATA]]))","v":2025}]
[null,null,"2025-09-17","Receita","Bar","Receita de consumo","GERAL","Confirmado",{"v":1208,"d":"R$ 1,208.00"},{"$nulls":6},{"$f":"IF(TB_Consolidado[[#This Row],[DATA]]=\"\",\"\",MONTH(TB_Consolidado[[#This Row],[DATA]]))","v":9},{"$f":"IF(TB_Consolidado[[#This Row],[DATA]]=\"\",\"\",TEXT(TB_Consolidado[[#This Row],[DATA]],\"mmmm\"))","v":"September"},{"$f":"IF(TB_Consolidado[[#This Row],[Nome Mês]]=\"\",\"\",YEAR(TB_Consolidado[[#This Row],[DATA]]))","v":2025}]
[null,null,"2025-12-06","Receita","Bilheteria","Presença do público","EVENTO 4","Confirmado",{"v":790,"d":"R$ 790.00"},{"$nulls":6},{"$f":"IF(TB_Consolidado[[#This Row],[DATA]]=\"\",\"\",MONTH(TB_Consolidado[[#This Row],[DATA]]))","v":12},{"$f":"IF(TB_Consolidado[[#This Row],[DATA]]=\"\",\"\",TEXT(TB_Consolidado[[#This Row],[DATA]],\"mmmm\"))","v":"December"},{"$f":"IF(TB_Consolidado[[#This Row],[Nome Mês]]=\"\",\"\",YEAR(TB_Consolidado[[#This Row],[DATA]]))","v":2025}]
[null,null,"2025-04-24","Receita","Patrocinio","Receita externa","EVENTO 5","Agendado",{"v":1355,"d":"R$ 1,355.00"},{"$nulls":6},{"$f":"IF(TB_Consolidado[[#This Row],[DATA]]=\"\",\"\",MONTH(TB_Consolidado[[#This Row],[DATA]]))","v":4},{"$f":"IF(TB_Consolidado[[#This Row],[DATA]]=\"\",\"\",TEXT(TB_Consolidado[[#This Row],[DATA]],\"mmmm\"))","v":"April"},{"$f":"IF(TB_Consolidado[[#This Row],[Nome Mês]]=\"\",\"\",YEAR(TB_Consolidado[[#This Row],[DATA]]))","v":2025}]
[null,null,"2025-03-23","Receita","Bar","Receita de consumo","EVENTO 3","Confirmado",{"v":807,"d":"R$ 807.00"},{"$nulls":6},{"$f":"IF(TB_Consolidado[[#This Row],[DATA]]=\"\",\"\",MONTH(TB_Consolidado[[#This Row],[DATA]]))","v":3},{"$f":"IF(TB_Consolidado[[#This Row],[DATA]]=\"\",\"\",TEXT(TB_Consolidado[[#This Row],[DATA]],\"mmmm\"))","v":"March"},{"$f":"IF(TB_Consolidado[[#This Row],[Nome Mês]]=\"\",\"\",YEAR(TB_Consolidado[[#This Row],[DATA]]))","v":2025}]
[null,null,"2025-01-20","Receita","Patrocinio","Receita externa","EVENTO 1","Confirmado",{"v":1127,"d":"R$ 1,127.00"},{"$nulls":6},{"$f":"IF(TB_Consolidado[[#This Row],[DATA]]=\"\",\"\",MONTH(TB_Consolidado[[#This Row],[DATA]]))","v":1},{"$f":"IF(TB_Consolidado[[#This Row],[DATA]]=\"\",\"\",TEXT(TB_Consolidado[[#This Row],[DATA]],\"mmmm\"))","v":"January"},{"$f":"IF(TB_Consolidado[[#This Row],[Nome Mês]]=\"\",\"\",YEAR(TB_Consolidado[[#This Row],[DATA]]))","v":2025}]
[null,null,"2025-09-13","Receita","Patrocinio","Receita externa","EVENTO 1","Confirmado",{"v":1090,"d":"R$ 1,090.00"},{"$nulls":6},{"$f":"IF(TB_Consolidado[[#This Row],[DATA]]=\"\",\"\",MONTH(TB_Consolidado[[#This Row],[DATA]]))","v":9},{"$f":"IF(TB_Consolidado[[#This Row],[DATA]]=\"\",\"\",TEXT(TB_Consolidado[[#This Row],[DATA]],\"mmmm\"))","v":"September"},{"$f":"IF(TB_Consolidado[[#This Row],[Nome Mês]]=\"\",\"\",YEAR(TB_Consolidado[[#This Row],[DATA]]))","v":2025}]
[null,null,"2025-01-16","Receita","Patrocinio","Receita externa","EVENTO 4","Confirmado",{"v":578,"d":"R$ 578.00"},{"$nulls":6},{"$f":"IF(TB_Consolidado[[#This Row],[DATA]]=\"\",\"\",MONTH(TB_Consolidado[[#This Row],[DATA]]))","v":1},{"$f":"IF(TB_Consolidado[[#This Row],[DATA]]=\"\",\"\",TEXT(TB_Consolidado[[#This Row],[DATA]],\"mmmm\"))","v":"January"},{"$f":"IF(TB_Consolidado[[#This Row],[Nome Mês]]=\"\",\"\",YEAR(TB_Consolidado[[#This Row],[DATA]]))","v":2025}]
[null,null,"2025-07-11","Receita","Bilheteria","Presença do público","EVENTO 5","Confirmado",{"v":1080,"d":"R$ 1,080.00"},{"$nulls":6},{"$f":"IF(TB_Consolidado[[#This Row],[DATA]]=\"\",\"\",MONTH(TB_Consolidado[[#This Row],[DATA]]))","v":7},{"$f":"IF(TB_Consolidado[[#This Row],[DATA]]=\"\",\"\",TEXT(TB_Consolidado[[#This Row],[DATA]],\"mmmm\"))","v":"July"},{"$f":"IF(TB_Consolidado[[#This Row],[Nome Mês]]=\"\",\"\",YEAR(TB_Consolidado[[#This Row],[DATA]]))","v":2025}]
[null,null,"2025-04-17","Receita","Bilheteria","Presença do público","EVENTO 1","Confirmado",{"v":1924,"d":"R$ 1,924.00"},{"$nulls":6},{"$f":"IF(TB_Consolidado[[#This Row],[DATA]]=\"\",\"\",MONTH(TB_Consolidado[[#This Row],[DATA]]))","v":4},{"$f":"IF(TB_Consolidado[[#This Row],[DATA]]=\"\",\"\",TEXT(TB_Consolidado[[#This Row],[DATA]],\"mmmm\"))","v":"April"},{"$f":"IF(TB_Consolidado[[#This Row],[Nome Mês]]=\"\",\"\",YEAR(TB_Consolidado[[#This Row],[DATA]]))","v":2025}]
[null,null,"2025-07-23","Receita","Bar","Receita de consumo","EVENTO 4","Confirmado",{"v":884,"d":"R$ 884.00"},{"$nulls":6},{"$f":"IF(TB_Consolidado[[#This Row],[DATA]]=\"\",\"\",MONTH(TB_Consolidado[[#This Row],[DATA]]))","v":7},{"$f":"IF(TB_Consolidado[[#This Row],[DATA]]=\"\",\"\",TEXT(TB_Consolidado[[#This Row],[DATA]],\"mmmm\"))","v":"July"},{"$f":"IF(TB_Consolidado[[#This Row],[Nome Mês]]=\"\",\"\",YEAR(TB_Consolidado[[#This Row],[DATA]]))","v":2025}]
[null,null,"2025-10-26","Receita","Patrocinio","Receita externa","EVENTO 5","Confirmado",{"v":1179,"d":"R$ 1,179.00"},{"$nulls":6},{"$f":"IF(TB_Consolidado[[#This Row],[DATA]]=\"\",\"\",MONTH(TB_Consolidado[[#This Row],[DATA]]))","v":10},{"$f":"IF(TB_Consolidado[[#This Row],[DATA]]=\"\",\"\",TEXT(TB_Consolidado[[#This Row],[DATA]],\"mmmm\"))","v":"October"},{"$f":"IF(TB_Consolidado[[#This Row],[Nome Mês]]=\"\",\"\",YEAR(TB_Consolidado[[#This Row],[DATA]]))","v":2025}]
[null,null,"2025-02-08","Receita","Bilheteria","Presença do público","EVENTO 1","Confirmado",{"v":1092,"d":"R$ 1,092.00"},{"$nulls":6},{"$f":"IF(TB_Consolidado[[#This Row],[DATA]]=\"\",\"\",MONTH(TB_Consolidado[[#This Row],[DATA]]))","v":2},{"$f":"IF(TB_Consolidado[[#This Row],[DATA]]=\"\",\"\",TEXT(TB_Consolidado[[#This Row],[DATA]],\"mmmm\"))","v":"February"},{"$f":"IF(TB_Consolidado[[#This Row],[Nome Mês]]=\"\",\"\",YEAR(TB_Consolidado[[#This Row],[DATA]]))","v":2025}]
[null,null,"2025-11-04","Receita","Bar","Receita de consumo","EVENTO 5","Confirmado",{"v":1849,"d":"R$ 1,849.00"},{"$nulls":6},{"$f":"IF(TB_Consolidado[[#This Row],[DATA]]=\"\",\"\",MONTH(TB_Consolidado[[#This Row],[DATA]]))","v":11},{"$f":"IF(TB_Consolidado[[#This Row],[DATA]]=\"\",\"\",TEXT(TB_Consolidado[[#This Row],[DATA]],\"mmmm\"))","v":"November"},{"$f":"IF(TB_Consolidado[[#This Row],[Nome Mês]]=\"\",\"\",YEAR(TB_Consolidado[[#This Row],[DATA]]))","v":2025}]
[null,null,"2025-06-19","Receita","Bar","Receita de consumo","GERAL","Confirmado",{"v":675,"d":"R$ 675.00"},{"$nulls":6},{"$f":"IF(TB_Consolidado[[#This Row],[DATA]]=\"\",\"\",MONTH(TB_Consolidado[[#This Row],[DATA]]))","v":6},{"$f":"IF(TB_Consolidado[[#This Row],[DATA]]=\"\",\"\",TEXT(TB_Consolidado[[#This Row],[DATA]],\"mmmm\"))","v":"June"},{"$f":"IF(TB_Consolidado[[#This Row],[Nome Mês]]=\"\",\"\",YEAR(TB_Consolidado[[#This Row],[DATA]]))","v":2025}]
[null,null,"2025-03-17","Receita","Bilheteria","Presença do público","GERAL","Confirmado",{"v":1633,"d":"R$ 1,633.00"},{"$nulls":6},{"$f":"IF(TB_Consolidado[[#This Row],[DATA]]=\"\",\"\",MONTH(TB_Consolidado[[#This Row],[DATA]]))","v":3},{"$f":"IF(TB_Consolidado[[#This Row],[DATA]]=\"\",\"\",TEXT(TB_Consolidado[[#This Row],[DATA]],\"mmmm\"))","v":"March"},{"$f":"IF(TB_Consolidado[[#This Row],[Nome Mês]]=\"\",\"\",YEAR(TB_Consolidado[[#This Row],[DATA]]))","v":2025}]
[null,null,"2025-11-14","Receita","Patrocinio","Receita externa","EVENTO 4","Confirmado",{"v":308,"d":"R$ 308.00"},{"$nulls":6},{"$f":"IF(TB_Consolidado[[#This Row],[DATA]]=\"\",\"\",MONTH(TB_Consolidado[[#This Row],[DATA]]))","v":11},{"$f":"IF(TB_Consolidado[[#This Row],[DATA]]=\"\",\"\",TEXT(TB_Consolidado[[#This Row],[DATA]],\"mmmm\"))","v":"November"},{"$f":"IF(TB_Consolidado[[#This Row],[Nome Mês]]=\"\",\"\",YEAR(TB_Consolidado[[#This Row],[DATA]]))","v":2025}]
[null,null,"2025-01-15","Receita","Bilheteria","Presença do público","EVENTO 2","Confirmado",{"v":348,"d":"R$ 348.00"},{"$nulls":6},{"$f":"IF(TB_Consolidado[[#This Row],[DATA]]=\"\",\"\",MONTH(TB_Consolidado[[#This Row],[DATA]]))","v":1},{"$f":"IF(TB_Consolidado[[#This Row],[DATA]]=\"\",\"\",TEXT(TB_Consolidado[[#This Row],[DATA]],\"mmmm\"))","v":"January"},{"$f":"IF(TB_Consolidado[[#This Row],[Nome Mês]]=\"\",\"\",YEAR(TB_Consolidado[[#This Row],[DATA]]))","v":2025}]
[null,null,"2025-12-26","Receita","Patrocinio","Receita externa","EVENTO 3","Confirmado",{"v":1991,"d":"R$ 1,991.00"},{"$nulls":6},{"$f":"IF(TB_Consolidado[[#This Row],[DATA]]=\"\",\"\",MONTH(TB_Consolidado[[#This Row],[DATA]]))","v":12},{"$f":"IF(TB_Consolidado[[#This Row],[DATA]]=\"\",\"\",TEXT(TB_Consolidado[[#This Row],[DATA]],\"mmmm\"))","v":"December"},{"$f":"IF(TB_Consolidado[[#This Row],[Nome Mês]]=\"\",\"\",YEAR(TB_Consolidado[[#This Row],[DATA]]))","v":2025}]
[null,null,"2025-12-10","Receita","Bar","Receita de consumo","GERAL","Confirmado",{"v":1025,"d":"R$ 1,025.00"},{"$nulls":6},{"$f":"IF(TB_Consolidado[[#This Row],[DATA]]=\"\",\"\",MONTH(TB_Consolidado[[#This Row],[DATA]]))","v":12},{"$f":"IF(TB_Consolidado[[#This Row],[DATA]]=\"\",\"\",TEXT(TB_Consolidado[[#This Row],[DATA]],\"mmmm\"))","v":"December"},{"$f":"IF(TB_Consolidado[[#This Row],[Nome Mês]]=\"\",\"\",YEAR(TB_Consolidado[[#This Row],[DATA]]))","v":2025}]
[null,null,"2025-04-23","Receita","Bilheteria","Presença do público","EVENTO 5","Confirmado",{"v":788,"d":"R$ 788.00"},{"$nulls":6},{"$f":"IF(TB_Consolidado[[#This Row],[DATA]]=\"\",\"\",MONTH(TB_Consolidado[[#This Row],[DATA]]))","v":4},{"$f":"IF(TB_Consolidado[[#This Row],[DATA]]=\"\",\"\",TEXT(TB_Consolidado[[#This Row],[DATA]],\"mmmm\"))","v":"April"},{"$f":"IF(TB_Consolidado[[#This Row],[Nome Mês]]=\"\",\"\",YEAR(TB_Consolidado[[#This Row],[DATA]]))","v":2025}]
[null,null,"2025-05-03","Receita","Bilheteria","Presença do público","EVENTO 5","Confirmado",{"v":1943,"d":"R$ 1,943.00"},{"$nulls":6},{"$f":"IF(TB_Consolidado[[#This Row],[DATA]]=\"\",\"\",MONTH(TB_Consolidado[[#This Row],[DATA]]))","v":5},{"$f":"IF(TB_Consolidado[[#This Row],[DATA]]=\"\",\"\",TEXT(TB_Consolidado[[#This Row],[DATA]],\"mmmm\"))","v":"May"},{"$f":"IF(TB_Consolidado[[#This Row],[Nome Mês]]=\"\",\"\",YEAR(TB_Consolidado[[#This Row],[DATA]]))","v":2025}]
[null,null,"2025-12-14","Receita","Bilheteria","Presença do público","EVENTO 4","Confirmado",{"v":501,"d":"R$ 501.00"},{"$nulls":6},{"$f":"IF(TB_Consolidado[[#This Row],[DATA]]=\"\",\"\",MONTH(TB_Consolidado[[#This Row],[DATA]]))","v":12},{"$f":"IF(TB_Consolidado[[#This Row],[DATA]]=\"\",\"\",TEXT(TB_Consolidado[[#This Row],[DATA]],\"mmmm\"))","v":"December"},{"$f":"IF(TB_Consolidado[[#This Row],[Nome Mês]]=\"\",\"\",YEAR(TB_Consolidado[[#This Row],[DATA]]))","v":2025}]
[null,null,"2025-09-15","Receita","Bar","Receita de consumo","EVENTO 1","Confirmado",{"v":705,"d":"R$ 705.00"},{"$nulls":6},{"$f":"IF(TB_Consolidado[[#This Row],[DATA]]=\"\",\"\",MONTH(TB_Consolidado[[#This Row],[DATA]]))","v":9},{"$f":"IF(TB_Consolidado[[#This Row],[DATA]]=\"\",\"\",TEXT(TB_Consolidado[[#This Row],[DATA]],\"mmmm\"))","v":"September"},{"$f":"IF(TB_Consolidado[[#This Row],[Nome Mês]]=\"\",\"\",YEAR(TB_Consolidado[[#This Row],[DATA]]))","v":2025}]
[null,null,"2025-06-01","Receita","Patrocinio","Receita externa","EVENTO 5","Confirmado",{"v":528,"d":"R$ 528.00"},{"$nulls":6},{"$f":"IF(TB_Consolidado[[#This Row],[DATA]]=\"\",\"\",MONTH(TB_Consolidado[[#This Row],[DATA]]))","v":6},{"$f":"IF(TB_Consolidado[[#This Row],[DATA]]=\"\",\"\",TEXT(TB_Consolidado[[#This Row],[DATA]],\"mmmm\"))","v":"June"},{"$f":"IF(TB_Consolidado[[#This Row],[Nome Mês]]=\"\",\"\",YEAR(TB_Consolidado[[#This Row],[DATA]]))","v":2025}]
[null,null,"2025-11-03","Receita","Bilheteria","Presença do público","EVENTO 1","Confirmado",{"v":1436,"d":"R$ 1,436.00"},{"$nulls":6},{"$f":"IF(TB_Consolidado[[#This Row],[DATA]]=\"\",\"\",MONTH(TB_Consolidado[[#This Row],[DATA]]))","v":11},{"$f":"IF(TB_Consolidado[[#This Row],[DATA]]=\"\",\"\",TEXT(TB_Consolidado[[#This Row],[DATA]],\"mmmm\"))","v":"November"},{"$f":"IF(TB_Consolidado[[#This Row],[Nome Mês]]=\"\",\"\",YEAR(TB_Consolidado[[#This Row],[DATA]]))","v":2025}]
[null,null,"2025-12-08","Receita","Bar","Receita de consumo","GERAL","Confirmado",{"v":1247,"d":"R$ 1,247.00"},{"$nulls":6},{"$f":"IF(TB_Consolidado[[#This Row],[DATA]]=\"\",\"\",MONTH(TB_Consolidado[[#This Row],[DATA]]))","v":12},{"$f":"IF(TB_Consolidado[[#This Row],[DATA]]=\"\",\"\",TEXT(TB_Consolidado[[#This Row],[DATA]],\"mmmm\"))","v":"December"},{"$f":"IF(TB_Consolidado[[#This Row],[Nome Mês]]=\"\",\"\",YEAR(TB_Consolidado[[#This Row],[DATA]]))","v":2025}]
[null,null,"2025-09-17","Receita","Bilheteria","Presença do público","EVENTO 3","Confirmado",{"v":302,"d":"R$ 302.00"},{"$nulls":6},{"$f":"IF(TB_Consolidado[[#This Row],[DATA]]=\"\",\"\",MONTH(TB_Consolidado[[#This Row],[DATA]]))","v":9},{"$f":"IF(TB_Consolidado[[#This Row],[DATA]]=\"\",\"\",TEXT(TB_Consolidado[[#This Row],[DATA]],\"mmmm\"))","v":"September"},{"$f":"IF(TB_Consolidado[[#This Row],[Nome Mês]]=\"\",\"\",YEAR(TB_Consolidado[[#This Row],[DATA]]))","v":2025}]
[null,null,"2025-05-19","Receita","Bar","Receita de consumo","EVENTO 5","Confirmado",{"v":1043,"d":"R$ 1,043.00"},{"$nulls":6},{"$f":"IF(TB_Consolidado[[#This Row],[DATA]]=\"\",\"\",MONTH(TB_Consolidado[[#This Row],[DATA]]))","v":5},{"$f":"IF(TB_Consolidado[[#This Row],[DATA]]=\"\",\"\",TEXT(TB_Consolidado[[#This Row],[DATA]],\"mmmm\"))","v":"May"},{"$f":"IF(TB_Consolidado[[#This Row],[Nome Mês]]=\"\",\"\",YEAR(TB_Consolidado[[#This Row],[DATA]]))","v":2025}]
[null,null,"2025-08-05","Receita","Bar","Receita de consumo","EVENTO 4","Confirmado",{"v":769,"d":"R$ 769.00"},{"$nulls":6},{"$f":"IF(TB_Consolidado[[#This Row],[DATA]]=\"\",\"\",MONTH(TB_Consolidado[[#This Row],[DATA]]))","v":8},{"$f":"IF(TB_Consolidado[[#This Row],[DATA]]=\"\",\"\",TEXT(TB_Consolidado[[#This Row],[DATA]],\"mmmm\"))","v":"August"},{"$f":"IF(TB_Consolidado[[#This Row],[Nome Mês]]=\"\",\"\",YEAR(TB_Consolidado[[#This Row],[DATA]]))","v":2025}]
[null,null,"2025-01-27","Receita","Patrocinio","Receita externa","EVENTO 1","Confirmado",{"v":1782,"d":"R$ 1,782.00"},{"$nulls":6},{"$f":"IF(TB_Consolidado[[#This Row],[DATA]]=\"\",\"\",MONTH(TB_Consolidado[[#This Row],[DATA]]))","v":1},{"$f":"IF(TB_Consolidado[[#This Row],[DATA]]=\"\",\"\",TEXT(TB_Consolidado[[#This Row],[DATA]],\"mmmm\"))","v":"January"},{"$f":"IF(TB_Consolidado[[#This Row],[Nome Mês]]=\"\",\"\",YEAR(TB_Consolidado[[#This Row],[DATA]]))","v":2025}]
[null,null,"2025-05-26","Receita","Bar","Receita de consumo","EVENTO 5","Cancelado",{"v":1960,"d":"R$ 1,960.00"},{"$nulls":6},{"$f":"IF(TB_Consolidado[[#This Row],[DATA]]=\"\",\"\",MONTH(TB_Consolidado[[#This Row],[DATA]]))","v":5},{"$f":"IF(TB_Consolidado[[#This Row],[DATA]]=\"\",\"\",TEXT(TB_Consolidado[[#This Row],[DATA]],\"mmmm\"))","v":"May"},{"$f":"IF(TB_Consolidado[[#This Row],[Nome Mês]]=\"\",\"\",YEAR(TB_Consolidado[[#This Row],[DATA]]))","v":2025}]
[null,null,"2025-08-03","Receita","Patrocinio","Receita externa","EVENTO 3","Confirmado",{"v":943,"d":"R$ 943.00"},{"$nulls":6},{"$f":"IF(TB_Consolidado[[#This Row],[DATA]]=\"\",\"\",MONTH(TB_Consolidado[[#This Row],[DATA]]))","v":8},{"$f":"IF(TB_Consolidado[[#This Row],[DATA]]=\"\",\"\",TEXT(TB_Consolidado[[#This Row],[DATA]],\"mmmm\"))","v":"August"},{"$f":"IF(TB_Consolidado[[#This Row],[Nome Mês]]=\"\",\"\",YEAR(TB_Consolidado[[#This Row],[DATA]]))","v":2025}]
[null,null,"2025-04-06","Receita","Bar","Receita de consumo","EVENTO 1","Confirmado",{"v":545,"d":"R$ 545.00"},{"$nulls":6},{"$f":"IF(TB_Consolidado[[#This Row],[DATA]]=\"\",\"\",MONTH(TB_Consolidado[[#This Row],[DATA]]))","v":4},{"$f":"IF(TB_Consolidado[[#This Row],[DATA]]=\"\",\"\",TEXT(TB_Consolidado[[#This Row],[DATA]],\"mmmm\"))","v":"April"},{"$f":"IF(TB_Consolidado[[#This Row],[Nome Mês]]=\"\",\"\",YEAR(TB_Consolidado[[#This Row],[DATA]]))","v":2025}]
[null,null,"2025-04-04","Receita","Bilheteria","Presença do público","EVENTO 4","Confirmado",{"v":502,"d":"R$ 502.00"},{"$nulls":6},{"$f":"IF(TB_Consolidado[[#This Row],[DATA]]=\"\",\"\",MONTH(TB_Consolidado[[#This Row],[DATA]]))","v":4},{"$f":"IF(TB_Consolidado[[#This Row],[DATA]]=\"\",\"\",TEXT(TB_Consolidado[[#This Row],[DATA]],\"mmmm\"))","v":"April"},{"$f":"IF(TB_Consolidado[[#This Row],[Nome Mês]]=\"\",\"\",YEAR(TB_Consolidado[[#This Row],[DATA]]))","v":2025}]
[null,null,"2025-04-01","Receita","Bar","Receita de consumo","GERAL","Agendado",{"v":851,"d":"R$ 851.00"},{"$nulls":6},{"$f":"IF(TB_Consolidado[[#This Row],[DATA]]=\"\",\"\",MONTH(TB_Consolidado[[#This Row],[DATA]]))","v":4},{"$f":"IF(TB_Consolidado[[#This Row],[DATA]]=\"\",\"\",TEXT(TB_Consolidado[[#This Row],[DATA]],\"mmmm\"))","v":"April"},{"$f":"IF(TB_Consolidado[[#This Row],[Nome Mês]]=\"\",\"\",YEAR(TB_Consolidado[[#This Row],[DATA]]))","v":2025}]
[null,null,"2025-12-05","Receita","Patrocinio","Receita externa","EVENTO 2","Confirmado",{"v":644,"d":"R$ 644.00"},{"$nulls":6},{"$f":"IF(TB_Consolidado[[#This Row],[DATA]]=\"\",\"\",MONTH(TB_Consolidado[[#This Row],[DATA]]))","v":12},{"$f":"IF(TB_Consolidado[[#This Row],[DATA]]=\"\",\"\",TEXT(TB_Consolidado[[#This Row],[DATA]],\"mmmm\"))","v":"December"},{"$f":"IF(TB_Consolidado[[#This Row],[Nome Mês]]=\"\",\"\",YEAR(TB_Consolidado[[#This Row],[DATA]]))","v":2025}]
[null,null,"2025-02-22","Receita","Patrocinio","Receita externa","GERAL","Confirmado",{"v":1341,"d":"R$ 1,341.00"},{"$nulls":6},{"$f":"IF(TB_Consolidado[[#This Row],[DATA]]=\"\",\"\",MONTH(TB_Consolidado[[#This Row],[DATA]]))","v":2},{"$f":"IF(TB_Consolidado[[#This Row],[DATA]]=\"\",\"\",TEXT(TB_Consolidado[[#This Row],[DATA]],\"mmmm\"))","v":"February"},{"$f":"IF(TB_Consolidado[[#This Row],[Nome Mês]]=\"\",\"\",YEAR(TB_Consolidado[[#This Row],[DATA]]))","v":2025}]
[null,null,"2025-06-19","Receita","Bar","Receita de consumo","EVENTO 1","Confirmado",{"v":989,"d":"R$ 989.00"},{"$nulls":6},{"$f":"IF(TB_Consolidado[[#This Row],[DATA]]=\"\",\"\",MONTH(TB_Consolidado[[#This Row],[DATA]]))","v":6},{"$f":"IF(TB_Consolidado[[#This Row],[DATA]]=\"\",\"\",TEXT(TB_Consolidado[[#This Row],[DATA]],\"mmmm\"))","v":"June"},{"$f":"IF(TB_Consolidado[[#This Row],[Nome Mês]]=\"\",\"\",YEAR(TB_Consolidado[[#This Row],[DATA]]))","v":2025}]
[null,null,"2025-09-16","Receita","Bilheteria","Presença do público","EVENTO 2","Confirmado",{"v":1428,"d":"R$ 1,428.00"},{"$nulls":6},{"$f":"IF(TB_Consolidado[[#This Row],[DATA]]=\"\",\"\",MONTH(TB_Consolidado[[#This Row],[DATA]]))","v":9},{"$f":"IF(TB_Consolidado[[#This Row],[DATA]]=\"\",\"\",TEXT(TB_Consolidado[[#This Row],[DATA]],\"mmmm\"))","v":"September"},{"$f":"IF(TB_Consolidado[[#This Row],[Nome Mês]]=\"\",\"\",YEAR(TB_Consolidado[[#This Row],[DATA]]))","v":2025}]
[null,null,"2025-08-04","Receita","Patrocinio","Receita externa","GERAL","Confirmado",{"v":1238,"d":"R$ 1,238.00"},{"$nulls":6},{"$f":"IF(TB_Consolidado[[#This Row],[DATA]]=\"\",\"\",MONTH(TB_Consolidado[[#This Row],[DATA]]))","v":8},{"$f":"IF(TB_Consolidado[[#This Row],[DATA]]=\"\",\"\",TEXT(TB_Consolidado[[#This Row],[DATA]],\"mmmm\"))","v":"August"},{"$f":"IF(TB_Consolidado[[#This Row],[Nome Mês]]=\"\",\"\",YEAR(TB_Consolidado[[#This Row],[DATA]]))","v":2025}]
[null,null,"2025-11-15","Receita","Patrocinio","Receita externa","GERAL","Confirmado",{"v":1254,"d":"R$ 1,254.00"},{"$nulls":6},{"$f":"IF(TB_Consolidado[[#This Row],[DATA]]=\"\",\"\",MONTH(TB_Consolidado[[#This Row],[DATA]]))","v":11},{"$f":"IF(TB_Consolidado[[#This Row],[DATA]]=\"\",\"\",TEXT(TB_Consolidado[[#This Row],[DATA]],\"mmmm\"))","v":"November"},{"$f":"IF(TB_Consolidado[[#This Row],[Nome Mês]]=\"\",\"\",YEAR(TB_Consolidado[[#This Row],[DATA]]))","v":2025}]
[null,null,"2025-02-06","Receita","Bar","Receita de consumo","EVENTO 1","Confirmado",{"v":941,"d":"R$ 941.00"},{"$nulls":6},{"$f":"IF(TB_Consolidado[[#This Row],[DATA]]=\"\",\"\",MONTH(TB_Consolidado[[#This Row],[DATA]]))","v":2},{"$f":"IF(TB_Consolidado[[#This Row],[DATA]]=\"\",\"\",TEXT(TB_Consolidado[[#This Row],[DATA]],\"mmmm\"))","v":"February"},{"$f":"IF(TB_Consolidado[[#This Row],[Nome Mês]]=\"\",\"\",YEAR(TB_Consolidado[[#This Row],[DATA]]))","v":2025}]
[null,null,"2025-10-03","Receita","Patrocinio","Receita externa","GERAL","Confirmado",{"v":669,"d":"R$ 669.00"},{"$nulls":6},{"$f":"IF(TB_Consolidado[[#This Row],[DATA]]=\"\",\"\",MONTH(TB_Consolidado[[#This Row],[DATA]]))","v":10},{"$f":"IF(TB_Consolidado[[#This Row],[DATA]]=\"\",\"\",TEXT(TB_Consolidado[[#This Row],[DATA]],\"mmmm\"))","v":"October"},{"$f":"IF(TB_Consolidado[[#This Row],[Nome Mês]]=\"\",\"\",YEAR(TB_Consolidado[[#This Row],[DATA]]))","v":2025}]
[null,null,"2025-03-04","Receita","Bar","Receita de consumo","EVENTO 2","Confirmado",{"v":1877,"d":"R$ 1,877.00"},{"$nulls":6},{"$f":"IF(TB_Consolidado[[#This Row],[DATA]]=\"\",\"\",MONTH(TB_Consolidado[[#This Row],[DATA]]))","v":3},{"$f":"IF(TB_Consolidado[[#This Row],[DATA]]=\"\",\"\",TEXT(TB_Consolidado[[#This Row],[DATA]],\"mmmm\"))","v":"March"},{"$f":"IF(TB_Consolidado[[#This Row],[Nome Mês]]=\"\",\"\",YEAR(TB_Consolidado[[#This Row],[DATA]]))","v":2025}]
[null,null,"2025-12-17","Receita","Bilheteria","Presença do público","EVENTO 5","Confirmado",{"v":765,"d":"R$ 765.00"},{"$nulls":6},{"$f":"IF(TB_Consolidado[[#This Row],[DATA]]=\"\",\"\",MONTH(TB_Consolidado[[#This Row],[DATA]]))","v":12},{"$f":"IF(TB_Consolidado[[#This Row],[DATA]]=\"\",\"\",TEXT(TB_Consolidado[[#This Row],[DATA]],\"mmmm\"))","v":"December"},{"$f":"IF(TB_Consolidado[[#This Row],[Nome Mês]]=\"\",\"\",YEAR(TB_Consolidado[[#This Row],[DATA]]))","v":2025}]
[null,null,"2025-07-18","Receita","Bilheteria","Presença do público","EVENTO 1","Confirmado",{"v":798,"d":"R$ 798.00"},{"$nulls":6},{"$f":"IF(TB_Consolidado[[#This Row],[DATA]]=\"\",\"\",MONTH(TB_Consolidado[[#This Row],[DATA]]))","v":7},{"$f":"IF(TB_Consolidado[[#This Row],[DATA]]=\"\",\"\",TEXT(TB_Consolidado[[#This Row],[DATA]],\"mmmm\"))","v":"July"},{"$f":"IF(TB_Consolidado[[#This Row],[Nome Mês]]=\"\",\"\",YEAR(TB_Consolidado[[#This Row],[DATA]]))","v":2025}]
[null,null,"2025-08-25","Receita","Bilheteria","Presença do público","EVENTO 4","Confirmado",{"v":1921,"d":"R$ 1,921.00"},{"$nulls":6},{"$f":"IF(TB_Consolidado[[#This Row],[DATA]]=\"\",\"\",MONTH(TB_Consolidado[[#This Row],[DATA]]))","v":8},{"$f":"IF(TB_Consolidado[[#This Row],[DATA]]=\"\",\"\",TEXT(TB_Consolidado[[#This Row],[DATA]],\"mmmm\"))","v":"August"},{"$f":"IF(TB_Consolidado[[#This Row],[Nome Mês]]=\"\",\"\",YEAR(TB_Consolidado[[#This Row],[DATA]]))","v":2025}]
[null,null,"2025-09-07","Receita","Bar","Receita de consumo","EVENTO 2","Confirmado",{"v":866,"d":"R$ 866.00"},{"$nulls":6},{"$f":"IF(TB_Consolidado[[#This Row],[DATA]]=\"\",\"\",MONTH(TB_Consolidado[[#This Row],[DATA]]))","v":9},{"$f":"IF(TB_Consolidado[[#This Row],[DATA]]=\"\",\"\",TEXT(TB_Consolidado[[#This Row],[DATA]],\"mmmm\"))","v":"September"},{"$f":"IF(TB_Consolidado[[#This Row],[Nome Mês]]=\"\",\"\",YEAR(TB_Consolidado[[#This Row],[DATA]]))","v":2025}]
[null,null,"2025-11-08","Receita","Bilheteria","Presença do público","GERAL","Confirmado",{"v":947,"d":"R$ 947.00"},{"$nulls":6},{"$f":"IF(TB_Consolidado[[#This Row],[DATA]]=\"\",\"\",MONTH(TB_Consolidado[[#This Row],[DATA]]))","v":11},{"$f":"IF(TB_Consolidado[[#This Row],[DATA]]=\"\",\"\",TEXT(TB_Consolidado[[#This Row],[DATA]],\"mmmm\"))","v":"November"},{"$f":"IF(TB_Consolidado[[#This Row],[Nome Mês]]=\"\",\"\",YEAR(TB_Consolidado[[#This Row],[DATA]]))","v":2025}]
[null,null,"2025-07-17","Receita","Patrocinio","Receita externa","EVENTO 2","Confirmado",{"v":1958,"d":"R$ 1,958.00"},{"$nulls":6},{"$f":"IF(TB_Consolidado[[#This Row],[DATA]]=\"\",\"\",MONTH(TB_Consolidado[[#This Row],[DATA]]))","v":7},{"$f":"IF(TB_Consolidado[[#This Row],[DATA]]=\"\",\"\",TEXT(TB_Consolidado[[#This Row],[DATA]],\"mmmm\"))","v":"July"},{"$f":"IF(TB_Consolidado[[#This Row],[Nome Mês]]=\"\",\"\",YEAR(TB_Consolidado[[#This Row],[DATA]]))","v":2025}]
[null,null,"2025-01-22","Receita","Bar","Receita de consumo","EVENTO 3","Confirmado",{"v":327,"d":"R$ 327.00"},{"$nulls":6},{"$f":"IF(TB_Consolidado[[#This Row],[DATA]]=\"\",\"\",MONTH(TB_Consolidado[[#This Row],[DATA]]))","v":1},{"$f":"IF(TB_Consolidado[[#This Row],[DATA]]=\"\",\"\",TEXT(TB_Consolidado[[#This Row],[DATA]],\"mmmm\"))","v":"January"},{"$f":"IF(TB_Consolidado[[#This Row],[Nome Mês]]=\"\",\"\",YEAR(TB_Consolidado[[#This Row],[DATA]]))","v":2025}]
[null,null,"2025-04-07","Receita","Bar","Receita de consumo","EVENTO 2","Confirmado",{"v":1246,"d":"R$ 1,246.00"},{"$nulls":6},{"$f":"IF(TB_Consolidado[[#This Row],[DATA]]=\"\",\"\",MONTH(TB_Consolidado[[#This Row],[DATA]]))","v":4},{"$f":"IF(TB_Consolidado[[#This Row],[DATA]]=\"\",\"\",TEXT(TB_Consolidado[[#This Row],[DATA]],\"mmmm\"))","v":"April"},{"$f":"IF(TB_Consolidado[[#This Row],[Nome Mês]]=\"\",\"\",YEAR(TB_Consolidado[[#This Row],[DATA]]))","v":2025}]
[null,null,"2025-06-05","Receita","Bar","Receita de consumo","EVENTO 2","Confirmado",{"v":1465,"d":"R$ 1,465.00"},{"$nulls":6},{"$f":"IF(TB_Consolidado[[#This Row],[DATA]]=\"\",\"\",MONTH(TB_Consolidado[[#This Row],[DATA]]))","v":6},{"$f":"IF(TB_Consolidado[[#This Row],[DATA]]=\"\",\"\",TEXT(TB_Consolidado[[#This Row],[DATA]],\"mmmm\"))","v":"June"},{"$f":"IF(TB_Consolidado[[#This Row],[Nome Mês]]=\"\",\"\",YEAR(TB_Consolidado[[#This Row],[DATA]]))","v":2025}]
[null,null,"2025-12-19","Receita","Bilheteria","Presença do público","GERAL","Confirmado",{"v":1792,"d":"R$ 1,792.00"},{"$nulls":6},{"$f":"IF(TB_Consolidado[[#This Row],[DATA]]=\"\",\"\",MONTH(TB_Consolidado[[#This Row],[DATA]]))","v":12},{"$f":"IF(TB_Consolidado[[#This Row],[DATA]]=\"\",\"\",TEXT(TB_Consolidado[[#This Row],[DATA]],\"mmmm\"))","v":"December"},{"$f":"IF(TB_Consolidado[[#This Row],[Nome Mês]]=\"\",\"\",YEAR(TB_Consolidado[[#This Row],[DATA]]))","v":2025}]
[null,null,"2025-12-05","Receita","Bar","Receita de consumo","EVENTO 5","Confirmado",{"v":1259,"d":"R$ 1,259.00"},{"$nulls":6},{"$f":"IF(TB_Consolidado[[#This Row],[DATA]]=\"\",\"\",MONTH(TB_Consolidado[[#This Row],[DATA]]))","v":12},{"$f":"IF(TB_Consolidado[[#This Row],[DATA]]=\"\",\"\",TEXT(TB_Consolidado[[#This Row],[DATA]],\"mmmm\"))","v":"December"},{"$f":"IF(TB_Consolidado[[#This Row],[Nome Mês]]=\"\",\"\",YEAR(TB_Consolidado[[#This Row],[DATA]]))","v":2025}]
[null,null,"2025-04-08","Receita","Bar","Receita de consumo","EVENTO 1","Confirmado",{"v":489,"d":"R$ 489.00"},{"$nulls":6},{"$f":"IF(TB_Consolidado[[#This Row],[DATA]]=\"\",\"\",MONTH(TB_Consolidado[[#This Row],[DATA]]))","v":4},{"$f":"IF(TB_Consolidado[[#This Row],[DATA]]=\"\",\"\",TEXT(TB_Consolidado[[#This Row],[DATA]],\"mmmm\"))","v":"April"},{"$f":"IF(TB_Consolidado[[#This Row],[Nome Mês]]=\"\",\"\",YEAR(TB_Consolidado[[#This Row],[DATA]]))","v":2025}]
[null,null,"2025-01-01","Receita","Patrocinio","Receita externa","EVENTO 5","Confirmado",{"v":1864,"d":"R$ 1,864.00"},{"$nulls":6},{"$f":"IF(TB_Consolidado[[#This Row],[DATA]]=\"\",\"\",MONTH(TB_Consolidado[[#This Row],[DATA]]))","v":1},{"$f":"IF(TB_Consolidado[[#This Row],[DATA]]=\"\",\"\",TEXT(TB_Consolidado[[#This Row],[DATA]],\"mmmm\"))","v":"January"},{"$f":"IF(TB_Consolidado[[#This Row],[Nome Mês]]=\"\",\"\",YEAR(TB_Consolidado[[#This Row],[DATA]]))","v":2025}]
[null,null,"2025-02-15","Receita","Bilheteria","Presença do público","EVENTO 5","Confirmado",{"v":895,"d":"R$ 895.00"},{"$nulls":6},{"$f":"IF(TB_Consolidado[[#This Row],[DATA]]=\"\",\"\",MONTH(TB_Consolidado[[#This Row],[DATA]]))","v":2},{"$f":"IF(TB_Consolidado[[#This Row],[DATA]]=\"\",\"\",TEXT(TB_Consolidado[[#This Row],[DATA]],\"mmmm\"))","v":"February"},{"$f":"IF(TB_Consolidado[[#This Row],[Nome Mês]]=\"\",\"\",YEAR(TB_Consolidado[[#This Row],[DATA]]))","v":2025}]
[null,null,"2025-12-04","Receita","Bar","Receita de consumo","EVENTO 3","Confirmado",{"v":1365,"d":"R$ 1,365.00"},{"$nulls":6},{"$f":"IF(TB_Consolidado[[#This Row],[DATA]]=\"\",\"\",MONTH(TB_Consolidado[[#This Row],[DATA]]))","v":12},{"$f":"IF(TB_Consolidado[[#This Row],[DATA]]=\"\",\"\",TEXT(TB_Consolidado[[#This Row],[DATA]],\"mmmm\"))","v":"December"},{"$f":"IF(TB_Consolidado[[#This Row],[Nome Mês]]=\"\",\"\",YEAR(TB_Consolidado[[#This Row],[DATA]]))","v":2025}]
[null,null,"2025-08-08","Receita","Patrocinio","Receita externa","EVENTO 5","Confirmado",{"v":1943,"d":"R$ 1,943.00"},{"$nulls":6},{"$f":"IF(TB_Consolidado[[#This Row],[DATA]]=\"\",\"\",MONTH(TB_Consolidado[[#This Row],[DATA]]))","v":8},{"$f":"IF(TB_Consolidado[[#This Row],[DATA]]=\"\",\"\",TEXT(TB_Consolidado[[#This Row],[DATA]],\"mmmm\"))","v":"August"},{"$f":"IF(TB_Consolidado[[#This Row],[Nome Mês]]=\"\",\"\",YEAR(TB_Consolidado[[#This Row],[DATA]]))","v":2025}]
[null,null,"2025-09-22","Receita","Patrocinio","Receita externa","EVENTO 1","Confirmado",{"v":1436,"d":"R$ 1,436.00"},{"$nulls":6},{"$f":"IF(TB_Consolidado[[#This Row],[DATA]]=\"\",\"\",MONTH(TB_Consolidado[[#This Row],[DATA]]))","v":9},{"$f":"IF(TB_Consolidado[[#This Row],[DATA]]=\"\",\"\",TEXT(TB_Consolidado[[#This Row],[DATA]],\"mmmm\"))","v":"September"},{"$f":"IF(TB_Consolidado[[#This Row],[Nome Mês]]=\"\",\"\",YEAR(TB_Consolidado[[#This Row],[DATA]]))","v":2025}]
[null,null,"2025-07-22","Receita","Patrocinio","Receita externa","EVENTO 1","Confirmado",{"v":1173,"d":"R$ 1,173.00"},{"$nulls":6},{"$f":"IF(TB_Consolidado[[#This Row],[DATA]]=\"\",\"\",MONTH(TB_Consolidado[[#This Row],[DATA]]))","v":7},{"$f":"IF(TB_Consolidado[[#This Row],[DATA]]=\"\",\"\",TEXT(TB_Consolidado[[#This Row],[DATA]],\"mmmm\"))","v":"July"},{"$f":"IF(TB_Consolidado[[#This Row],[Nome Mês]]=\"\",\"\",YEAR(TB_Consolidado[[#This Row],[DATA]]))","v":2025}]
[null,null,"2025-07-08","Receita","Bar","Receita de consumo","GERAL","Cancelado",{"v":489,"d":"R$ 489.00"},{"$nulls":6},{"$f":"IF(TB_Consolidado[[#This Row],[DATA]]=\"\",\"\",MONTH(TB_Consolidado[[#This Row],[DATA]]))","v":7},{"$f":"IF(TB_Consolidado[[#This Row],[DATA]]=\"\",\"\",TEXT(TB_Consolidado[[#This Row],[DATA]],\"mmmm\"))","v":"July"},{"$f":"IF(TB_Consolidado[[#This Row],[Nome Mês]]=\"\",\"\",YEAR(TB_Consolidado[[#This Row],[DATA]]))","v":2025}]
[null,null,"2025-04-04","Receita","Patrocinio","Receita externa","GERAL","Confirmado",{"v":838,"d":"R$ 838.00"},{"$nulls":6},{"$f":"IF(TB_Consolidado[[#This Row],[DATA]]=\"\",\"\",MONTH(TB_Consolidado[[#This Row],[DATA]]))","v":4},{"$f":"IF(TB_Consolidado[[#This Row],[DATA]]=\"\",\"\",TEXT(TB_Consolidado[[#This Row],[DATA]],\"mmmm\"))","v":"April"},{"$f":"IF(TB_Consolidado[[#This Row],[Nome Mês]]=\"\",\"\",YEAR(TB_Consolidado[[#This Row],[DATA]]))","v":2025}]
[null,null,"2025-07-04","Receita","Patrocinio","Receita externa","EVENTO 4","Confirmado",{"v":395,"d":"R$ 395.00"},{"$nulls":6},{"$f":"IF(TB_Consolidado[[#This Row],[DATA]]=\"\",\"\",MONTH(TB_Consolidado[[#This Row],[DATA]]))","v":7},{"$f":"IF(TB_Consolidado[[#This Row],[DATA]]=\"\",\"\",TEXT(TB_Consolidado[[#This Row],[DATA]],\"mmmm\"))","v":"July"},{"$f":"IF(TB_Consolidado[[#This Row],[Nome Mês]]=\"\",\"\",YEAR(TB_Consolidado[[#This Row],[DATA]]))","v":2025}]
[null,null,"2025-09-25","Receita","Patrocinio","Receita externa","EVENTO 2","Confirmado",{"v":1461,"d":"R$ 1,461.00"},{"$nulls":6},{"$f":"IF(TB_Consolidado[[#This Row],[DATA]]=\"\",\"\",MONTH(TB_Consolidado[[#This Row],[DATA]]))","v":9},{"$f":"IF(TB_Consolidado[[#This Row],[DATA]]=\"\",\"\",TEXT(TB_Consolidado[[#This Row],[DATA]],\"mmmm\"))","v":"September"},{"$f":"IF(TB_Consolidado[[#This Row],[Nome Mês]]=\"\",\"\",YEAR(TB_Consolidado[[#This Row],[DATA]]))","v":2025}]
[null,null,"2025-10-01","Receita","Bilheteria","Presença do público","EVENTO 4","Agendado",{"v":1791,"d":"R$ 1,791.00"},{"$nulls":6},{"$f":"IF(TB_Consolidado[[#This Row],[DATA]]=\"\",\"\",MONTH(TB_Consolidado[[#This Row],[DATA]]))","v":10},{"$f":"IF(TB_Consolidado[[#This Row],[DATA]]=\"\",\"\",TEXT(TB_Consolidado[[#This Row],[DATA]],\"mmmm\"))","v":"October"},{"$f":"IF(TB_Consolidado[[#This Row],[Nome Mês]]=\"\",\"\",YEAR(TB_Consolidado[[#This Row],[DATA]]))","v":2025}]
[null,null,"2025-12-18","Receita","Bar","Receita de consumo","EVENTO 5","Confirmado",{"v":1666,"d":"R$ 1,666.00"},{"$nulls":6},{"$f":"IF(TB_Consolidado[[#This Row],[DATA]]=\"\",\"\",MONTH(TB_Consolidado[[#This Row],[DATA]]))","v":12},{"$f":"IF(TB_Consolidado[[#This Row],[DATA]]=\"\",\"\",TEXT(TB_Consolidado[[#This Row],[DATA]],\"mmmm\"))","v":"December"},{"$f":"IF(TB_Consolidado[[#This Row],[Nome Mês]]=\"\",\"\",YEAR(TB_Consolidado[[#This Row],[DATA]]))","v":2025}]
[null,null,"2025-01-08","Receita","Patrocinio","Receita externa","EVENTO 5","Confirmado",{"v":1658,"d":"R$ 1,658.00"},{"$nulls":6},{"$f":"IF(TB_Consolidado[[#This Row],[DATA]]=\"\",\"\",MONTH(TB_Consolidado[[#This Row],[DATA]]))","v":1},{"$f":"IF(TB_Consolidado[[#This Row],[DATA]]=\"\",\"\",TEXT(TB_Consolidado[[#This Row],[DATA]],\"mmmm\"))","v":"January"},{"$f":"IF(TB_Consolidado[[#This Row],[Nome Mês]]=\"\",\"\",YEAR(TB_Consolidado[[#This Row],[DATA]]))","v":2025}]
[null,null,"2025-08-04","Receita","Bilheteria","Presença do público","GERAL","Confirmado",{"v":1647,"d":"R$ 1,647.00"},{"$nulls":6},{"$f":"IF(TB_Consolidado[[#This Row],[DATA]]=\"\",\"\",MONTH(TB_Consolidado[[#This Row],[DATA]]))","v":8},{"$f":"IF(TB_Consolidado[[#This Row],[DATA]]=\"\",\"\",TEXT(TB_Consolidado[[#This Row],[DATA]],\"mmmm\"))","v":"August"},{"$f":"IF(TB_Consolidado[[#This Row],[Nome Mês]]=\"\",\"\",YEAR(TB_Consolidado[[#This Row],[DATA]]))","v":2025}]
[null,null,"2025-08-28","Receita","Bilheteria","Presença do público","EVENTO 2","Confirmado",{"v":1770,"d":"R$ 1,770.00"},{"$nulls":6},{"$f":"IF(TB_Consolidado[[#This Row],[DATA]]=\"\",\"\",MONTH(TB_Consolidado[[#This Row],[DATA]]))","v":8},{"$f":"IF(TB_Consolidado[[#This Row],[DATA]]=\"\",\"\",TEXT(TB_Consolidado[[#This Row],[DATA]],\"mmmm\"))","v":"August"},{"$f":"IF(TB_Consolidado[[#This Row],[Nome Mês]]=\"\",\"\",YEAR(TB_Consolidado[[#This Row],[DATA]]))","v":2025}]
[null,null,"2025-09-21","Receita","Bar","Receita de consumo","EVENTO 4","Confirmado",{"v":377,"d":"R$ 377.00"},{"$nulls":6},{"$f":"IF(TB_Consolidado[[#This Row],[DATA]]=\"\",\"\",MONTH(TB_Consolidado[[#This Row],[DATA]]))","v":9},{"$f":"IF(TB_Consolidado[[#This Row],[DATA]]=\"\",\"\",TEXT(TB_Consolidado[[#This Row],[DATA]],\"mmmm\"))","v":"September"},{"$f":"IF(TB_Consolidado[[#This Row],[Nome Mês]]=\"\",\"\",YEAR(TB_Consolidado[[#This Row],[DATA]]))","v":2025}]
[null,null,"2025-07-07","Receita","Bar","Receita de consumo","GERAL","Confirmado",{"v":505,"d":"R$ 505.00"},{"$nulls":6},{"$f":"IF(TB_Consolidado[[#This Row],[DATA]]=\"\",\"\",MONTH(TB_Consolidado[[#This Row],[DATA]]))","v":7},{"$f":"IF(TB_Consolidado[[#This Row],[DATA]]=\"\",\"\",TEXT(TB_Consolidado[[#This Row],[DATA]],\"mmmm\"))","v":"July"},{"$f":"IF(TB_Consolidado[[#This Row],[Nome Mês]]=\"\",\"\",YEAR(TB_Consolidado[[#This Row],[DATA]]))","v":2025}]
[null,null,"2025-06-13","Receita","Patrocinio","Receita externa","EVENTO 5","Confirmado",{"v":1452,"d":"R$ 1,452.00"},{"$nulls":6},{"$f":"IF(TB_Consolidado[[#This Row],[DATA]]=\"\",\"\",MONTH(TB_Consolidado[[#This Row],[DATA]]))","v":6},{"$f":"IF(TB_Consolidado[[#This Row],[DATA]]=\"\",\"\",TEXT(TB_Consolidado[[#This Row],[DATA]],\"mmmm\"))","v":"June"},{"$f":"IF(TB_Consolidado[[#This Row],[Nome Mês]]=\"\",\"\",YEAR(TB_Consolidado[[#This Row],[DATA]]))","v":2025}]
[null,null,"2025-06-27","Receita","Bar","Receita de consumo","GERAL","Confirmado",{"v":1892,"d":"R$ 1,892.00"},{"$nulls":6},{"$f":"IF(TB_Consolidado[[#This Row],[DATA]]=\"\",\"\",MONTH(TB_Consolidado[[#This Row],[DATA]]))","v":6},{"$f":"IF(TB_Consolidado[[#This Row],[DATA]]=\"\",\"\",TEXT(TB_Consolidado[[#This Row],[DATA]],\"mmmm\"))","v":"June"},{"$f":"IF(TB_Consolidado[[#This Row],[Nome Mês]]=\"\",\"\",YEAR(TB_Consolidado[[#This Row],[DATA]]))","v":2025}]
[null,null,"2025-03-19","Receita","Bilheteria","Presença do público","EVENTO 4","Confirmado",{"v":320,"d":"R$ 320.00"},{"$nulls":6},{"$f":"IF(TB_Consolidado[[#This Row],[DATA]]=\"\",\"\",MONTH(TB_Consolidado[[#This Row],[DATA]]))","v":3},{"$f":"IF(TB_Consolidado[[#This Row],[DATA]]=\"\",\"\",TEXT(TB_Consolidado[[#This Row],[DATA]],\"mmmm\"))","v":"March"},{"$f":"IF(TB_Consolidado[[#This Row],[Nome Mês]]=\"\",\"\",YEAR(TB_Consolidado[[#This Row],[DATA]]))","v":2025}]
[null,null,"2025-04-05","Receita","Patrocinio","Receita externa","EVENTO 3","Confirmado",{"v":454,"d":"R$ 454.00"},{"$nulls":6},{"$f":"IF(TB_Consolidado[[#This Row],[DATA]]=\"\",\"\",MONTH(TB_Consolidado[[#This Row],[DATA]]))","v":4},{"$f":"IF(TB_Consolidado[[#This Row],[DATA]]=\"\",\"\",TEXT(TB_Consolidado[[#This Row],[DATA]],\"mmmm\"))","v":"April"},{"$f":"IF(TB_Consolidado[[#This Row],[Nome Mês]]=\"\",\"\",YEAR(TB_Consolidado[[#This Row],[DATA]]))","v":2025}]
[null,null,"2025-04-26","Receita","Patrocinio","Receita externa","GERAL","Confirmado",{"v":1344,"d":"R$ 1,344.00"},{"$nulls":6},{"$f":"IF(TB_Consolidado[[#This Row],[DATA]]=\"\",\"\",MONTH(TB_Consolidado[[#This Row],[DATA]]))","v":4},{"$f":"IF(TB_Consolidado[[#This Row],[DATA]]=\"\",\"\",TEXT(TB_Consolidado[[#This Row],[DATA]],\"mmmm\"))","v":"April"},{"$f":"IF(TB_Consolidado[[#This Row],[Nome Mês]]=\"\",\"\",YEAR(TB_Consolidado[[#This Row],[DATA]]))","v":2025}]
[null,null,"2025-11-11","Receita","Bar","Receita de consumo","GERAL","Confirmado",{"v":1829,"d":"R$ 1,829.00"},{"$nulls":6},{"$f":"IF(TB_Consolidado[[#This Row],[DATA]]=\"\",\"\",MONTH(TB_Consolidado[[#This Row],[DATA]]))","v":11},{"$f":"IF(TB_Consolidado[[#This Row],[DATA]]=\"\",\"\",TEXT(TB_Consolidado[[#This Row],[DATA]],\"mmmm\"))","v":"November"},{"$f":"IF(TB_Consolidado[[#This Row],[Nome Mês]]=\"\",\"\",YEAR(TB_Consolidado[[#This Row],[DATA]]))","v":2025}]
[null,null,"2025-02-03","Receita","Patrocinio","Receita externa","EVENTO 5","Confirmado",{"v":1421,"d":"R$ 1,421.00"},{"$nulls":6},{"$f":"IF(TB_Consolidado[[#This Row],[DATA]]=\"\",\"\",MONTH(TB_Consolidado[[#This Row],[DATA]]))","v":2},{"$f":"IF(TB_Consolidado[[#This Row],[DATA]]=\"\",\"\",TEXT(TB_Consolidado[[#This Row],[DATA]],\"mmmm\"))","v":"February"},{"$f":"IF(TB_Consolidado[[#This Row],[Nome Mês]]=\"\",\"\",YEAR(TB_Consolidado[[#This Row],[DATA]]))","v":2025}]
[null,null,"2025-12-02","Receita","Bilheteria","Presença do público","EVENTO 1","Confirmado",{"v":326,"d":"R$ 326.00"},{"$nulls":6},{"$f":"IF(TB_Consolidado[[#This Row],[DATA]]=\"\",\"\",MONTH(TB_Consolidado[[#This Row],[DATA]]))","v":12},{"$f":"IF(TB_Consolidado[[#This Row],[DATA]]=\"\",\"\",TEXT(TB_Consolidado[[#This Row],[DATA]],\"mmmm\"))","v":"December"},{"$f":"IF(TB_Consolidado[[#This Row],[Nome Mês]]=\"\",\"\",YEAR(TB_Consolidado[[#This Row],[DATA]]))","v":2025}]
[null,null,"2025-11-06","Receita","Bilheteria","Presença do público","EVENTO 2","Confirmado",{"v":777,"d":"R$ 777.00"},{"$nulls":6},{"$f":"IF(TB_Consolidado[[#This Row],[DATA]]=\"\",\"\",MONTH(TB_Consolidado[[#This Row],[DATA]]))","v":11},{"$f":"IF(TB_Consolidado[[#This Row],[DATA]]=\"\",\"\",TEXT(TB_Consolidado[[#This Row],[DATA]],\"mmmm\"))","v":"November"},{"$f":"IF(TB_Consolidado[[#This Row],[Nome Mês]]=\"\",\"\",YEAR(TB_Consolidado[[#This Row],[DATA]]))","v":2025}]
[null,null,"2025-12-06","Receita","Bar","Receita de consumo","EVENTO 5","Confirmado",{"v":1344,"d":"R$ 1,344.00"},{"$nulls":6},{"$f":"IF(TB_Consolidado[[#This Row],[DATA]]=\"\",\"\",MONTH(TB_Consolidado[[#This Row],[DATA]]))","v":12},{"$f":"IF(TB_Consolidado[[#This Row],[DATA]]=\"\",\"\",TEXT(TB_Consolidado[[#This Row],[DATA]],\"mmmm\"))","v":"December"},{"$f":"IF(TB_Consolidado[[#This Row],[Nome Mês]]=\"\",\"\",YEAR(TB_Consolidado[[#This Row],[DATA]]))","v":2025}]
[null,null,"2025-01-02","Receita","Bar","Receita de consumo","EVENTO 5","Confirmado",{"v":1177,"d":"R$ 1,177.00"},{"$nulls":6},{"$f":"IF(TB_Consolidado[[#This Row],[DATA]]=\"\",\"\",MONTH(TB_Consolidado[[#This Row],[DATA]]))","v":1},{"$f":"IF(TB_Consolidado[[#This Row],[DATA]]=\"\",\"\",TEXT(TB_Consolidado[[#This Row],[DATA]],\"mmmm\"))","v":"January"},{"$f":"IF(TB_Consolidado[[#This Row],[Nome Mês]]=\"\",\"\",YEAR(TB_Consolidado[[#This Row],[DATA]]))","v":2025}]
[null,null,"2025-04-07","Receita","Patrocinio","Receita externa","EVENTO 2","Confirmado",{"v":1110,"d":"R$ 1,110.00"},{"$nulls":6},{"$f":"IF(TB_Consolidado[[#This Row],[DATA]]=\"\",\"\",MONTH(TB_Consolidado[[#This Row],[DATA]]))","v":4},{"$f":"IF(TB_Consolidado[[#This Row],[DATA]]=\"\",\"\",TEXT(TB_Consolidado[[#This Row],[DATA]],\"mmmm\"))","v":"April"},{"$f":"IF(TB_Consolidado[[#This Row],[Nome Mês]]=\"\",\"\",YEAR(TB_Consolidado[[#This Row],[DATA]]))","v":2025}]
[null,null,"2025-05-06","Receita","Patrocinio","Receita externa","EVENTO 1","Confirmado",{"v":465,"d":"R$ 465.00"},{"$nulls":6},{"$f":"IF(TB_Consolidado[[#This Row],[DATA]]=\"\",\"\",MONTH(TB_Consolidado[[#This Row],[DATA]]))","v":5},{"$f":"IF(TB_Consolidado[[#This Row],[DATA]]=\"\",\"\",TEXT(TB_Consolidado[[#This Row],[DATA]],\"mmmm\"))","v":"May"},{"$f":"IF(TB_Consolidado[[#This Row],[Nome Mês]]=\"\",\"\",YEAR(TB_Consolidado[[#This Row],[DATA]]))","v":2025}]
[null,null,"2025-02-11","Receita","Bilheteria","Presença do público","EVENTO 1","Confirmado",{"v":1312,"d":"R$ 1,312.00"},{"$nulls":6},{"$f":"IF(TB_Consolidado[[#This Row],[DATA]]=\"\",\"\",MONTH(TB_Consolidado[[#This Row],[DATA]]))","v":2},{"$f":"IF(TB_Consolidado[[#This Row],[DATA]]=\"\",\"\",TEXT(TB_Consolidado[[#This Row],[DATA]],\"mmmm\"))","v":"February"},{"$f":"IF(TB_Consolidado[[#This Row],[Nome Mês]]=\"\",\"\",YEAR(TB_Consolidado[[#This Row],[DATA]]))","v":2025}]
[null,null,"2025-06-10","Receita","Bar","Receita de consumo","EVENTO 1","Confirmado",{"v":1795,"d":"R$ 1,795.00"},{"$nulls":6},{"$f":"IF(TB_Consolidado[[#This Row],[DATA]]=\"\",\"\",MONTH(TB_Consolidado[[#This Row],[DATA]]))","v":6},{"$f":"IF(TB_Consolidado[[#This Row],[DATA]]=\"\",\"\",TEXT(TB_Consolidado[[#This Row],[DATA]],\"mmmm\"))","v":"June"},{"$f":"IF(TB_Consolidado[[#This Row],[Nome Mês]]=\"\",\"\",YEAR(TB_Consolidado[[#This Row],[DATA]]))","v":2025}]
[null,null,"2025-06-18","Receita","Patrocinio","Receita externa","EVENTO 2","Confirmado",{"v":518,"d":"R$ 518.00"},{"$nulls":6},{"$f":"IF(TB_Consolidado[[#This Row],[DATA]]=\"\",\"\",MONTH(TB_Consolidado[[#This Row],[DATA]]))","v":6},{"$f":"IF(TB_Consolidado[[#This Row],[DATA]]=\"\",\"\",TEXT(TB_Consolidado[[#This Row],[DATA]],\"mmmm\"))","v":"June"},{"$f":"IF(TB_Consolidado[[#This Row],[Nome Mês]]=\"\",\"\",YEAR(TB_Consolidado[[#This Row],[DATA]]))","v":2025}]
[null,null,"2025-05-25","Receita","Bilheteria","Presença do público","GERAL","Confirmado",{"v":1296,"d":"R$ 1,296.00"},{"$nulls":6},{"$f":"IF(TB_Consolidado[[#This Row],[DATA]]=\"\",\"\",MONTH(TB_Consolidado[[#This Row],[DATA]]))","v":5},{"$f":"IF(TB_Consolidado[[#This Row],[DATA]]=\"\",\"\",TEXT(TB_Consolidado[[#This Row],[DATA]],\"mmmm\"))","v":"May"},{"$f":"IF(TB_Consolidado[[#This Row],[Nome Mês]]=\"\",\"\",YEAR(TB_Consolidado[[#This Row],[DATA]]))","v":2025}]
[null,null,"2025-08-18","Receita","Patrocinio","Receita externa","EVENTO 4","Confirmado",{"v":421,"d":"R$ 421.00"},{"$nulls":6},{"$f":"IF(TB_Consolidado[[#This Row],[DATA]]=\"\",\"\",MONTH(TB_Consolidado[[#This Row],[DATA]]))","v":8},{"$f":"IF(TB_Consolidado[[#This Row],[DATA]]=\"\",\"\",TEXT(TB_Consolidado[[#This Row],[DATA]],\"mmmm\"))","v":"August"},{"$f":"IF(TB_Consolidado[[#This Row],[Nome Mês]]=\"\",\"\",YEAR(TB_Consolidado[[#This Row],[DATA]]))","v":2025}]
[null,null,"2025-12-13","Receita","Bilheteria","Presença do público","GERAL","Confirmado",{"v":1163,"d":"R$ 1,163.00"},{"$nulls":6},{"$f":"IF(TB_Consolidado[[#This Row],[DATA]]=\"\",\"\",MONTH(TB_Consolidado[[#This Row],[DATA]]))","v":12},{"$f":"IF(TB_Consolidado[[#This Row],[DATA]]=\"\",\"\",TEXT(TB_Consolidado[[#This Row],[DATA]],\"mmmm\"))","v":"December"},{"$f":"IF(TB_Consolidado[[#This Row],[Nome Mês]]=\"\",\"\",YEAR(TB_Consolidado[[#This Row],[DATA]]))","v":2025}]
[null,null,"2025-07-19","Receita","Patrocinio","Receita externa","EVENTO 4","Confirmado",{"v":1712,"d":"R$ 1,712.00"},{"$nulls":6},{"$f":"IF(TB_Consolidado[[#This Row],[DATA]]=\"\",\"\",MONTH(TB_Consolidado[[#This Row],[DATA]]))","v":7},{"$f":"IF(TB_Consolidado[[#This Row],[DATA]]=\"\",\"\",TEXT(TB_Consolidado[[#This Row],[DATA]],\"mmmm\"))","v":"July"},{"$f":"IF(TB_Consolidado[[#This Row],[Nome Mês]]=\"\",\"\",YEAR(TB_Consolidado[[#This Row],[DATA]]))","v":2025}]
[null,null,"2025-02-14","Receita","Bilheteria","Presença do público","EVENTO 3","Confirmado",{"v":349,"d":"R$ 349.00"},{"$nulls":6},{"$f":"IF(TB_Consolidado[[#This Row],[DATA]]=\"\",\"\",MONTH(TB_Consolidado[[#This Row],[DATA]]))","v":2},{"$f":"IF(TB_Consolidado[[#This Row],[DATA]]=\"\",\"\",TEXT(TB_Consolidado[[#This Row],[DATA]],\"mmmm\"))","v":"February"},{"$f":"IF(TB_Consolidado[[#This Row],[Nome Mês]]=\"\",\"\",YEAR(TB_Consolidado[[#This Row],[DATA]]))","v":2025}]
[null,null,"2025-12-17","Receita","Patrocinio","Receita externa","EVENTO 5","Cancelado",{"v":1999,"d":"R$ 1,999.00"},{"$nulls":6},{"$f":"IF(TB_Consolidado[[#This Row],[DATA]]=\"\",\"\",MONTH(TB_Consolidado[[#This Row],[DATA]]))","v":12},{"$f":"IF(TB_Consolidado[[#This Row],[DATA]]=\"\",\"\",TEXT(TB_Consolidado[[#This Row],[DATA]],\"mmmm\"))","v":"December"},{"$f":"IF(TB_Consolidado[[#This Row],[Nome Mês]]=\"\",\"\",YEAR(TB_Consolidado[[#This Row],[DATA]]))","v":2025}]
[null,null,"2025-03-17","Receita","Bilheteria","Presença do público","GERAL","Confirmado",{"v":1751,"d":"R$ 1,751.00"},{"$nulls":6},{"$f":"IF(TB_Consolidado[[#This Row],[DATA]]=\"\",\"\",MONTH(TB_Consolidado[[#This Row],[DATA]]))","v":3},{"$f":"IF(TB_Consolidado[[#This Row],[DATA]]=\"\",\"\",TEXT(TB_Consolidado[[#This Row],[DATA]],\"mmmm\"))","v":"March"},{"$f":"IF(TB_Consolidado[[#This Row],[Nome Mês]]=\"\",\"\",YEAR(TB_Consolidado[[#This Row],[DATA]]))","v":2025}]
[null,null,"2025-12-07","Receita","Patrocinio","Receita externa","EVENTO 2","Confirmado",{"v":550,"d":"R$ 550.00"},{"$nulls":6},{"$f":"IF(TB_Consolidado[[#This Row],[DATA]]=\"\",\"\",MONTH(TB_Consolidado[[#This Row],[DATA]]))","v":12},{"$f":"IF(TB_Consolidado[[#This Row],[DATA]]=\"\",\"\",TEXT(TB_Consolidado[[#This Row],[DATA]],\"mmmm\"))","v":"December"},{"$f":"IF(TB_Consolidado[[#This Row],[Nome Mês]]=\"\",\"\",YEAR(TB_Consolidado[[#This Row],[DATA]]))","v":2025}]
[null,null,"2025-02-21","Receita","Bar","Receita de consumo","EVENTO 1","Confirmado",{"v":531,"d":"R$ 531.00"},{"$nulls":6},{"$f":"IF(TB_Consolidado[[#This Row],[DATA]]=\"\",\"\",MONTH(TB_Consolidado[[#This Row],[DATA]]))","v":2},{"$f":"IF(TB_Consolidado[[#This Row],[DATA]]=\"\",\"\",TEXT(TB_Consolidado[[#This Row],[DATA]],\"mmmm\"))","v":"February"},{"$f":"IF(TB_Consolidado[[#This Row],[Nome Mês]]=\"\",\"\",YEAR(TB_Consolidado[[#This Row],[DATA]]))","v":2025}]
[null,null,"2025-08-20","Receita","Bilheteria","Presença do público","EVENTO 4","Agendado",{"v":373,"d":"R$ 373.00"},{"$nulls":6},{"$f":"IF(TB_Consolidado[[#This Row],[DATA]]=\"\",\"\",MONTH(TB_Consolidado[[#This Row],[DATA]]))","v":8},{"$f":"IF(TB_Consolidado[[#This Row],[DATA]]=\"\",\"\",TEXT(TB_Consolidado[[#This Row],[DATA]],\"mmmm\"))","v":"August"},{"$f":"IF(TB_Consolidado[[#This Row],[Nome Mês]]=\"\",\"\",YEAR(TB_Consolidado[[#This Row],[DATA]]))","v":2025}]
[null,null,"2025-12-03","Receita","Patrocinio","Receita externa","GERAL","Confirmado",{"v":1939,"d":"R$ 1,939.00"},{"$nulls":6},{"$f":"IF(TB_Consolidado[[#This Row],[DATA]]=\"\",\"\",MONTH(TB_Consolidado[[#This Row],[DATA]]))","v":12},{"$f":"IF(TB_Consolidado[[#This Row],[DATA]]=\"\",\"\",TEXT(TB_Consolidado[[#This Row],[DATA]],\"mmmm\"))","v":"December"},{"$f":"IF(TB_Consolidado[[#This Row],[Nome Mês]]=\"\",\"\",YEAR(TB_Consolidado[[#This Row],[DATA]]))","v":2025}]
[null,null,"2025-12-25","Receita","Patrocinio","Receita externa","EVENTO 1","Confirmado",{"v":1801,"d":"R$ 1,801.00"},{"$nulls":6},{"$f":"IF(TB_Consolidado[[#This Row],[DATA]]=\"\",\"\",MONTH(TB_Consolidado[[#This Row],[DATA]]))","v":12},{"$f":"IF(TB_Consolidado[[#This Row],[DATA]]=\"\",\"\",TEXT(TB_Consolidado[[#This Row],[DATA]],\"mmmm\"))","v":"December"},{"$f":"IF(TB_Consolidado[[#This Row],[Nome Mês]]=\"\",\"\",YEAR(TB_Consolidado[[#This Row],[DATA]]))","v":2025}]
[null,null,"2025-07-23","Receita","Bilheteria","Presença do público","EVENTO 1","Confirmado",{"v":1981,"d":"R$ 1,981.00"},{"$nulls":6},{"$f":"IF(TB_Consolidado[[#This Row],[DATA]]=\"\",\"\",MONTH(TB_Consolidado[[#This Row],[DATA]]))","v":7},{"$f":"IF(TB_Consolidado[[#This Row],[DATA]]=\"\",\"\",TEXT(TB_Consolidado[[#This Row],[DATA]],\"mmmm\"))","v":"July"},{"$f":"IF(TB_Consolidado[[#This Row],[Nome Mês]]=\"\",\"\",YEAR(TB_Consolidado[[#This Row],[DATA]]))","v":2025}]
[null,null,"2025-02-17","Receita","Bar","Receita de consumo","EVENTO 4","Confirmado",{"v":1745,"d":"R$ 1,745.00"},{"$nulls":6},{"$f":"IF(TB_Consolidado[[#This Row],[DATA]]=\"\",\"\",MONTH(TB_Consolidado[[#This Row],[DATA]]))","v":2},{"$f":"IF(TB_Consolidado[[#This Row],[DATA]]=\"\",\"\",TEXT(TB_Consolidado[[#This Row],[DATA]],\"mmmm\"))","v":"February"},{"$f":"IF(TB_Consolidado[[#This Row],[Nome Mês]]=\"\",\"\",YEAR(TB_Consolidado[[#This Row],[DATA]]))","v":2025}]
[null,null,"2025-11-11","Receita","Patrocinio","Receita externa","EVENTO 4","Confirmado",{"v":1145,"d":"R$ 1,145.00"},{"$nulls":6},{"$f":"IF(TB_Consolidado[[#This Row],[DATA]]=\"\",\"\",MONTH(TB_Consolidado[[#This Row],[DATA]]))","v":11},{"$f":"IF(TB_Consolidado[[#This Row],[DATA]]=\"\",\"\",TEXT(TB_Consolidado[[#This Row],[DATA]],\"mmmm\"))","v":"November"},{"$f":"IF(TB_Consolidado[[#This Row],[Nome Mês]]=\"\",\"\",YEAR(TB_Consolidado[[#This Row],[DATA]]))","v":2025}]
[null,null,"2025-10-27","Receita","Patrocinio","Receita externa","EVENTO 3","Confirmado",{"v":1502,"d":"R$ 1,502.00"},{"$nulls":6},{"$f":"IF(TB_Consolidado[[#This Row],[DATA]]=\"\",\"\",MONTH(TB_Consolidado[[#This Row],[DATA]]))","v":10},{"$f":"IF(TB_Consolidado[[#This Row],[DATA]]=\"\",\"\",TEXT(TB_Consolidado[[#This Row],[DATA]],\"mmmm\"))","v":"October"},{"$f":"IF(TB_Consolidado[[#This Row],[Nome Mês]]=\"\",\"\",YEAR(TB_Consolidado[[#This Row],[DATA]]))","v":2025}]
[null,null,"2025-04-08","Receita","Patrocinio","Receita externa","GERAL","Confirmado",{"v":1797,"d":"R$ 1,797.00"},{"$nulls":6},{"$f":"IF(TB_Consolidado[[#This Row],[DATA]]=\"\",\"\",MONTH(TB_Consolidado[[#This Row],[DATA]]))","v":4},{"$f":"IF(TB_Consolidado[[#This Row],[DATA]]=\"\",\"\",TEXT(TB_Consolidado[[#This Row],[DATA]],\"mmmm\"))","v":"April"},{"$f":"IF(TB_Consolidado[[#This Row],[Nome Mês]]=\"\",\"\",YEAR(TB_Consolidado[[#This Row],[DATA]]))","v":2025}]
[null,null,"2025-11-14","Receita","Bilheteria","Presença do público","EVENTO 3","Confirmado",{"v":1766,"d":"R$ 1,766.00"},{"$nulls":6},{"$f":"IF(TB_Consolidado[[#This Row],[DATA]]=\"\",\"\",MONTH(TB_Consolidado[[#This Row],[DATA]]))","v":11},{"$f":"IF(TB_Consolidado[[#This Row],[DATA]]=\"\",\"\",TEXT(TB_Consolidado[[#This Row],[DATA]],\"mmmm\"))","v":"November"},{"$f":"IF(TB_Consolidado[[#This Row],[Nome Mês]]=\"\",\"\",YEAR(TB_Consolidado[[#This Row],[DATA]]))","v":2025}]
[null,null,"2025-12-23","Receita","Bilheteria","Presença do público","EVENTO 2","Confirmado",{"v":499,"d":"R$ 499.00"},{"$nulls":6},{"$f":"IF(TB_Consolidado[[#This Row],[DATA]]=\"\",\"\",MONTH(TB_Consolidado[[#This Row],[DATA]]))","v":12},{"$f":"IF(TB_Consolidado[[#This Row],[DATA]]=\"\",\"\",TEXT(TB_Consolidado[[#This Row],[DATA]],\"mmmm\"))","v":"December"},{"$f":"IF(TB_Consolidado[[#This Row],[Nome Mês]]=\"\",\"\",YEAR(TB_Consolidado[[#This Row],[DATA]]))","v":2025}]
[null,null,"2025-05-17","Receita","Bilheteria","Presença do público","EVENTO 3","Confirmado",{"v":1712,"d":"R$ 1,712.00"},{"$nulls":6},{"$f":"IF(TB_Consolidado[[#This Row],[DATA]]=\"\",\"\",MONTH(TB_Consolidado[[#This Row],[DATA]]))","v":5},{"$f":"IF(TB_Consolidado[[#This Row],[DATA]]=\"\",\"\",TEXT(TB_Consolidado[[#This Row],[DATA]],\"mmmm\"))","v":"May"},{"$f":"IF(TB_Consolidado[[#This Row],[Nome Mês]]=\"\",\"\",YEAR(TB_Consolidado[[#This Row],[DATA]]))","v":2025}]
[null,null,"2025-01-14","Receita","Bar","Receita de consumo","EVENTO 3","Confirmado",{"v":756,"d":"R$ 756.00"},{"$nulls":6},{"$f":"IF(TB_Consolidado[[#This Row],[DATA]]=\"\",\"\",MONTH(TB_Consolidado[[#This Row],[DATA]]))","v":1},{"$f":"IF(TB_Consolidado[[#This Row],[DATA]]=\"\",\"\",TEXT(TB_Consolidado[[#This Row],[DATA]],\"mmmm\"))","v":"January"},{"$f":"IF(TB_Consolidado[[#This Row],[Nome Mês]]=\"\",\"\",YEAR(TB_Consolidado[[#This Row],[DATA]]))","v":2025}]
[null,null,"2025-02-19","Receita","Patrocinio","Receita externa","EVENTO 3","Confirmado",{"v":1499,"d":"R$ 1,499.00"},{"$nulls":6},{"$f":"IF(TB_Consolidado[[#This Row],[DATA]]=\"\",\"\",MONTH(TB_Consolidado[[#This Row],[DATA]]))","v":2},{"$f":"IF(TB_Consolidado[[#This Row],[DATA]]=\"\",\"\",TEXT(TB_Consolidado[[#This Row],[DATA]],\"mmmm\"))","v":"February"},{"$f":"IF(TB_Consolidado[[#This Row],[Nome Mês]]=\"\",\"\",YEAR(TB_Consolidado[[#This Row],[DATA]]))","v":2025}]
[null,null,"2025-01-01","Receita","Patrocinio","Receita externa","EVENTO 1","Confirmado",{"v":889,"d":"R$ 889.00"},{"$nulls":6},{"$f":"IF(TB_Consolidado[[#This Row],[DATA]]=\"\",\"\",MONTH(TB_Consolidado[[#This Row],[DATA]]))","v":1},{"$f":"IF(TB_Consolidado[[#This Row],[DATA]]=\"\",\"\",TEXT(TB_Consolidado[[#This Row],[DATA]],\"mmmm\"))","v":"January"},{"$f":"IF(TB_Consolidado[[#This Row],[Nome Mês]]=\"\",\"\",YEAR(TB_Consolidado[[#This Row],[DATA]]))","v":2025}]
[null,null,"2025-06-20","Receita","Bilheteria","Presença do público","EVENTO 1","Confirmado",{"v":461,"d":"R$ 461.00"},{"$nulls":6},{"$f":"IF(TB_Consolidado[[#This Row],[DATA]]=\"\",\"\",MONTH(TB_Consolidado[[#This Row],[DATA]]))","v":6},{"$f":"IF(TB_Consolidado[[#This Row],[DATA]]=\"\",\"\",TEXT(TB_Consolidado[[#This Row],[DATA]],\"mmmm\"))","v":"June"},{"$f":"IF(TB_Consolidado[[#This Row],[Nome Mês]]=\"\",\"\",YEAR(TB_Consolidado[[#This Row],[DATA]]))","v":2025}]
[null,null,"2025-07-11","Receita","Bilheteria","Presença do público","EVENTO 4","Confirmado",{"v":678,"d":"R$ 678.00"},{"$nulls":6},{"$f":"IF(TB_Consolidado[[#This Row],[DATA]]=\"\",\"\",MONTH(TB_Consolidado[[#This Row],[DATA]]))","v":7},{"$f":"IF(TB_Consolidado[[#This Row],[DATA]]=\"\",\"\",TEXT(TB_Consolidado[[#This Row],[DATA]],\"mmmm\"))","v":"July"},{"$f":"IF(TB_Consolidado[[#This Row],[Nome Mês]]=\"\",\"\",YEAR(TB_Consolidado[[#This Row],[DATA]]))","v":2025}]
[null,null,"2025-03-03","Receita","Bilheteria","Presença do público","EVENTO 1","Confirmado",{"v":1655,"d":"R$ 1,655.00"},{"$nulls":6},{"$f":"IF(TB_Consolidado[[#This Row],[DATA]]=\"\",\"\",MONTH(TB_Consolidado[[#This Row],[DATA]]))","v":3},{"$f":"IF(TB_Consolidado[[#This Row],[DATA]]=\"\",\"\",TEXT(TB_Consolidado[[#This Row],[DATA]],\"mmmm\"))","v":"March"},{"$f":"IF(TB_Consolidado[[#This Row],[Nome Mês]]=\"\",\"\",YEAR(TB_Consolidado[[#This Row],[DATA]]))","v":2025}]
[null,null,"2025-03-01","Receita","Bar","Receita de consumo","EVENTO 3","Confirmado",{"v":1565,"d":"R$ 1,565.00"},{"$nulls":6},{"$f":"IF(TB_Consolidado[[#This Row],[DATA]]=\"\",\"\",MONTH(TB_Consolidado[[#This Row],[DATA]]))","v":3},{"$f":"IF(TB_Consolidado[[#This Row],[DATA]]=\"\",\"\",TEXT(TB_Consolidado[[#This Row],[DATA]],\"mmmm\"))","v":"March"},{"$f":"IF(TB_Consolidado[[#This Row],[Nome Mês]]=\"\",\"\",YEAR(TB_Consolidado[[#This Row],[DATA]]))","v":2025}]
[null,null,"2025-05-27","Receita","Patrocinio","Receita externa","EVENTO 2","Confirmado",{"v":612,"d":"R$ 612.00"},{"$nulls":6},{"$f":"IF(TB_Consolidado[[#This Row],[DATA]]=\"\",\"\",MONTH(TB_Consolidado[[#This Row],[DATA]]))","v":5},{"$f":"IF(TB_Consolidado[[#This Row],[DATA]]=\"\",\"\",TEXT(TB_Consolidado[[#This Row],[DATA]],\"mmmm\"))","v":"May"},{"$f":"IF(TB_Consolidado[[#This Row],[Nome Mês]]=\"\",\"\",YEAR(TB_Consolidado[[#This Row],[DATA]]))","v":2025}]
[null,null,"2025-10-12","Receita","Bilheteria","Presença do público","GERAL","Confirmado",{"v":803,"d":"R$ 803.00"},{"$nulls":6},{"$f":"IF(TB_Consolidado[[#This Row],[DATA]]=\"\",\"\",MONTH(TB_Consolidado[[#This Row],[DATA]]))","v":10},{"$f":"IF(TB_Consolidado[[#This Row],[DATA]]=\"\",\"\",TEXT(TB_Consolidado[[#This Row],[DATA]],\"mmmm\"))","v":"October"},{"$f":"IF(TB_Consolidado[[#This Row],[Nome Mês]]=\"\",\"\",YEAR(TB_Consolidado[[#This Row],[DATA]]))","v":2025}]
[null,null,"2025-10-09","Receita","Bilheteria","Presença do público","EVENTO 5","Confirmado",{"v":998,"d":"R$ 998.00"},{"$nulls":6},{"$f":"IF(TB_Consolidado[[#This Row],[DATA]]=\"\",\"\",MONTH(TB_Consolidado[[#This Row],[DATA]]))","v":10},{"$f":"IF(TB_Consolidado[[#This Row],[DATA]]=\"\",\"\",TEXT(TB_Consolidado[[#This Row],[DATA]],\"mmmm\"))","v":"October"},{"$f":"IF(TB_Consolidado[[#This Row],[Nome Mês]]=\"\",\"\",YEAR(TB_Consolidado[[#This Row],[DATA]]))","v":2025}]
[null,null,"2025-08-05","Receita","Bar","Receita de consumo","GERAL","Confirmado",{"v":819,"d":"R$ 819.00"},{"$nulls":6},{"$f":"IF(TB_Consolidado[[#This Row],[DATA]]=\"\",\"\",MONTH(TB_Consolidado[[#This Row],[DATA]]))","v":8},{"$f":"IF(TB_Consolidado[[#This Row],[DATA]]=\"\",\"\",TEXT(TB_Consolidado[[#This Row],[DATA]],\"mmmm\"))","v":"August"},{"$f":"IF(TB_Consolidado[[#This Row],[Nome Mês]]=\"\",\"\",YEAR(TB_Consolidado[[#This Row],[DATA]]))","v":2025}]
[null,null,"2025-04-12","Receita","Bar","Receita de consumo","EVENTO 2","Confirmado",{"v":1317,"d":"R$ 1,317.00"},{"$nulls":6},{"$f":"IF(TB_Consolidado[[#This Row],[DATA]]=\"\",\"\",MONTH(TB_Consolidado[[#This Row],[DATA]]))","v":4},{"$f":"IF(TB_Consolidado[[#This Row],[DATA]]=\"\",\"\",TEXT(TB_Consolidado[[#This Row],[DATA]],\"mmmm\"))","v":"April"},{"$f":"IF(TB_Consolidado[[#This Row],[Nome Mês]]=\"\",\"\",YEAR(TB_Consolidado[[#This Row],[DATA]]))","v":2025}]
[null,null,"2025-01-16","Receita","Patrocinio","Receita externa","EVENTO 3","Confirmado",{"v":583,"d":"R$ 583.00"},{"$nulls":6},{"$f":"IF(TB_Consolidado[[#This Row],[DATA]]=\"\",\"\",MONTH(TB_Consolidado[[#This Row],[DATA]]))","v":1},{"$f":"IF(TB_Consolidado[[#This Row],[DATA]]=\"\",\"\",TEXT(TB_Consolidado[[#This Row],[DATA]],\"mmmm\"))","v":"January"},{"$f":"IF(TB_Consolidado[[#This Row],[Nome Mês]]=\"\",\"\",YEAR(TB_Consolidado[[#This Row],[DATA]]))","v":2025}]
[null,null,"2025-01-23","Receita","Bar","Receita de consumo","EVENTO 3","Confirmado",{"v":1272,"d":"R$ 1,272.00"},{"$nulls":6},{"$f":"IF(TB_Consolidado[[#This Row],[DATA]]=\"\",\"\",MONTH(TB_Consolidado[[#This Row],[DATA]]))","v":1},{"$f":"IF(TB_Consolidado[[#This Row],[DATA]]=\"\",\"\",TEXT(TB_Consolidado[[#This Row],[DATA]],\"mmmm\"))","v":"January"},{"$f":"IF(TB_Consolidado[[#This Row],[Nome Mês]]=\"\",\"\",YEAR(TB_Consolidado[[#This Row],[DATA]]))","v":2025}]
[null,null,"2025-11-27","Receita","Bar","Receita de consumo","EVENTO 4","Confirmado",{"v":1983,"d":"R$ 1,983.00"},{"$nulls":6},{"$f":"IF(TB_Consolidado[[#This Row],[DATA]]=\"\",\"\",MONTH(TB_Consolidado[[#This Row],[DATA]]))","v":11},{"$f":"IF(TB_Consolidado[[#This Row],[DATA]]=\"\",\"\",TEXT(TB_Consolidado[[#This Row],[DATA]],\"mmmm\"))","v":"November"},{"$f":"IF(TB_Consolidado[[#This Row],[Nome Mês]]=\"\",\"\",YEAR(TB_Consolidado[[#This Row],[DATA]]))","v":2025}]
[null,null,"2025-05-24","Receita","Bar","Receita de consumo","GERAL","Confirmado",{"v":1827,"d":"R$ 1,827.00"},{"$nulls":6},{"$f":"IF(TB_Consolidado[[#This Row],[DATA]]=\"\",\"\",MONTH(TB_Consolidado[[#This Row],[DATA]]))","v":5},{"$f":"IF(TB_Consolidado[[#This Row],[DATA]]=\"\",\"\",TEXT(TB_Consolidado[[#This Row],[DATA]],\"mmmm\"))","v":"May"},{"$f":"IF(TB_Consolidado[[#This Row],[Nome Mês]]=\"\",\"\",YEAR(TB_Consolidado[[#This Row],[DATA]]))","v":2025}]
[null,null,"2025-11-10","Receita","Bar","Receita de consumo","EVENTO 4","Confirmado",{"v":388,"d":"R$ 388.00"},{"$nulls":6},{"$f":"IF(TB_Consolidado[[#This Row],[DATA]]=\"\",\"\",MONTH(TB_Consolidado[[#This Row],[DATA]]))","v":11},{"$f":"IF(TB_Consolidado[[#This Row],[DATA]]=\"\",\"\",TEXT(TB_Consolidado[[#This Row],[DATA]],\"mmmm\"))","v":"November"},{"$f":"IF(TB_Consolidado[[#This Row],[Nome Mês]]=\"\",\"\",YEAR(TB_Consolidado[[#This Row],[DATA]]))","v":2025}]
[null,null,"2025-01-06","Receita","Bilheteria","Presença do público","EVENTO 1","Cancelado",{"v":1232,"d":"R$ 1,232.00"},{"$nulls":6},{"$f":"IF(TB_Consolidado[[#This Row],[DATA]]=\"\",\"\",MONTH(TB_Consolidado[[#This Row],[DATA]]))","v":1},{"$f":"IF(TB_Consolidado[[#This Row],[DATA]]=\"\",\"\",TEXT(TB_Consolidado[[#This Row],[DATA]],\"mmmm\"))","v":"January"},{"$f":"IF(TB_Consolidado[[#This Row],[Nome Mês]]=\"\",\"\",YEAR(TB_Consolidado[[#This Row],[DATA]]))","v":2025}]
[null,null,"2025-11-28","Receita","Bar","Receita de consumo","EVENTO 2","Confirmado",{"v":364,"d":"R$ 364.00"},{"$nulls":6},{"$f":"IF(TB_Consolidado[[#This Row],[DATA]]=\"\",\"\",MONTH(TB_Consolidado[[#This Row],[DATA]]))","v":11},{"$f":"IF(TB_Consolidado[[#This Row],[DATA]]=\"\",\"\",TEXT(TB_Consolidado[[#This Row],[DATA]],\"mmmm\"))","v":"November"},{"$f":"IF(TB_Consolidado[[#This Row],[Nome Mês]]=\"\",\"\",YEAR(TB_Consolidado[[#This Row],[DATA]]))","v":2025}]
[null,null,"2025-06-24","Receita","Bar","Receita de consumo","EVENTO 2","Confirmado",{"v":1229,"d":"R$ 1,229.00"},{"$nulls":6},{"$f":"IF(TB_Consolidado[[#This Row],[DATA]]=\"\",\"\",MONTH(TB_Consolidado[[#This Row],[DATA]]))","v":6},{"$f":"IF(TB_Consolidado[[#This Row],[DATA]]=\"\",\"\",TEXT(TB_Consolidado[[#This Row],[DATA]],\"mmmm\"))","v":"June"},{"$f":"IF(TB_Consolidado[[#This Row],[Nome Mês]]=\"\",\"\",YEAR(TB_Consolidado[[#This Row],[DATA]]))","v":2025}]
[null,null,"2025-03-18","Receita","Bar","Receita de consumo","EVENTO 2","Confirmado",{"v":689,"d":"R$ 689.00"},{"$nulls":6},{"$f":"IF(TB_Consolidado[[#This Row],[DATA]]=\"\",\"\",MONTH(TB_Consolidado[[#This Row],[DATA]]))","v":3},{"$f":"IF(TB_Consolidado[[#This Row],[DATA]]=\"\",\"\",TEXT(TB_Consolidado[[#This Row],[DATA]],\"mmmm\"))","v":"March"},{"$f":"IF(TB_Consolidado[[#This Row],[Nome Mês]]=\"\",\"\",YEAR(TB_Consolidado[[#This Row],[DATA]]))","v":2025}]
[null,null,"2025-05-08","Receita","Bilheteria","Presença do público","EVENTO 2","Agendado",{"v":1381,"d":"R$ 1,381.00"},{"$nulls":6},{"$f":"IF(TB_Consolidado[[#This Row],[DATA]]=\"\",\"\",MONTH(TB_Consolidado[[#This Row],[DATA]]))","v":5},{"$f":"IF(TB_Consolidado[[#This Row],[DATA]]=\"\",\"\",TEXT(TB_Consolidado[[#This Row],[DATA]],\"mmmm\"))","v":"May"},{"$f":"IF(TB_Consolidado[[#This Row],[Nome Mês]]=\"\",\"\",YEAR(TB_Consolidado[[#This Row],[DATA]]))","v":2025}]
[null,null,"2025-09-17","Receita","Bilheteria","Presença do público","EVENTO 2","Confirmado",{"v":781,"d":"R$ 781.00"},{"$nulls":6},{"$f":"IF(TB_Consolidado[[#This Row],[DATA]]=\"\",\"\",MONTH(TB_Consolidado[[#This Row],[DATA]]))","v":9},{"$f":"IF(TB_Consolidado[[#This Row],[DATA]]=\"\",\"\",TEXT(TB_Consolidado[[#This Row],[DATA]],\"mmmm\"))","v":"September"},{"$f":"IF(TB_Consolidado[[#This Row],[Nome Mês]]=\"\",\"\",YEAR(TB_Consolidado[[#This Row],[DATA]]))","v":2025}]
[null,null,"2025-08-20","Receita","Bar","Receita de consumo","EVENTO 4","Confirmado",{"v":1154,"d":"R$ 1,154.00"},{"$nulls":6},{"$f":"IF(TB_Consolidado[[#This Row],[DATA]]=\"\",\"\",MONTH(TB_Consolidado[[#This Row],[DATA]]))","v":8},{"$f":"IF(TB_Consolidado[[#This Row],[DATA]]=\"\",\"\",TEXT(TB_Consolidado[[#This Row],[DATA]],\"mmmm\"))","v":"August"},{"$f":"IF(TB_Consolidado[[#This Row],[Nome Mês]]=\"\",\"\",YEAR(TB_Consolidado[[#This Row],[DATA]]))","v":2025}]
[null,null,"2025-12-04","Receita","Patrocinio","Receita externa","EVENTO 5","Confirmado",{"v":709,"d":"R$ 709.00"},{"$nulls":6},{"$f":"IF(TB_Consolidado[[#This Row],[DATA]]=\"\",\"\",MONTH(TB_Consolidado[[#This Row],[DATA]]))","v":12},{"$f":"IF(TB_Consolidado[[#This Row],[DATA]]=\"\",\"\",TEXT(TB_Consolidado[[#This Row],[DATA]],\"mmmm\"))","v":"December"},{"$f":"IF(TB_Consolidado[[#This Row],[Nome Mês]]=\"\",\"\",YEAR(TB_Consolidado[[#This Row],[DATA]]))","v":2025}]
[null,null,"2025-10-26","Receita","Bar","Receita de consumo","EVENTO 2","Confirmado",{"v":740,"d":"R$ 740.00"},{"$nulls":6},{"$f":"IF(TB_Consolidado[[#This Row],[DATA]]=\"\",\"\",MONTH(TB_Consolidado[[#This Row],[DATA]]))","v":10},{"$f":"IF(TB_Consolidado[[#This Row],[DATA]]=\"\",\"\",TEXT(TB_Consolidado[[#This Row],[DATA]],\"mmmm\"))","v":"October"},{"$f":"IF(TB_Consolidado[[#This Row],[Nome Mês]]=\"\",\"\",YEAR(TB_Consolidado[[#This Row],[DATA]]))","v":2025}]
[null,null,"2025-09-03","Receita","Patrocinio","Receita externa","EVENTO 3","Confirmado",{"v":1834,"d":"R$ 1,834.00"},{"$nulls":6},{"$f":"IF(TB_Consolidado[[#This Row],[DATA]]=\"\",\"\",MONTH(TB_Consolidado[[#This Row],[DATA]]))","v":9},{"$f":"IF(TB_Consolidado[[#This Row],[DATA]]=\"\",\"\",TEXT(TB_Consolidado[[#This Row],[DATA]],\"mmmm\"))","v":"September"},{"$f":"IF(TB_Consolidado[[#This Row],[Nome Mês]]=\"\",\"\",YEAR(TB_Consolidado[[#This Row],[DATA]]))","v":2025}]
[null,null,"2025-04-21","Receita","Patrocinio","Receita externa","EVENTO 1","Confirmado",{"v":1259,"d":"R$ 1,259.00"},{"$nulls":6},{"$f":"IF(TB_Consolidado[[#This Row],[DATA]]=\"\",\"\",MONTH(TB_Consolidado[[#This Row],[DATA]]))","v":4},{"$f":"IF(TB_Consolidado[[#This Row],[DATA]]=\"\",\"\",TEXT(TB_Consolidado[[#This Row],[DATA]],\"mmmm\"))","v":"April"},{"$f":"IF(TB_Consolidado[[#This Row],[Nome Mês]]=\"\",\"\",YEAR(TB_Consolidado[[#This Row],[DATA]]))","v":2025}]
[null,null,"2025-10-14","Receita","Bilheteria","Presença do público","EVENTO 5","Confirmado",{"v":1402,"d":"R$ 1,402.00"},{"$nulls":6},{"$f":"IF(TB_Consolidado[[#This Row],[DATA]]=\"\",\"\",MONTH(TB_Consolidado[[#This Row],[DATA]]))","v":10},{"$f":"IF(TB_Consolidado[[#This Row],[DATA]]=\"\",\"\",TEXT(TB_Consolidado[[#This Row],[DATA]],\"mmmm\"))","v":"October"},{"$f":"IF(TB_Consolidado[[#This Row],[Nome Mês]]=\"\",\"\",YEAR(TB_Consolidado[[#This Row],[DATA]]))","v":2025}]
[null,null,"2025-05-06","Receita","Bilheteria","Presença do público","EVENTO 3","Confirmado",{"v":1362,"d":"R$ 1,362.00"},{"$nulls":6},{"$f":"IF(TB_Consolidado[[#This Row],[DATA]]=\"\",\"\",MONTH(TB_Consolidado[[#This Row],[DATA]]))","v":5},{"$f":"IF(TB_Consolidado[[#This Row],[DATA]]=\"\",\"\",TEXT(TB_Consolidado[[#This Row],[DATA]],\"mmmm\"))","v":"May"},{"$f":"IF(TB_Consolidado[[#This Row],[Nome Mês]]=\"\",\"\",YEAR(TB_Consolidado[[#This Row],[DATA]]))","v":2025}]
[null,null,"2025-02-24","Receita","Bilheteria","Presença do público","EVENTO 4","Confirmado",{"v":673,"d":"R$ 673.00"},{"$nulls":6},{"$f":"IF(TB_Consolidado[[#This Row],[DATA]]=\"\",\"\",MONTH(TB_Consolidado[[#This Row],[DATA]]))","v":2},{"$f":"IF(TB_Consolidado[[#This Row],[DATA]]=\"\",\"\",TEXT(TB_Consolidado[[#This Row],[DATA]],\"mmmm\"))","v":"February"},{"$f":"IF(TB_Consolidado[[#This Row],[Nome Mês]]=\"\",\"\",YEAR(TB_Consolidado[[#This Row],[DATA]]))","v":2025}]
[null,null,"2025-04-15","Receita","Bar","Receita de consumo","EVENTO 4","Confirmado",{"v":1198,"d":"R$ 1,198.00"},{"$nulls":6},{"$f":"IF(TB_Consolidado[[#This Row],[DATA]]=\"\",\"\",MONTH(TB_Consolidado[[#This Row],[DATA]]))","v":4},{"$f":"IF(TB_Consolidado[[#This Row],[DATA]]=\"\",\"\",TEXT(TB_Consolidado[[#This Row],[DATA]],\"mmmm\"))","v":"April"},{"$f":"IF(TB_Consolidado[[#This Row],[Nome Mês]]=\"\",\"\",YEAR(TB_Consolidado[[#This Row],[DATA]]))","v":2025}]
[null,null,"2025-08-06","Receita","Patrocinio","Receita externa","EVENTO 4","Confirmado",{"v":387,"d":"R$ 387.00"},{"$nulls":6},{"$f":"IF(TB_Consolidado[[#This Row],[DATA]]=\"\",\"\",MONTH(TB_Consolidado[[#This Row],[DATA]]))","v":8},{"$f":"IF(TB_Consolidado[[#This Row],[DATA]]=\"\",\"\",TEXT(TB_Consolidado[[#This Row],[DATA]],\"mmmm\"))","v":"August"},{"$f":"IF(TB_Consolidado[[#This Row],[Nome Mês]]=\"\",\"\",YEAR(TB_Consolidado[[#This Row],[DATA]]))","v":2025}]
[null,null,"2025-08-24","Receita","Patrocinio","Receita externa","EVENTO 3","Confirmado",{"v":658,"d":"R$ 658.00"},{"$nulls":6},{"$f":"IF(TB_Consolidado[[#This Row],[DATA]]=\"\",\"\",MONTH(TB_Consolidado[[#This Row],[DATA]]))","v":8},{"$f":"IF(TB_Consolidado[[#This Row],[DATA]]=\"\",\"\",TEXT(TB_Consolidado[[#This Row],[DATA]],\"mmmm\"))","v":"August"},{"$f":"IF(TB_Consolidado[[#This Row],[Nome Mês]]=\"\",\"\",YEAR(TB_Consolidado[[#This Row],[DATA]]))","v":2025}]
[null,null,"2025-12-03","Receita","Patrocinio","Receita externa","EVENTO 5","Confirmado",{"v":882,"d":"R$ 882.00"},{"$nulls":6},{"$f":"IF(TB_Consolidado[[#This Row],[DATA]]=\"\",\"\",MONTH(TB_Consolidado[[#This Row],[DATA]]))","v":12},{"$f":"IF(TB_Consolidado[[#This Row],[DATA]]=\"\",\"\",TEXT(TB_Consolidado[[#This Row],[DATA]],\"mmmm\"))","v":"December"},{"$f":"IF(TB_Consolidado[[#This Row],[Nome Mês]]=\"\",\"\",YEAR(TB_Consolidado[[#This Row],[DATA]]))","v":2025}]
[null,null,"2025-09-06","Receita","Bar","Receita de consumo","EVENTO 5","Confirmado",{"v":863,"d":"R$ 863.00"},{"$nulls":6},{"$f":"IF(TB_Consolidado[[#This Row],[DATA]]=\"\",\"\",MONTH(TB_Consolidado[[#This Row],[DATA]]))","v":9},{"$f":"IF(TB_Consolidado[[#This Row],[DATA]]=\"\",\"\",TEXT(TB_Consolidado[[#This Row],[DATA]],\"mmmm\"))","v":"September"},{"$f":"IF(TB_Consolidado[[#This Row],[Nome Mês]]=\"\",\"\",YEAR(TB_Consolidado[[#This Row],[DATA]]))","v":2025}]
[null,null,"2025-05-09","Receita","Bar","Receita de consumo","EVENTO 5","Confirmado",{"v":547,"d":"R$ 547.00"},{"$nulls":6},{"$f":"IF(TB_Consolidado[[#This Row],[DATA]]=\"\",\"\",MONTH(TB_Consolidado[[#This Row],[DATA]]))","v":5},{"$f":"IF(TB_Consolidado[[#This Row],[DATA]]=\"\",\"\",TEXT(TB_Consolidado[[#This Row],[DATA]],\"mmmm\"))","v":"May"},{"$f":"IF(TB_Consolidado[[#This Row],[Nome Mês]]=\"\",\"\",YEAR(TB_Consolidado[[#This Row],[DATA]]))","v":2025}]
[null,null,"2025-09-20","Receita","Bilheteria","Presença do público","EVENTO 2","Confirmado",{"v":885,"d":"R$ 885.00"},{"$nulls":6},{"$f":"IF(TB_Consolidado[[#This Row],[DATA]]=\"\",\"\",MONTH(TB_Consolidado[[#This Row],[DATA]]))","v":9},{"$f":"IF(TB_Consolidado[[#This Row],[DATA]]=\"\",\"\",TEXT(TB_Consolidado[[#This Row],[DATA]],\"mmmm\"))","v":"September"},{"$f":"IF(TB_Consolidado[[#This Row],[Nome Mês]]=\"\",\"\",YEAR(TB_Consolidado[[#This Row],[DATA]]))","v":2025}]
[null,null,"2025-10-25","Receita","Patrocinio","Receita externa","EVENTO 1","Confirmado",{"v":766,"d":"R$ 766.00"},{"$nulls":6},{"$f":"IF(TB_Consolidado[[#This Row],[DATA]]=\"\",\"\",MONTH(TB_Consolidado[[#This Row],[DATA]]))","v":10},{"$f":"IF(TB_Consolidado[[#This Row],[DATA]]=\"\",\"\",TEXT(TB_Consolidado[[#This Row],[DATA]],\"mmmm\"))","v":"October"},{"$f":"IF(TB_Consolidado[[#This Row],[Nome Mês]]=\"\",\"\",YEAR(TB_Consolidado[[#This Row],[DATA]]))","v":2025}]
[null,null,"2025-10-02","Receita","Bar","Receita de consumo","EVENTO 2","Confirmado",{"v":1192,"d":"R$ 1,192.00"},{"$nulls":6},{"$f":"IF(TB_Consolidado[[#This Row],[DATA]]=\"\",\"\",MONTH(TB_Consolidado[[#This Row],[DATA]]))","v":10},{"$f":"IF(TB_Consolidado[[#This Row],[DATA]]=\"\",\"\",TEXT(TB_Consolidado[[#This Row],[DATA]],\"mmmm\"))","v":"October"},{"$f":"IF(TB_Consolidado[[#This Row],[Nome Mês]]=\"\",\"\",YEAR(TB_Consolidado[[#This Row],[DATA]]))","v":2025}]
[null,null,"2025-07-11","Receita","Bar","Receita de consumo","EVENTO 2","Confirmado",{"v":1118,"d":"R$ 1,118.00"},{"$nulls":6},{"$f":"IF(TB_Consolidado[[#This Row],[DATA]]=\"\",\"\",MONTH(TB_Consolidado[[#This Row],[DATA]]))","v":7},{"$f":"IF(TB_Consolidado[[#This Row],[DATA]]=\"\",\"\",TEXT(TB_Consolidado[[#This Row],[DATA]],\"mmmm\"))","v":"July"},{"$f":"IF(TB_Consolidado[[#This Row],[Nome Mês]]=\"\",\"\",YEAR(TB_Consolidado[[#This Row],[DATA]]))","v":2025}]
[null,null,"2025-10-28","Receita","Patrocinio","Receita externa","EVENTO 2","Confirmado",{"v":872,"d":"R$ 872.00"},{"$nulls":6},{"$f":"IF(TB_Consolidado[[#This Row],[DATA]]=\"\",\"\",MONTH(TB_Consolidado[[#This Row],[DATA]]))","v":10},{"$f":"IF(TB_Consolidado[[#This Row],[DATA]]=\"\",\"\",TEXT(TB_Consolidado[[#This Row],[DATA]],\"mmmm\"))","v":"October"},{"$f":"IF(TB_Consolidado[[#This Row],[Nome Mês]]=\"\",\"\",YEAR(TB_Consolidado[[#This Row],[DATA]]))","v":2025}]
[null,null,"2025-07-08","Receita","Bar","Receita de consumo","EVENTO 3","Confirmado",{"v":1434,"d":"R$ 1,434.00"},{"$nulls":6},{"$f":"IF(TB_Consolidado[[#This Row],[DATA]]=\"\",\"\",MONTH(TB_Consolidado[[#This Row],[DATA]]))","v":7},{"$f":"IF(TB_Consolidado[[#This Row],[DATA]]=\"\",\"\",TEXT(TB_Consolidado[[#This Row],[DATA]],\"mmmm\"))","v":"July"},{"$f":"IF(TB_Consolidado[[#This Row],[Nome Mês]]=\"\",\"\",YEAR(TB_Consolidado[[#This Row],[DATA]]))","v":2025}]
[null,null,"2025-03-16","Receita","Patrocinio","Receita externa","EVENTO 1","Confirmado",{"v":1073,"d":"R$ 1,073.00"},{"$nulls":6},{"$f":"IF(TB_Consolidado[[#This Row],[DATA]]=\"\",\"\",MONTH(TB_Consolidado[[#This Row],[DATA]]))","v":3},{"$f":"IF(TB_Consolidado[[#This Row],[DATA]]=\"\",\"\",TEXT(TB_Consolidado[[#This Row],[DATA]],\"mmmm\"))","v":"March"},{"$f":"IF(TB_Consolidado[[#This Row],[Nome Mês]]=\"\",\"\",YEAR(TB_Consolidado[[#This Row],[DATA]]))","v":2025}]
[null,null,"2025-06-02","Receita","Bar","Receita de consumo","EVENTO 4","Confirmado",{"v":1825,"d":"R$ 1,825.00"},{"$nulls":6},{"$f":"IF(TB_Consolidado[[#This Row],[DATA]]=\"\",\"\",MONTH(TB_Consolidado[[#This Row],[DATA]]))","v":6},{"$f":"IF(TB_Consolidado[[#This Row],[DATA]]=\"\",\"\",TEXT(TB_Consolidado[[#This Row],[DATA]],\"mmmm\"))","v":"June"},{"$f":"IF(TB_Consolidado[[#This Row],[Nome Mês]]=\"\",\"\",YEAR(TB_Consolidado[[#This Row],[DATA]]))","v":2025}]
[null,null,"2025-03-25","Receita","Bar","Receita de consumo","EVENTO 4","Confirmado",{"v":1367,"d":"R$ 1,367.00"},{"$nulls":6},{"$f":"IF(TB_Consolidado[[#This Row],[DATA]]=\"\",\"\",MONTH(TB_Consolidado[[#This Row],[DATA]]))","v":3},{"$f":"IF(TB_Consolidado[[#This Row],[DATA]]=\"\",\"\",TEXT(TB_Consolidado[[#This Row],[DATA]],\"mmmm\"))","v":"March"},{"$f":"IF(TB_Consolidado[[#This Row],[Nome Mês]]=\"\",\"\",YEAR(TB_Consolidado[[#This Row],[DATA]]))","v":2025}]
[null,null,"2025-01-19","Receita","Bar","Receita de consumo","GERAL","Confirmado",{"v":1608,"d":"R$ 1,608.00"},{"$nulls":6},{"$f":"IF(TB_Consolidado[[#This Row],[DATA]]=\"\",\"\",MONTH(TB_Consolidado[[#This Row],[DATA]]))","v":1},{"$f":"IF(TB_Consolidado[[#This Row],[DATA]]=\"\",\"\",TEXT(TB_Consolidado[[#This Row],[DATA]],\"mmmm\"))","v":"January"},{"$f":"IF(TB_Consolidado[[#This Row],[Nome Mês]]=\"\",\"\",YEAR(TB_Consolidado[[#This Row],[DATA]]))","v":2025}]
[null,null,"2025-01-25","Receita","Patrocinio","Receita externa","EVENTO 4","Confirmado",{"v":532,"d":"R$ 532.00"},{"$nulls":6},{"$f":"IF(TB_Consolidado[[#This Row],[DATA]]=\"\",\"\",MONTH(TB_Consolidado[[#This Row],[DATA]]))","v":1},{"$f":"IF(TB_Consolidado[[#This Row],[DATA]]=\"\",\"\",TEXT(TB_Consolidado[[#This Row],[DATA]],\"mmmm\"))","v":"January"},{"$f":"IF(TB_Consolidado[[#This Row],[Nome Mês]]=\"\",\"\",YEAR(TB_Consolidado[[#This Row],[DATA]]))","v":2025}]
[null,null,"2025-02-23","Receita","Bar","Receita de consumo","EVENTO 1","Confirmado",{"v":1292,"d":"R$ 1,292.00"},{"$nulls":6},{"$f":"IF(TB_Consolidado[[#This Row],[DATA]]=\"\",\"\",MONTH(TB_Consolidado[[#This Row],[DATA]]))","v":2},{"$f":"IF(TB_Consolidado[[#This Row],[DATA]]=\"\",\"\",TEXT(TB_Consolidado[[#This Row],[DATA]],\"mmmm\"))","v":"February"},{"$f":"IF(TB_Consolidado[[#This Row],[Nome Mês]]=\"\",\"\",YEAR(TB_Consolidado[[#This Row],[DATA]]))","v":2025}]
[null,null,"2025-01-05","Receita","Patrocinio","Receita externa","EVENTO 5","Cancelado",{"v":1861,"d":"R$ 1,861.00"},{"$nulls":6},{"$f":"IF(TB_Consolidado[[#This Row],[DATA]]=\"\",\"\",MONTH(TB_Consolidado[[#This Row],[DATA]]))","v":1},{"$f":"IF(TB_Consolidado[[#This Row],[DATA]]=\"\",\"\",TEXT(TB_Consolidado[[#This Row],[DATA]],\"mmmm\"))","v":"January"},{"$f":"IF(TB_Consolidado[[#This Row],[Nome Mês]]=\"\",\"\",YEAR(TB_Consolidado[[#This Row],[DATA]]))","v":2025}]
[null,null,"2025-06-24","Receita","Bar","Receita de consumo","GERAL","Confirmado",{"v":984,"d":"R$ 984.00"},{"$nulls":6},{"$f":"IF(TB_Consolidado[[#This Row],[DATA]]=\"\",\"\",MONTH(TB_Consolidado[[#This Row],[DATA]]))","v":6},{"$f":"IF(TB_Consolidado[[#This Row],[DATA]]=\"\",\"\",TEXT(TB_Consolidado[[#This Row],[DATA]],\"mmmm\"))","v":"June"},{"$f":"IF(TB_Consolidado[[#This Row],[Nome Mês]]=\"\",\"\",YEAR(TB_Consolidado[[#This Row],[DATA]]))","v":2025}]
[null,null,"2025-11-05","Receita","Bar","Receita de consumo","EVENTO 1","Confirmado",{"v":1679,"d":"R$ 1,679.00"},{"$nulls":6},{"$f":"IF(TB_Consolidado[[#This Row],[DATA]]=\"\",\"\",MONTH(TB_Consolidado[[#This Row],[DATA]]))","v":11},{"$f":"IF(TB_Consolidado[[#This Row],[DATA]]=\"\",\"\",TEXT(TB_Consolidado[[#This Row],[DATA]],\"mmmm\"))","v":"November"},{"$f":"IF(TB_Consolidado[[#This Row],[Nome Mês]]=\"\",\"\",YEAR(TB_Consolidado[[#This Row],[DATA]]))","v":2025}]
[null,null,"2025-11-17","Receita","Bar","Receita de consumo","EVENTO 3","Confirmado",{"v":1412,"d":"R$ 1,412.00"},{"$nulls":6},{"$f":"IF(TB_Consolidado[[#This Row],[DATA]]=\"\",\"\",MONTH(TB_Consolidado[[#This Row],[DATA]]))","v":11},{"$f":"IF(TB_Consolidado[[#This Row],[DATA]]=\"\",\"\",TEXT(TB_Consolidado[[#This Row],[DATA]],\"mmmm\"))","v":"November"},{"$f":"IF(TB_Consolidado[[#This Row],[Nome Mês]]=\"\",\"\",YEAR(TB_Consolidado[[#This Row],[DATA]]))","v":2025}]
[null,null,"2025-03-22","Receita","Patrocinio","Receita externa","EVENTO 2","Confirmado",{"v":1655,"d":"R$ 1,655.00"},{"$nulls":6},{"$f":"IF(TB_Consolidado[[#This Row],[DATA]]=\"\",\"\",MONTH(TB_Consolidado[[#This Row],[DATA]]))","v":3},{"$f":"IF(TB_Consolidado[[#This Row],[DATA]]=\"\",\"\",TEXT(TB_Consolidado[[#This Row],[DATA]],\"mmmm\"))","v":"March"},{"$f":"IF(TB_Consolidado[[#This Row],[Nome Mês]]=\"\",\"\",YEAR(TB_Consolidado[[#This Row],[DATA]]))","v":2025}]
[null,null,"2025-02-22","Receita","Patrocinio","Receita externa","GERAL","Agendado",{"v":899,"d":"R$ 899.00"},{"$nulls":6},{"$f":"IF(TB_Consolidado[[#This Row],[DATA]]=\"\",\"\",MONTH(TB_Consolidado[[#This Row],[DATA]]))","v":2},{"$f":"IF(TB_Consolidado[[#This Row],[DATA]]=\"\",\"\",TEXT(TB_Consolidado[[#This Row],[DATA]],\"mmmm\"))","v":"February"},{"$f":"IF(TB_Consolidado[[#This Row],[Nome Mês]]=\"\",\"\",YEAR(TB_Consolidado[[#This Row],[DATA]]))","v":2025}]
[null,null,"2025-01-22","Receita","Bilheteria","Presença do público","EVENTO 5","Confirmado",{"v":1368,"d":"R$ 1,368.00"},{"$nulls":6},{"$f":"IF(TB_Consolidado[[#This Row],[DATA]]=\"\",\"\",MONTH(TB_Consolidado[[#This Row],[DATA]]))","v":1},{"$f":"IF(TB_Consolidado[[#This Row],[DATA]]=\"\",\"\",TEXT(TB_Consolidado[[#This Row],[DATA]],\"mmmm\"))","v":"January"},{"$f":"IF(TB_Consolidado[[#This Row],[Nome Mês]]=\"\",\"\",YEAR(TB_Consolidado[[#This Row],[DATA]]))","v":2025}]
[null,null,"2025-10-11","Despesa","Agua","Contas de uso","GERAL","Confirmado",null,{"v":665,"d":"R$ 665.00"},{"$nulls":5},{"$f":"IF(TB_Consolidado[[#This Row],[DATA]]=\"\",\"\",MONTH(TB_Consolidado[[#This Row],[DATA]]))","v":10},{"$f":"IF(TB_Consolidado[[#This Row],[DATA]]=\"\",\"\",TEXT(TB_Consolidado[[#This Row],[DATA]],\"mmmm\"))","v":"October"},{"$f":"IF(TB_Consolidado[[#This Row],[Nome Mês]]=\"\",\"\",YEAR(TB_Consolidado[[#This Row],[DATA]]))","v":2025}]
[null,null,"2025-03-20","Despesa","Agua","Contas de uso","EVENTO 1","Confirmado",null,{"v":924,"d":"R$ 924.00"},{"$nulls":5},{"$f":"IF(TB_Consolidado[[#This Row],[DATA]]=\"\",\"\",MONTH(TB_Consolidado[[#This Row],[DATA]]))","v":3},{"$f":"IF(TB_Consolidado[[#This Row],[DATA]]=\"\",\"\",TEXT(TB_Consolidado[[#This Row],[DATA]],\"mmmm\"))","v":"March"},{"$f":"IF(TB_Consolidado[[#This Row],[Nome Mês]]=\"\",\"\",YEAR(TB_Consolidado[[#This Row],[DATA]]))","v":2025}]
[null,null,"2025-08-19","Despesa","Artista","Atrações","EVENTO 3","Cancelado",null,{"v":119,"d":"R$ 119.00"},{"$nulls":5},{"$f":"IF(TB_Consolidado[[#This Row],[DATA]]=\"\",\"\",MONTH(TB_Consolidado[[#This Row],[DATA]]))","v":8},{"$f":"IF(TB_Consolidado[[#This Row],[DATA]]=\"\",\"\",TEXT(TB_Consolidado[[#This Row],[DATA]],\"mmmm\"))","v":"August"},{"$f":"IF(TB_Consolidado[[#This Row],[Nome Mês]]=\"\",\"\",YEAR(TB_Consolidado[[#This Row],[DATA]]))","v":2025}]
[null,null,"2025-08-18","Despesa","Equipamento","Estrutura","EVENTO 3","Confirmado",null,{"v":471,"d":"R$ 471.00"},{"$nulls":5},{"$f":"IF(TB_Consolidado[[#This Row],[DATA]]=\"\",\"\",MONTH(TB_Consolidado[[#This Row],[DATA]]))","v":8},{"$f":"IF(TB_Consolidado[[#This Row],[DATA]]=\"\",\"\",TEXT(TB_Consolidado[[#This Row],[DATA]],\"mmmm\"))","v":"August"},{"$f":"IF(TB_Consolidado[[#This Row],[Nome Mês]]=\"\",\"\",YEAR(TB_Consolidado[[#This Row],[DATA]]))","v":2025}]
[null,null,"2025-01-11","Despesa","Luz","Contas de uso","EVENTO 4","Confirmado",null,{"v":486,"d":"R$ 486.00"},{"$nulls":5},{"$f":"IF(TB_Consolidado[[#This Row],[DATA]]=\"\",\"\",MONTH(TB_Consolidado[[#This Row],[DATA]]))","v":1},{"$f":"IF(TB_Consolidado[[#This Row],[DATA]]=\"\",\"\",TEXT(TB_Consolidado[[#This Row],[DATA]],\"mmmm\"))","v":"January"},{"$f":"IF(TB_Consolidado[[#This Row],[Nome Mês]]=\"\",\"\",YEAR(TB_Consolidado[[#This Row],[DATA]]))","v":2025}]
[null,null,"2025-06-12","Despesa","Luz","Contas de uso","GERAL","Confirmado",null,{"v":380,"d":"R$ 380.00"},{"$nulls":5},{"$f":"IF(TB_Consolidado[[#This Row],[DATA]]=\"\",\"\",MONTH(TB_Consolidado[[#This Row],[DATA]]))","v":6},{"$f":"IF(TB_Consolidado[[#This Row],[DATA]]=\"\",\"\",TEXT(TB_Consolidado[[#This Row],[DATA]],\"mmmm\"))","v":"June"},{"$f":"IF(TB_Consolidado[[#This Row],[Nome Mês]]=\"\",\"\",YEAR(TB_Consolidado[[#This Row],[DATA]]))","v":2025}]
[null,null,"2025-07-25","Despesa","Luz","Contas de uso","EVENTO 2","Agendado",null,{"v":656,"d":"R$ 656.00"},{"$nulls":5},{"$f":"IF(TB_Consolidado[[#This Row],[DATA]]=\"\",\"\",MONTH(TB_Consolidado[[#This Row],[DATA]]))","v":7},{"$f":"IF(TB_Consolidado[[#This Row],[DATA]]=\"\",\"\",TEXT(TB_Consolidado[[#This Row],[DATA]],\"mmmm\"))","v":"July"},{"$f":"IF(TB_Consolidado[[#This Row],[Nome Mês]]=\"\",\"\",YEAR(TB_Consolidado[[#This Row],[DATA]]))","v":2025}]
[null,null,"2025-03-03","Despesa","Luz","Contas de uso","EVENTO 5","Confirmado",null,{"v":966,"d":"R$ 966.00"},{"$nulls":5},{"$f":"IF(TB_Consolidado[[#This Row],[DATA]]=\"\",\"\",MONTH(TB_Consolidado[[#This Row],[DATA]]))","v":3},{"$f":"IF(TB_Consolidado[[#This Row],[DATA]]=\"\",\"\",TEXT(TB_Consolidado[[#This Row],[DATA]],\"mmmm\"))","v":"March"},{"$f":"IF(TB_Consolidado[[#This Row],[Nome Mês]]=\"\",\"\",YEAR(TB_Consolidado[[#This Row],[DATA]]))","v":2025}]
[null,null,"2025-11-21","Despesa","Luz","Contas de uso","EVENTO 3","Confirmado",null,{"v":506,"d":"R$ 506.00"},{"$nulls":5},{"$f":"IF(TB_Consolidado[[#This Row],[DATA]]=\"\",\"\",MONTH(TB_Consolidado[[#This Row],[DATA]]))","v":11},{"$f":"IF(TB_Consolidado[[#This Row],[DATA]]=\"\",\"\",TEXT(TB_Consolidado[[#This Row],[DATA]],\"mmmm\"))","v":"November"},{"$f":"IF(TB_Consolidado[[#This Row],[Nome Mês]]=\"\",\"\",YEAR(TB_Consolidado[[#This Row],[DATA]]))","v":2025}]
[null,null,"2025-05-06","Despesa","Artista","Atrações","EVENTO 4","Confirmado",null,{"v":638,"d":"R$ 638.00"},{"$nulls":5},{"$f":"IF(TB_Consolidado[[#This Row],[DATA]]=\"\",\"\",MONTH(TB_Consolidado[[#This Row],[DATA]]))","v":5},{"$f":"IF(TB_Consolidado[[#This Row],[DATA]]=\"\",\"\",TEXT(TB_Consolidado[[#This Row],[DATA]],\"mmmm\"))","v":"May"},{"$f":"IF(TB_Consolidado[[#This Row],[Nome Mês]]=\"\",\"\",YEAR(TB_Consolidado[[#This Row],[DATA]]))","v":2025}]
[null,null,"2025-02-14","Despesa","Equipamento","Estrutura","GERAL","Confirmado",null,{"v":707,"d":"R$ 707.00"},{"$nulls":5},{"$f":"IF(TB_Consolidado[[#This Row],[DATA]]=\"\",\"\",MONTH(TB_Consolidado[[#This Row],[DATA]]))","v":2},{"$f":"IF(TB_Consolidado[[#This Row],[DATA]]=\"\",\"\",TEXT(TB_Consolidado[[#This Row],[DATA]],\"mmmm\"))","v":"February"},{"$f":"IF(TB_Consolidado[[#This Row],[Nome Mês]]=\"\",\"\",YEAR(TB_Consolidado[[#This Row],[DATA]]))","v":2025}]
[null,null,"2025-12-03","Despesa","Artista","Atrações","EVENTO 1","Confirmado",null,{"v":424,"d":"R$ 424.00"},{"$nulls":5},{"$f":"IF(TB_Consolidado[[#This Row],[DATA]]=\"\",\"\",MONTH(TB_Consolidado[[#This Row],[DATA]]))","v":12},{"$f":"IF(TB_Consolidado[[#This Row],[DATA]]=\"\",\"\",TEXT(TB_Consolidado[[#This Row],[DATA]],\"mmmm\"))","v":"December"},{"$f":"IF(TB_Consolidado[[#This Row],[Nome Mês]]=\"\",\"\",YEAR(TB_Consolidado[[#This Row],[DATA]]))","v":2025}]
[null,null,"2025-09-14","Despesa","Equipamento","Estrutura","EVENTO 3","Confirmado",null,{"v":962,"d":"R$ 962.00"},{"$nulls":5},{"$f":"IF(TB_Consolidado[[#This Row],[DATA]]=\"\",\"\",MONTH(TB_Consolidado[[#This Row],[DATA]]))","v":9},{"$f":"IF(TB_Consolidado[[#This Row],[DATA]]=\"\",\"\",TEXT(TB_Consolidado[[#This Row],[DATA]],\"mmmm\"))","v":"September"},{"$f":"IF(TB_Consolidado[[#This Row],[Nome Mês]]=\"\",\"\",YEAR(TB_Consolidado[[#This Row],[DATA]]))","v":2025}]
[null,null,"2025-06-23","Despesa","Equipamento","Estrutura","EVENTO 2","Confirmado",null,{"v":107,"d":"R$ 107.00"},{"$nulls":5},{"$f":"IF(TB_Consolidado[[#This Row],[DATA]]=\"\",\"\",MONTH(TB_Consolidado[[#This Row],[DATA]]))","v":6},{"$f":"IF(TB_Consolidado[[#This Row],[DATA]]=\"\",\"\",TEXT(TB_Consolidado[[#This Row],[DATA]],\"mmmm\"))","v":"June"},{"$f":"IF(TB_Consolidado[[#This Row],[Nome Mês]]=\"\",\"\",YEAR(TB_Consolidado[[#This Row],[DATA]]))","v":2025}]
[null,null,"2025-11-25","Despesa","Artista","Atrações","EVENTO 2","Confirmado",null,{"v":503,"d":"R$ 503.00"},{"$nulls":5},{"$f":"IF(TB_Consolidado[[#This Row],[DATA]]=\"\",\"\",MONTH(TB_Consolidado[[#This Row],[DATA]]))","v":11},{"$f":"IF(TB_Consolidado[[#This Row],[DATA]]=\"\",\"\",TEXT(TB_Consolidado[[#This Row],[DATA]],\"mmmm\"))","v":"November"},{"$f":"IF(TB_Consolidado[[#This Row],[Nome Mês]]=\"\",\"\",YEAR(TB_Consolidado[[#This Row],[DATA]]))","v":2025}]
[null,null,"2025-12-16","Despesa","Equipamento","Estrutura","EVENTO 2","Confirmado",null,{"v":610,"d":"R$ 610.00"},{"$nulls":5},{"$f":"IF(TB_Consolidado[[#This Row],[DATA]]=\"\",\"\",MONTH(TB_Consolidado[[#This Row],[DATA]]))","v":12},{"$f":"IF(TB_Consolidado[[#This Row],[DATA]]=\"\",\"\",TEXT(TB_Consolidado[[#This Row],[DATA]],\"mmmm\"))","v":"December"},{"$f":"IF(TB_Consolidado[[#This Row],[Nome Mês]]=\"\",\"\",YEAR(TB_Consolidado[[#This Row],[DATA]]))","v":2025}]
[null,null,"2025-12-02","Despesa","Equipamento","Estrutura","EVENTO 4","Confirmado",null,{"v":372,"d":"R$ 372.00"},{"$nulls":5},{"$f":"IF(TB_Consolidado[[#This Row],[DATA]]=\"\",\"\",MONTH(TB_Consolidado[[#This Row],[DATA]]))","v":12},{"$f":"IF(TB_Consolidado[[#This Row],[DATA]]=\"\",\"\",TEXT(TB_Consolidado[[#This Row],[DATA]],\"mmmm\"))","v":"December"},{"$f":"IF(TB_Consolidado[[#This Row],[Nome Mês]]=\"\",\"\",YEAR(TB_Consolidado[[#This Row],[DATA]]))","v":2025}]
[null,null,"2025-12-16","Despesa","Artista","Atrações","EVENTO 3","Confirmado",null,{"v":588,"d":"R$ 588.00"},{"$nulls":5},{"$f":"IF(TB_Consolidado[[#This Row],[DATA]]=\"\",\"\",MONTH(TB_Consolidado[[#This Row],[DATA]]))","v":12},{"$f":"IF(TB_Consolidado[[#This Row],[DATA]]=\"\",\"\",TEXT(TB_Consolidado[[#This Row],[DATA]],\"mmmm\"))","v":"December"},{"$f":"IF(TB_Consolidado[[#This Row],[Nome Mês]]=\"\",\"\",YEAR(TB_Consolidado[[#This Row],[DATA]]))","v":2025}]
[null,null,"2025-03-27","Despesa","Luz","Contas de uso","GERAL","Confirmado",null,{"v":228,"d":"R$ 228.00"},{"$nulls":5},{"$f":"IF(TB_Consolidado[[#This Row],[DATA]]=\"\",\"\",MONTH(TB_Consolidado[[#This Row],[DATA]]))","v":3},{"$f":"IF(TB_Consolidado[[#This Row],[DATA]]=\"\",\"\",TEXT(TB_Consolidado[[#This Row],[DATA]],\"mmmm\"))","v":"March"},{"$f":"IF(TB_Consolidado[[#This Row],[Nome Mês]]=\"\",\"\",YEAR(TB_Consolidado[[#This Row],[DATA]]))","v":2025}]
[null,null,"2025-05-17","Despesa","Agua","Contas de uso","EVENTO 2","Cancelado",null,{"v":866,"d":"R$ 866.00"},{"$nulls":5},{"$f":"IF(TB_Consolidado[[#This Row],[DATA]]=\"\",\"\",MONTH(TB_Consolidado[[#This Row],[DATA]]))","v":5},{"$f":"IF(TB_Consolidado[[#This Row],[DATA]]=\"\",\"\",TEXT(TB_Consolidado[[#This Row],[DATA]],\"mmmm\"))","v":"May"},{"$f":"IF(TB_Consolidado[[#This Row],[Nome Mês]]=\"\",\"\",YEAR(TB_Consolidado[[#This Row],[DATA]]))","v":2025}]
[null,null,"2025-02-19","Despesa","Artista","Atrações","EVENTO 5","Confirmado",null,{"v":726,"d":"R$ 726.00"},{"$nulls":5},{"$f":"IF(TB_Consolidado[[#This Row],[DATA]]=\"\",\"\",MONTH(TB_Consolidado[[#This Row],[DATA]]))","v":2},{"$f":"IF(TB_Consolidado[[#This Row],[DATA]]=\"\",\"\",TEXT(TB_Consolidado[[#This Row],[DATA]],\"mmmm\"))","v":"February"},{"$f":"IF(TB_Consolidado[[#This Row],[Nome Mês]]=\"\",\"\",YEAR(TB_Consolidado[[#This Row],[DATA]]))","v":2025}]
[null,null,"2025-02-23","Despesa","Equipamento","Estrutura","EVENTO 4","Confirmado",null,{"v":730,"d":"R$ 730.00"},{"$nulls":5},{"$f":"IF(TB_Consolidado[[#This Row],[DATA]]=\"\",\"\",MONTH(TB_Consolidado[[#This Row],[DATA]]))","v":2},{"$f":"IF(TB_Consolidado[[#This Row],[DATA]]=\"\",\"\",TEXT(TB_Consolidado[[#This Row],[DATA]],\"mmmm\"))","v":"February"},{"$f":"IF(TB_Consolidado[[#This Row],[Nome Mês]]=\"\",\"\",YEAR(TB_Consolidado[[#This Row],[DATA]]))","v":2025}]
[null,null,"2025-02-15","Despesa","Equipamento","Estrutura","EVENTO 1","Confirmado",null,{"v":366,"d":"R$ 366.00"},{"$nulls":5},{"$f":"IF(TB_Consolidado[[#This Row],[DATA]]=\"\",\"\",MONTH(TB_Consolidado[[#This Row],[DATA]]))","v":2},{"$f":"IF(TB_Consolidado[[#This Row],[DATA]]=\"\",\"\",TEXT(TB_Consolidado[[#This Row],[DATA]],\"mmmm\"))","v":"February"},{"$f":"IF(TB_Consolidado[[#This Row],[Nome Mês]]=\"\",\"\",YEAR(TB_Consolidado[[#This Row],[DATA]]))","v":2025}]
[null,null,"2025-09-21","Despesa","Aluguel","Local evento","EVENTO 3","Confirmado",null,{"v":141,"d":"R$ 141.00"},{"$nulls":5},{"$f":"IF(TB_Consolidado[[#This Row],[DATA]]=\"\",\"\",MONTH(TB_Consolidado[[#This Row],[DATA]]))","v":9},{"$f":"IF(TB_Consolidado[[#This Row],[DATA]]=\"\",\"\",TEXT(TB_Consolidado[[#This Row],[DATA]],\"mmmm\"))","v":"September"},{"$f":"IF(TB_Consolidado[[#This Row],[Nome Mês]]=\"\",\"\",YEAR(TB_Consolidado[[#This Row],[DATA]]))","v":2025}]
[null,null,"2025-12-17","Despesa","Equipamento","Estrutura","EVENTO 5","Confirmado",null,{"v":534,"d":"R$ 534.00"},{"$nulls":5},{"$f":"IF(TB_Consolidado[[#This Row],[DATA]]=\"\",\"\",MONTH(TB_Consolidado[[#This Row],[DATA]]))","v":12},{"$f":"IF(TB_Consolidado[[#This Row],[DATA]]=\"\",\"\",TEXT(TB_Consolidado[[#This Row],[DATA]],\"mmmm\"))","v":"December"},{"$f":"IF(TB_Consolidado[[#This Row],[Nome Mês]]=\"\",\"\",YEAR(TB_Consolidado[[#This Row],[DATA]]))","v":2025}]
[null,null,"2025-10-03","Despesa","Equipamento","Estrutura","EVENTO 1","Confirmado",null,{"v":938,"d":"R$ 938.00"},{"$nulls":5},{"$f":"IF(TB_Consolidado[[#This Row],[DATA]]=\"\",\"\",MONTH(TB_Consolidado[[#This Row],[DATA]]))","v":10},{"$f":"IF(TB_Consolidado[[#This Row],[DATA]]=\"\",\"\",TEXT(TB_Consolidado[[#This Row],[DATA]],\"mmmm\"))","v":"October"},{"$f":"IF(TB_Consolidado[[#This Row],[Nome Mês]]=\"\",\"\",YEAR(TB_Consolidado[[#This Row],[DATA]]))","v":2025}]
[null,null,"2025-01-14","Despesa","Artista","Atrações","EVENTO 4","Confirmado",null,{"v":145,"d":"R$ 145.00"},{"$nulls":5},{"$f":"IF(TB_Consolidado[[#This Row],[DATA]]=\"\",\"\",MONTH(TB_Consolidado[[#This Row],[DATA]]))","v":1},{"$f":"IF(TB_Consolidado[[#This Row],[DATA]]=\"\",\"\",TEXT(TB_Consolidado[[#This Row],[DATA]],\"mmmm\"))","v":"January"},{"$f":"IF(TB_Consolidado[[#This Row],[Nome Mês]]=\"\",\"\",YEAR(TB_Consolidado[[#This Row],[DATA]]))","v":2025}]
[null,null,"2025-08-25","Despesa","Agua","Contas de uso","GERAL","Confirmado",null,{"v":316,"d":"R$ 316.00"},{"$nulls":5},{"$f":"IF(TB_Consolidado[[#This Row],[DATA]]=\"\",\"\",MONTH(TB_Consolidado[[#This Row],[DATA]]))","v":8},{"$f":"IF(TB_Consolidado[[#This Row],[DATA]]=\"\",\"\",TEXT(TB_Consolidado[[#This Row],[DATA]],\"mmmm\"))","v":"August"},{"$f":"IF(TB_Consolidado[[#This Row],[Nome Mês]]=\"\",\"\",YEAR(TB_Consolidado[[#This Row],[DATA]]))","v":2025}]
[null,null,"2025-07-22","Despesa","Aluguel","Local evento","EVENTO 5","Confirmado",null,{"v":932,"d":"R$ 932.00"},{"$nulls":5},{"$f":"IF(TB_Consolidado[[#This Row],[DATA]]=\"\",\"\",MONTH(TB_Consolidado[[#This Row],[DATA]]))","v":7},{"$f":"IF(TB_Consolidado[[#This Row],[DATA]]=\"\",\"\",TEXT(TB_Consolidado[[#This Row],[DATA]],\"mmmm\"))","v":"July"},{"$f":"IF(TB_Consolidado[[#This Row],[Nome Mês]]=\"\",\"\",YEAR(TB_Consolidado[[#This Row],[DATA]]))","v":2025}]
[null,null,"2025-10-27","Despesa","Aluguel","Local evento","EVENTO 3","Confirmado",null,{"v":304,"d":"R$ 304.00"},{"$nulls":5},{"$f":"IF(TB_Consolidado[[#This Row],[DATA]]=\"\",\"\",MONTH(TB_Consolidado[[#This Row],[DATA]]))","v":10},{"$f":"IF(TB_Consolidado[[#This Row],[DATA]]=\"\",\"\",TEXT(TB_Consolidado[[#This Row],[DATA]],\"mmmm\"))","v":"October"},{"$f":"IF(TB_Consolidado[[#This Row],[Nome Mês]]=\"\",\"\",YEAR(TB_Consolidado[[#This Row],[DATA]]))","v":2025}]
[null,null,"2025-02-07","Despesa","Agua","Contas de uso","EVENTO 4","Confirmado",null,{"v":555,"d":"R$ 555.00"},{"$nulls":5},{"$f":"IF(TB_Consolidado[[#This Row],[DATA]]=\"\",\"\",MONTH(TB_Consolidado[[#This Row],[DATA]]))","v":2},{"$f":"IF(TB_Consolidado[[#This Row],[DATA]]=\"\",\"\",TEXT(TB_Consolidado[[#This Row],[DATA]],\"mmmm\"))","v":"February"},{"$f":"IF(TB_Consolidado[[#This Row],[Nome Mês]]=\"\",\"\",YEAR(TB_Consolidado[[#This Row],[DATA]]))","v":2025}]
[null,null,"2025-09-03","Despesa","Equipamento","Estrutura","EVENTO 3","Confirmado",null,{"v":801,"d":"R$ 801.00"},{"$nulls":5},{"$f":"IF(TB_Consolidado[[#This Row],[DATA]]=\"\",\"\",MONTH(TB_Consolidado[[#This Row],[DATA]]))","v":9},{"$f":"IF(TB_Consolidado[[#This Row],[DATA]]=\"\",\"\",TEXT(TB_Consolidado[[#This Row],[DATA]],\"mmmm\"))","v":"September"},{"$f":"IF(TB_Consolidado[[#This Row],[Nome Mês]]=\"\",\"\",YEAR(TB_Consolidado[[#This Row],[DATA]]))","v":2025}]
[null,null,"2025-06-12","Despesa","Agua","Contas de uso","GERAL","Confirmado",null,{"v":518,"d":"R$ 518.00"},{"$nulls":5},{"$f":"IF(TB_Consolidado[[#This Row],[DATA]]=\"\",\"\",MONTH(TB_Consolidado[[#This Row],[DATA]]))","v":6},{"$f":"IF(TB_Consolidado[[#This Row],[DATA]]=\"\",\"\",TEXT(TB_Consolidado[[#This Row],[DATA]],\"mmmm\"))","v":"June"},{"$f":"IF(TB_Consolidado[[#This Row],[Nome Mês]]=\"\",\"\",YEAR(TB_Consolidado[[#This Row],[DATA]]))","v":2025}]
[null,null,"2025-11-18","Despesa","Aluguel","Local evento","EVENTO 5","Confirmado",null,{"v":395,"d":"R$ 395.00"},{"$nulls":5},{"$f":"IF(TB_Consolidado[[#This Row],[DATA]]=\"\",\"\",MONTH(TB_Consolidado[[#This Row],[DATA]]))","v":11},{"$f":"IF(TB_Consolidado[[#This Row],[DATA]]=\"\",\"\",TEXT(TB_Consolidado[[#This Row],[DATA]],\"mmmm\"))","v":"November"},{"$f":"IF(TB_Consolidado[[#This Row],[Nome Mês]]=\"\",\"\",YEAR(TB_Consolidado[[#This Row],[DATA]]))","v":2025}]
[null,null,"2025-11-28","Despesa","Aluguel","Local evento","EVENTO 2","Cancelado",null,{"v":770,"d":"R$ 770.00"},{"$nulls":5},{"$f":"IF(TB_Consolidado[[#This Row],[DATA]]=\"\",\"\",MONTH(TB_Consolidado[[#This Row],[DATA]]))","v":11},{"$f":"IF(TB_Consolidado[[#This Row],[DATA]]=\"\",\"\",TEXT(TB_Consolidado[[#This Row],[DATA]],\"mmmm\"))","v":"November"},{"$f":"IF(TB_Consolidado[[#This Row],[Nome Mês]]=\"\",\"\",YEAR(TB_Consolidado[[#This Row],[DATA]]))","v":2025}]
[null,null,"2025-09-15","Despesa","Agua","Contas de uso","EVENTO 5","Confirmado",null,{"v":388,"d":"R$ 388.00"},{"$nulls":5},{"$f":"IF(TB_Consolidado[[#This Row],[DATA]]=\"\",\"\",MONTH(TB_Consolidado[[#This Row],[DATA]]))","v":9},{"$f":"IF(TB_Consolidado[[#This Row],[DATA]]=\"\",\"\",TEXT(TB_Consolidado[[#This Row],[DATA]],\"mmmm\"))","v":"September"},{"$f":"IF(TB_Consolidado[[#This Row],[Nome Mês]]=\"\",\"\",YEAR(TB_Consolidado[[#This Row],[DATA]]))","v":2025}]
[null,null,"2025-06-28","Despesa","Aluguel","Local evento","GERAL","Confirmado",null,{"v":979,"d":"R$ 979.00"},{"$nulls":5},{"$f":"IF(TB_Consolidado[[#This Row],[DATA]]=\"\",\"\",MONTH(TB_Consolidado[[#This Row],[DATA]]))","v":6},{"$f":"IF(TB_Consolidado[[#This Row],[DATA]]=\"\",\"\",TEXT(TB_Consolidado[[#This Row],[DATA]],\"mmmm\"))","v":"June"},{"$f":"IF(TB_Consolidado[[#This Row],[Nome Mês]]=\"\",\"\",YEAR(TB_Consolidado[[#This Row],[DATA]]))","v":2025}]
[null,null,"2025-09-21","Despesa","Aluguel","Local evento","GERAL","Agendado",null,{"v":970,"d":"R$ 970.00"},{"$nulls":5},{"$f":"IF(TB_Consolidado[[#This Row],[DATA]]=\"\",\"\",MONTH(TB_Consolidado[[#This Row],[DATA]]))","v":9},{"$f":"IF(TB_Consolidado[[#This Row],[DATA]]=\"\",\"\",TEXT(TB_Consolidado[[#This Row],[DATA]],\"mmmm\"))","v":"September"},{"$f":"IF(TB_Consolidado[[#This Row],[Nome Mês]]=\"\",\"\",YEAR(TB_Consolidado[[#This Row],[DATA]]))","v":2025}]
[null,null,"2025-10-03","Despesa","Luz","Contas de uso","EVENTO 3","Confirmado",null,{"v":949,"d":"R$ 949.00"},{"$nulls":5},{"$f":"IF(TB_Consolidado[[#This Row],[DATA]]=\"\",\"\",MONTH(TB_Consolidado[[#This Row],[DATA]]))","v":10},{"$f":"IF(TB_Consolidado[[#This Row],[DATA]]=\"\",\"\",TEXT(TB_Consolidado[[#This Row],[DATA]],\"mmmm\"))","v":"October"},{"$f":"IF(TB_Consolidado[[#This Row],[Nome Mês]]=\"\",\"\",YEAR(TB_Consolidado[[#This Row],[DATA]]))","v":2025}]
[null,null,"2025-12-21","Despesa","Aluguel","Local evento","EVENTO 2","Confirmado",null,{"v":642,"d":"R$ 642.00"},{"$nulls":5},{"$f":"IF(TB_Consolidado[[#This Row],[DATA]]=\"\",\"\",MONTH(TB_Consolidado[[#This Row],[DATA]]))","v":12},{"$f":"IF(TB_Consolidado[[#This Row],[DATA]]=\"\",\"\",TEXT(TB_Consolidado[[#This Row],[DATA]],\"mmmm\"))","v":"December"},{"$f":"IF(TB_Consolidado[[#This Row],[Nome Mês]]=\"\",\"\",YEAR(TB_Consolidado[[#This Row],[DATA]]))","v":2025}]
[null,null,"2025-06-15","Despesa","Equipamento","Estrutura","EVENTO 1","Confirmado",null,{"v":410,"d":"R$ 410.00"},{"$nulls":5},{"$f":"IF(TB_Consolidado[[#This Row],[DATA]]=\"\",\"\",MONTH(TB_Consolidado[[#This Row],[DATA]]))","v":6},{"$f":"IF(TB_Consolidado[[#This Row],[DATA]]=\"\",\"\",TEXT(TB_Consolidado[[#This Row],[DATA]],\"mmmm\"))","v":"June"},{"$f":"IF(TB_Consolidado[[#This Row],[Nome Mês]]=\"\",\"\",YEAR(TB_Consolidado[[#This Row],[DATA]]))","v":2025}]
[null,null,"2025-06-16","Despesa","Equipamento","Estrutura","EVENTO 4","Confirmado",null,{"v":551,"d":"R$ 551.00"},{"$nulls":5},{"$f":"IF(TB_Consolidado[[#This Row],[DATA]]=\"\",\"\",MONTH(TB_Consolidado[[#This Row],[DATA]]))","v":6},{"$f":"IF(TB_Consolidado[[#This Row],[DATA]]=\"\",\"\",TEXT(TB_Consolidado[[#This Row],[DATA]],\"mmmm\"))","v":"June"},{"$f":"IF(TB_Consolidado[[#This Row],[Nome Mês]]=\"\",\"\",YEAR(TB_Consolidado[[#This Row],[DATA]]))","v":2025}]
[null,null,"2025-12-12","Despesa","Luz","Contas de uso","EVENTO 3","Confirmado",null,{"v":404,"d":"R$ 404.00"},{"$nulls":5},{"$f":"IF(TB_Consolidado[[#This Row],[DATA]]=\"\",\"\",MONTH(TB_Consolidado[[#This Row],[DATA]]))","v":12},{"$f":"IF(TB_Consolidado[[#This Row],[DATA]]=\"\",\"\",TEXT(TB_Consolidado[[#This Row],[DATA]],\"mmmm\"))","v":"December"},{"$f":"IF(TB_Consolidado[[#This Row],[Nome Mês]]=\"\",\"\",YEAR(TB_Consolidado[[#This Row],[DATA]]))","v":2025}]
[null,null,"2025-03-03","Despesa","Luz","Contas de uso","EVENTO 2","Confirmado",null,{"v":210,"d":"R$ 210.00"},{"$nulls":5},{"$f":"IF(TB_Consolidado[[#This Row],[DATA]]=\"\",\"\",MONTH(TB_Consolidado[[#This Row],[DATA]]))","v":3},{"$f":"IF(TB_Consolidado[[#This Row],[DATA]]=\"\",\"\",TEXT(TB_Consolidado[[#This Row],[DATA]],\"mmmm\"))","v":"March"},{"$f":"IF(TB_Consolidado[[#This Row],[Nome Mês]]=\"\",\"\",YEAR(TB_Consolidado[[#This Row],[DATA]]))","v":2025}]
[null,null,"2025-04-28","Despesa","Luz","Contas de uso","GERAL","Confirmado",null,{"v":930,"d":"R$ 930.00"},{"$nulls":5},{"$f":"IF(TB_Consolidado[[#This Row],[DATA]]=\"\",\"\",MONTH(TB_Consolidado[[#This Row],[DATA]]))","v":4},{"$f":"IF(TB_Consolidado[[#This Row],[DATA]]=\"\",\"\",TEXT(TB_Consolidado[[#This Row],[DATA]],\"mmmm\"))","v":"April"},{"$f":"IF(TB_Consolidado[[#This Row],[Nome Mês]]=\"\",\"\",YEAR(TB_Consolidado[[#This Row],[DATA]]))","v":2025}]
[null,null,"2025-05-23","Despesa","Luz","Contas de uso","EVENTO 4","Confirmado",null,{"v":819,"d":"R$ 819.00"},{"$nulls":5},{"$f":"IF(TB_Consolidado[[#This Row],[DATA]]=\"\",\"\",MONTH(TB_Consolidado[[#This Row],[DATA]]))","v":5},{"$f":"IF(TB_Consolidado[[#This Row],[DATA]]=\"\",\"\",TEXT(TB_Consolidado[[#This Row],[DATA]],\"mmmm\"))","v":"May"},{"$f":"IF(TB_Consolidado[[#This Row],[Nome Mês]]=\"\",\"\",YEAR(TB_Consolidado[[#This Row],[DATA]]))","v":2025}]
[null,null,"2025-06-25","Despesa","Aluguel","Local evento","EVENTO 2","Confirmado",null,{"v":882,"d":"R$ 882.00"},{"$nulls":5},{"$f":"IF(TB_Consolidado[[#This Row],[DATA]]=\"\",\"\",MONTH(TB_Consolidado[[#This Row],[DATA]]))","v":6},{"$f":"IF(TB_Consolidado[[#This Row],[DATA]]=\"\",\"\",TEXT(TB_Consolidado[[#This Row],[DATA]],\"mmmm\"))","v":"June"},{"$f":"IF(TB_Consolidado[[#This Row],[Nome Mês]]=\"\",\"\",YEAR(TB_Consolidado[[#This Row],[DATA]]))","v":2025}]
[null,null,"2025-11-10","Despesa","Artista","Atrações","EVENTO 5","Confirmado",null,{"v":173,"d":"R$ 173.00"},{"$nulls":5},{"$f":"IF(TB_Consolidado[[#This Row],[DATA]]=\"\",\"\",MONTH(TB_Consolidado[[#This Row],[DATA]]))","v":11},{"$f":"IF(TB_Consolidado[[#This Row],[DATA]]=\"\",\"\",TEXT(TB_Consolidado[[#This Row],[DATA]],\"mmmm\"))","v":"November"},{"$f":"IF(TB_Consolidado[[#This Row],[Nome Mês]]=\"\",\"\",YEAR(TB_Consolidado[[#This Row],[DATA]]))","v":2025}]
[null,null,"2025-11-17","Despesa","Equipamento","Estrutura","EVENTO 2","Confirmado",null,{"v":369,"d":"R$ 369.00"},{"$nulls":5},{"$f":"IF(TB_Consolidado[[#This Row],[DATA]]=\"\",\"\",MONTH(TB_Consolidado[[#This Row],[DATA]]))","v":11},{"$f":"IF(TB_Consolidado[[#This Row],[DATA]]=\"\",\"\",TEXT(TB_Consolidado[[#This Row],[DATA]],\"mmmm\"))","v":"November"},{"$f":"IF(TB_Consolidado[[#This Row],[Nome Mês]]=\"\",\"\",YEAR(TB_Consolidado[[#This Row],[DATA]]))","v":2025}]
[null,null,"2025-04-12","Despesa","Artista","Atrações","EVENTO 1","Confirmado",null,{"v":740,"d":"R$ 740.00"},{"$nulls":5},{"$f":"IF(TB_Consolidado[[#This Row],[DATA]]=\"\",\"\",MONTH(TB_Consolidado[[#This Row],[DATA]]))","v":4},{"$f":"IF(TB_Consolidado[[#This Row],[DATA]]=\"\",\"\",TEXT(TB_Consolidado[[#This Row],[DATA]],\"mmmm\"))","v":"April"},{"$f":"IF(TB_Consolidado[[#This Row],[Nome Mês]]=\"\",\"\",YEAR(TB_Consolidado[[#This Row],[DATA]]))","v":2025}]
[null,null,"2025-02-16","Despesa","Aluguel","Local evento","EVENTO 5","Confirmado",null,{"v":167,"d":"R$ 167.00"},{"$nulls":5},{"$f":"IF(TB_Consolidado[[#This Row],[DATA]]=\"\",\"\",MONTH(TB_Consolidado[[#This Row],[DATA]]))","v":2},{"$f":"IF(TB_Consolidado[[#This Row],[DATA]]=\"\",\"\",TEXT(TB_Consolidado[[#This Row],[DATA]],\"mmmm\"))","v":"February"},{"$f":"IF(TB_Consolidado[[#This Row],[Nome Mês]]=\"\",\"\",YEAR(TB_Consolidado[[#This Row],[DATA]]))","v":2025}]
[null,null,"2025-03-12","Despesa","Agua","Contas de uso","EVENTO 3","Confirmado",null,{"v":837,"d":"R$ 837.00"},{"$nulls":5},{"$f":"IF(TB_Consolidado[[#This Row],[DATA]]=\"\",\"\",MONTH(TB_Consolidado[[#This Row],[DATA]]))","v":3},{"$f":"IF(TB_Consolidado[[#This Row],[DATA]]=\"\",\"\",TEXT(TB_Consolidado[[#This Row],[DATA]],\"mmmm\"))","v":"March"},{"$f":"IF(TB_Consolidado[[#This Row],[Nome Mês]]=\"\",\"\",YEAR(TB_Consolidado[[#This Row],[DATA]]))","v":2025}]
[null,null,"2025-06-21","Despesa","Artista","Atrações","EVENTO 2","Confirmado",null,{"v":421,"d":"R$ 421.00"},{"$nulls":5},{"$f":"IF(TB_Consolidado[[#This Row],[DATA]]=\"\",\"\",MONTH(TB_Consolidado[[#This Row],[DATA]]))","v":6},{"$f":"IF(TB_Consolidado[[#This Row],[DATA]]=\"\",\"\",TEXT(TB_Consolidado[[#This Row],[DATA]],\"mmmm\"))","v":"June"},{"$f":"IF(TB_Consolidado[[#This Row],[Nome Mês]]=\"\",\"\",YEAR(TB_Consolidado[[#This Row],[DATA]]))","v":2025}]
[null,null,"2025-11-16","Despesa","Aluguel","Local evento","GERAL","Confirmado",null,{"v":429,"d":"R$ 429.00"},{"$nulls":5},{"$f":"IF(TB_Consolidado[[#This Row],[DATA]]=\"\",\"\",MONTH(TB_Consolidado[[#This Row],[DATA]]))","v":11},{"$f":"IF(TB_Consolidado[[#This Row],[DATA]]=\"\",\"\",TEXT(TB_Consolidado[[#This Row],[DATA]],\"mmmm\"))","v":"November"},{"$f":"IF(TB_Consolidado[[#This Row],[Nome Mês]]=\"\",\"\",YEAR(TB_Consolidado[[#This Row],[DATA]]))","v":2025}]
[null,null,"2025-03-24","Despesa","Aluguel","Local evento","EVENTO 5","Confirmado",null,{"v":418,"d":"R$ 418.00"},{"$nulls":5},{"$f":"IF(TB_Consolidado[[#This Row],[DATA]]=\"\",\"\",MONTH(TB_Consolidado[[#This Row],[DATA]]))","v":3},{"$f":"IF(TB_Consolidado[[#This Row],[DATA]]=\"\",\"\",TEXT(TB_Consolidado[[#This Row],[DATA]],\"mmmm\"))","v":"March"},{"$f":"IF(TB_Consolidado[[#This Row],[Nome Mês]]=\"\",\"\",YEAR(TB_Consolidado[[#This Row],[DATA]]))","v":2025}]
[null,null,"2025-04-21","Despesa","Agua","Contas de uso","EVENTO 5","Confirmado",null,{"v":503,"d":"R$ 503.00"},{"$nulls":5},{"$f":"IF(TB_Consolidado[[#This Row],[DATA]]=\"\",\"\",MONTH(TB_Consolidado[[#This Row],[DATA]]))","v":4},{"$f":"IF(TB_Consolidado[[#This Row],[DATA]]=\"\",\"\",TEXT(TB_Consolidado[[#This Row],[DATA]],\"mmmm\"))","v":"April"},{"$f":"IF(TB_Consolidado[[#This Row],[Nome Mês]]=\"\",\"\",YEAR(TB_Consolidado[[#This Row],[DATA]]))","v":2025}]
[null,null,"2025-03-26","Despesa","Aluguel","Local evento","EVENTO 3","Confirmado",null,{"v":879,"d":"R$ 879.00"},{"$nulls":5},{"$f":"IF(TB_Consolidado[[#This Row],[DATA]]=\"\",\"\",MONTH(TB_Consolidado[[#This Row],[DATA]]))","v":3},{"$f":"IF(TB_Consolidado[[#This Row],[DATA]]=\"\",\"\",TEXT(TB_Consolidado[[#This Row],[DATA]],\"mmmm\"))","v":"March"},{"$f":"IF(TB_Consolidado[[#This Row],[Nome Mês]]=\"\",\"\",YEAR(TB_Consolidado[[#This Row],[DATA]]))","v":2025}]
[null,null,"2025-08-21","Despesa","Luz","Contas de uso","EVENTO 5","Confirmado",null,{"v":508,"d":"R$ 508.00"},{"$nulls":5},{"$f":"IF(TB_Consolidado[[#This Row],[DATA]]=\"\",\"\",MONTH(TB_Consolidado[[#This Row],[DATA]]))","v":8},{"$f":"IF(TB_Consolidado[[#This Row],[DATA]]=\"\",\"\",TEXT(TB_Consolidado[[#This Row],[DATA]],\"mmmm\"))","v":"August"},{"$f":"IF(TB_Consolidado[[#This Row],[Nome Mês]]=\"\",\"\",YEAR(TB_Consolidado[[#This Row],[DATA]]))","v":2025}]
[null,null,"2025-01-16","Despesa","Aluguel","Local evento","EVENTO 3","Confirmado",null,{"v":572,"d":"R$ 572.00"},{"$nulls":5},{"$f":"IF(TB_Consolidado[[#This Row],[DATA]]=\"\",\"\",MONTH(TB_Consolidado[[#This Row],[DATA]]))","v":1},{"$f":"IF(TB_Consolidado[[#This Row],[DATA]]=\"\",\"\",TEXT(TB_Consolidado[[#This Row],[DATA]],\"mmmm\"))","v":"January"},{"$f":"IF(TB_Consolidado[[#This Row],[Nome Mês]]=\"\",\"\",YEAR(TB_Consolidado[[#This Row],[DATA]]))","v":2025}]
[null,null,"2025-03-07","Despesa","Agua","Contas de uso","EVENTO 1","Confirmado",null,{"v":634,"d":"R$ 634.00"},{"$nulls":5},{"$f":"IF(TB_Consolidado[[#This Row],[DATA]]=\"\",\"\",MONTH(TB_Consolidado[[#This Row],[DATA]]))","v":3},{"$f":"IF(TB_Consolidado[[#This Row],[DATA]]=\"\",\"\",TEXT(TB_Consolidado[[#This Row],[DATA]],\"mmmm\"))","v":"March"},{"$f":"IF(TB_Consolidado[[#This Row],[Nome Mês]]=\"\",\"\",YEAR(TB_Consolidado[[#This Row],[DATA]]))","v":2025}]
[null,null,"2025-03-26","Despesa","Artista","Atrações","EVENTO 5","Confirmado",null,{"v":674,"d":"R$ 674.00"},{"$nulls":5},{"$f":"IF(TB_Consolidado[[#This Row],[DATA]]=\"\",\"\",MONTH(TB_Consolidado[[#This Row],[DATA]]))","v":3},{"$f":"IF(TB_Consolidado[[#This Row],[DATA]]=\"\",\"\",TEXT(TB_Consolidado[[#This Row],[DATA]],\"mmmm\"))","v":"March"},{"$f":"IF(TB_Consolidado[[#This Row],[Nome Mês]]=\"\",\"\",YEAR(TB_Consolidado[[#This Row],[DATA]]))","v":2025}]
[null,null,"2025-07-11","Despesa","Artista","Atrações","EVENTO 1","Confirmado",null,{"v":615,"d":"R$ 615.00"},{"$nulls":5},{"$f":"IF(TB_Consolidado[[#This Row],[DATA]]=\"\",\"\",MONTH(TB_Consolidado[[#This Row],[DATA]]))","v":7},{"$f":"IF(TB_Consolidado[[#This Row],[DATA]]=\"\",\"\",TEXT(TB_Consolidado[[#This Row],[DATA]],\"mmmm\"))","v":"July"},{"$f":"IF(TB_Consolidado[[#This Row],[Nome Mês]]=\"\",\"\",YEAR(TB_Consolidado[[#This Row],[DATA]]))","v":2025}]
[null,null,"2025-05-04","Despesa","Agua","Contas de uso","EVENTO 4","Confirmado",null,{"v":381,"d":"R$ 381.00"},{"$nulls":5},{"$f":"IF(TB_Consolidado[[#This Row],[DATA]]=\"\",\"\",MONTH(TB_Consolidado[[#This Row],[DATA]]))","v":5},{"$f":"IF(TB_Consolidado[[#This Row],[DATA]]=\"\",\"\",TEXT(TB_Consolidado[[#This Row],[DATA]],\"mmmm\"))","v":"May"},{"$f":"IF(TB_Consolidado[[#This Row],[Nome Mês]]=\"\",\"\",YEAR(TB_Consolidado[[#This Row],[DATA]]))","v":2025}]
[null,null,"2025-05-21","Despesa","Artista","Atrações","EVENTO 5","Confirmado",null,{"v":104,"d":"R$ 104.00"},{"$nulls":5},{"$f":"IF(TB_Consolidado[[#This Row],[DATA]]=\"\",\"\",MONTH(TB_Consolidado[[#This Row],[DATA]]))","v":5},{"$f":"IF(TB_Consolidado[[#This Row],[DATA]]=\"\",\"\",TEXT(TB_Consolidado[[#This Row],[DATA]],\"mmmm\"))","v":"May"},{"$f":"IF(TB_Consolidado[[#This Row],[Nome Mês]]=\"\",\"\",YEAR(TB_Consolidado[[#This Row],[DATA]]))","v":2025}]
[null,null,"2025-04-24","Despesa","Equipamento","Estrutura","EVENTO 2","Confirmado",null,{"v":660,"d":"R$ 660.00"},{"$nulls":5},{"$f":"IF(TB_Consolidado[[#This Row],[DATA]]=\"\",\"\",MONTH(TB_Consolidado[[#This Row],[DATA]]))","v":4},{"$f":"IF(TB_Consolidado[[#This Row],[DATA]]=\"\",\"\",TEXT(TB_Consolidado[[#This Row],[DATA]],\"mmmm\"))","v":"April"},{"$f":"IF(TB_Consolidado[[#This Row],[Nome Mês]]=\"\",\"\",YEAR(TB_Consolidado[[#This Row],[DATA]]))","v":2025}]
[null,null,"2025-09-14","Despesa","Equipamento","Estrutura","GERAL","Confirmado",null,{"v":469,"d":"R$ 469.00"},{"$nulls":5},{"$f":"IF(TB_Consolidado[[#This Row],[DATA]]=\"\",\"\",MONTH(TB_Consolidado[[#This Row],[DATA]]))","v":9},{"$f":"IF(TB_Consolidado[[#This Row],[DATA]]=\"\",\"\",TEXT(TB_Consolidado[[#This Row],[DATA]],\"mmmm\"))","v":"September"},{"$f":"IF(TB_Consolidado[[#This Row],[Nome Mês]]=\"\",\"\",YEAR(TB_Consolidado[[#This Row],[DATA]]))","v":2025}]
[null,null,"2025-02-19","Despesa","Agua","Contas de uso","EVENTO 1","Cancelado",null,{"v":246,"d":"R$ 246.00"},{"$nulls":5},{"$f":"IF(TB_Consolidado[[#This Row],[DATA]]=\"\",\"\",MONTH(TB_Consolidado[[#This Row],[DATA]]))","v":2},{"$f":"IF(TB_Consolidado[[#This Row],[DATA]]=\"\",\"\",TEXT(TB_Consolidado[[#This Row],[DATA]],\"mmmm\"))","v":"February"},{"$f":"IF(TB_Consolidado[[#This Row],[Nome Mês]]=\"\",\"\",YEAR(TB_Consolidado[[#This Row],[DATA]]))","v":2025}]
[null,null,"2025-04-15","Despesa","Equipamento","Estrutura","EVENTO 1","Confirmado",null,{"v":211,"d":"R$ 211.00"},{"$nulls":5},{"$f":"IF(TB_Consolidado[[#This Row],[DATA]]=\"\",\"\",MONTH(TB_Consolidado[[#This Row],[DATA]]))","v":4},{"$f":"IF(TB_Consolidado[[#This Row],[DATA]]=\"\",\"\",TEXT(TB_Consolidado[[#This Row],[DATA]],\"mmmm\"))","v":"April"},{"$f":"IF(TB_Consolidado[[#This Row],[Nome Mês]]=\"\",\"\",YEAR(TB_Consolidado[[#This Row],[DATA]]))","v":2025}]
[null,null,"2025-07-25","Despesa","Equipamento","Estrutura","EVENTO 1","Confirmado",null,{"v":460,"d":"R$ 460.00"},{"$nulls":5},{"$f":"IF(TB_Consolidado[[#This Row],[DATA]]=\"\",\"\",MONTH(TB_Consolidado[[#This Row],[DATA]]))","v":7},{"$f":"IF(TB_Consolidado[[#This Row],[DATA]]=\"\",\"\",TEXT(TB_Consolidado[[#This Row],[DATA]],\"mmmm\"))","v":"July"},{"$f":"IF(TB_Consolidado[[#This Row],[Nome Mês]]=\"\",\"\",YEAR(TB_Consolidado[[#This Row],[DATA]]))","v":2025}]
[null,null,"2025-05-21","Despesa","Agua","Contas de uso","EVENTO 1","Agendado",null,{"v":462,"d":"R$ 462.00"},{"$nulls":5},{"$f":"IF(TB_Consolidado[[#This Row],[DATA]]=\"\",\"\",MONTH(TB_Consolidado[[#This Row],[DATA]]))","v":5},{"$f":"IF(TB_Consolidado[[#This Row],[DATA]]=\"\",\"\",TEXT(TB_Consolidado[[#This Row],[DATA]],\"mmmm\"))","v":"May"},{"$f":"IF(TB_Consolidado[[#This Row],[Nome Mês]]=\"\",\"\",YEAR(TB_Consolidado[[#This Row],[DATA]]))","v":2025}]
[null,null,"2025-04-24","Despesa","Aluguel","Local evento","EVENTO 5","Confirmado",null,{"v":536,"d":"R$ 536.00"},{"$nulls":5},{"$f":"IF(TB_Consolidado[[#This Row],[DATA]]=\"\",\"\",MONTH(TB_Consolidado[[#This Row],[DATA]]))","v":4},{"$f":"IF(TB_Consolidado[[#This Row],[DATA]]=\"\",\"\",TEXT(TB_Consolidado[[#This Row],[DATA]],\"mmmm\"))","v":"April"},{"$f":"IF(TB_Consolidado[[#This Row],[Nome Mês]]=\"\",\"\",YEAR(TB_Consolidado[[#This Row],[DATA]]))","v":2025}]
[null,null,"2025-01-02","Despesa","Luz","Contas de uso","EVENTO 5","Confirmado",null,{"v":252,"d":"R$ 252.00"},{"$nulls":5},{"$f":"IF(TB_Consolidado[[#This Row],[DATA]]=\"\",\"\",MONTH(TB_Consolidado[[#This Row],[DATA]]))","v":1},{"$f":"IF(TB_Consolidado[[#This Row],[DATA]]=\"\",\"\",TEXT(TB_Consolidado[[#This Row],[DATA]],\"mmmm\"))","v":"January"},{"$f":"IF(TB_Consolidado[[#This Row],[Nome Mês]]=\"\",\"\",YEAR(TB_Consolidado[[#This Row],[DATA]]))","v":2025}]
[null,null,"2025-03-04","Despesa","Aluguel","Local evento","EVENTO 5","Cancelado",null,{"v":237,"d":"R$ 237.00"},{"$nulls":5},{"$f":"IF(TB_Consolidado[[#This Row],[DATA]]=\"\",\"\",MONTH(TB_Consolidado[[#This Row],[DATA]]))","v":3},{"$f":"IF(TB_Consolidado[[#This Row],[DATA]]=\"\",\"\",TEXT(TB_Consolidado[[#This Row],[DATA]],\"mmmm\"))","v":"March"},{"$f":"IF(TB_Consolidado[[#This Row],[Nome Mês]]=\"\",\"\",YEAR(TB_Consolidado[[#This Row],[DATA]]))","v":2025}]
[null,null,"2025-11-25","Despesa","Agua","Contas de uso","EVENTO 4","Confirmado",null,{"v":351,"d":"R$ 351.00"},{"$nulls":5},{"$f":"IF(TB_Consolidado[[#This Row],[DATA]]=\"\",\"\",MONTH(TB_Consolidado[[#This Row],[DATA]]))","v":11},{"$f":"IF(TB_Consolidado[[#This Row],[DATA]]=\"\",\"\",TEXT(TB_Consolidado[[#This Row],[DATA]],\"mmmm\"))","v":"November"},{"$f":"IF(TB_Consolidado[[#This Row],[Nome Mês]]=\"\",\"\",YEAR(TB_Consolidado[[#This Row],[DATA]]))","v":2025}]
[null,null,"2025-04-07","Despesa","Luz","Contas de uso","GERAL","Confirmado",null,{"v":596,"d":"R$ 596.00"},{"$nulls":5},{"$f":"IF(TB_Consolidado[[#This Row],[DATA]]=\"\",\"\",MONTH(TB_Consolidado[[#This Row],[DATA]]))","v":4},{"$f":"IF(TB_Consolidado[[#This Row],[DATA]]=\"\",\"\",TEXT(TB_Consolidado[[#This Row],[DATA]],\"mmmm\"))","v":"April"},{"$f":"IF(TB_Consolidado[[#This Row],[Nome Mês]]=\"\",\"\",YEAR(TB_Consolidado[[#This Row],[DATA]]))","v":2025}]
[null,null,"2025-06-16","Despesa","Luz","Contas de uso","EVENTO 1","Confirmado",null,{"v":726,"d":"R$ 726.00"},{"$nulls":5},{"$f":"IF(TB_Consolidado[[#This Row],[DATA]]=\"\",\"\",MONTH(TB_Consolidado[[#This Row],[DATA]]))","v":6},{"$f":"IF(TB_Consolidado[[#This Row],[DATA]]=\"\",\"\",TEXT(TB_Consolidado[[#This Row],[DATA]],\"mmmm\"))","v":"June"},{"$f":"IF(TB_Consolidado[[#This Row],[Nome Mês]]=\"\",\"\",YEAR(TB_Consolidado[[#This Row],[DATA]]))","v":2025}]
[null,null,"2025-08-05","Despesa","Equipamento","Estrutura","EVENTO 2","Confirmado",null,{"v":719,"d":"R$ 719.00"},{"$nulls":5},{"$f":"IF(TB_Consolidado[[#This Row],[DATA]]=\"\",\"\",MONTH(TB_Consolidado[[#This Row],[DATA]]))","v":8},{"$f":"IF(TB_Consolidado[[#This Row],[DATA]]=\"\",\"\",TEXT(TB_Consolidado[[#This Row],[DATA]],\"mmmm\"))","v":"August"},{"$f":"IF(TB_Consolidado[[#This Row],[Nome Mês]]=\"\",\"\",YEAR(TB_Consolidado[[#This Row],[DATA]]))","v":2025}]
[null,null,"2025-09-24","Despesa","Aluguel","Local evento","EVENTO 5","Confirmado",null,{"v":674,"d":"R$ 674.00"},{"$nulls":5},{"$f":"IF(TB_Consolidado[[#This Row],[DATA]]=\"\",\"\",MONTH(TB_Consolidado[[#This Row],[DATA]]))","v":9},{"$f":"IF(TB_Consolidado[[#This Row],[DATA]]=\"\",\"\",TEXT(TB_Consolidado[[#This Row],[DATA]],\"mmmm\"))","v":"September"},{"$f":"IF(TB_Consolidado[[#This Row],[Nome Mês]]=\"\",\"\",YEAR(TB_Consolidado[[#This Row],[DATA]]))","v":2025}]
[null,null,"2025-09-10","Despesa","Aluguel","Local evento","EVENTO 4","Confirmado",null,{"v":762,"d":"R$ 762.00"},{"$nulls":5},{"$f":"IF(TB_Consolidado[[#This Row],[DATA]]=\"\",\"\",MONTH(TB_Consolidado[[#This Row],[DATA]]))","v":9},{"$f":"IF(TB_Consolidado[[#This Row],[DATA]]=\"\",\"\",TEXT(TB_Consolidado[[#This Row],[DATA]],\"mmmm\"))","v":"September"},{"$f":"IF(TB_Consolidado[[#This Row],[Nome Mês]]=\"\",\"\",YEAR(TB_Consolidado[[#This Row],[DATA]]))","v":2025}]
[null,null,"2025-06-27","Despesa","Luz","Contas de uso","EVENTO 3","Confirmado",null,{"v":297,"d":"R$ 297.00"},{"$nulls":5},{"$f":"IF(TB_Consolidado[[#This Row],[DATA]]=\"\",\"\",MONTH(TB_Consolidado[[#This Row],[DATA]]))","v":6},{"$f":"IF(TB_Consolidado[[#This Row],[DATA]]=\"\",\"\",TEXT(TB_Consolidado[[#This Row],[DATA]],\"mmmm\"))","v":"June"},{"$f":"IF(TB_Consolidado[[#This Row],[Nome Mês]]=\"\",\"\",YEAR(TB_Consolidado[[#This Row],[DATA]]))","v":2025}]
[null,null,"2025-07-09","Despesa","Agua","Contas de uso","EVENTO 2","Confirmado",null,{"v":146,"d":"R$ 146.00"},{"$nulls":5},{"$f":"IF(TB_Consolidado[[#This Row],[DATA]]=\"\",\"\",MONTH(TB_Consolidado[[#This Row],[DATA]]))","v":7},{"$f":"IF(TB_Consolidado[[#This Row],[DATA]]=\"\",\"\",TEXT(TB_Consolidado[[#This Row],[DATA]],\"mmmm\"))","v":"July"},{"$f":"IF(TB_Consolidado[[#This Row],[Nome Mês]]=\"\",\"\",YEAR(TB_Consolidado[[#This Row],[DATA]]))","v":2025}]
[null,null,"2025-12-24","Despesa","Artista","Atrações","EVENTO 3","Confirmado",null,{"v":546,"d":"R$ 546.00"},{"$nulls":5},{"$f":"IF(TB_Consolidado[[#This Row],[DATA]]=\"\",\"\",MONTH(TB_Consolidado[[#This Row],[DATA]]))","v":12},{"$f":"IF(TB_Consolidado[[#This Row],[DATA]]=\"\",\"\",TEXT(TB_Consolidado[[#This Row],[DATA]],\"mmmm\"))","v":"December"},{"$f":"IF(TB_Consolidado[[#This Row],[Nome Mês]]=\"\",\"\",YEAR(TB_Consolidado[[#This Row],[DATA]]))","v":2025}]
[null,null,"2025-06-21","Despesa","Aluguel","Local evento","EVENTO 5","Confirmado",null,{"v":821,"d":"R$ 821.00"},{"$nulls":5},{"$f":"IF(TB_Consolidado[[#This Row],[DATA]]=\"\",\"\",MONTH(TB_Consolidado[[#This Row],[DATA]]))","v":6},{"$f":"IF(TB_Consolidado[[#This Row],[DATA]]=\"\",\"\",TEXT(TB_Consolidado[[#This Row],[DATA]],\"mmmm\"))","v":"June"},{"$f":"IF(TB_Consolidado[[#This Row],[Nome Mês]]=\"\",\"\",YEAR(TB_Consolidado[[#This Row],[DATA]]))","v":2025}]
[null,null,"2025-07-17","Despesa","Luz","Contas de uso","EVENTO 4","Confirmado",null,{"v":528,"d":"R$ 528.00"},{"$nulls":5},{"$f":"IF(TB_Consolidado[[#This Row],[DATA]]=\"\",\"\",MONTH(TB_Consolidado[[#This Row],[DATA]]))","v":7},{"$f":"IF(TB_Consolidado[[#This Row],[DATA]]=\"\",\"\",TEXT(TB_Consolidado[[#This Row],[DATA]],\"mmmm\"))","v":"July"},{"$f":"IF(TB_Consolidado[[#This Row],[Nome Mês]]=\"\",\"\",YEAR(TB_Consolidado[[#This Row],[DATA]]))","v":2025}]
[null,null,"2025-12-09","Despesa","Luz","Contas de uso","EVENTO 2","Confirmado",null,{"v":705,"d":"R$ 705.00"},{"$nulls":5},{"$f":"IF(TB_Consolidado[[#This Row],[DATA]]=\"\",\"\",MONTH(TB_Consolidado[[#This Row],[DATA]]))","v":12},{"$f":"IF(TB_Consolidado[[#This Row],[DATA]]=\"\",\"\",TEXT(TB_Consolidado[[#This Row],[DATA]],\"mmmm\"))","v":"December"},{"$f":"IF(TB_Consolidado[[#This Row],[Nome Mês]]=\"\",\"\",YEAR(TB_Consolidado[[#This Row],[DATA]]))","v":2025}]
[null,null,"2025-02-06","Despesa","Artista","Atrações","EVENTO 4","Confirmado",null,{"v":802,"d":"R$ 802.00"},{"$nulls":5},{"$f":"IF(TB_Consolidado[[#This Row],[DATA]]=\"\",\"\",MONTH(TB_Consolidado[[#This Row],[DATA]]))","v":2},{"$f":"IF(TB_Consolidado[[#This Row],[DATA]]=\"\",\"\",TEXT(TB_Consolidado[[#This Row],[DATA]],\"mmmm\"))","v":"February"},{"$f":"IF(TB_Consolidado[[#This Row],[Nome Mês]]=\"\",\"\",YEAR(TB_Consolidado[[#This Row],[DATA]]))","v":2025}]
[null,null,"2025-05-22","Despesa","Artista","Atrações","EVENTO 3","Confirmado",null,{"v":524,"d":"R$ 524.00"},{"$nulls":5},{"$f":"IF(TB_Consolidado[[#This Row],[DATA]]=\"\",\"\",MONTH(TB_Consolidado[[#This Row],[DATA]]))","v":5},{"$f":"IF(TB_Consolidado[[#This Row],[DATA]]=\"\",\"\",TEXT(TB_Consolidado[[#This Row],[DATA]],\"mmmm\"))","v":"May"},{"$f":"IF(TB_Consolidado[[#This Row],[Nome Mês]]=\"\",\"\",YEAR(TB_Consolidado[[#This Row],[DATA]]))","v":2025}]
[null,null,"2025-02-01","Despesa","Artista","Atrações","GERAL","Confirmado",null,{"v":625,"d":"R$ 625.00"},{"$nulls":5},{"$f":"IF(TB_Consolidado[[#This Row],[DATA]]=\"\",\"\",MONTH(TB_Consolidado[[#This Row],[DATA]]))","v":2},{"$f":"IF(TB_Consolidado[[#This Row],[DATA]]=\"\",\"\",TEXT(TB_Consolidado[[#This Row],[DATA]],\"mmmm\"))","v":"February"},{"$f":"IF(TB_Consolidado[[#This Row],[Nome Mês]]=\"\",\"\",YEAR(TB_Consolidado[[#This Row],[DATA]]))","v":2025}]
[null,null,"2025-02-20","Despesa","Equipamento","Estrutura","GERAL","Confirmado",null,{"v":285,"d":"R$ 285.00"},{"$nulls":5},{"$f":"IF(TB_Consolidado[[#This Row],[DATA]]=\"\",\"\",MONTH(TB_Consolidado[[#This Row],[DATA]]))","v":2},{"$f":"IF(TB_Consolidado[[#This Row],[DATA]]=\"\",\"\",TEXT(TB_Consolidado[[#This Row],[DATA]],\"mmmm\"))","v":"February"},{"$f":"IF(TB_Consolidado[[#This Row],[Nome Mês]]=\"\",\"\",YEAR(TB_Consolidado[[#This Row],[DATA]]))","v":2025}]
[null,null,"2025-04-14","Despesa","Aluguel","Local evento","EVENTO 3","Confirmado",null,{"v":131,"d":"R$ 131.00"},{"$nulls":5},{"$f":"IF(TB_Consolidado[[#This Row],[DATA]]=\"\",\"\",MONTH(TB_Consolidado[[#This Row],[DATA]]))","v":4},{"$f":"IF(TB_Consolidado[[#This Row],[DATA]]=\"\",\"\",TEXT(TB_Consolidado[[#This Row],[DATA]],\"mmmm\"))","v":"April"},{"$f":"IF(TB_Consolidado[[#This Row],[Nome Mês]]=\"\",\"\",YEAR(TB_Consolidado[[#This Row],[DATA]]))","v":2025}]
[null,null,"2025-04-08","Despesa","Artista","Atrações","EVENTO 3","Agendado",null,{"v":319,"d":"R$ 319.00"},{"$nulls":5},{"$f":"IF(TB_Consolidado[[#This Row],[DATA]]=\"\",\"\",MONTH(TB_Consolidado[[#This Row],[DATA]]))","v":4},{"$f":"IF(TB_Consolidado[[#This Row],[DATA]]=\"\",\"\",TEXT(TB_Consolidado[[#This Row],[DATA]],\"mmmm\"))","v":"April"},{"$f":"IF(TB_Consolidado[[#This Row],[Nome Mês]]=\"\",\"\",YEAR(TB_Consolidado[[#This Row],[DATA]]))","v":2025}]
[null,null,"2025-11-21","Despesa","Equipamento","Estrutura","EVENTO 3","Agendado",null,{"v":195,"d":"R$ 195.00"},{"$nulls":5},{"$f":"IF(TB_Consolidado[[#This Row],[DATA]]=\"\",\"\",MONTH(TB_Consolidado[[#This Row],[DATA]]))","v":11},{"$f":"IF(TB_Consolidado[[#This Row],[DATA]]=\"\",\"\",TEXT(TB_Consolidado[[#This Row],[DATA]],\"mmmm\"))","v":"November"},{"$f":"IF(TB_Consolidado[[#This Row],[Nome Mês]]=\"\",\"\",YEAR(TB_Consolidado[[#This Row],[DATA]]))","v":2025}]
[null,null,"2025-03-17","Despesa","Agua","Contas de uso","GERAL","Cancelado",null,{"v":611,"d":"R$ 611.00"},{"$nulls":5},{"$f":"IF(TB_Consolidado[[#This Row],[DATA]]=\"\",\"\",MONTH(TB_Consolidado[[#This Row],[DATA]]))","v":3},{"$f":"IF(TB_Consolidado[[#This Row],[DATA]]=\"\",\"\",TEXT(TB_Consolidado[[#This Row],[DATA]],\"mmmm\"))","v":"March"},{"$f":"IF(TB_Consolidado[[#This Row],[Nome Mês]]=\"\",\"\",YEAR(TB_Consolidado[[#This Row],[DATA]]))","v":2025}]

{"sheet":"CALCULOS","index":6,"n_rows":20,"n_cols":24,"rows_kept":20,"hidden":true}
[]
[]
[{"$nulls":6},{"$f":"GETPIVOTDATA(\"R$ receita\",$F$7)","v":{"v":435324,"d":"R$ 435,324.00"}},null,null,{"$f":"GETPIVOTDATA(\"R$ despesa\",$I$7)","v":{"v":49803,"d":"R$ 49,803.00"}},{"$nulls":3},{"$f":"G3-J3","v":{"v":385521,"d":"R$ 385,521.00"}}]
[]
[{"$nulls":5},"FONTE (Receita/Despesa","Receita",null,"FONTE (Receita/Despesa","Despesa",{"$nulls":6},"FONTE (Receita/Despesa","Receita",null,"FONTE (Receita/Despesa","Despesa",null,"FONTE (Receita/Despesa","Receita"]
[]
[null,null,"dashboard",null,null,"Row Labels","Sum of R$ receita",null,"Row Labels","Sum of R$ despesa",null,"Row Labels","Sum of R$ receita","Sum of R$ despesa",null,null,"Row Labels","Sum of R$ receita",null,"Row Labels","Sum of R$ despesa",null,"Row Labels","Sum of R$ receita"]
[null,null,"mensal",null,null,1,{"v":38195,"d":"R$ 38,195.00"},null,1,{"v":1455,"d":"R$ 1,455.00"},null,1,{"v":38195,"d":"R$ 38,195.00"},{"v":1455,"d":"R$ 1,455.00"},null,null,"Bar",{"v":156746,"d":"R$ 156,746.00"},null,"Agua",{"v":8403,"d":"R$ 8,403.00"},null,"EVENTO 3",{"v":58452,"d":"R$ 58,452.00"}]
[null,null,"entrada ",null,null,2,{"v":37535,"d":"R$ 37,535.00"},null,2,5209,null,2,37535,5209,null,null,"Bilheteria",{"v":122472,"d":"R$ 122,472.00"},null,"Aluguel",{"v":11641,"d":"R$ 11,641.00"},null,"EVENTO 4",{"v":67792,"d":"R$ 67,792.00"}]
[null,null,"saida",null,null,3,{"v":39789,"d":"R$ 39,789.00"},null,3,6618,null,3,39789,6618,null,null,"Patrocinio",{"v":156106,"d":"R$ 156,106.00"},null,"Artista",{"v":8686,"d":"R$ 8,686.00"},null,"EVENTO 2",{"v":73080,"d":"R$ 73,080.00"}]
[null,null,"saldos",null,null,4,{"v":36272,"d":"R$ 36,272.00"},null,4,4626,null,4,36272,4626,null,null,"Grand Total",{"v":435324,"d":"R$ 435,324.00"},null,"Equipamento",{"v":10927,"d":"R$ 10,927.00"},null,"GERAL",{"v":75357,"d":"R$ 75,357.00"}]
[{"$nulls":5},5,{"v":24689,"d":"R$ 24,689.00"},null,5,3794,null,5,24689,3794,{"$nulls":5},"Luz",{"v":10146,"d":"R$ 10,146.00"},null,"EVENTO 1",{"v":77691,"d":"R$ 77,691.00"}]
[null,null,"total r$ geral",null,null,6,{"v":38678,"d":"R$ 38,678.00"},null,6,6092,null,6,38678,6092,{"$nulls":5},"Grand Total",{"v":49803,"d":"R$ 49,803.00"},null,"EVENTO 5",{"v":82952,"d":"R$ 82,952.00"}]
[null,null,"total r$ por evento",null,null,7,{"v":32194,"d":"R$ 32,194.00"},null,7,3337,null,7,32194,3337,{"$nulls":8},"Grand Total",{"v":435324,"d":"R$ 435,324.00"}]
[null,null,"maiores receitas",null,null,8,{"v":35219,"d":"R$ 35,219.00"},null,8,2133,null,8,35219,2133]
[null,null,"maiores despesas",null,null,9,{"v":41524,"d":"R$ 41,524.00"},null,9,5167,null,9,41524,5167]
[null,null,"melhores eventos",null,null,10,{"v":30641,"d":"R$ 30,641.00"},null,10,2856,null,10,30641,2856]
[{"$nulls":5},11,{"v":39938,"d":"R$ 39,938.00"},null,11,3691,null,11,39938,3691]
[{"$nulls":5},12,{"v":40650,"d":"R$ 40,650.00"},null,12,4825,null,12,40650,4825]
[{"$nulls":5},"Grand Total",{"v":435324,"d":"R$ 435,324.00"},null,"Grand Total",49803,null,"Grand Total",435324,49803]